Workbook

Sheet 13.3
A1: Get the data: | C1: http://goo.gl/rBXhmI | T1: Region | U1: RefDate | V1: RefYear | W1: Month | X1: Value | AB1: Sum of Value | AC1: Column Labels
A2: You'll find a folder for each month. Enter the folder and | T2: Antarctic | U2: 1979-01-15 | V2: =YEAR(Table24[[#This Row],[RefDate]]) -> 1979 | W2: =MONTH(Table24[[#This Row],[RefDate]]) -> 1 | X2: 5.71 | AB2: Row Labels | AC2: 1 | AD2: 2 | AE2: 3 | AF2: 4 | AG2: 5 | AH2: 6 | AI2: 7 | AJ2: 8 | AK2: 9 | AL2: 10 | AM2: 11 | AN2: 12
A3: get the two text files. For example, "N_08_area.txt" is the | T3: Antarctic | U3: 1979-02-15 | V3: =YEAR(Table24[[#This Row],[RefDate]]) -> 1979 | W3: =MONTH(Table24[[#This Row],[RefDate]]) -> 2 | X3: 3.1 | AB3: Artic
A4: file for the Artic / August. | T4: Antarctic | U4: 1979-03-15 | V4: =YEAR(Table24[[#This Row],[RefDate]]) -> 1979 | W4: =MONTH(Table24[[#This Row],[RefDate]]) -> 3 | X4: 4.47 | AB4: 1979 | AC4: 15.56 | AD4: 16.34 | AE4: 16.48 | AF4: 15.49 | AG4: 14.04 | AH4: 12.59 | AI4: 10.47 | AJ4: 8.14 | AK4: 7.19 | AL4: 9.4 | AM4: 11.15 | AN4: 13.52
T5: Antarctic | U5: 1979-04-15 | V5: =YEAR(Table24[[#This Row],[RefDate]]) -> 1979 | W5: =MONTH(Table24[[#This Row],[RefDate]]) -> 4 | X5: 8.21 | AB5: 1980 | AC5: 15 | AD5: 16.03 | AE5: 16.15 | AF5: 15.51 | AG5: 14.03 | AH5: 12.31 | AI5: 10.39 | AJ5: 8.04 | AK5: 7.83 | AL5: 9.46 | AM5: 11.68 | AN5: 13.7
T6: Antarctic | U6: 1979-05-15 | V6: =YEAR(Table24[[#This Row],[RefDate]]) -> 1979 | W6: =MONTH(Table24[[#This Row],[RefDate]]) -> 5 | X6: 11.43 | AB6: 1981 | AC6: 15.06 | AD6: 15.7 | AE6: 15.65 | AF6: 15.14 | AG6: 13.88 | AH6: 12.56 | AI6: 10.62 | AJ6: 7.86 | AK6: 7.24 | AL6: 9.19 | AM6: 11.15 | AN6: 13.72
T7: Antarctic | U7: 1979-06-15 | V7: =YEAR(Table24[[#This Row],[RefDate]]) -> 1979 | W7: =MONTH(Table24[[#This Row],[RefDate]]) -> 6 | X7: 14.74 | AB7: 1982 | AC7: 15.29 | AD7: 16.1 | AE7: 16.17 | AF7: 15.58 | AG7: 14.15 | AH7: 12.69 | AI7: 10.74 | AJ7: 8.26 | AK7: 7.44 | AL7: 9.99 | AM7: 11.9 | AN7: 13.82
T8: Antarctic | U8: 1979-07-15 | V8: =YEAR(Table24[[#This Row],[RefDate]]) -> 1979 | W8: =MONTH(Table24[[#This Row],[RefDate]]) -> 7 | X8: 16.83 | AB8: 1983 | AC8: 15.11 | AD8: 16.04 | AE8: 16.13 | AF8: 15.31 | AG8: 13.52 | AH8: 12.35 | AI8: 10.9 | AJ8: 8.36 | AK8: 7.51 | AL8: 9.65 | AM8: 11.62 | AN8: 13.43
T9: Antarctic | U9: 1979-08-15 | V9: =YEAR(Table24[[#This Row],[RefDate]]) -> 1979 | W9: =MONTH(Table24[[#This Row],[RefDate]]) -> 8 | X9: 18.11 | AB9: 1984 | AC9: 14.63 | AD9: 15.38 | AE9: 15.65 | AF9: 15.17 | AG9: 13.66 | AH9: 12.19 | AI9: 10.14 | AJ9: 7.87 | AK9: 7.1 | AL9: 8.84 | AM9: 11.28 | AN9: 13.17
B10: ARCTIC | T10: Antarctic | U10: 1979-09-15 | V10: =YEAR(Table24[[#This Row],[RefDate]]) -> 1979 | W10: =MONTH(Table24[[#This Row],[RefDate]]) -> 9 | X10: 18.4 | AB10: 1985 | AC10: 14.9 | AD10: 15.72 | AE10: 16.09 | AF10: 15.34 | AG10: 14.22 | AH10: 12.39 | AI10: 10.09 | AJ10: 7.45 | AK10: 6.91 | AL10: 8.88 | AM10: 11.37 | AN10: 13.18
T11: Antarctic | U11: 1979-10-15 | V11: =YEAR(Table24[[#This Row],[RefDate]]) -> 1979 | W11: =MONTH(Table24[[#This Row],[RefDate]]) -> 10 | X11: 18.03 | AB11: 1986 | AC11: 15.07 | AD11: 15.94 | AE11: 16.1 | AF11: 15.16 | AG11: 13.5 | AH11: 12.09 | AI11: 10.46 | AJ11: 8.01 | AK11: 7.53 | AL11: 9.89 | AM11: 11.77 | AN11: 13.39
T12: Antarctic | U12: 1979-11-15 | V12: =YEAR(Table24[[#This Row],[RefDate]]) -> 1979 | W12: =MONTH(Table24[[#This Row],[RefDate]]) -> 11 | X12: 15.87 | AB12: 1987 | AC12: 15.22 | AD12: 16.15 | AE12: 15.99 | AF12: 15.34 | AG12: 13.8 | AH12: 12.56 | AI12: 9.98 | AJ12: 7.69 | AK12: 7.47 | AL12: 9.29 | AM12: 11.5
T13: Antarctic | U13: 1979-12-15 | V13: =YEAR(Table24[[#This Row],[RefDate]]) -> 1979 | W13: =MONTH(Table24[[#This Row],[RefDate]]) -> 12 | X13: 10.41 | AB13: 1988 | AD13: 15.65 | AE13: 16.16 | AF13: 15.23 | AG13: 13.68 | AH13: 12.02 | AI13: 10.03 | AJ13: 7.9 | AK13: 7.48 | AL13: 9.47 | AM13: 11.67 | AN13: 13.78
T14: Antarctic | U14: 1980-01-15 | V14: =YEAR(Table24[[#This Row],[RefDate]]) -> 1980 | W14: =MONTH(Table24[[#This Row],[RefDate]]) -> 1 | X14: 4.72 | AB14: 1989 | AC14: 15.15 | AD14: 15.58 | AE14: 15.54 | AF14: 14.46 | AG14: 12.98 | AH14: 12.31 | AI14: 10.38 | AJ14: 7.92 | AK14: 7.03 | AL14: 9.52 | AM14: 11.48 | AN14: 13.47
T15: Antarctic | U15: 1980-02-15 | V15: =YEAR(Table24[[#This Row],[RefDate]]) -> 1980 | W15: =MONTH(Table24[[#This Row],[RefDate]]) -> 2 | X15: 2.83 | AB15: 1990 | AC15: 14.99 | AD15: 15.6 | AE15: 15.9 | AF15: 14.69 | AG15: 13.29 | AH15: 11.68 | AI15: 9.61 | AJ15: 6.82 | AK15: 6.23 | AL15: 9.36 | AM15: 11.3 | AN15: 13.26
T16: Antarctic | U16: 1980-03-15 | V16: =YEAR(Table24[[#This Row],[RefDate]]) -> 1980 | W16: =MONTH(Table24[[#This Row],[RefDate]]) -> 3 | X16: 3.54 | AB16: 1991 | AC16: 14.5 | AD16: 15.28 | AE16: 15.52 | AF16: 14.95 | AG16: 13.51 | AH16: 12.23 | AI16: 9.67 | AJ16: 7.4 | AK16: 6.54 | AL16: 9.16 | AM16: 11.1 | AN16: 13.16
T17: Antarctic | U17: 1980-04-15 | V17: =YEAR(Table24[[#This Row],[RefDate]]) -> 1980 | W17: =MONTH(Table24[[#This Row],[RefDate]]) -> 4 | X17: 5.93 | AB17: 1992 | AC17: 14.75 | AD17: 15.53 | AE17: 15.5 | AF17: 14.72 | AG17: 13.25 | AH17: 12.13 | AI17: 10.61 | AJ17: 7.86 | AK17: 7.54 | AL17: 9.6 | AM17: 11.85 | AN17: 13.45
T18: Antarctic | U18: 1980-05-15 | V18: =YEAR(Table24[[#This Row],[RefDate]]) -> 1980 | W18: =MONTH(Table24[[#This Row],[RefDate]]) -> 5 | X18: 9.46 | AB18: 1993 | AC18: 15.11 | AD18: 15.76 | AE18: 15.9 | AF18: 15.2 | AG18: 13.53 | AH18: 11.99 | AI18: 9.65 | AJ18: 7.29 | AK18: 6.5 | AL18: 9.19 | AM18: 11.71 | AN18: 13.51
T19: Antarctic | U19: 1980-06-15 | V19: =YEAR(Table24[[#This Row],[RefDate]]) -> 1980 | W19: =MONTH(Table24[[#This Row],[RefDate]]) -> 6 | X19: 13.24 | AB19: 1994 | AC19: 14.86 | AD19: 15.64 | AE19: 15.62 | AF19: 14.98 | AG19: 13.73 | AH19: 12.09 | AI19: 10.22 | AJ19: 7.61 | AK19: 7.18 | AL19: 9.49 | AM19: 11.28 | AN19: 13.52
T20: Antarctic | U20: 1980-07-15 | V20: =YEAR(Table24[[#This Row],[RefDate]]) -> 1980 | W20: =MONTH(Table24[[#This Row],[RefDate]]) -> 7 | X20: 16.09 | AB20: 1995 | AC20: 14.65 | AD20: 15.27 | AE20: 15.35 | AF20: 14.61 | AG20: 13.04 | AH20: 11.55 | AI20: 9.15 | AJ20: 6.68 | AK20: 6.12 | AL20: 8.94 | AM20: 10.95 | AN20: 12.98
T21: Antarctic | U21: 1980-08-15 | V21: =YEAR(Table24[[#This Row],[RefDate]]) -> 1980 | W21: =MONTH(Table24[[#This Row],[RefDate]]) -> 8 | X21: 18.1 | AB21: 1996 | AC21: 14.25 | AD21: 15.22 | AE21: 15.16 | AF21: 14.23 | AG21: 13.05 | AH21: 12.1 | AI21: 10.36 | AJ21: 8.17 | AK21: 7.87 | AL21: 9.39 | AM21: 10.54 | AN21: 13.12
T22: Antarctic | U22: 1980-09-15 | V22: =YEAR(Table24[[#This Row],[RefDate]]) -> 1980 | W22: =MONTH(Table24[[#This Row],[RefDate]]) -> 9 | X22: 19.06 | AB22: 1997 | AC22: 14.51 | AD22: 15.56 | AE22: 15.61 | AF22: 14.6 | AG22: 13.31 | AH22: 11.9 | AI22: 9.59 | AJ22: 7.29 | AK22: 6.73 | AL22: 8.77 | AM22: 10.89 | AN22: 13.28
B23: Jan | C23: Feb | D23: Mar | E23: Apr | F23: May | G23: Jun | H23: Jul | I23: Aug | J23: Sep | K23: Oct | L23: Nov | M23: Dec | T23: Antarctic | U23: 1980-10-15 | V23: =YEAR(Table24[[#This Row],[RefDate]]) -> 1980 | W23: =MONTH(Table24[[#This Row],[RefDate]]) -> 10 | X23: 18.9 | AB23: 1998 | AC23: 14.85 | AD23: 15.81 | AE23: 15.69 | AF23: 14.91 | AG23: 13.8 | AH23: 11.85 | AI23: 9.62 | AJ23: 7.49 | AK23: 6.55 | AL23: 8.85 | AM23: 10.73 | AN23: 13.25
T24: Antarctic | U24: 1980-11-15 | V24: =YEAR(Table24[[#This Row],[RefDate]]) -> 1980 | W24: =MONTH(Table24[[#This Row],[RefDate]]) -> 11 | X24: 16.71 | AB24: 1999 | AC24: 14.5 | AD24: 15.41 | AE24: 15.45 | AF24: 15.16 | AG24: 13.85 | AH24: 12.1 | AI24: 9.59 | AJ24: 7.38 | AK24: 6.23 | AL24: 9.11 | AM24: 10.97 | AN24: 12.87
T25: Antarctic | U25: 1980-12-15 | V25: =YEAR(Table24[[#This Row],[RefDate]]) -> 1980 | W25: =MONTH(Table24[[#This Row],[RefDate]]) -> 12 | X25: 11.15 | AB25: 2000 | AC25: 14.45 | AD25: 15.22 | AE25: 15.3 | AF25: 14.65 | AG25: 13.18 | AH25: 11.71 | AI25: 9.75 | AJ25: 7.2 | AK25: 6.31 | AL25: 8.92 | AM25: 10.53 | AN25: 12.8
T26: Antarctic | U26: 1981-01-15 | V26: =YEAR(Table24[[#This Row],[RefDate]]) -> 1981 | W26: =MONTH(Table24[[#This Row],[RefDate]]) -> 1 | X26: 4.49 | AB26: 2001 | AC26: 14.36 | AD26: 15.33 | AE26: 15.64 | AF26: 14.89 | AG26: 13.71 | AH26: 11.68 | AI26: 9.22 | AJ26: 7.47 | AK26: 6.74 | AL26: 8.59 | AM26: 10.9 | AN26: 12.83
T27: Antarctic | U27: 1981-02-15 | V27: =YEAR(Table24[[#This Row],[RefDate]]) -> 1981 | W27: =MONTH(Table24[[#This Row],[RefDate]]) -> 2 | X27: 2.87 | AB27: 2002 | AC27: 14.48 | AD27: 15.39 | AE27: 15.46 | AF27: 14.38 | AG27: 13.11 | AH27: 11.69 | AI27: 9.49 | AJ27: 6.53 | AK27: 5.95 | AL27: 8.81 | AM27: 10.76 | AN27: 12.81
T28: Antarctic | U28: 1981-03-15 | V28: =YEAR(Table24[[#This Row],[RefDate]]) -> 1981 | W28: =MONTH(Table24[[#This Row],[RefDate]]) -> 3 | X28: 3.66 | AB28: 2003 | AC28: 14.5 | AD28: 15.29 | AE28: 15.52 | AF28: 14.59 | AG28: 12.99 | AH28: 11.76 | AI28: 9.46 | AJ28: 6.85 | AK28: 6.13 | AL28: 8.65 | AM28: 10.27 | AN28: 12.81
T29: Antarctic | U29: 1981-04-15 | V29: =YEAR(Table24[[#This Row],[RefDate]]) -> 1981 | W29: =MONTH(Table24[[#This Row],[RefDate]]) -> 4 | X29: 6.31 | AB29: 2004 | AC29: 14.06 | AD29: 14.95 | AE29: 15.08 | AF29: 14.12 | AG29: 12.58 | AH29: 11.51 | AI29: 9.6 | AJ29: 6.82 | AK29: 6.04 | AL29: 8.48 | AM29: 10.63 | AN29: 12.72
T30: Antarctic | U30: 1981-05-15 | V30: =YEAR(Table24[[#This Row],[RefDate]]) -> 1981 | W30: =MONTH(Table24[[#This Row],[RefDate]]) -> 5 | X30: 10.11 | AB30: 2005 | AC30: 13.7 | AD30: 14.4 | AE30: 14.77 | AF30: 14.1 | AG30: 12.99 | AH30: 11.29 | AI30: 8.93 | AJ30: 6.29 | AK30: 5.56 | AL30: 8.45 | AM30: 10.45 | AN30: 12.47
T31: Antarctic | U31: 1981-06-15 | V31: =YEAR(Table24[[#This Row],[RefDate]]) -> 1981 | W31: =MONTH(Table24[[#This Row],[RefDate]]) -> 6 | X31: 13.92 | AB31: 2006 | AC31: 13.63 | AD31: 14.47 | AE31: 14.45 | AF31: 13.99 | AG31: 12.61 | AH31: 11.05 | AI31: 8.67 | AJ31: 6.52 | AK31: 5.91 | AL31: 8.33 | AM31: 9.83 | AN31: 12.26
T32: Antarctic | U32: 1981-07-15 | V32: =YEAR(Table24[[#This Row],[RefDate]]) -> 1981 | W32: =MONTH(Table24[[#This Row],[RefDate]]) -> 7 | X32: 16.47 | AB32: 2007 | AC32: 13.8 | AD32: 14.55 | AE32: 14.66 | AF32: 13.88 | AG32: 12.88 | AH32: 11.49 | AI32: 8.13 | AJ32: 5.35 | AK32: 4.29 | AL32: 6.77 | AM32: 10.04 | AN32: 12.38
T33: Antarctic | U33: 1981-08-15 | V33: =YEAR(Table24[[#This Row],[RefDate]]) -> 1981 | W33: =MONTH(Table24[[#This Row],[RefDate]]) -> 8 | X33: 18.23 | AB33: 2008 | AC33: 14.08 | AD33: 15.04 | AE33: 15.27 | AF33: 14.44 | AG33: 13.18 | AH33: 11.36 | AI33: 8.99 | AJ33: 6.05 | AK33: 4.72 | AL33: 8.42 | AM33: 10.61 | AN33: 12.52
T34: Antarctic | U34: 1981-09-15 | V34: =YEAR(Table24[[#This Row],[RefDate]]) -> 1981 | W34: =MONTH(Table24[[#This Row],[RefDate]]) -> 9 | X34: 18.9 | AB34: 2009 | AC34: 14.12 | AD34: 14.88 | AE34: 15.16 | AF34: 14.58 | AG34: 13.4 | AH34: 11.46 | AI34: 8.8 | AJ34: 6.28 | AK34: 5.38 | AL34: 7.52 | AM34: 10.25 | AN34: 12.5
T35: Antarctic | U35: 1981-10-15 | V35: =YEAR(Table24[[#This Row],[RefDate]]) -> 1981 | W35: =MONTH(Table24[[#This Row],[RefDate]]) -> 10 | X35: 18.54 | AB35: 2010 | AC35: 13.85 | AD35: 14.64 | AE35: 15.14 | AF35: 14.72 | AG35: 13.11 | AH35: 10.82 | AI35: 8.35 | AJ35: 6.01 | AK35: 4.92 | AL35: 7.71 | AM35: 9.87 | AN35: 12.01
B36: ANTARCTIC | T36: Antarctic | U36: 1981-11-15 | V36: =YEAR(Table24[[#This Row],[RefDate]]) -> 1981 | W36: =MONTH(Table24[[#This Row],[RefDate]]) -> 11 | X36: 16.36 | AB36: 2011 | AC36: 13.62 | AD36: 14.42 | AE36: 14.6 | AF36: 14.18 | AG36: 12.81 | AH36: 10.99 | AI36: 7.9 | AJ36: 5.54 | AK36: 4.61 | AL36: 7.15 | AM36: 9.98 | AN36: 12.4
T37: Antarctic | U37: 1981-12-15 | V37: =YEAR(Table24[[#This Row],[RefDate]]) -> 1981 | W37: =MONTH(Table24[[#This Row],[RefDate]]) -> 12 | X37: 12.19 | AB37: 2012 | AC37: 13.8 | AD37: 14.63 | AE37: 15.26 | AF37: 14.74 | AG37: 13.11 | AH37: 10.92 | AI37: 7.93 | AJ37: 4.71 | AK37: 3.62 | AL37: 7.08 | AM37: 9.9 | AN37: 12.2
A38: Source: National Snow and Ice Data Center | T38: Antarctic | U38: 1982-01-15 | V38: =YEAR(Table24[[#This Row],[RefDate]]) -> 1982 | W38: =MONTH(Table24[[#This Row],[RefDate]]) -> 1 | X38: 5.45 | AB38: 2013 | AC38: 13.86 | AD38: 14.75 | AE38: 15.1 | AF38: 14.38 | AG38: 13.08 | AH38: 11.56 | AI38: 8.42 | AJ38: 6.09 | AK38: 5.35 | AL38: 8.12 | AM38: 10.22 | AN38: 12.39
T39: Antarctic | U39: 1982-02-15 | V39: =YEAR(Table24[[#This Row],[RefDate]]) -> 1982 | W39: =MONTH(Table24[[#This Row],[RefDate]]) -> 2 | X39: 3.11 | AB39: 2014 | AC39: 13.8 | AD39: 14.51 | AE39: 14.83 | AF39: 14.2 | AG39: 12.77 | AH39: 11.3 | AI39: 8.25 | AJ39: 6.22 | AK39: 5.28 | AL39: 8.09 | AM39: 10.33 | AN39: 12.53
T40: Antarctic | U40: 1982-03-15 | V40: =YEAR(Table24[[#This Row],[RefDate]]) -> 1982 | W40: =MONTH(Table24[[#This Row],[RefDate]]) -> 3 | X40: 4.8 | AB40: 2015 | AC40: 13.65 | AD40: 14.43 | AE40: 14.39 | AF40: 13.96 | AG40: 12.65 | AH40: 10.97 | AI40: 8.77 | AJ40: 5.61 | AK40: 4.63 | AL40: 7.72 | AM40: 10.06 | AN40: 12.27
T41: Antarctic | U41: 1982-04-15 | V41: =YEAR(Table24[[#This Row],[RefDate]]) -> 1982 | W41: =MONTH(Table24[[#This Row],[RefDate]]) -> 4 | X41: 8.28 | AB41: Antarctic
T42: Antarctic | U42: 1982-05-15 | V42: =YEAR(Table24[[#This Row],[RefDate]]) -> 1982 | W42: =MONTH(Table24[[#This Row],[RefDate]]) -> 5 | X42: 11.16 | AB42: 1979 | AC42: 5.71 | AD42: 3.1 | AE42: 4.47 | AF42: 8.21 | AG42: 11.43 | AH42: 14.74 | AI42: 16.83 | AJ42: 18.11 | AK42: 18.4 | AL42: 18.03 | AM42: 15.87 | AN42: 10.41
T43: Antarctic | U43: 1982-06-15 | V43: =YEAR(Table24[[#This Row],[RefDate]]) -> 1982 | W43: =MONTH(Table24[[#This Row],[RefDate]]) -> 6 | X43: 13.99 | AB43: 1980 | AC43: 4.72 | AD43: 2.83 | AE43: 3.54 | AF43: 5.93 | AG43: 9.46 | AH43: 13.24 | AI43: 16.09 | AJ43: 18.1 | AK43: 19.06 | AL43: 18.9 | AM43: 16.71 | AN43: 11.15
T44: Antarctic | U44: 1982-07-15 | V44: =YEAR(Table24[[#This Row],[RefDate]]) -> 1982 | W44: =MONTH(Table24[[#This Row],[RefDate]]) -> 7 | X44: 16.25 | AB44: 1981 | AC44: 4.49 | AD44: 2.87 | AE44: 3.66 | AF44: 6.31 | AG44: 10.11 | AH44: 13.92 | AI44: 16.47 | AJ44: 18.23 | AK44: 18.9 | AL44: 18.54 | AM44: 16.36 | AN44: 12.19
T45: Antarctic | U45: 1982-08-15 | V45: =YEAR(Table24[[#This Row],[RefDate]]) -> 1982 | W45: =MONTH(Table24[[#This Row],[RefDate]]) -> 8 | X45: 18.11 | AB45: 1982 | AC45: 5.45 | AD45: 3.11 | AE45: 4.8 | AF45: 8.28 | AG45: 11.16 | AH45: 13.99 | AI45: 16.25 | AJ45: 18.11 | AK45: 18.63 | AL45: 18 | AM45: 16.02 | AN45: 9.9
T46: Antarctic | U46: 1982-09-15 | V46: =YEAR(Table24[[#This Row],[RefDate]]) -> 1982 | W46: =MONTH(Table24[[#This Row],[RefDate]]) -> 9 | X46: 18.63 | AB46: 1983 | AC46: 4.94 | AD46: 3.03 | AE46: 4.32 | AF46: 7.09 | AG46: 10.09 | AH46: 13.35 | AI46: 15.93 | AJ46: 17.62 | AK46: 18.84 | AL46: 18.11 | AM46: 16.31 | AN46: 11.38
T47: Antarctic | U47: 1982-10-15 | V47: =YEAR(Table24[[#This Row],[RefDate]]) -> 1982 | W47: =MONTH(Table24[[#This Row],[RefDate]]) -> 10 | X47: 18 | AB47: 1984 | AC47: 5.15 | AD47: 2.71 | AE47: 3.93 | AF47: 7.02 | AG47: 10.38 | AH47: 13.94 | AI47: 16.77 | AJ47: 18.14 | AK47: 18.65 | AL47: 17.75 | AM47: 16.58 | AN47: 11.47
T48: Antarctic | U48: 1982-11-15 | V48: =YEAR(Table24[[#This Row],[RefDate]]) -> 1982 | W48: =MONTH(Table24[[#This Row],[RefDate]]) -> 11 | X48: 16.02 | AB48: 1985 | AC48: 4.48 | AD48: 2.78 | AE48: 3.99 | AF48: 7.05 | AG48: 10.86 | AH48: 13.99 | AI48: 16.09 | AJ48: 18.03 | AK48: 19.02 | AL48: 18.42 | AM48: 16.41 | AN48: 12.39
T49: Antarctic | U49: 1982-12-15 | V49: =YEAR(Table24[[#This Row],[RefDate]]) -> 1982 | W49: =MONTH(Table24[[#This Row],[RefDate]]) -> 12 | X49: 9.9 | AB49: 1986 | AC49: 5.58 | AD49: 3.19 | AE49: 4.08 | AF49: 6.91 | AG49: 9.78 | AH49: 13.31 | AI49: 15.82 | AJ49: 17.73 | AK49: 17.97 | AL49: 17.61 | AM49: 15.54 | AN49: 10.13
T50: Antarctic | U50: 1983-01-15 | V50: =YEAR(Table24[[#This Row],[RefDate]]) -> 1983 | W50: =MONTH(Table24[[#This Row],[RefDate]]) -> 1 | X50: 4.94 | AB50: 1987 | AC50: 5.17 | AD50: 3.24 | AE50: 4.42 | AF50: 7.36 | AG50: 10.28 | AH50: 13.31 | AI50: 16.31 | AJ50: 17.97 | AK50: 18.65 | AL50: 18.01 | AM50: 15.82
T51: Antarctic | U51: 1983-02-15 | V51: =YEAR(Table24[[#This Row],[RefDate]]) -> 1983 | W51: =MONTH(Table24[[#This Row],[RefDate]]) -> 2 | X51: 3.03 | AB51: 1988 | AD51: 2.83 | AE51: 4.35 | AF51: 6.85 | AG51: 10.32 | AH51: 13.6 | AI51: 16.31 | AJ51: 18.11 | AK51: 18.64 | AL51: 18.6 | AM51: 16.61 | AN51: 12.22
T52: Antarctic | U52: 1983-03-15 | V52: =YEAR(Table24[[#This Row],[RefDate]]) -> 1983 | W52: =MONTH(Table24[[#This Row],[RefDate]]) -> 3 | X52: 4.32 | AB52: 1989 | AC52: 4.89 | AD52: 2.99 | AE52: 4.19 | AF52: 6.85 | AG52: 11.17 | AH52: 14.17 | AI52: 16.14 | AJ52: 17.74 | AK52: 18.27 | AL52: 18.03 | AM52: 16.08 | AN52: 10.7
T53: Antarctic | U53: 1983-04-15 | V53: =YEAR(Table24[[#This Row],[RefDate]]) -> 1983 | W53: =MONTH(Table24[[#This Row],[RefDate]]) -> 4 | X53: 7.09 | AB53: 1990 | AC53: 5.12 | AD53: 3.01 | AE53: 4.36 | AF53: 7.48 | AG53: 10.34 | AH53: 13.75 | AI53: 16.04 | AJ53: 17.96 | AK53: 18.44 | AL53: 18.18 | AM53: 16.01 | AN53: 10.66
T54: Antarctic | U54: 1983-05-15 | V54: =YEAR(Table24[[#This Row],[RefDate]]) -> 1983 | W54: =MONTH(Table24[[#This Row],[RefDate]]) -> 5 | X54: 10.09 | AB54: 1991 | AC54: 5.44 | AD54: 3.07 | AE54: 4.33 | AF54: 7.49 | AG54: 11.08 | AH54: 13.52 | AI54: 16.21 | AJ54: 18.18 | AK54: 18.56 | AL54: 18.2 | AM54: 16.05 | AN54: 10.8
T55: Antarctic | U55: 1983-06-15 | V55: =YEAR(Table24[[#This Row],[RefDate]]) -> 1983 | W55: =MONTH(Table24[[#This Row],[RefDate]]) -> 6 | X55: 13.35 | AB55: 1992 | AC55: 4.84 | AD55: 2.86 | AE55: 4.07 | AF55: 7.42 | AG55: 10.37 | AH55: 13.34 | AI55: 16.56 | AJ55: 18.18 | AK55: 18.41 | AL55: 18.22 | AM55: 16.26 | AN55: 11.22
T56: Antarctic | U56: 1983-07-15 | V56: =YEAR(Table24[[#This Row],[RefDate]]) -> 1983 | W56: =MONTH(Table24[[#This Row],[RefDate]]) -> 7 | X56: 15.93 | AB56: 1993 | AC56: 4.59 | AD56: 2.46 | AE56: 4.18 | AF56: 7.18 | AG56: 10.59 | AH56: 13.61 | AI56: 16.4 | AJ56: 17.79 | AK56: 18.67 | AL56: 18.38 | AM56: 16.4 | AN56: 11.01
T57: Antarctic | U57: 1983-08-15 | V57: =YEAR(Table24[[#This Row],[RefDate]]) -> 1983 | W57: =MONTH(Table24[[#This Row],[RefDate]]) -> 8 | X57: 17.62 | AB57: 1994 | AC57: 5.19 | AD57: 3.15 | AE57: 5.07 | AF57: 7.67 | AG57: 10.95 | AH57: 14.13 | AI57: 16.81 | AJ57: 18.24 | AK57: 18.96 | AL57: 18.26 | AM57: 16.41 | AN57: 10.68
T58: Antarctic | U58: 1983-09-15 | V58: =YEAR(Table24[[#This Row],[RefDate]]) -> 1983 | W58: =MONTH(Table24[[#This Row],[RefDate]]) -> 9 | X58: 18.84 | AB58: 1995 | AC58: 5.83 | AD58: 3.49 | AE58: 4.97 | AF58: 7.78 | AG58: 11.11 | AH58: 13.84 | AI58: 16.2 | AJ58: 18.2 | AK58: 18.73 | AL58: 18.3 | AM58: 15.97 | AN58: 11.35
T59: Antarctic | U59: 1983-10-15 | V59: =YEAR(Table24[[#This Row],[RefDate]]) -> 1983 | W59: =MONTH(Table24[[#This Row],[RefDate]]) -> 10 | X59: 18.11 | AB59: 1996 | AC59: 6.17 | AD59: 2.89 | AE59: 4.61 | AF59: 7.99 | AG59: 11.5 | AH59: 14.38 | AI59: 16.58 | AJ59: 18.14 | AK59: 18.86 | AL59: 18.17 | AM59: 16.36 | AN59: 10.53
T60: Antarctic | U60: 1983-11-15 | V60: =YEAR(Table24[[#This Row],[RefDate]]) -> 1983 | W60: =MONTH(Table24[[#This Row],[RefDate]]) -> 11 | X60: 16.31 | AB60: 1997 | AC60: 4.27 | AD60: 2.42 | AE60: 3.85 | AF60: 7.09 | AG60: 10.84 | AH60: 13.67 | AI60: 16.42 | AJ60: 18.02 | AK60: 19.15 | AL60: 18.14 | AM60: 16.25 | AN60: 11.41
T61: Antarctic | U61: 1983-12-15 | V61: =YEAR(Table24[[#This Row],[RefDate]]) -> 1983 | W61: =MONTH(Table24[[#This Row],[RefDate]]) -> 12 | X61: 11.38 | AB61: 1998 | AC61: 4.45 | AD61: 2.99 | AE61: 4.65 | AF61: 7.56 | AG61: 10.92 | AH61: 13.98 | AI61: 16.36 | AJ61: 18.19 | AK61: 19.14 | AL61: 18.82 | AM61: 16.64 | AN61: 11.38
T62: Antarctic | U62: 1984-01-15 | V62: =YEAR(Table24[[#This Row],[RefDate]]) -> 1984 | W62: =MONTH(Table24[[#This Row],[RefDate]]) -> 1 | X62: 5.15 | AB62: 1999 | AC62: 4.95 | AD62: 2.9 | AE62: 4.53 | AF62: 7.33 | AG62: 10.89 | AH62: 14.22 | AI62: 16.76 | AJ62: 18.27 | AK62: 19.02 | AL62: 18.73 | AM62: 16.32 | AN62: 11.59
T63: Antarctic | U63: 1984-02-15 | V63: =YEAR(Table24[[#This Row],[RefDate]]) -> 1984 | W63: =MONTH(Table24[[#This Row],[RefDate]]) -> 2 | X63: 2.71 | AB63: 2000 | AC63: 4.82 | AD63: 2.84 | AE63: 4.43 | AF63: 7.77 | AG63: 11.66 | AH63: 14.41 | AI63: 16.74 | AJ63: 18.61 | AK63: 19.12 | AL63: 18.46 | AM63: 16.23 | AN63: 10.82
T64: Antarctic | U64: 1984-03-15 | V64: =YEAR(Table24[[#This Row],[RefDate]]) -> 1984 | W64: =MONTH(Table24[[#This Row],[RefDate]]) -> 3 | X64: 3.93 | AB64: 2001 | AC64: 5.36 | AD64: 3.73 | AE64: 5.07 | AF64: 7.52 | AG64: 10.96 | AH64: 13.91 | AI64: 16.19 | AJ64: 18.04 | AK64: 18.4 | AL64: 18.08 | AM64: 15.76 | AN64: 10.96
T65: Antarctic | U65: 1984-04-15 | V65: =YEAR(Table24[[#This Row],[RefDate]]) -> 1984 | W65: =MONTH(Table24[[#This Row],[RefDate]]) -> 4 | X65: 7.02 | AB65: 2002 | AC65: 4.7 | AD65: 2.86 | AE65: 3.94 | AF65: 6.99 | AG65: 9.98 | AH65: 12.94 | AI65: 15.93 | AJ65: 17.43 | AK65: 18.18 | AL65: 18.17 | AM65: 15.91 | AN65: 11.56
T66: Antarctic | U66: 1984-05-15 | V66: =YEAR(Table24[[#This Row],[RefDate]]) -> 1984 | W66: =MONTH(Table24[[#This Row],[RefDate]]) -> 5 | X66: 10.38 | AB66: 2003 | AC66: 6.2 | AD66: 3.87 | AE66: 4.81 | AF66: 7.77 | AG66: 11.38 | AH66: 14.48 | AI66: 16.86 | AJ66: 18.05 | AK66: 18.57 | AL66: 18.37 | AM66: 16.53 | AN66: 11.38
T67: Antarctic | U67: 1984-06-15 | V67: =YEAR(Table24[[#This Row],[RefDate]]) -> 1984 | W67: =MONTH(Table24[[#This Row],[RefDate]]) -> 6 | X67: 13.94 | AB67: 2004 | AC67: 5.78 | AD67: 3.59 | AE67: 4.81 | AF67: 7.79 | AG67: 10.95 | AH67: 14.36 | AI67: 16.74 | AJ67: 18.22 | AK67: 19.13 | AL67: 18.57 | AM67: 16.57 | AN67: 11.4
T68: Antarctic | U68: 1984-07-15 | V68: =YEAR(Table24[[#This Row],[RefDate]]) -> 1984 | W68: =MONTH(Table24[[#This Row],[RefDate]]) -> 7 | X68: 16.77 | AB68: 2005 | AC68: 4.93 | AD68: 2.93 | AE68: 4.47 | AF68: 7.5 | AG68: 10.97 | AH68: 13.94 | AI68: 16.65 | AJ68: 18.26 | AK68: 19.14 | AL68: 18.7 | AM68: 16.78 | AN68: 10.73
T69: Antarctic | U69: 1984-08-15 | V69: =YEAR(Table24[[#This Row],[RefDate]]) -> 1984 | W69: =MONTH(Table24[[#This Row],[RefDate]]) -> 8 | X69: 18.14 | AB69: 2006 | AC69: 4.25 | AD69: 2.65 | AE69: 3.44 | AF69: 6.57 | AG69: 10.18 | AH69: 13.98 | AI69: 16.63 | AJ69: 18.36 | AK69: 19.36 | AL69: 18.99 | AM69: 16.76 | AN69: 10.49
T70: Antarctic | U70: 1984-09-15 | V70: =YEAR(Table24[[#This Row],[RefDate]]) -> 1984 | W70: =MONTH(Table24[[#This Row],[RefDate]]) -> 9 | X70: 18.65 | AB70: 2007 | AC70: 4.87 | AD70: 2.88 | AE70: 4.09 | AF70: 7.01 | AG70: 10.34 | AH70: 13.87 | AI70: 16.5 | AJ70: 18.04 | AK70: 19.25 | AL70: 18.68 | AM70: 16.24 | AN70: 12.67
T71: Antarctic | U71: 1984-10-15 | V71: =YEAR(Table24[[#This Row],[RefDate]]) -> 1984 | W71: =MONTH(Table24[[#This Row],[RefDate]]) -> 10 | X71: 17.75 | AB71: 2008 | AC71: 6.88 | AD71: 3.87 | AE71: 5.74 | AF71: 8.68 | AG71: 11.51 | AH71: 14.52 | AI71: 16.57 | AJ71: 17.93 | AK71: 18.5 | AL71: 18.08 | AM71: 16.59 | AN71: 12.28
T72: Antarctic | U72: 1984-11-15 | V72: =YEAR(Table24[[#This Row],[RefDate]]) -> 1984 | W72: =MONTH(Table24[[#This Row],[RefDate]]) -> 11 | X72: 16.58 | AB72: 2009 | AC72: 5.95 | AD72: 2.92 | AE72: 4.96 | AF72: 8.36 | AG72: 11.43 | AH72: 14.41 | AI72: 16.66 | AJ72: 18.62 | AK72: 19.2 | AL72: 18.6 | AM72: 16.37 | AN72: 11.42
T73: Antarctic | U73: 1984-12-15 | V73: =YEAR(Table24[[#This Row],[RefDate]]) -> 1984 | W73: =MONTH(Table24[[#This Row],[RefDate]]) -> 12 | X73: 11.47 | AB73: 2010 | AC73: 4.93 | AD73: 3.16 | AE73: 4.03 | AF73: 7.31 | AG73: 11.51 | AH73: 15 | AI73: 17.2 | AJ73: 18.85 | AK73: 19.22 | AL73: 18.83 | AM73: 16.94 | AN73: 12.18
T74: Antarctic | U74: 1985-01-15 | V74: =YEAR(Table24[[#This Row],[RefDate]]) -> 1985 | W74: =MONTH(Table24[[#This Row],[RefDate]]) -> 1 | X74: 4.48 | AB74: 2011 | AC74: 4.72 | AD74: 2.49 | AE74: 3.61 | AF74: 6.76 | AG74: 10.85 | AH74: 13.78 | AI74: 16.32 | AJ74: 18.17 | AK74: 18.95 | AL74: 18.54 | AM74: 16.2 | AN74: 12.26
T75: Antarctic | U75: 1985-02-15 | V75: =YEAR(Table24[[#This Row],[RefDate]]) -> 1985 | W75: =MONTH(Table24[[#This Row],[RefDate]]) -> 2 | X75: 2.78 | AB75: 2012 | AC75: 5.79 | AD75: 3.57 | AE75: 5.02 | AF75: 7.99 | AG75: 10.97 | AH75: 14.2 | AI75: 16.76 | AJ75: 18.4 | AK75: 19.43 | AL75: 18.92 | AM75: 16.68 | AN75: 11.37
T76: Antarctic | U76: 1985-03-15 | V76: =YEAR(Table24[[#This Row],[RefDate]]) -> 1985 | W76: =MONTH(Table24[[#This Row],[RefDate]]) -> 3 | X76: 3.99 | AB76: 2013 | AC76: 5.81 | AD76: 3.87 | AE76: 5.35 | AF76: 8.1 | AG76: 11.49 | AH76: 14.69 | AI76: 17.16 | AJ76: 18.96 | AK76: 19.82 | AL76: 19.47 | AM76: 17.22 | AN76: 12.69
T77: Antarctic | U77: 1985-04-15 | V77: =YEAR(Table24[[#This Row],[RefDate]]) -> 1985 | W77: =MONTH(Table24[[#This Row],[RefDate]]) -> 4 | X77: 7.05 | AB77: 2014 | AC77: 6.74 | AD77: 3.86 | AE77: 5.32 | AF77: 9.03 | AG77: 12.05 | AH77: 15.29 | AI77: 17.43 | AJ77: 19.24 | AK77: 20.1 | AL77: 19.24 | AM77: 16.69 | AN77: 12.45
T78: Antarctic | U78: 1985-05-15 | V78: =YEAR(Table24[[#This Row],[RefDate]]) -> 1985 | W78: =MONTH(Table24[[#This Row],[RefDate]]) -> 5 | X78: 10.86 | AB78: 2015 | AC78: 7.46 | AD78: 3.69 | AE78: 5.48 | AF78: 9.06 | AG78: 12.1 | AH78: 14.93 | AI78: 17.06 | AJ78: 18.02 | AK78: 18.69 | AL78: 18.56 | AM78: 16.49 | AN78: 11.28
T79: Antarctic | U79: 1985-06-15 | V79: =YEAR(Table24[[#This Row],[RefDate]]) -> 1985 | W79: =MONTH(Table24[[#This Row],[RefDate]]) -> 6 | X79: 13.99
T80: Antarctic | U80: 1985-07-15 | V80: =YEAR(Table24[[#This Row],[RefDate]]) -> 1985 | W80: =MONTH(Table24[[#This Row],[RefDate]]) -> 7 | X80: 16.09
T81: Antarctic | U81: 1985-08-15 | V81: =YEAR(Table24[[#This Row],[RefDate]]) -> 1985 | W81: =MONTH(Table24[[#This Row],[RefDate]]) -> 8 | X81: 18.03
T82: Antarctic | U82: 1985-09-15 | V82: =YEAR(Table24[[#This Row],[RefDate]]) -> 1985 | W82: =MONTH(Table24[[#This Row],[RefDate]]) -> 9 | X82: 19.02
T83: Antarctic | U83: 1985-10-15 | V83: =YEAR(Table24[[#This Row],[RefDate]]) -> 1985 | W83: =MONTH(Table24[[#This Row],[RefDate]]) -> 10 | X83: 18.42
T84: Antarctic | U84: 1985-11-15 | V84: =YEAR(Table24[[#This Row],[RefDate]]) -> 1985 | W84: =MONTH(Table24[[#This Row],[RefDate]]) -> 11 | X84: 16.41
T85: Antarctic | U85: 1985-12-15 | V85: =YEAR(Table24[[#This Row],[RefDate]]) -> 1985 | W85: =MONTH(Table24[[#This Row],[RefDate]]) -> 12 | X85: 12.39
T86: Antarctic | U86: 1986-01-15 | V86: =YEAR(Table24[[#This Row],[RefDate]]) -> 1986 | W86: =MONTH(Table24[[#This Row],[RefDate]]) -> 1 | X86: 5.58
T87: Antarctic | U87: 1986-02-15 | V87: =YEAR(Table24[[#This Row],[RefDate]]) -> 1986 | W87: =MONTH(Table24[[#This Row],[RefDate]]) -> 2 | X87: 3.19
T88: Antarctic | U88: 1986-03-15 | V88: =YEAR(Table24[[#This Row],[RefDate]]) -> 1986 | W88: =MONTH(Table24[[#This Row],[RefDate]]) -> 3 | X88: 4.08
T89: Antarctic | U89: 1986-04-15 | V89: =YEAR(Table24[[#This Row],[RefDate]]) -> 1986 | W89: =MONTH(Table24[[#This Row],[RefDate]]) -> 4 | X89: 6.91
T90: Antarctic | U90: 1986-05-15 | V90: =YEAR(Table24[[#This Row],[RefDate]]) -> 1986 | W90: =MONTH(Table24[[#This Row],[RefDate]]) -> 5 | X90: 9.78
T91: Antarctic | U91: 1986-06-15 | V91: =YEAR(Table24[[#This Row],[RefDate]]) -> 1986 | W91: =MONTH(Table24[[#This Row],[RefDate]]) -> 6 | X91: 13.31
T92: Antarctic | U92: 1986-07-15 | V92: =YEAR(Table24[[#This Row],[RefDate]]) -> 1986 | W92: =MONTH(Table24[[#This Row],[RefDate]]) -> 7 | X92: 15.82
T93: Antarctic | U93: 1986-08-15 | V93: =YEAR(Table24[[#This Row],[RefDate]]) -> 1986 | W93: =MONTH(Table24[[#This Row],[RefDate]]) -> 8 | X93: 17.73
T94: Antarctic | U94: 1986-09-15 | V94: =YEAR(Table24[[#This Row],[RefDate]]) -> 1986 | W94: =MONTH(Table24[[#This Row],[RefDate]]) -> 9 | X94: 17.97
T95: Antarctic | U95: 1986-10-15 | V95: =YEAR(Table24[[#This Row],[RefDate]]) -> 1986 | W95: =MONTH(Table24[[#This Row],[RefDate]]) -> 10 | X95: 17.61
T96: Antarctic | U96: 1986-11-15 | V96: =YEAR(Table24[[#This Row],[RefDate]]) -> 1986 | W96: =MONTH(Table24[[#This Row],[RefDate]]) -> 11 | X96: 15.54
T97: Antarctic | U97: 1986-12-15 | V97: =YEAR(Table24[[#This Row],[RefDate]]) -> 1986 | W97: =MONTH(Table24[[#This Row],[RefDate]]) -> 12 | X97: 10.13
T98: Antarctic | U98: 1987-01-15 | V98: =YEAR(Table24[[#This Row],[RefDate]]) -> 1987 | W98: =MONTH(Table24[[#This Row],[RefDate]]) -> 1 | X98: 5.17
T99: Antarctic | U99: 1987-02-15 | V99: =YEAR(Table24[[#This Row],[RefDate]]) -> 1987 | W99: =MONTH(Table24[[#This Row],[RefDate]]) -> 2 | X99: 3.24
T100: Antarctic | U100: 1987-03-15 | V100: =YEAR(Table24[[#This Row],[RefDate]]) -> 1987 | W100: =MONTH(Table24[[#This Row],[RefDate]]) -> 3 | X100: 4.42
T101: Antarctic | U101: 1987-04-15 | V101: =YEAR(Table24[[#This Row],[RefDate]]) -> 1987 | W101: =MONTH(Table24[[#This Row],[RefDate]]) -> 4 | X101: 7.36
T102: Antarctic | U102: 1987-05-15 | V102: =YEAR(Table24[[#This Row],[RefDate]]) -> 1987 | W102: =MONTH(Table24[[#This Row],[RefDate]]) -> 5 | X102: 10.28
T103: Antarctic | U103: 1987-06-15 | V103: =YEAR(Table24[[#This Row],[RefDate]]) -> 1987 | W103: =MONTH(Table24[[#This Row],[RefDate]]) -> 6 | X103: 13.31
T104: Antarctic | U104: 1987-07-15 | V104: =YEAR(Table24[[#This Row],[RefDate]]) -> 1987 | W104: =MONTH(Table24[[#This Row],[RefDate]]) -> 7 | X104: 16.31
T105: Antarctic | U105: 1987-08-15 | V105: =YEAR(Table24[[#This Row],[RefDate]]) -> 1987 | W105: =MONTH(Table24[[#This Row],[RefDate]]) -> 8 | X105: 17.97
T106: Antarctic | U106: 1987-09-15 | V106: =YEAR(Table24[[#This Row],[RefDate]]) -> 1987 | W106: =MONTH(Table24[[#This Row],[RefDate]]) -> 9 | X106: 18.65
T107: Antarctic | U107: 1987-10-15 | V107: =YEAR(Table24[[#This Row],[RefDate]]) -> 1987 | W107: =MONTH(Table24[[#This Row],[RefDate]]) -> 10 | X107: 18.01
T108: Antarctic | U108: 1987-11-15 | V108: =YEAR(Table24[[#This Row],[RefDate]]) -> 1987 | W108: =MONTH(Table24[[#This Row],[RefDate]]) -> 11 | X108: 15.82
T109: Antarctic | U109: 1987-12-15 | V109: =YEAR(Table24[[#This Row],[RefDate]]) -> 1987 | W109: =MONTH(Table24[[#This Row],[RefDate]]) -> 12
T110: Antarctic | U110: 1988-01-15 | V110: =YEAR(Table24[[#This Row],[RefDate]]) -> 1988 | W110: =MONTH(Table24[[#This Row],[RefDate]]) -> 1
T111: Antarctic | U111: 1988-02-15 | V111: =YEAR(Table24[[#This Row],[RefDate]]) -> 1988 | W111: =MONTH(Table24[[#This Row],[RefDate]]) -> 2 | X111: 2.83
T112: Antarctic | U112: 1988-03-15 | V112: =YEAR(Table24[[#This Row],[RefDate]]) -> 1988 | W112: =MONTH(Table24[[#This Row],[RefDate]]) -> 3 | X112: 4.35
T113: Antarctic | U113: 1988-04-15 | V113: =YEAR(Table24[[#This Row],[RefDate]]) -> 1988 | W113: =MONTH(Table24[[#This Row],[RefDate]]) -> 4 | X113: 6.85
T114: Antarctic | U114: 1988-05-15 | V114: =YEAR(Table24[[#This Row],[RefDate]]) -> 1988 | W114: =MONTH(Table24[[#This Row],[RefDate]]) -> 5 | X114: 10.32
T115: Antarctic | U115: 1988-06-15 | V115: =YEAR(Table24[[#This Row],[RefDate]]) -> 1988 | W115: =MONTH(Table24[[#This Row],[RefDate]]) -> 6 | X115: 13.6
T116: Antarctic | U116: 1988-07-15 | V116: =YEAR(Table24[[#This Row],[RefDate]]) -> 1988 | W116: =MONTH(Table24[[#This Row],[RefDate]]) -> 7 | X116: 16.31
T117: Antarctic | U117: 1988-08-15 | V117: =YEAR(Table24[[#This Row],[RefDate]]) -> 1988 | W117: =MONTH(Table24[[#This Row],[RefDate]]) -> 8 | X117: 18.11
T118: Antarctic | U118: 1988-09-15 | V118: =YEAR(Table24[[#This Row],[RefDate]]) -> 1988 | W118: =MONTH(Table24[[#This Row],[RefDate]]) -> 9 | X118: 18.64
T119: Antarctic | U119: 1988-10-15 | V119: =YEAR(Table24[[#This Row],[RefDate]]) -> 1988 | W119: =MONTH(Table24[[#This Row],[RefDate]]) -> 10 | X119: 18.6
T120: Antarctic | U120: 1988-11-15 | V120: =YEAR(Table24[[#This Row],[RefDate]]) -> 1988 | W120: =MONTH(Table24[[#This Row],[RefDate]]) -> 11 | X120: 16.61
T121: Antarctic | U121: 1988-12-15 | V121: =YEAR(Table24[[#This Row],[RefDate]]) -> 1988 | W121: =MONTH(Table24[[#This Row],[RefDate]]) -> 12 | X121: 12.22
T122: Antarctic | U122: 1989-01-15 | V122: =YEAR(Table24[[#This Row],[RefDate]]) -> 1989 | W122: =MONTH(Table24[[#This Row],[RefDate]]) -> 1 | X122: 4.89
T123: Antarctic | U123: 1989-02-15 | V123: =YEAR(Table24[[#This Row],[RefDate]]) -> 1989 | W123: =MONTH(Table24[[#This Row],[RefDate]]) -> 2 | X123: 2.99
T124: Antarctic | U124: 1989-03-15 | V124: =YEAR(Table24[[#This Row],[RefDate]]) -> 1989 | W124: =MONTH(Table24[[#This Row],[RefDate]]) -> 3 | X124: 4.19
T125: Antarctic | U125: 1989-04-15 | V125: =YEAR(Table24[[#This Row],[RefDate]]) -> 1989 | W125: =MONTH(Table24[[#This Row],[RefDate]]) -> 4 | X125: 6.85
T126: Antarctic | U126: 1989-05-15 | V126: =YEAR(Table24[[#This Row],[RefDate]]) -> 1989 | W126: =MONTH(Table24[[#This Row],[RefDate]]) -> 5 | X126: 11.17
T127: Antarctic | U127: 1989-06-15 | V127: =YEAR(Table24[[#This Row],[RefDate]]) -> 1989 | W127: =MONTH(Table24[[#This Row],[RefDate]]) -> 6 | X127: 14.17
T128: Antarctic | U128: 1989-07-15 | V128: =YEAR(Table24[[#This Row],[RefDate]]) -> 1989 | W128: =MONTH(Table24[[#This Row],[RefDate]]) -> 7 | X128: 16.14
T129: Antarctic | U129: 1989-08-15 | V129: =YEAR(Table24[[#This Row],[RefDate]]) -> 1989 | W129: =MONTH(Table24[[#This Row],[RefDate]]) -> 8 | X129: 17.74
T130: Antarctic | U130: 1989-09-15 | V130: =YEAR(Table24[[#This Row],[RefDate]]) -> 1989 | W130: =MONTH(Table24[[#This Row],[RefDate]]) -> 9 | X130: 18.27
T131: Antarctic | U131: 1989-10-15 | V131: =YEAR(Table24[[#This Row],[RefDate]]) -> 1989 | W131: =MONTH(Table24[[#This Row],[RefDate]]) -> 10 | X131: 18.03
T132: Antarctic | U132: 1989-11-15 | V132: =YEAR(Table24[[#This Row],[RefDate]]) -> 1989 | W132: =MONTH(Table24[[#This Row],[RefDate]]) -> 11 | X132: 16.08
T133: Antarctic | U133: 1989-12-15 | V133: =YEAR(Table24[[#This Row],[RefDate]]) -> 1989 | W133: =MONTH(Table24[[#This Row],[RefDate]]) -> 12 | X133: 10.7
T134: Antarctic | U134: 1990-01-15 | V134: =YEAR(Table24[[#This Row],[RefDate]]) -> 1990 | W134: =MONTH(Table24[[#This Row],[RefDate]]) -> 1 | X134: 5.12
T135: Antarctic | U135: 1990-02-15 | V135: =YEAR(Table24[[#This Row],[RefDate]]) -> 1990 | W135: =MONTH(Table24[[#This Row],[RefDate]]) -> 2 | X135: 3.01
T136: Antarctic | U136: 1990-03-15 | V136: =YEAR(Table24[[#This Row],[RefDate]]) -> 1990 | W136: =MONTH(Table24[[#This Row],[RefDate]]) -> 3 | X136: 4.36
T137: Antarctic | U137: 1990-04-15 | V137: =YEAR(Table24[[#This Row],[RefDate]]) -> 1990 | W137: =MONTH(Table24[[#This Row],[RefDate]]) -> 4 | X137: 7.48
T138: Antarctic | U138: 1990-05-15 | V138: =YEAR(Table24[[#This Row],[RefDate]]) -> 1990 | W138: =MONTH(Table24[[#This Row],[RefDate]]) -> 5 | X138: 10.34
T139: Antarctic | U139: 1990-06-15 | V139: =YEAR(Table24[[#This Row],[RefDate]]) -> 1990 | W139: =MONTH(Table24[[#This Row],[RefDate]]) -> 6 | X139: 13.75
T140: Antarctic | U140: 1990-07-15 | V140: =YEAR(Table24[[#This Row],[RefDate]]) -> 1990 | W140: =MONTH(Table24[[#This Row],[RefDate]]) -> 7 | X140: 16.04
T141: Antarctic | U141: 1990-08-15 | V141: =YEAR(Table24[[#This Row],[RefDate]]) -> 1990 | W141: =MONTH(Table24[[#This Row],[RefDate]]) -> 8 | X141: 17.96
T142: Antarctic | U142: 1990-09-15 | V142: =YEAR(Table24[[#This Row],[RefDate]]) -> 1990 | W142: =MONTH(Table24[[#This Row],[RefDate]]) -> 9 | X142: 18.44
T143: Antarctic | U143: 1990-10-15 | V143: =YEAR(Table24[[#This Row],[RefDate]]) -> 1990 | W143: =MONTH(Table24[[#This Row],[RefDate]]) -> 10 | X143: 18.18
T144: Antarctic | U144: 1990-11-15 | V144: =YEAR(Table24[[#This Row],[RefDate]]) -> 1990 | W144: =MONTH(Table24[[#This Row],[RefDate]]) -> 11 | X144: 16.01
T145: Antarctic | U145: 1990-12-15 | V145: =YEAR(Table24[[#This Row],[RefDate]]) -> 1990 | W145: =MONTH(Table24[[#This Row],[RefDate]]) -> 12 | X145: 10.66
T146: Antarctic | U146: 1991-01-15 | V146: =YEAR(Table24[[#This Row],[RefDate]]) -> 1991 | W146: =MONTH(Table24[[#This Row],[RefDate]]) -> 1 | X146: 5.44
T147: Antarctic | U147: 1991-02-15 | V147: =YEAR(Table24[[#This Row],[RefDate]]) -> 1991 | W147: =MONTH(Table24[[#This Row],[RefDate]]) -> 2 | X147: 3.07
T148: Antarctic | U148: 1991-03-15 | V148: =YEAR(Table24[[#This Row],[RefDate]]) -> 1991 | W148: =MONTH(Table24[[#This Row],[RefDate]]) -> 3 | X148: 4.33
T149: Antarctic | U149: 1991-04-15 | V149: =YEAR(Table24[[#This Row],[RefDate]]) -> 1991 | W149: =MONTH(Table24[[#This Row],[RefDate]]) -> 4 | X149: 7.49
T150: Antarctic | U150: 1991-05-15 | V150: =YEAR(Table24[[#This Row],[RefDate]]) -> 1991 | W150: =MONTH(Table24[[#This Row],[RefDate]]) -> 5 | X150: 11.08
T151: Antarctic | U151: 1991-06-15 | V151: =YEAR(Table24[[#This Row],[RefDate]]) -> 1991 | W151: =MONTH(Table24[[#This Row],[RefDate]]) -> 6 | X151: 13.52
T152: Antarctic | U152: 1991-07-15 | V152: =YEAR(Table24[[#This Row],[RefDate]]) -> 1991 | W152: =MONTH(Table24[[#This Row],[RefDate]]) -> 7 | X152: 16.21
T153: Antarctic | U153: 1991-08-15 | V153: =YEAR(Table24[[#This Row],[RefDate]]) -> 1991 | W153: =MONTH(Table24[[#This Row],[RefDate]]) -> 8 | X153: 18.18
T154: Antarctic | U154: 1991-09-15 | V154: =YEAR(Table24[[#This Row],[RefDate]]) -> 1991 | W154: =MONTH(Table24[[#This Row],[RefDate]]) -> 9 | X154: 18.56
T155: Antarctic | U155: 1991-10-15 | V155: =YEAR(Table24[[#This Row],[RefDate]]) -> 1991 | W155: =MONTH(Table24[[#This Row],[RefDate]]) -> 10 | X155: 18.2
T156: Antarctic | U156: 1991-11-15 | V156: =YEAR(Table24[[#This Row],[RefDate]]) -> 1991 | W156: =MONTH(Table24[[#This Row],[RefDate]]) -> 11 | X156: 16.05
T157: Antarctic | U157: 1991-12-15 | V157: =YEAR(Table24[[#This Row],[RefDate]]) -> 1991 | W157: =MONTH(Table24[[#This Row],[RefDate]]) -> 12 | X157: 10.8
T158: Antarctic | U158: 1992-01-15 | V158: =YEAR(Table24[[#This Row],[RefDate]]) -> 1992 | W158: =MONTH(Table24[[#This Row],[RefDate]]) -> 1 | X158: 4.84
T159: Antarctic | U159: 1992-02-15 | V159: =YEAR(Table24[[#This Row],[RefDate]]) -> 1992 | W159: =MONTH(Table24[[#This Row],[RefDate]]) -> 2 | X159: 2.86
T160: Antarctic | U160: 1992-03-15 | V160: =YEAR(Table24[[#This Row],[RefDate]]) -> 1992 | W160: =MONTH(Table24[[#This Row],[RefDate]]) -> 3 | X160: 4.07
T161: Antarctic | U161: 1992-04-15 | V161: =YEAR(Table24[[#This Row],[RefDate]]) -> 1992 | W161: =MONTH(Table24[[#This Row],[RefDate]]) -> 4 | X161: 7.42
T162: Antarctic | U162: 1992-05-15 | V162: =YEAR(Table24[[#This Row],[RefDate]]) -> 1992 | W162: =MONTH(Table24[[#This Row],[RefDate]]) -> 5 | X162: 10.37
T163: Antarctic | U163: 1992-06-15 | V163: =YEAR(Table24[[#This Row],[RefDate]]) -> 1992 | W163: =MONTH(Table24[[#This Row],[RefDate]]) -> 6 | X163: 13.34
T164: Antarctic | U164: 1992-07-15 | V164: =YEAR(Table24[[#This Row],[RefDate]]) -> 1992 | W164: =MONTH(Table24[[#This Row],[RefDate]]) -> 7 | X164: 16.56
T165: Antarctic | U165: 1992-08-15 | V165: =YEAR(Table24[[#This Row],[RefDate]]) -> 1992 | W165: =MONTH(Table24[[#This Row],[RefDate]]) -> 8 | X165: 18.18
T166: Antarctic | U166: 1992-09-15 | V166: =YEAR(Table24[[#This Row],[RefDate]]) -> 1992 | W166: =MONTH(Table24[[#This Row],[RefDate]]) -> 9 | X166: 18.41
T167: Antarctic | U167: 1992-10-15 | V167: =YEAR(Table24[[#This Row],[RefDate]]) -> 1992 | W167: =MONTH(Table24[[#This Row],[RefDate]]) -> 10 | X167: 18.22
T168: Antarctic | U168: 1992-11-15 | V168: =YEAR(Table24[[#This Row],[RefDate]]) -> 1992 | W168: =MONTH(Table24[[#This Row],[RefDate]]) -> 11 | X168: 16.26
T169: Antarctic | U169: 1992-12-15 | V169: =YEAR(Table24[[#This Row],[RefDate]]) -> 1992 | W169: =MONTH(Table24[[#This Row],[RefDate]]) -> 12 | X169: 11.22
T170: Antarctic | U170: 1993-01-15 | V170: =YEAR(Table24[[#This Row],[RefDate]]) -> 1993 | W170: =MONTH(Table24[[#This Row],[RefDate]]) -> 1 | X170: 4.59
T171: Antarctic | U171: 1993-02-15 | V171: =YEAR(Table24[[#This Row],[RefDate]]) -> 1993 | W171: =MONTH(Table24[[#This Row],[RefDate]]) -> 2 | X171: 2.46
T172: Antarctic | U172: 1993-03-15 | V172: =YEAR(Table24[[#This Row],[RefDate]]) -> 1993 | W172: =MONTH(Table24[[#This Row],[RefDate]]) -> 3 | X172: 4.18
T173: Antarctic | U173: 1993-04-15 | V173: =YEAR(Table24[[#This Row],[RefDate]]) -> 1993 | W173: =MONTH(Table24[[#This Row],[RefDate]]) -> 4 | X173: 7.18
T174: Antarctic | U174: 1993-05-15 | V174: =YEAR(Table24[[#This Row],[RefDate]]) -> 1993 | W174: =MONTH(Table24[[#This Row],[RefDate]]) -> 5 | X174: 10.59
T175: Antarctic | U175: 1993-06-15 | V175: =YEAR(Table24[[#This Row],[RefDate]]) -> 1993 | W175: =MONTH(Table24[[#This Row],[RefDate]]) -> 6 | X175: 13.61
T176: Antarctic | U176: 1993-07-15 | V176: =YEAR(Table24[[#This Row],[RefDate]]) -> 1993 | W176: =MONTH(Table24[[#This Row],[RefDate]]) -> 7 | X176: 16.4
T177: Antarctic | U177: 1993-08-15 | V177: =YEAR(Table24[[#This Row],[RefDate]]) -> 1993 | W177: =MONTH(Table24[[#This Row],[RefDate]]) -> 8 | X177: 17.79
T178: Antarctic | U178: 1993-09-15 | V178: =YEAR(Table24[[#This Row],[RefDate]]) -> 1993 | W178: =MONTH(Table24[[#This Row],[RefDate]]) -> 9 | X178: 18.67
T179: Antarctic | U179: 1993-10-15 | V179: =YEAR(Table24[[#This Row],[RefDate]]) -> 1993 | W179: =MONTH(Table24[[#This Row],[RefDate]]) -> 10 | X179: 18.38
T180: Antarctic | U180: 1993-11-15 | V180: =YEAR(Table24[[#This Row],[RefDate]]) -> 1993 | W180: =MONTH(Table24[[#This Row],[RefDate]]) -> 11 | X180: 16.4
T181: Antarctic | U181: 1993-12-15 | V181: =YEAR(Table24[[#This Row],[RefDate]]) -> 1993 | W181: =MONTH(Table24[[#This Row],[RefDate]]) -> 12 | X181: 11.01
T182: Antarctic | U182: 1994-01-15 | V182: =YEAR(Table24[[#This Row],[RefDate]]) -> 1994 | W182: =MONTH(Table24[[#This Row],[RefDate]]) -> 1 | X182: 5.19
T183: Antarctic | U183: 1994-02-15 | V183: =YEAR(Table24[[#This Row],[RefDate]]) -> 1994 | W183: =MONTH(Table24[[#This Row],[RefDate]]) -> 2 | X183: 3.15
T184: Antarctic | U184: 1994-03-15 | V184: =YEAR(Table24[[#This Row],[RefDate]]) -> 1994 | W184: =MONTH(Table24[[#This Row],[RefDate]]) -> 3 | X184: 5.07
T185: Antarctic | U185: 1994-04-15 | V185: =YEAR(Table24[[#This Row],[RefDate]]) -> 1994 | W185: =MONTH(Table24[[#This Row],[RefDate]]) -> 4 | X185: 7.67
T186: Antarctic | U186: 1994-05-15 | V186: =YEAR(Table24[[#This Row],[RefDate]]) -> 1994 | W186: =MONTH(Table24[[#This Row],[RefDate]]) -> 5 | X186: 10.95
T187: Antarctic | U187: 1994-06-15 | V187: =YEAR(Table24[[#This Row],[RefDate]]) -> 1994 | W187: =MONTH(Table24[[#This Row],[RefDate]]) -> 6 | X187: 14.13
T188: Antarctic | U188: 1994-07-15 | V188: =YEAR(Table24[[#This Row],[RefDate]]) -> 1994 | W188: =MONTH(Table24[[#This Row],[RefDate]]) -> 7 | X188: 16.81
T189: Antarctic | U189: 1994-08-15 | V189: =YEAR(Table24[[#This Row],[RefDate]]) -> 1994 | W189: =MONTH(Table24[[#This Row],[RefDate]]) -> 8 | X189: 18.24
T190: Antarctic | U190: 1994-09-15 | V190: =YEAR(Table24[[#This Row],[RefDate]]) -> 1994 | W190: =MONTH(Table24[[#This Row],[RefDate]]) -> 9 | X190: 18.96
T191: Antarctic | U191: 1994-10-15 | V191: =YEAR(Table24[[#This Row],[RefDate]]) -> 1994 | W191: =MONTH(Table24[[#This Row],[RefDate]]) -> 10 | X191: 18.26
T192: Antarctic | U192: 1994-11-15 | V192: =YEAR(Table24[[#This Row],[RefDate]]) -> 1994 | W192: =MONTH(Table24[[#This Row],[RefDate]]) -> 11 | X192: 16.41
T193: Antarctic | U193: 1994-12-15 | V193: =YEAR(Table24[[#This Row],[RefDate]]) -> 1994 | W193: =MONTH(Table24[[#This Row],[RefDate]]) -> 12 | X193: 10.68
T194: Antarctic | U194: 1995-01-15 | V194: =YEAR(Table24[[#This Row],[RefDate]]) -> 1995 | W194: =MONTH(Table24[[#This Row],[RefDate]]) -> 1 | X194: 5.83
T195: Antarctic | U195: 1995-02-15 | V195: =YEAR(Table24[[#This Row],[RefDate]]) -> 1995 | W195: =MONTH(Table24[[#This Row],[RefDate]]) -> 2 | X195: 3.49
T196: Antarctic | U196: 1995-03-15 | V196: =YEAR(Table24[[#This Row],[RefDate]]) -> 1995 | W196: =MONTH(Table24[[#This Row],[RefDate]]) -> 3 | X196: 4.97
T197: Antarctic | U197: 1995-04-15 | V197: =YEAR(Table24[[#This Row],[RefDate]]) -> 1995 | W197: =MONTH(Table24[[#This Row],[RefDate]]) -> 4 | X197: 7.78
T198: Antarctic | U198: 1995-05-15 | V198: =YEAR(Table24[[#This Row],[RefDate]]) -> 1995 | W198: =MONTH(Table24[[#This Row],[RefDate]]) -> 5 | X198: 11.11
T199: Antarctic | U199: 1995-06-15 | V199: =YEAR(Table24[[#This Row],[RefDate]]) -> 1995 | W199: =MONTH(Table24[[#This Row],[RefDate]]) -> 6 | X199: 13.84
T200: Antarctic | U200: 1995-07-15 | V200: =YEAR(Table24[[#This Row],[RefDate]]) -> 1995 | W200: =MONTH(Table24[[#This Row],[RefDate]]) -> 7 | X200: 16.2
... 689 more rows

Sheet 13.4
A1: Table 1502. Composition of consumer unit: Annual expenditure means, shares, standard errors, and coefficients of variation, Consumer Expenditure Survey, 2014 | G1: Get the data (PDF): | I1: http://goo.gl/ANPCua
A3: Item | B3: All consumer units | C3: Married couple only | D3: Oldest child under 6 | E3: Oldest child 6 to 17 | F3: Oldest child 18 or older | G3: Other married couple consumer units | H3: One parent, at least one child under 18 | I3: Single person and other consumer units
A4: Number of consumer units (in thousands) | B4: 127006 | C4: 27386 | D4: 5423 | E4: 13852 | F4: 8894 | G4: 5495 | H4: 7355 | I4: 58601
A5: Reading | B5: 103 | C5: 159 | D5: 74 | E5: 122 | F5: 128 | G5: 65 | H5: 92 | I5: 77
A6: Tobacco products | B6: 319 | C6: 305 | D6: 224 | E6: 232 | F6: 434 | G6: 247 | H6: 546 | I6: 325
A7: Alcoholic beverages | B7: 463 | C7: 670 | D7: 449 | E7: 497 | F7: 570 | G7: 225 | H7: 417 | I7: 371
A8: Personal care | B8: 645 | C8: 808 | D8: 704 | E8: 933 | F8: 856 | G8: 555 | H8: 797 | I8: 456
A9: Miscellaneous | B9: 782 | C9: 809 | D9: 842 | E9: 1211 | F9: 1000 | G9: 599 | H9: 921 | I9: 636
A10: Education | B10: 1236 | C10: 1076 | D10: 1051 | E10: 2218 | F10: 3105 | G10: 862 | H10: 1139 | I10: 867
A11: Apparel and services | B11: 1786 | C11: 1880 | D11: 2701 | E11: 3143 | F11: 2396 | G11: 1762 | H11: 2787 | I11: 1143
A12: Cash contributions | B12: 1788 | C12: 2793 | D12: 1597 | E12: 2104 | F12: 1956 | G12: 962 | H12: 1732 | I12: 1345
A13: Entertainment | B13: 2728 | C13: 3381 | D13: 3082 | E13: 4689 | F13: 3648 | G13: 1779 | H13: 3240 | I13: 1837
A14: Healthcare | B14: 4290 | C14: 6549 | D14: 4746 | E14: 5517 | F14: 6383 | G14: 2042 | H14: 5389 | I14: 2761
A15: Insurance & pensions | B15: 5726 | C15: 7053 | D15: 8347 | E15: 9712 | F15: 10286 | G15: 2992 | H15: 7973 | I15: 3361
A16: Food | B16: 6759 | C16: 7491 | D16: 8538 | E16: 10364 | F16: 9910 | G16: 5920 | H16: 10014 | I16: 4679
A17: Transportation | B17: 9073 | C17: 11128 | D17: 11949 | E17: 12725 | F17: 15121 | G17: 6793 | H17: 12834 | I17: 5995
A18: Housing | B18: 17798 | C18: 19358 | D18: 25810 | E18: 25295 | F18: 22607 | G18: 15175 | H18: 21029 | I18: 13843
A20: Sources of income and personal taxes:
A21: Source: Consumer Expenditure Survey, U.S. Bureau of Labor Statistics, September, 2015
A23: AVERAGE U.S. HOUSEHOLD EXPENDITURE
A24: Per type of household and expenditure category, in 2014
A40: Source: Bureau of Labour Statistics

Sheet 13.5
A1: Table 1502. Composition of consumer unit: Annual expenditure means, shares, standard errors, and coefficients of variation, Consumer Expenditure Survey, 2014
A2: Item | B2: All consumer units | C2: Married couple only | D2: Oldest child under 6 | E2: Oldest child 6 to 17 | F2: Oldest child 18 or older | G2: One parent, at least one child under 18 | H2: Other married couple consumer units | I2: Single person and other consumer units | P2: Total
A3: Number of consumer units (in thousands) | B3: 127006 | C3: 27386 | D3: 5423 | E3: 13852 | F3: 8894 | G3: 7355 | H3: 5495 | I3: 58601 | O3: 61051 | P3: 28169
A4: Food | B4: 6759 | C4: 7491 | D4: 8538 | E4: 10364 | F4: 9910 | G4: 5920 | H4: 10014 | I4: 4679 | O4: 8816 | P4: 9923
A5: Apparel and services | B5: 1786 | C5: 1880 | D5: 2701 | E5: 3143 | F5: 2396 | G5: 1762 | H5: 2787 | I5: 1143 | O5: 2395 | P5: 2837
A6: Housing | B6: 17798 | C6: 19358 | D6: 25810 | E6: 25295 | F6: 22607 | G6: 15175 | H6: 21029 | I6: 13843 | O6: 21896 | P6: 24533
A7: Healthcare | B7: 4290 | C7: 6549 | D7: 4746 | E7: 5517 | F7: 6383 | G7: 2042 | H7: 5389 | I7: 2761 | O7: 6026 | P7: 5642
A8: Transportation | B8: 9073 | C8: 11128 | D8: 11949 | E8: 12725 | F8: 15121 | G8: 6793 | H8: 12834 | I8: 5995 | O8: 12293 | P8: 13327
A9: Personal care | B9: 645 | C9: 808 | D9: 704 | E9: 933 | F9: 856 | G9: 555 | H9: 797 | I9: 456 | O9: 835 | P9: 870
A10: Education | B10: 1236 | C10: 1076 | D10: 1051 | E10: 2218 | F10: 3105 | G10: 862 | H10: 1139 | I10: 867 | O10: 1635 | P10: 2275
A11: Entertainment | B11: 2728 | C11: 3381 | D11: 3082 | E11: 4689 | F11: 3648 | G11: 1779 | H11: 3240 | I11: 1837 | O11: 3689 | P11: 4077
A12: Cash contributions | B12: 1788 | C12: 2793 | D12: 1597 | E12: 2104 | F12: 1956 | G12: 962 | H12: 1732 | I12: 1345 | O12: 2313 | P12: 1960
A13: Insurance & pensions | B13: 5726 | C13: 7053 | D13: 8347 | E13: 9712 | F13: 10286 | G13: 2992 | H13: 7973 | I13: 3361 | O13: 8325 | P13: 9631
A14: Reading | B14: 103 | C14: 159 | D14: 74 | E14: 122 | F14: 128 | G14: 65 | H14: 92 | I14: 77 | O14: 133 | P14: 115
A15: Tobacco products | B15: 319 | C15: 305 | D15: 224 | E15: 232 | F15: 434 | G15: 247 | H15: 546 | I15: 325 | O15: 322 | P15: 295
A16: Alcoholic beverages | B16: 463 | C16: 670 | D16: 449 | E16: 497 | F16: 570 | G16: 225 | H16: 417 | I16: 371 | O16: 576 | P16: 511
A17: Miscellaneous | B17: 782 | C17: 809 | D17: 842 | E17: 1211 | F17: 1000 | G17: 599 | H17: 921 | I17: 636 | O17: 943 | P17: 1078
A19: Survival | B19: 26343 | C19: 26343 | D19: 37049 | E19: 38802 | F19: 34913 | G19: 22857 | H19: 33830 | I19: 19665
A20: Intermediate | B20: 13363 | C20: 17677 | D20: 16695 | E20: 18242 | F20: 21504 | G20: 8835 | H20: 18223 | I20: 8756
A21: Discretionary | B21: 4609 | C21: 5265 | D21: 4837 | E21: 7840 | F21: 7609 | G21: 3196 | H21: 5176 | I21: 3160
A22: Financial | B22: 7514 | C22: 9846 | D22: 9944 | E22: 11816 | F22: 12242 | G22: 3954 | H22: 9705 | I22: 4706
A23: Miscellaneous | B23: 1667 | C23: 1943 | D23: 1589 | E23: 2062 | F23: 2132 | G23: 1136 | H23: 1976 | I23: 1409
A26: Survival | B26: 26343 | C26: 26343 | D26: 26343 | E26: 26343 | F26: 26343 | G26: 26343 | H26: 26343 | I26: 26343
A27: Intermediate | B27: 13363 | C27: 13363 | D27: 13363 | E27: 13363 | F27: 13363 | G27: 13363 | H27: 13363 | I27: 13363
A28: Discretionary | B28: 4609 | C28: 4609 | D28: 4609 | E28: 4609 | F28: 4609 | G28: 4609 | H28: 4609 | I28: 4609
A29: Financial | B29: 7514 | C29: 7514 | D29: 7514 | E29: 7514 | F29: 7514 | G29: 7514 | H29: 7514 | I29: 7514
A30: Miscellaneous | B30: 1667 | C30: 1667 | D30: 1667 | E30: 1667 | F30: 1667 | G30: 1667 | H30: 1667 | I30: 1667
A33: Sources of income and personal taxes:
A34: Source: Consumer Expenditure Survey, U.S. Bureau of Labor Statistics, September, 2015
A38: AVERAGE U.S. HOUSEHOLD EXPENDITURE
A39: Per type of household and expenditure category, in 2014
A57: Source: Bureau of Labor Statistics

Sheet 13.6
A1: Region | B1: Month | C1: Value | D1: Difference | E1: Class | F1: Remaining | G1: Class01 | H1: Class02 | I1: Class03 | J1: Class04 | K1: Class05 | L1: Class06 | M1: Class07 | N1: Class08 | O1: Class09 | P1: Class10 | Q1: Class11 | R1: Class12 | S1: Class13 | T1: Class14 | U1: Diff1 | V1: Diff2 | W1: Diff3
A2: LASST220000000000003-LA-Louisiana | B2: 1976-01-15 | C2: 6.1 | D2: 77.21518987 | E2: =QUOTIENT(Table6[[#This Row],[Difference]],25)+IF(Table6[[#This Row],[Difference]]<100,-4,-3) -> -1 | F2: =IF(Table6[[#This Row],[Class]]<0, 25-MOD(Table6[[#This Row],[Difference]],25),MOD(Table6[[#This Row],[Difference]],25)) -> 22.78481013 | G2: =IF(Table6[[#This Row],[Class]]=-1,Table6[[#This Row],[Remaining]],IF(Table6[[#This Row],[Class]]<-1,25,NA())) -> 22.78481013 | H2: =IF(Table6[[#This Row],[Class]]=-2,Table6[[#This Row],[Remaining]],IF(Table6[[#This Row],[Class]]<-2,25,NA())) ->  | I2: =IF(Table6[[#This Row],[Class]]=-3,Table6[[#This Row],[Remaining]],IF(Table6[[#This Row],[Class]]<-3,25,NA())) ->  | J2: =IF(Table6[[#This Row],[Class]]=-4,Table6[[#This Row],[Remaining]],IF(Table6[[#This Row],[Class]]<-4,25,NA())) ->  | K2: =IF(Table6[[#This Row],[Difference]]=100,0,NA()) ->  | L2: =IF(Table6[[#This Row],[Class]]=1,Table6[[#This Row],[Remaining]],IF(Table6[[#This Row],[Class]]>1,25,NA())) ->  | M2: =IF(Table6[[#This Row],[Class]]=2,Table6[[#This Row],[Remaining]],IF(Table6[[#This Row],[Class]]>2,25,NA())) ->  | N2: =IF(Table6[[#This Row],[Class]]=3,Table6[[#This Row],[Remaining]],IF(Table6[[#This Row],[Class]]>3,25,NA())) ->  | O2: =IF(Table6[[#This Row],[Class]]=4,Table6[[#This Row],[Remaining]],IF(Table6[[#This Row],[Class]]>4,25,NA())) ->  | P2: =IF(Table6[[#This Row],[Class]]=5,Table6[[#This Row],[Remaining]],IF(Table6[[#This Row],[Class]]>5,25,NA())) ->  | Q2: =IF(Table6[[#This Row],[Class]]=6,Table6[[#This Row],[Remaining]],IF(Table6[[#This Row],[Class]]>6,25,NA())) ->  | R2: =IF(Table6[[#This Row],[Class]]=7,Table6[[#This Row],[Remaining]],IF(Table6[[#This Row],[Class]]>7,25,NA())) ->  | S2: =IF(Table6[[#This Row],[Class]]=8,Table6[[#This Row],[Remaining]],IF(Table6[[#This Row],[Class]]>8,25,NA())) ->  | T2: =IF(Table6[[#This Row],[Class]]=9,Table6[[#This Row],[Remaining]],IF(Table6[[#This Row],[Class]]>9,25,NA())) ->  | U2: =Table6[[#This Row],[Difference]]-100 -> -22.78481013 | V2: =IF(Table6[[#This Row],[Diff1]]>=0,E2,NA()) ->  | W2: =IF(Table6[[#This Row],[Diff1]]<0,Table6[[#This Row],[Diff1]],NA()) -> -22.78481013
A3: LASST220000000000003-LA-Louisiana | B3: 1976-02-15 | C3: 6.2 | D3: 80.51948052 | E3: =QUOTIENT(Table6[[#This Row],[Difference]],25)+IF(Table6[[#This Row],[Difference]]<100,-4,-3) -> -1 | F3: =IF(Table6[[#This Row],[Class]]<0, 25-MOD(Table6[[#This Row],[Difference]],25),MOD(Table6[[#This Row],[Difference]],25)) -> 19.48051948 | G3: =IF(Table6[[#This Row],[Class]]=-1,Table6[[#This Row],[Remaining]],IF(Table6[[#This Row],[Class]]<-1,25,NA())) -> 19.48051948 | H3: =IF(Table6[[#This Row],[Class]]=-2,Table6[[#This Row],[Remaining]],IF(Table6[[#This Row],[Class]]<-2,25,NA())) ->  | I3: =IF(Table6[[#This Row],[Class]]=-3,Table6[[#This Row],[Remaining]],IF(Table6[[#This Row],[Class]]<-3,25,NA())) ->  | J3: =IF(Table6[[#This Row],[Class]]=-4,Table6[[#This Row],[Remaining]],IF(Table6[[#This Row],[Class]]<-4,25,NA())) ->  | K3: =IF(Table6[[#This Row],[Difference]]=100,0,NA()) ->  | L3: =IF(Table6[[#This Row],[Class]]=1,Table6[[#This Row],[Remaining]],IF(Table6[[#This Row],[Class]]>1,25,NA())) ->  | M3: =IF(Table6[[#This Row],[Class]]=2,Table6[[#This Row],[Remaining]],IF(Table6[[#This Row],[Class]]>2,25,NA())) ->  | N3: =IF(Table6[[#This Row],[Class]]=3,Table6[[#This Row],[Remaining]],IF(Table6[[#This Row],[Class]]>3,25,NA())) ->  | O3: =IF(Table6[[#This Row],[Class]]=4,Table6[[#This Row],[Remaining]],IF(Table6[[#This Row],[Class]]>4,25,NA())) ->  | P3: =IF(Table6[[#This Row],[Class]]=5,Table6[[#This Row],[Remaining]],IF(Table6[[#This Row],[Class]]>5,25,NA())) ->  | Q3: =IF(Table6[[#This Row],[Class]]=6,Table6[[#This Row],[Remaining]],IF(Table6[[#This Row],[Class]]>6,25,NA())) ->  | R3: =IF(Table6[[#This Row],[Class]]=7,Table6[[#This Row],[Remaining]],IF(Table6[[#This Row],[Class]]>7,25,NA())) ->  | S3: =IF(Table6[[#This Row],[Class]]=8,Table6[[#This Row],[Remaining]],IF(Table6[[#This Row],[Class]]>8,25,NA())) ->  | T3: =IF(Table6[[#This Row],[Class]]=9,Table6[[#This Row],[Remaining]],IF(Table6[[#This Row],[Class]]>9,25,NA())) ->  | U3: =Table6[[#This Row],[Difference]]-100 -> -19.48051948 | V3: =IF(Table6[[#This Row],[Diff1]]>=0,E3,NA()) ->  | W3: =IF(Table6[[#This Row],[Diff1]]<0,Table6[[#This Row],[Diff1]],NA()) -> -19.48051948
A4: LASST220000000000003-LA-Louisiana | B4: 1976-03-15 | C4: 6.3 | D4: 82.89473684 | E4: =QUOTIENT(Table6[[#This Row],[Difference]],25)+IF(Table6[[#This Row],[Difference]]<100,-4,-3) -> -1 | F4: =IF(Table6[[#This Row],[Class]]<0, 25-MOD(Table6[[#This Row],[Difference]],25),MOD(Table6[[#This Row],[Difference]],25)) -> 17.10526316 | G4: =IF(Table6[[#This Row],[Class]]=-1,Table6[[#This Row],[Remaining]],IF(Table6[[#This Row],[Class]]<-1,25,NA())) -> 17.10526316 | H4: =IF(Table6[[#This Row],[Class]]=-2,Table6[[#This Row],[Remaining]],IF(Table6[[#This Row],[Class]]<-2,25,NA())) ->  | I4: =IF(Table6[[#This Row],[Class]]=-3,Table6[[#This Row],[Remaining]],IF(Table6[[#This Row],[Class]]<-3,25,NA())) ->  | J4: =IF(Table6[[#This Row],[Class]]=-4,Table6[[#This Row],[Remaining]],IF(Table6[[#This Row],[Class]]<-4,25,NA())) ->  | K4: =IF(Table6[[#This Row],[Difference]]=100,0,NA()) ->  | L4: =IF(Table6[[#This Row],[Class]]=1,Table6[[#This Row],[Remaining]],IF(Table6[[#This Row],[Class]]>1,25,NA())) ->  | M4: =IF(Table6[[#This Row],[Class]]=2,Table6[[#This Row],[Remaining]],IF(Table6[[#This Row],[Class]]>2,25,NA())) ->  | N4: =IF(Table6[[#This Row],[Class]]=3,Table6[[#This Row],[Remaining]],IF(Table6[[#This Row],[Class]]>3,25,NA())) ->  | O4: =IF(Table6[[#This Row],[Class]]=4,Table6[[#This Row],[Remaining]],IF(Table6[[#This Row],[Class]]>4,25,NA())) ->  | P4: =IF(Table6[[#This Row],[Class]]=5,Table6[[#This Row],[Remaining]],IF(Table6[[#This Row],[Class]]>5,25,NA())) ->  | Q4: =IF(Table6[[#This Row],[Class]]=6,Table6[[#This Row],[Remaining]],IF(Table6[[#This Row],[Class]]>6,25,NA())) ->  | R4: =IF(Table6[[#This Row],[Class]]=7,Table6[[#This Row],[Remaining]],IF(Table6[[#This Row],[Class]]>7,25,NA())) ->  | S4: =IF(Table6[[#This Row],[Class]]=8,Table6[[#This Row],[Remaining]],IF(Table6[[#This Row],[Class]]>8,25,NA())) ->  | T4: =IF(Table6[[#This Row],[Class]]=9,Table6[[#This Row],[Remaining]],IF(Table6[[#This Row],[Class]]>9,25,NA())) ->  | U4: =Table6[[#This Row],[Difference]]-100 -> -17.10526316 | V4: =IF(Table6[[#This Row],[Diff1]]>=0,E4,NA()) ->  | W4: =IF(Table6[[#This Row],[Diff1]]<0,Table6[[#This Row],[Diff1]],NA()) -> -17.10526316 | AB4: STANDARD AREA CHART
A5: LASST220000000000003-LA-Louisiana | B5: 1976-04-15 | C5: 6.5 | D5: 84.41558442 | E5: =QUOTIENT(Table6[[#This Row],[Difference]],25)+IF(Table6[[#This Row],[Difference]]<100,-4,-3) -> -1 | F5: =IF(Table6[[#This Row],[Class]]<0, 25-MOD(Table6[[#This Row],[Difference]],25),MOD(Table6[[#This Row],[Difference]],25)) -> 15.58441558 | G5: =IF(Table6[[#This Row],[Class]]=-1,Table6[[#This Row],[Remaining]],IF(Table6[[#This Row],[Class]]<-1,25,NA())) -> 15.58441558 | H5: =IF(Table6[[#This Row],[Class]]=-2,Table6[[#This Row],[Remaining]],IF(Table6[[#This Row],[Class]]<-2,25,NA())) ->  | I5: =IF(Table6[[#This Row],[Class]]=-3,Table6[[#This Row],[Remaining]],IF(Table6[[#This Row],[Class]]<-3,25,NA())) ->  | J5: =IF(Table6[[#This Row],[Class]]=-4,Table6[[#This Row],[Remaining]],IF(Table6[[#This Row],[Class]]<-4,25,NA())) ->  | K5: =IF(Table6[[#This Row],[Difference]]=100,0,NA()) ->  | L5: =IF(Table6[[#This Row],[Class]]=1,Table6[[#This Row],[Remaining]],IF(Table6[[#This Row],[Class]]>1,25,NA())) ->  | M5: =IF(Table6[[#This Row],[Class]]=2,Table6[[#This Row],[Remaining]],IF(Table6[[#This Row],[Class]]>2,25,NA())) ->  | N5: =IF(Table6[[#This Row],[Class]]=3,Table6[[#This Row],[Remaining]],IF(Table6[[#This Row],[Class]]>3,25,NA())) ->  | O5: =IF(Table6[[#This Row],[Class]]=4,Table6[[#This Row],[Remaining]],IF(Table6[[#This Row],[Class]]>4,25,NA())) ->  | P5: =IF(Table6[[#This Row],[Class]]=5,Table6[[#This Row],[Remaining]],IF(Table6[[#This Row],[Class]]>5,25,NA())) ->  | Q5: =IF(Table6[[#This Row],[Class]]=6,Table6[[#This Row],[Remaining]],IF(Table6[[#This Row],[Class]]>6,25,NA())) ->  | R5: =IF(Table6[[#This Row],[Class]]=7,Table6[[#This Row],[Remaining]],IF(Table6[[#This Row],[Class]]>7,25,NA())) ->  | S5: =IF(Table6[[#This Row],[Class]]=8,Table6[[#This Row],[Remaining]],IF(Table6[[#This Row],[Class]]>8,25,NA())) ->  | T5: =IF(Table6[[#This Row],[Class]]=9,Table6[[#This Row],[Remaining]],IF(Table6[[#This Row],[Class]]>9,25,NA())) ->  | U5: =Table6[[#This Row],[Difference]]-100 -> -15.58441558 | V5: =IF(Table6[[#This Row],[Diff1]]>=0,E5,NA()) ->  | W5: =IF(Table6[[#This Row],[Diff1]]<0,Table6[[#This Row],[Diff1]],NA()) -> -15.58441558
A6: LASST220000000000003-LA-Louisiana | B6: 1976-05-15 | C6: 6.6 | D6: 89.18918919 | E6: =QUOTIENT(Table6[[#This Row],[Difference]],25)+IF(Table6[[#This Row],[Difference]]<100,-4,-3) -> -1 | F6: =IF(Table6[[#This Row],[Class]]<0, 25-MOD(Table6[[#This Row],[Difference]],25),MOD(Table6[[#This Row],[Difference]],25)) -> 10.81081081 | G6: =IF(Table6[[#This Row],[Class]]=-1,Table6[[#This Row],[Remaining]],IF(Table6[[#This Row],[Class]]<-1,25,NA())) -> 10.81081081 | H6: =IF(Table6[[#This Row],[Class]]=-2,Table6[[#This Row],[Remaining]],IF(Table6[[#This Row],[Class]]<-2,25,NA())) ->  | I6: =IF(Table6[[#This Row],[Class]]=-3,Table6[[#This Row],[Remaining]],IF(Table6[[#This Row],[Class]]<-3,25,NA())) ->  | J6: =IF(Table6[[#This Row],[Class]]=-4,Table6[[#This Row],[Remaining]],IF(Table6[[#This Row],[Class]]<-4,25,NA())) ->  | K6: =IF(Table6[[#This Row],[Difference]]=100,0,NA()) ->  | L6: =IF(Table6[[#This Row],[Class]]=1,Table6[[#This Row],[Remaining]],IF(Table6[[#This Row],[Class]]>1,25,NA())) ->  | M6: =IF(Table6[[#This Row],[Class]]=2,Table6[[#This Row],[Remaining]],IF(Table6[[#This Row],[Class]]>2,25,NA())) ->  | N6: =IF(Table6[[#This Row],[Class]]=3,Table6[[#This Row],[Remaining]],IF(Table6[[#This Row],[Class]]>3,25,NA())) ->  | O6: =IF(Table6[[#This Row],[Class]]=4,Table6[[#This Row],[Remaining]],IF(Table6[[#This Row],[Class]]>4,25,NA())) ->  | P6: =IF(Table6[[#This Row],[Class]]=5,Table6[[#This Row],[Remaining]],IF(Table6[[#This Row],[Class]]>5,25,NA())) ->  | Q6: =IF(Table6[[#This Row],[Class]]=6,Table6[[#This Row],[Remaining]],IF(Table6[[#This Row],[Class]]>6,25,NA())) ->  | R6: =IF(Table6[[#This Row],[Class]]=7,Table6[[#This Row],[Remaining]],IF(Table6[[#This Row],[Class]]>7,25,NA())) ->  | S6: =IF(Table6[[#This Row],[Class]]=8,Table6[[#This Row],[Remaining]],IF(Table6[[#This Row],[Class]]>8,25,NA())) ->  | T6: =IF(Table6[[#This Row],[Class]]=9,Table6[[#This Row],[Remaining]],IF(Table6[[#This Row],[Class]]>9,25,NA())) ->  | U6: =Table6[[#This Row],[Difference]]-100 -> -10.81081081 | V6: =IF(Table6[[#This Row],[Diff1]]>=0,E6,NA()) ->  | W6: =IF(Table6[[#This Row],[Diff1]]<0,Table6[[#This Row],[Diff1]],NA()) -> -10.81081081
A7: LASST220000000000003-LA-Louisiana | B7: 1976-06-15 | C7: 6.8 | D7: 89.47368421 | E7: =QUOTIENT(Table6[[#This Row],[Difference]],25)+IF(Table6[[#This Row],[Difference]]<100,-4,-3) -> -1 | F7: =IF(Table6[[#This Row],[Class]]<0, 25-MOD(Table6[[#This Row],[Difference]],25),MOD(Table6[[#This Row],[Difference]],25)) -> 10.52631579 | G7: =IF(Table6[[#This Row],[Class]]=-1,Table6[[#This Row],[Remaining]],IF(Table6[[#This Row],[Class]]<-1,25,NA())) -> 10.52631579 | H7: =IF(Table6[[#This Row],[Class]]=-2,Table6[[#This Row],[Remaining]],IF(Table6[[#This Row],[Class]]<-2,25,NA())) ->  | I7: =IF(Table6[[#This Row],[Class]]=-3,Table6[[#This Row],[Remaining]],IF(Table6[[#This Row],[Class]]<-3,25,NA())) ->  | J7: =IF(Table6[[#This Row],[Class]]=-4,Table6[[#This Row],[Remaining]],IF(Table6[[#This Row],[Class]]<-4,25,NA())) ->  | K7: =IF(Table6[[#This Row],[Difference]]=100,0,NA()) ->  | L7: =IF(Table6[[#This Row],[Class]]=1,Table6[[#This Row],[Remaining]],IF(Table6[[#This Row],[Class]]>1,25,NA())) ->  | M7: =IF(Table6[[#This Row],[Class]]=2,Table6[[#This Row],[Remaining]],IF(Table6[[#This Row],[Class]]>2,25,NA())) ->  | N7: =IF(Table6[[#This Row],[Class]]=3,Table6[[#This Row],[Remaining]],IF(Table6[[#This Row],[Class]]>3,25,NA())) ->  | O7: =IF(Table6[[#This Row],[Class]]=4,Table6[[#This Row],[Remaining]],IF(Table6[[#This Row],[Class]]>4,25,NA())) ->  | P7: =IF(Table6[[#This Row],[Class]]=5,Table6[[#This Row],[Remaining]],IF(Table6[[#This Row],[Class]]>5,25,NA())) ->  | Q7: =IF(Table6[[#This Row],[Class]]=6,Table6[[#This Row],[Remaining]],IF(Table6[[#This Row],[Class]]>6,25,NA())) ->  | R7: =IF(Table6[[#This Row],[Class]]=7,Table6[[#This Row],[Remaining]],IF(Table6[[#This Row],[Class]]>7,25,NA())) ->  | S7: =IF(Table6[[#This Row],[Class]]=8,Table6[[#This Row],[Remaining]],IF(Table6[[#This Row],[Class]]>8,25,NA())) ->  | T7: =IF(Table6[[#This Row],[Class]]=9,Table6[[#This Row],[Remaining]],IF(Table6[[#This Row],[Class]]>9,25,NA())) ->  | U7: =Table6[[#This Row],[Difference]]-100 -> -10.52631579 | V7: =IF(Table6[[#This Row],[Diff1]]>=0,E7,NA()) ->  | W7: =IF(Table6[[#This Row],[Diff1]]<0,Table6[[#This Row],[Diff1]],NA()) -> -10.52631579
A8: LASST220000000000003-LA-Louisiana | B8: 1976-07-15 | C8: 6.9 | D8: 88.46153846 | E8: =QUOTIENT(Table6[[#This Row],[Difference]],25)+IF(Table6[[#This Row],[Difference]]<100,-4,-3) -> -1 | F8: =IF(Table6[[#This Row],[Class]]<0, 25-MOD(Table6[[#This Row],[Difference]],25),MOD(Table6[[#This Row],[Difference]],25)) -> 11.53846154 | G8: =IF(Table6[[#This Row],[Class]]=-1,Table6[[#This Row],[Remaining]],IF(Table6[[#This Row],[Class]]<-1,25,NA())) -> 11.53846154 | H8: =IF(Table6[[#This Row],[Class]]=-2,Table6[[#This Row],[Remaining]],IF(Table6[[#This Row],[Class]]<-2,25,NA())) ->  | I8: =IF(Table6[[#This Row],[Class]]=-3,Table6[[#This Row],[Remaining]],IF(Table6[[#This Row],[Class]]<-3,25,NA())) ->  | J8: =IF(Table6[[#This Row],[Class]]=-4,Table6[[#This Row],[Remaining]],IF(Table6[[#This Row],[Class]]<-4,25,NA())) ->  | K8: =IF(Table6[[#This Row],[Difference]]=100,0,NA()) ->  | L8: =IF(Table6[[#This Row],[Class]]=1,Table6[[#This Row],[Remaining]],IF(Table6[[#This Row],[Class]]>1,25,NA())) ->  | M8: =IF(Table6[[#This Row],[Class]]=2,Table6[[#This Row],[Remaining]],IF(Table6[[#This Row],[Class]]>2,25,NA())) ->  | N8: =IF(Table6[[#This Row],[Class]]=3,Table6[[#This Row],[Remaining]],IF(Table6[[#This Row],[Class]]>3,25,NA())) ->  | O8: =IF(Table6[[#This Row],[Class]]=4,Table6[[#This Row],[Remaining]],IF(Table6[[#This Row],[Class]]>4,25,NA())) ->  | P8: =IF(Table6[[#This Row],[Class]]=5,Table6[[#This Row],[Remaining]],IF(Table6[[#This Row],[Class]]>5,25,NA())) ->  | Q8: =IF(Table6[[#This Row],[Class]]=6,Table6[[#This Row],[Remaining]],IF(Table6[[#This Row],[Class]]>6,25,NA())) ->  | R8: =IF(Table6[[#This Row],[Class]]=7,Table6[[#This Row],[Remaining]],IF(Table6[[#This Row],[Class]]>7,25,NA())) ->  | S8: =IF(Table6[[#This Row],[Class]]=8,Table6[[#This Row],[Remaining]],IF(Table6[[#This Row],[Class]]>8,25,NA())) ->  | T8: =IF(Table6[[#This Row],[Class]]=9,Table6[[#This Row],[Remaining]],IF(Table6[[#This Row],[Class]]>9,25,NA())) ->  | U8: =Table6[[#This Row],[Difference]]-100 -> -11.53846154 | V8: =IF(Table6[[#This Row],[Diff1]]>=0,E8,NA()) ->  | W8: =IF(Table6[[#This Row],[Diff1]]<0,Table6[[#This Row],[Diff1]],NA()) -> -11.53846154
A9: LASST220000000000003-LA-Louisiana | B9: 1976-08-15 | C9: 7 | D9: 89.74358974 | E9: =QUOTIENT(Table6[[#This Row],[Difference]],25)+IF(Table6[[#This Row],[Difference]]<100,-4,-3) -> -1 | F9: =IF(Table6[[#This Row],[Class]]<0, 25-MOD(Table6[[#This Row],[Difference]],25),MOD(Table6[[#This Row],[Difference]],25)) -> 10.25641026 | G9: =IF(Table6[[#This Row],[Class]]=-1,Table6[[#This Row],[Remaining]],IF(Table6[[#This Row],[Class]]<-1,25,NA())) -> 10.25641026 | H9: =IF(Table6[[#This Row],[Class]]=-2,Table6[[#This Row],[Remaining]],IF(Table6[[#This Row],[Class]]<-2,25,NA())) ->  | I9: =IF(Table6[[#This Row],[Class]]=-3,Table6[[#This Row],[Remaining]],IF(Table6[[#This Row],[Class]]<-3,25,NA())) ->  | J9: =IF(Table6[[#This Row],[Class]]=-4,Table6[[#This Row],[Remaining]],IF(Table6[[#This Row],[Class]]<-4,25,NA())) ->  | K9: =IF(Table6[[#This Row],[Difference]]=100,0,NA()) ->  | L9: =IF(Table6[[#This Row],[Class]]=1,Table6[[#This Row],[Remaining]],IF(Table6[[#This Row],[Class]]>1,25,NA())) ->  | M9: =IF(Table6[[#This Row],[Class]]=2,Table6[[#This Row],[Remaining]],IF(Table6[[#This Row],[Class]]>2,25,NA())) ->  | N9: =IF(Table6[[#This Row],[Class]]=3,Table6[[#This Row],[Remaining]],IF(Table6[[#This Row],[Class]]>3,25,NA())) ->  | O9: =IF(Table6[[#This Row],[Class]]=4,Table6[[#This Row],[Remaining]],IF(Table6[[#This Row],[Class]]>4,25,NA())) ->  | P9: =IF(Table6[[#This Row],[Class]]=5,Table6[[#This Row],[Remaining]],IF(Table6[[#This Row],[Class]]>5,25,NA())) ->  | Q9: =IF(Table6[[#This Row],[Class]]=6,Table6[[#This Row],[Remaining]],IF(Table6[[#This Row],[Class]]>6,25,NA())) ->  | R9: =IF(Table6[[#This Row],[Class]]=7,Table6[[#This Row],[Remaining]],IF(Table6[[#This Row],[Class]]>7,25,NA())) ->  | S9: =IF(Table6[[#This Row],[Class]]=8,Table6[[#This Row],[Remaining]],IF(Table6[[#This Row],[Class]]>8,25,NA())) ->  | T9: =IF(Table6[[#This Row],[Class]]=9,Table6[[#This Row],[Remaining]],IF(Table6[[#This Row],[Class]]>9,25,NA())) ->  | U9: =Table6[[#This Row],[Difference]]-100 -> -10.25641026 | V9: =IF(Table6[[#This Row],[Diff1]]>=0,E9,NA()) ->  | W9: =IF(Table6[[#This Row],[Diff1]]<0,Table6[[#This Row],[Diff1]],NA()) -> -10.25641026
A10: LASST220000000000003-LA-Louisiana | B10: 1976-09-15 | C10: 7 | D10: 92.10526316 | E10: =QUOTIENT(Table6[[#This Row],[Difference]],25)+IF(Table6[[#This Row],[Difference]]<100,-4,-3) -> -1 | F10: =IF(Table6[[#This Row],[Class]]<0, 25-MOD(Table6[[#This Row],[Difference]],25),MOD(Table6[[#This Row],[Difference]],25)) -> 7.894736842 | G10: =IF(Table6[[#This Row],[Class]]=-1,Table6[[#This Row],[Remaining]],IF(Table6[[#This Row],[Class]]<-1,25,NA())) -> 7.894736842 | H10: =IF(Table6[[#This Row],[Class]]=-2,Table6[[#This Row],[Remaining]],IF(Table6[[#This Row],[Class]]<-2,25,NA())) ->  | I10: =IF(Table6[[#This Row],[Class]]=-3,Table6[[#This Row],[Remaining]],IF(Table6[[#This Row],[Class]]<-3,25,NA())) ->  | J10: =IF(Table6[[#This Row],[Class]]=-4,Table6[[#This Row],[Remaining]],IF(Table6[[#This Row],[Class]]<-4,25,NA())) ->  | K10: =IF(Table6[[#This Row],[Difference]]=100,0,NA()) ->  | L10: =IF(Table6[[#This Row],[Class]]=1,Table6[[#This Row],[Remaining]],IF(Table6[[#This Row],[Class]]>1,25,NA())) ->  | M10: =IF(Table6[[#This Row],[Class]]=2,Table6[[#This Row],[Remaining]],IF(Table6[[#This Row],[Class]]>2,25,NA())) ->  | N10: =IF(Table6[[#This Row],[Class]]=3,Table6[[#This Row],[Remaining]],IF(Table6[[#This Row],[Class]]>3,25,NA())) ->  | O10: =IF(Table6[[#This Row],[Class]]=4,Table6[[#This Row],[Remaining]],IF(Table6[[#This Row],[Class]]>4,25,NA())) ->  | P10: =IF(Table6[[#This Row],[Class]]=5,Table6[[#This Row],[Remaining]],IF(Table6[[#This Row],[Class]]>5,25,NA())) ->  | Q10: =IF(Table6[[#This Row],[Class]]=6,Table6[[#This Row],[Remaining]],IF(Table6[[#This Row],[Class]]>6,25,NA())) ->  | R10: =IF(Table6[[#This Row],[Class]]=7,Table6[[#This Row],[Remaining]],IF(Table6[[#This Row],[Class]]>7,25,NA())) ->  | S10: =IF(Table6[[#This Row],[Class]]=8,Table6[[#This Row],[Remaining]],IF(Table6[[#This Row],[Class]]>8,25,NA())) ->  | T10: =IF(Table6[[#This Row],[Class]]=9,Table6[[#This Row],[Remaining]],IF(Table6[[#This Row],[Class]]>9,25,NA())) ->  | U10: =Table6[[#This Row],[Difference]]-100 -> -7.894736842 | V10: =IF(Table6[[#This Row],[Diff1]]>=0,E10,NA()) ->  | W10: =IF(Table6[[#This Row],[Diff1]]<0,Table6[[#This Row],[Diff1]],NA()) -> -7.894736842
A11: LASST220000000000003-LA-Louisiana | B11: 1976-10-15 | C11: 7 | D11: 90.90909091 | E11: =QUOTIENT(Table6[[#This Row],[Difference]],25)+IF(Table6[[#This Row],[Difference]]<100,-4,-3) -> -1 | F11: =IF(Table6[[#This Row],[Class]]<0, 25-MOD(Table6[[#This Row],[Difference]],25),MOD(Table6[[#This Row],[Difference]],25)) -> 9.090909091 | G11: =IF(Table6[[#This Row],[Class]]=-1,Table6[[#This Row],[Remaining]],IF(Table6[[#This Row],[Class]]<-1,25,NA())) -> 9.090909091 | H11: =IF(Table6[[#This Row],[Class]]=-2,Table6[[#This Row],[Remaining]],IF(Table6[[#This Row],[Class]]<-2,25,NA())) ->  | I11: =IF(Table6[[#This Row],[Class]]=-3,Table6[[#This Row],[Remaining]],IF(Table6[[#This Row],[Class]]<-3,25,NA())) ->  | J11: =IF(Table6[[#This Row],[Class]]=-4,Table6[[#This Row],[Remaining]],IF(Table6[[#This Row],[Class]]<-4,25,NA())) ->  | K11: =IF(Table6[[#This Row],[Difference]]=100,0,NA()) ->  | L11: =IF(Table6[[#This Row],[Class]]=1,Table6[[#This Row],[Remaining]],IF(Table6[[#This Row],[Class]]>1,25,NA())) ->  | M11: =IF(Table6[[#This Row],[Class]]=2,Table6[[#This Row],[Remaining]],IF(Table6[[#This Row],[Class]]>2,25,NA())) ->  | N11: =IF(Table6[[#This Row],[Class]]=3,Table6[[#This Row],[Remaining]],IF(Table6[[#This Row],[Class]]>3,25,NA())) ->  | O11: =IF(Table6[[#This Row],[Class]]=4,Table6[[#This Row],[Remaining]],IF(Table6[[#This Row],[Class]]>4,25,NA())) ->  | P11: =IF(Table6[[#This Row],[Class]]=5,Table6[[#This Row],[Remaining]],IF(Table6[[#This Row],[Class]]>5,25,NA())) ->  | Q11: =IF(Table6[[#This Row],[Class]]=6,Table6[[#This Row],[Remaining]],IF(Table6[[#This Row],[Class]]>6,25,NA())) ->  | R11: =IF(Table6[[#This Row],[Class]]=7,Table6[[#This Row],[Remaining]],IF(Table6[[#This Row],[Class]]>7,25,NA())) ->  | S11: =IF(Table6[[#This Row],[Class]]=8,Table6[[#This Row],[Remaining]],IF(Table6[[#This Row],[Class]]>8,25,NA())) ->  | T11: =IF(Table6[[#This Row],[Class]]=9,Table6[[#This Row],[Remaining]],IF(Table6[[#This Row],[Class]]>9,25,NA())) ->  | U11: =Table6[[#This Row],[Difference]]-100 -> -9.090909091 | V11: =IF(Table6[[#This Row],[Diff1]]>=0,E11,NA()) ->  | W11: =IF(Table6[[#This Row],[Diff1]]<0,Table6[[#This Row],[Diff1]],NA()) -> -9.090909091
A12: LASST220000000000003-LA-Louisiana | B12: 1976-11-15 | C12: 7 | D12: 89.74358974 | E12: =QUOTIENT(Table6[[#This Row],[Difference]],25)+IF(Table6[[#This Row],[Difference]]<100,-4,-3) -> -1 | F12: =IF(Table6[[#This Row],[Class]]<0, 25-MOD(Table6[[#This Row],[Difference]],25),MOD(Table6[[#This Row],[Difference]],25)) -> 10.25641026 | G12: =IF(Table6[[#This Row],[Class]]=-1,Table6[[#This Row],[Remaining]],IF(Table6[[#This Row],[Class]]<-1,25,NA())) -> 10.25641026 | H12: =IF(Table6[[#This Row],[Class]]=-2,Table6[[#This Row],[Remaining]],IF(Table6[[#This Row],[Class]]<-2,25,NA())) ->  | I12: =IF(Table6[[#This Row],[Class]]=-3,Table6[[#This Row],[Remaining]],IF(Table6[[#This Row],[Class]]<-3,25,NA())) ->  | J12: =IF(Table6[[#This Row],[Class]]=-4,Table6[[#This Row],[Remaining]],IF(Table6[[#This Row],[Class]]<-4,25,NA())) ->  | K12: =IF(Table6[[#This Row],[Difference]]=100,0,NA()) ->  | L12: =IF(Table6[[#This Row],[Class]]=1,Table6[[#This Row],[Remaining]],IF(Table6[[#This Row],[Class]]>1,25,NA())) ->  | M12: =IF(Table6[[#This Row],[Class]]=2,Table6[[#This Row],[Remaining]],IF(Table6[[#This Row],[Class]]>2,25,NA())) ->  | N12: =IF(Table6[[#This Row],[Class]]=3,Table6[[#This Row],[Remaining]],IF(Table6[[#This Row],[Class]]>3,25,NA())) ->  | O12: =IF(Table6[[#This Row],[Class]]=4,Table6[[#This Row],[Remaining]],IF(Table6[[#This Row],[Class]]>4,25,NA())) ->  | P12: =IF(Table6[[#This Row],[Class]]=5,Table6[[#This Row],[Remaining]],IF(Table6[[#This Row],[Class]]>5,25,NA())) ->  | Q12: =IF(Table6[[#This Row],[Class]]=6,Table6[[#This Row],[Remaining]],IF(Table6[[#This Row],[Class]]>6,25,NA())) ->  | R12: =IF(Table6[[#This Row],[Class]]=7,Table6[[#This Row],[Remaining]],IF(Table6[[#This Row],[Class]]>7,25,NA())) ->  | S12: =IF(Table6[[#This Row],[Class]]=8,Table6[[#This Row],[Remaining]],IF(Table6[[#This Row],[Class]]>8,25,NA())) ->  | T12: =IF(Table6[[#This Row],[Class]]=9,Table6[[#This Row],[Remaining]],IF(Table6[[#This Row],[Class]]>9,25,NA())) ->  | U12: =Table6[[#This Row],[Difference]]-100 -> -10.25641026 | V12: =IF(Table6[[#This Row],[Diff1]]>=0,E12,NA()) ->  | W12: =IF(Table6[[#This Row],[Diff1]]<0,Table6[[#This Row],[Diff1]],NA()) -> -10.25641026
A13: LASST220000000000003-LA-Louisiana | B13: 1976-12-15 | C13: 7 | D13: 89.74358974 | E13: =QUOTIENT(Table6[[#This Row],[Difference]],25)+IF(Table6[[#This Row],[Difference]]<100,-4,-3) -> -1 | F13: =IF(Table6[[#This Row],[Class]]<0, 25-MOD(Table6[[#This Row],[Difference]],25),MOD(Table6[[#This Row],[Difference]],25)) -> 10.25641026 | G13: =IF(Table6[[#This Row],[Class]]=-1,Table6[[#This Row],[Remaining]],IF(Table6[[#This Row],[Class]]<-1,25,NA())) -> 10.25641026 | H13: =IF(Table6[[#This Row],[Class]]=-2,Table6[[#This Row],[Remaining]],IF(Table6[[#This Row],[Class]]<-2,25,NA())) ->  | I13: =IF(Table6[[#This Row],[Class]]=-3,Table6[[#This Row],[Remaining]],IF(Table6[[#This Row],[Class]]<-3,25,NA())) ->  | J13: =IF(Table6[[#This Row],[Class]]=-4,Table6[[#This Row],[Remaining]],IF(Table6[[#This Row],[Class]]<-4,25,NA())) ->  | K13: =IF(Table6[[#This Row],[Difference]]=100,0,NA()) ->  | L13: =IF(Table6[[#This Row],[Class]]=1,Table6[[#This Row],[Remaining]],IF(Table6[[#This Row],[Class]]>1,25,NA())) ->  | M13: =IF(Table6[[#This Row],[Class]]=2,Table6[[#This Row],[Remaining]],IF(Table6[[#This Row],[Class]]>2,25,NA())) ->  | N13: =IF(Table6[[#This Row],[Class]]=3,Table6[[#This Row],[Remaining]],IF(Table6[[#This Row],[Class]]>3,25,NA())) ->  | O13: =IF(Table6[[#This Row],[Class]]=4,Table6[[#This Row],[Remaining]],IF(Table6[[#This Row],[Class]]>4,25,NA())) ->  | P13: =IF(Table6[[#This Row],[Class]]=5,Table6[[#This Row],[Remaining]],IF(Table6[[#This Row],[Class]]>5,25,NA())) ->  | Q13: =IF(Table6[[#This Row],[Class]]=6,Table6[[#This Row],[Remaining]],IF(Table6[[#This Row],[Class]]>6,25,NA())) ->  | R13: =IF(Table6[[#This Row],[Class]]=7,Table6[[#This Row],[Remaining]],IF(Table6[[#This Row],[Class]]>7,25,NA())) ->  | S13: =IF(Table6[[#This Row],[Class]]=8,Table6[[#This Row],[Remaining]],IF(Table6[[#This Row],[Class]]>8,25,NA())) ->  | T13: =IF(Table6[[#This Row],[Class]]=9,Table6[[#This Row],[Remaining]],IF(Table6[[#This Row],[Class]]>9,25,NA())) ->  | U13: =Table6[[#This Row],[Difference]]-100 -> -10.25641026 | V13: =IF(Table6[[#This Row],[Diff1]]>=0,E13,NA()) ->  | W13: =IF(Table6[[#This Row],[Diff1]]<0,Table6[[#This Row],[Diff1]],NA()) -> -10.25641026
A14: LASST220000000000003-LA-Louisiana | B14: 1977-01-15 | C14: 7 | D14: 93.33333333 | E14: =QUOTIENT(Table6[[#This Row],[Difference]],25)+IF(Table6[[#This Row],[Difference]]<100,-4,-3) -> -1 | F14: =IF(Table6[[#This Row],[Class]]<0, 25-MOD(Table6[[#This Row],[Difference]],25),MOD(Table6[[#This Row],[Difference]],25)) -> 6.666666667 | G14: =IF(Table6[[#This Row],[Class]]=-1,Table6[[#This Row],[Remaining]],IF(Table6[[#This Row],[Class]]<-1,25,NA())) -> 6.666666667 | H14: =IF(Table6[[#This Row],[Class]]=-2,Table6[[#This Row],[Remaining]],IF(Table6[[#This Row],[Class]]<-2,25,NA())) ->  | I14: =IF(Table6[[#This Row],[Class]]=-3,Table6[[#This Row],[Remaining]],IF(Table6[[#This Row],[Class]]<-3,25,NA())) ->  | J14: =IF(Table6[[#This Row],[Class]]=-4,Table6[[#This Row],[Remaining]],IF(Table6[[#This Row],[Class]]<-4,25,NA())) ->  | K14: =IF(Table6[[#This Row],[Difference]]=100,0,NA()) ->  | L14: =IF(Table6[[#This Row],[Class]]=1,Table6[[#This Row],[Remaining]],IF(Table6[[#This Row],[Class]]>1,25,NA())) ->  | M14: =IF(Table6[[#This Row],[Class]]=2,Table6[[#This Row],[Remaining]],IF(Table6[[#This Row],[Class]]>2,25,NA())) ->  | N14: =IF(Table6[[#This Row],[Class]]=3,Table6[[#This Row],[Remaining]],IF(Table6[[#This Row],[Class]]>3,25,NA())) ->  | O14: =IF(Table6[[#This Row],[Class]]=4,Table6[[#This Row],[Remaining]],IF(Table6[[#This Row],[Class]]>4,25,NA())) ->  | P14: =IF(Table6[[#This Row],[Class]]=5,Table6[[#This Row],[Remaining]],IF(Table6[[#This Row],[Class]]>5,25,NA())) ->  | Q14: =IF(Table6[[#This Row],[Class]]=6,Table6[[#This Row],[Remaining]],IF(Table6[[#This Row],[Class]]>6,25,NA())) ->  | R14: =IF(Table6[[#This Row],[Class]]=7,Table6[[#This Row],[Remaining]],IF(Table6[[#This Row],[Class]]>7,25,NA())) ->  | S14: =IF(Table6[[#This Row],[Class]]=8,Table6[[#This Row],[Remaining]],IF(Table6[[#This Row],[Class]]>8,25,NA())) ->  | T14: =IF(Table6[[#This Row],[Class]]=9,Table6[[#This Row],[Remaining]],IF(Table6[[#This Row],[Class]]>9,25,NA())) ->  | U14: =Table6[[#This Row],[Difference]]-100 -> -6.666666667 | V14: =IF(Table6[[#This Row],[Diff1]]>=0,E14,NA()) ->  | W14: =IF(Table6[[#This Row],[Diff1]]<0,Table6[[#This Row],[Diff1]],NA()) -> -6.666666667 | AB14: FOLDING VERTICAL AXIS AND USING COLOR TO ENCODE POSITIVE AND NEGATIVE VALUES
A15: LASST220000000000003-LA-Louisiana | B15: 1977-02-15 | C15: 7 | D15: 92.10526316 | E15: =QUOTIENT(Table6[[#This Row],[Difference]],25)+IF(Table6[[#This Row],[Difference]]<100,-4,-3) -> -1 | F15: =IF(Table6[[#This Row],[Class]]<0, 25-MOD(Table6[[#This Row],[Difference]],25),MOD(Table6[[#This Row],[Difference]],25)) -> 7.894736842 | G15: =IF(Table6[[#This Row],[Class]]=-1,Table6[[#This Row],[Remaining]],IF(Table6[[#This Row],[Class]]<-1,25,NA())) -> 7.894736842 | H15: =IF(Table6[[#This Row],[Class]]=-2,Table6[[#This Row],[Remaining]],IF(Table6[[#This Row],[Class]]<-2,25,NA())) ->  | I15: =IF(Table6[[#This Row],[Class]]=-3,Table6[[#This Row],[Remaining]],IF(Table6[[#This Row],[Class]]<-3,25,NA())) ->  | J15: =IF(Table6[[#This Row],[Class]]=-4,Table6[[#This Row],[Remaining]],IF(Table6[[#This Row],[Class]]<-4,25,NA())) ->  | K15: =IF(Table6[[#This Row],[Difference]]=100,0,NA()) ->  | L15: =IF(Table6[[#This Row],[Class]]=1,Table6[[#This Row],[Remaining]],IF(Table6[[#This Row],[Class]]>1,25,NA())) ->  | M15: =IF(Table6[[#This Row],[Class]]=2,Table6[[#This Row],[Remaining]],IF(Table6[[#This Row],[Class]]>2,25,NA())) ->  | N15: =IF(Table6[[#This Row],[Class]]=3,Table6[[#This Row],[Remaining]],IF(Table6[[#This Row],[Class]]>3,25,NA())) ->  | O15: =IF(Table6[[#This Row],[Class]]=4,Table6[[#This Row],[Remaining]],IF(Table6[[#This Row],[Class]]>4,25,NA())) ->  | P15: =IF(Table6[[#This Row],[Class]]=5,Table6[[#This Row],[Remaining]],IF(Table6[[#This Row],[Class]]>5,25,NA())) ->  | Q15: =IF(Table6[[#This Row],[Class]]=6,Table6[[#This Row],[Remaining]],IF(Table6[[#This Row],[Class]]>6,25,NA())) ->  | R15: =IF(Table6[[#This Row],[Class]]=7,Table6[[#This Row],[Remaining]],IF(Table6[[#This Row],[Class]]>7,25,NA())) ->  | S15: =IF(Table6[[#This Row],[Class]]=8,Table6[[#This Row],[Remaining]],IF(Table6[[#This Row],[Class]]>8,25,NA())) ->  | T15: =IF(Table6[[#This Row],[Class]]=9,Table6[[#This Row],[Remaining]],IF(Table6[[#This Row],[Class]]>9,25,NA())) ->  | U15: =Table6[[#This Row],[Difference]]-100 -> -7.894736842 | V15: =IF(Table6[[#This Row],[Diff1]]>=0,E15,NA()) ->  | W15: =IF(Table6[[#This Row],[Diff1]]<0,Table6[[#This Row],[Diff1]],NA()) -> -7.894736842
A16: LASST220000000000003-LA-Louisiana | B16: 1977-03-15 | C16: 6.9 | D16: 93.24324324 | E16: =QUOTIENT(Table6[[#This Row],[Difference]],25)+IF(Table6[[#This Row],[Difference]]<100,-4,-3) -> -1 | F16: =IF(Table6[[#This Row],[Class]]<0, 25-MOD(Table6[[#This Row],[Difference]],25),MOD(Table6[[#This Row],[Difference]],25)) -> 6.756756757 | G16: =IF(Table6[[#This Row],[Class]]=-1,Table6[[#This Row],[Remaining]],IF(Table6[[#This Row],[Class]]<-1,25,NA())) -> 6.756756757 | H16: =IF(Table6[[#This Row],[Class]]=-2,Table6[[#This Row],[Remaining]],IF(Table6[[#This Row],[Class]]<-2,25,NA())) ->  | I16: =IF(Table6[[#This Row],[Class]]=-3,Table6[[#This Row],[Remaining]],IF(Table6[[#This Row],[Class]]<-3,25,NA())) ->  | J16: =IF(Table6[[#This Row],[Class]]=-4,Table6[[#This Row],[Remaining]],IF(Table6[[#This Row],[Class]]<-4,25,NA())) ->  | K16: =IF(Table6[[#This Row],[Difference]]=100,0,NA()) ->  | L16: =IF(Table6[[#This Row],[Class]]=1,Table6[[#This Row],[Remaining]],IF(Table6[[#This Row],[Class]]>1,25,NA())) ->  | M16: =IF(Table6[[#This Row],[Class]]=2,Table6[[#This Row],[Remaining]],IF(Table6[[#This Row],[Class]]>2,25,NA())) ->  | N16: =IF(Table6[[#This Row],[Class]]=3,Table6[[#This Row],[Remaining]],IF(Table6[[#This Row],[Class]]>3,25,NA())) ->  | O16: =IF(Table6[[#This Row],[Class]]=4,Table6[[#This Row],[Remaining]],IF(Table6[[#This Row],[Class]]>4,25,NA())) ->  | P16: =IF(Table6[[#This Row],[Class]]=5,Table6[[#This Row],[Remaining]],IF(Table6[[#This Row],[Class]]>5,25,NA())) ->  | Q16: =IF(Table6[[#This Row],[Class]]=6,Table6[[#This Row],[Remaining]],IF(Table6[[#This Row],[Class]]>6,25,NA())) ->  | R16: =IF(Table6[[#This Row],[Class]]=7,Table6[[#This Row],[Remaining]],IF(Table6[[#This Row],[Class]]>7,25,NA())) ->  | S16: =IF(Table6[[#This Row],[Class]]=8,Table6[[#This Row],[Remaining]],IF(Table6[[#This Row],[Class]]>8,25,NA())) ->  | T16: =IF(Table6[[#This Row],[Class]]=9,Table6[[#This Row],[Remaining]],IF(Table6[[#This Row],[Class]]>9,25,NA())) ->  | U16: =Table6[[#This Row],[Difference]]-100 -> -6.756756757 | V16: =IF(Table6[[#This Row],[Diff1]]>=0,E16,NA()) ->  | W16: =IF(Table6[[#This Row],[Diff1]]<0,Table6[[#This Row],[Diff1]],NA()) -> -6.756756757
A17: LASST220000000000003-LA-Louisiana | B17: 1977-04-15 | C17: 6.8 | D17: 94.44444444 | E17: =QUOTIENT(Table6[[#This Row],[Difference]],25)+IF(Table6[[#This Row],[Difference]]<100,-4,-3) -> -1 | F17: =IF(Table6[[#This Row],[Class]]<0, 25-MOD(Table6[[#This Row],[Difference]],25),MOD(Table6[[#This Row],[Difference]],25)) -> 5.555555556 | G17: =IF(Table6[[#This Row],[Class]]=-1,Table6[[#This Row],[Remaining]],IF(Table6[[#This Row],[Class]]<-1,25,NA())) -> 5.555555556 | H17: =IF(Table6[[#This Row],[Class]]=-2,Table6[[#This Row],[Remaining]],IF(Table6[[#This Row],[Class]]<-2,25,NA())) ->  | I17: =IF(Table6[[#This Row],[Class]]=-3,Table6[[#This Row],[Remaining]],IF(Table6[[#This Row],[Class]]<-3,25,NA())) ->  | J17: =IF(Table6[[#This Row],[Class]]=-4,Table6[[#This Row],[Remaining]],IF(Table6[[#This Row],[Class]]<-4,25,NA())) ->  | K17: =IF(Table6[[#This Row],[Difference]]=100,0,NA()) ->  | L17: =IF(Table6[[#This Row],[Class]]=1,Table6[[#This Row],[Remaining]],IF(Table6[[#This Row],[Class]]>1,25,NA())) ->  | M17: =IF(Table6[[#This Row],[Class]]=2,Table6[[#This Row],[Remaining]],IF(Table6[[#This Row],[Class]]>2,25,NA())) ->  | N17: =IF(Table6[[#This Row],[Class]]=3,Table6[[#This Row],[Remaining]],IF(Table6[[#This Row],[Class]]>3,25,NA())) ->  | O17: =IF(Table6[[#This Row],[Class]]=4,Table6[[#This Row],[Remaining]],IF(Table6[[#This Row],[Class]]>4,25,NA())) ->  | P17: =IF(Table6[[#This Row],[Class]]=5,Table6[[#This Row],[Remaining]],IF(Table6[[#This Row],[Class]]>5,25,NA())) ->  | Q17: =IF(Table6[[#This Row],[Class]]=6,Table6[[#This Row],[Remaining]],IF(Table6[[#This Row],[Class]]>6,25,NA())) ->  | R17: =IF(Table6[[#This Row],[Class]]=7,Table6[[#This Row],[Remaining]],IF(Table6[[#This Row],[Class]]>7,25,NA())) ->  | S17: =IF(Table6[[#This Row],[Class]]=8,Table6[[#This Row],[Remaining]],IF(Table6[[#This Row],[Class]]>8,25,NA())) ->  | T17: =IF(Table6[[#This Row],[Class]]=9,Table6[[#This Row],[Remaining]],IF(Table6[[#This Row],[Class]]>9,25,NA())) ->  | U17: =Table6[[#This Row],[Difference]]-100 -> -5.555555556 | V17: =IF(Table6[[#This Row],[Diff1]]>=0,E17,NA()) ->  | W17: =IF(Table6[[#This Row],[Diff1]]<0,Table6[[#This Row],[Diff1]],NA()) -> -5.555555556
A18: LASST220000000000003-LA-Louisiana | B18: 1977-05-15 | C18: 6.8 | D18: 97.14285714 | E18: =QUOTIENT(Table6[[#This Row],[Difference]],25)+IF(Table6[[#This Row],[Difference]]<100,-4,-3) -> -1 | F18: =IF(Table6[[#This Row],[Class]]<0, 25-MOD(Table6[[#This Row],[Difference]],25),MOD(Table6[[#This Row],[Difference]],25)) -> 2.857142857 | G18: =IF(Table6[[#This Row],[Class]]=-1,Table6[[#This Row],[Remaining]],IF(Table6[[#This Row],[Class]]<-1,25,NA())) -> 2.857142857 | H18: =IF(Table6[[#This Row],[Class]]=-2,Table6[[#This Row],[Remaining]],IF(Table6[[#This Row],[Class]]<-2,25,NA())) ->  | I18: =IF(Table6[[#This Row],[Class]]=-3,Table6[[#This Row],[Remaining]],IF(Table6[[#This Row],[Class]]<-3,25,NA())) ->  | J18: =IF(Table6[[#This Row],[Class]]=-4,Table6[[#This Row],[Remaining]],IF(Table6[[#This Row],[Class]]<-4,25,NA())) ->  | K18: =IF(Table6[[#This Row],[Difference]]=100,0,NA()) ->  | L18: =IF(Table6[[#This Row],[Class]]=1,Table6[[#This Row],[Remaining]],IF(Table6[[#This Row],[Class]]>1,25,NA())) ->  | M18: =IF(Table6[[#This Row],[Class]]=2,Table6[[#This Row],[Remaining]],IF(Table6[[#This Row],[Class]]>2,25,NA())) ->  | N18: =IF(Table6[[#This Row],[Class]]=3,Table6[[#This Row],[Remaining]],IF(Table6[[#This Row],[Class]]>3,25,NA())) ->  | O18: =IF(Table6[[#This Row],[Class]]=4,Table6[[#This Row],[Remaining]],IF(Table6[[#This Row],[Class]]>4,25,NA())) ->  | P18: =IF(Table6[[#This Row],[Class]]=5,Table6[[#This Row],[Remaining]],IF(Table6[[#This Row],[Class]]>5,25,NA())) ->  | Q18: =IF(Table6[[#This Row],[Class]]=6,Table6[[#This Row],[Remaining]],IF(Table6[[#This Row],[Class]]>6,25,NA())) ->  | R18: =IF(Table6[[#This Row],[Class]]=7,Table6[[#This Row],[Remaining]],IF(Table6[[#This Row],[Class]]>7,25,NA())) ->  | S18: =IF(Table6[[#This Row],[Class]]=8,Table6[[#This Row],[Remaining]],IF(Table6[[#This Row],[Class]]>8,25,NA())) ->  | T18: =IF(Table6[[#This Row],[Class]]=9,Table6[[#This Row],[Remaining]],IF(Table6[[#This Row],[Class]]>9,25,NA())) ->  | U18: =Table6[[#This Row],[Difference]]-100 -> -2.857142857 | V18: =IF(Table6[[#This Row],[Diff1]]>=0,E18,NA()) ->  | W18: =IF(Table6[[#This Row],[Diff1]]<0,Table6[[#This Row],[Diff1]],NA()) -> -2.857142857
A19: LASST220000000000003-LA-Louisiana | B19: 1977-06-15 | C19: 6.8 | D19: 94.44444444 | E19: =QUOTIENT(Table6[[#This Row],[Difference]],25)+IF(Table6[[#This Row],[Difference]]<100,-4,-3) -> -1 | F19: =IF(Table6[[#This Row],[Class]]<0, 25-MOD(Table6[[#This Row],[Difference]],25),MOD(Table6[[#This Row],[Difference]],25)) -> 5.555555556 | G19: =IF(Table6[[#This Row],[Class]]=-1,Table6[[#This Row],[Remaining]],IF(Table6[[#This Row],[Class]]<-1,25,NA())) -> 5.555555556 | H19: =IF(Table6[[#This Row],[Class]]=-2,Table6[[#This Row],[Remaining]],IF(Table6[[#This Row],[Class]]<-2,25,NA())) ->  | I19: =IF(Table6[[#This Row],[Class]]=-3,Table6[[#This Row],[Remaining]],IF(Table6[[#This Row],[Class]]<-3,25,NA())) ->  | J19: =IF(Table6[[#This Row],[Class]]=-4,Table6[[#This Row],[Remaining]],IF(Table6[[#This Row],[Class]]<-4,25,NA())) ->  | K19: =IF(Table6[[#This Row],[Difference]]=100,0,NA()) ->  | L19: =IF(Table6[[#This Row],[Class]]=1,Table6[[#This Row],[Remaining]],IF(Table6[[#This Row],[Class]]>1,25,NA())) ->  | M19: =IF(Table6[[#This Row],[Class]]=2,Table6[[#This Row],[Remaining]],IF(Table6[[#This Row],[Class]]>2,25,NA())) ->  | N19: =IF(Table6[[#This Row],[Class]]=3,Table6[[#This Row],[Remaining]],IF(Table6[[#This Row],[Class]]>3,25,NA())) ->  | O19: =IF(Table6[[#This Row],[Class]]=4,Table6[[#This Row],[Remaining]],IF(Table6[[#This Row],[Class]]>4,25,NA())) ->  | P19: =IF(Table6[[#This Row],[Class]]=5,Table6[[#This Row],[Remaining]],IF(Table6[[#This Row],[Class]]>5,25,NA())) ->  | Q19: =IF(Table6[[#This Row],[Class]]=6,Table6[[#This Row],[Remaining]],IF(Table6[[#This Row],[Class]]>6,25,NA())) ->  | R19: =IF(Table6[[#This Row],[Class]]=7,Table6[[#This Row],[Remaining]],IF(Table6[[#This Row],[Class]]>7,25,NA())) ->  | S19: =IF(Table6[[#This Row],[Class]]=8,Table6[[#This Row],[Remaining]],IF(Table6[[#This Row],[Class]]>8,25,NA())) ->  | T19: =IF(Table6[[#This Row],[Class]]=9,Table6[[#This Row],[Remaining]],IF(Table6[[#This Row],[Class]]>9,25,NA())) ->  | U19: =Table6[[#This Row],[Difference]]-100 -> -5.555555556 | V19: =IF(Table6[[#This Row],[Diff1]]>=0,E19,NA()) ->  | W19: =IF(Table6[[#This Row],[Diff1]]<0,Table6[[#This Row],[Diff1]],NA()) -> -5.555555556
A20: LASST220000000000003-LA-Louisiana | B20: 1977-07-15 | C20: 6.8 | D20: 98.55072464 | E20: =QUOTIENT(Table6[[#This Row],[Difference]],25)+IF(Table6[[#This Row],[Difference]]<100,-4,-3) -> -1 | F20: =IF(Table6[[#This Row],[Class]]<0, 25-MOD(Table6[[#This Row],[Difference]],25),MOD(Table6[[#This Row],[Difference]],25)) -> 1.449275362 | G20: =IF(Table6[[#This Row],[Class]]=-1,Table6[[#This Row],[Remaining]],IF(Table6[[#This Row],[Class]]<-1,25,NA())) -> 1.449275362 | H20: =IF(Table6[[#This Row],[Class]]=-2,Table6[[#This Row],[Remaining]],IF(Table6[[#This Row],[Class]]<-2,25,NA())) ->  | I20: =IF(Table6[[#This Row],[Class]]=-3,Table6[[#This Row],[Remaining]],IF(Table6[[#This Row],[Class]]<-3,25,NA())) ->  | J20: =IF(Table6[[#This Row],[Class]]=-4,Table6[[#This Row],[Remaining]],IF(Table6[[#This Row],[Class]]<-4,25,NA())) ->  | K20: =IF(Table6[[#This Row],[Difference]]=100,0,NA()) ->  | L20: =IF(Table6[[#This Row],[Class]]=1,Table6[[#This Row],[Remaining]],IF(Table6[[#This Row],[Class]]>1,25,NA())) ->  | M20: =IF(Table6[[#This Row],[Class]]=2,Table6[[#This Row],[Remaining]],IF(Table6[[#This Row],[Class]]>2,25,NA())) ->  | N20: =IF(Table6[[#This Row],[Class]]=3,Table6[[#This Row],[Remaining]],IF(Table6[[#This Row],[Class]]>3,25,NA())) ->  | O20: =IF(Table6[[#This Row],[Class]]=4,Table6[[#This Row],[Remaining]],IF(Table6[[#This Row],[Class]]>4,25,NA())) ->  | P20: =IF(Table6[[#This Row],[Class]]=5,Table6[[#This Row],[Remaining]],IF(Table6[[#This Row],[Class]]>5,25,NA())) ->  | Q20: =IF(Table6[[#This Row],[Class]]=6,Table6[[#This Row],[Remaining]],IF(Table6[[#This Row],[Class]]>6,25,NA())) ->  | R20: =IF(Table6[[#This Row],[Class]]=7,Table6[[#This Row],[Remaining]],IF(Table6[[#This Row],[Class]]>7,25,NA())) ->  | S20: =IF(Table6[[#This Row],[Class]]=8,Table6[[#This Row],[Remaining]],IF(Table6[[#This Row],[Class]]>8,25,NA())) ->  | T20: =IF(Table6[[#This Row],[Class]]=9,Table6[[#This Row],[Remaining]],IF(Table6[[#This Row],[Class]]>9,25,NA())) ->  | U20: =Table6[[#This Row],[Difference]]-100 -> -1.449275362 | V20: =IF(Table6[[#This Row],[Diff1]]>=0,E20,NA()) ->  | W20: =IF(Table6[[#This Row],[Diff1]]<0,Table6[[#This Row],[Diff1]],NA()) -> -1.449275362
A21: LASST220000000000003-LA-Louisiana | B21: 1977-08-15 | C21: 7 | D21: 100 | E21: =QUOTIENT(Table6[[#This Row],[Difference]],25)+IF(Table6[[#This Row],[Difference]]<100,-4,-3) -> 1 | F21: =IF(Table6[[#This Row],[Class]]<0, 25-MOD(Table6[[#This Row],[Difference]],25),MOD(Table6[[#This Row],[Difference]],25)) -> 0 | G21: =IF(Table6[[#This Row],[Class]]=-1,Table6[[#This Row],[Remaining]],IF(Table6[[#This Row],[Class]]<-1,25,NA())) ->  | H21: =IF(Table6[[#This Row],[Class]]=-2,Table6[[#This Row],[Remaining]],IF(Table6[[#This Row],[Class]]<-2,25,NA())) ->  | I21: =IF(Table6[[#This Row],[Class]]=-3,Table6[[#This Row],[Remaining]],IF(Table6[[#This Row],[Class]]<-3,25,NA())) ->  | J21: =IF(Table6[[#This Row],[Class]]=-4,Table6[[#This Row],[Remaining]],IF(Table6[[#This Row],[Class]]<-4,25,NA())) ->  | K21: =IF(Table6[[#This Row],[Difference]]=100,0,NA()) -> 0 | L21: =IF(Table6[[#This Row],[Class]]=1,Table6[[#This Row],[Remaining]],IF(Table6[[#This Row],[Class]]>1,25,NA())) -> 0 | M21: =IF(Table6[[#This Row],[Class]]=2,Table6[[#This Row],[Remaining]],IF(Table6[[#This Row],[Class]]>2,25,NA())) ->  | N21: =IF(Table6[[#This Row],[Class]]=3,Table6[[#This Row],[Remaining]],IF(Table6[[#This Row],[Class]]>3,25,NA())) ->  | O21: =IF(Table6[[#This Row],[Class]]=4,Table6[[#This Row],[Remaining]],IF(Table6[[#This Row],[Class]]>4,25,NA())) ->  | P21: =IF(Table6[[#This Row],[Class]]=5,Table6[[#This Row],[Remaining]],IF(Table6[[#This Row],[Class]]>5,25,NA())) ->  | Q21: =IF(Table6[[#This Row],[Class]]=6,Table6[[#This Row],[Remaining]],IF(Table6[[#This Row],[Class]]>6,25,NA())) ->  | R21: =IF(Table6[[#This Row],[Class]]=7,Table6[[#This Row],[Remaining]],IF(Table6[[#This Row],[Class]]>7,25,NA())) ->  | S21: =IF(Table6[[#This Row],[Class]]=8,Table6[[#This Row],[Remaining]],IF(Table6[[#This Row],[Class]]>8,25,NA())) ->  | T21: =IF(Table6[[#This Row],[Class]]=9,Table6[[#This Row],[Remaining]],IF(Table6[[#This Row],[Class]]>9,25,NA())) ->  | U21: =Table6[[#This Row],[Difference]]-100 -> 0 | V21: =IF(Table6[[#This Row],[Diff1]]>=0,E21,NA()) -> 1 | W21: =IF(Table6[[#This Row],[Diff1]]<0,Table6[[#This Row],[Diff1]],NA()) -> 
A22: LASST220000000000003-LA-Louisiana | B22: 1977-09-15 | C22: 7.2 | D22: 105.8823529 | E22: =QUOTIENT(Table6[[#This Row],[Difference]],25)+IF(Table6[[#This Row],[Difference]]<100,-4,-3) -> 1 | F22: =IF(Table6[[#This Row],[Class]]<0, 25-MOD(Table6[[#This Row],[Difference]],25),MOD(Table6[[#This Row],[Difference]],25)) -> 5.882352941 | G22: =IF(Table6[[#This Row],[Class]]=-1,Table6[[#This Row],[Remaining]],IF(Table6[[#This Row],[Class]]<-1,25,NA())) ->  | H22: =IF(Table6[[#This Row],[Class]]=-2,Table6[[#This Row],[Remaining]],IF(Table6[[#This Row],[Class]]<-2,25,NA())) ->  | I22: =IF(Table6[[#This Row],[Class]]=-3,Table6[[#This Row],[Remaining]],IF(Table6[[#This Row],[Class]]<-3,25,NA())) ->  | J22: =IF(Table6[[#This Row],[Class]]=-4,Table6[[#This Row],[Remaining]],IF(Table6[[#This Row],[Class]]<-4,25,NA())) ->  | K22: =IF(Table6[[#This Row],[Difference]]=100,0,NA()) ->  | L22: =IF(Table6[[#This Row],[Class]]=1,Table6[[#This Row],[Remaining]],IF(Table6[[#This Row],[Class]]>1,25,NA())) -> 5.882352941 | M22: =IF(Table6[[#This Row],[Class]]=2,Table6[[#This Row],[Remaining]],IF(Table6[[#This Row],[Class]]>2,25,NA())) ->  | N22: =IF(Table6[[#This Row],[Class]]=3,Table6[[#This Row],[Remaining]],IF(Table6[[#This Row],[Class]]>3,25,NA())) ->  | O22: =IF(Table6[[#This Row],[Class]]=4,Table6[[#This Row],[Remaining]],IF(Table6[[#This Row],[Class]]>4,25,NA())) ->  | P22: =IF(Table6[[#This Row],[Class]]=5,Table6[[#This Row],[Remaining]],IF(Table6[[#This Row],[Class]]>5,25,NA())) ->  | Q22: =IF(Table6[[#This Row],[Class]]=6,Table6[[#This Row],[Remaining]],IF(Table6[[#This Row],[Class]]>6,25,NA())) ->  | R22: =IF(Table6[[#This Row],[Class]]=7,Table6[[#This Row],[Remaining]],IF(Table6[[#This Row],[Class]]>7,25,NA())) ->  | S22: =IF(Table6[[#This Row],[Class]]=8,Table6[[#This Row],[Remaining]],IF(Table6[[#This Row],[Class]]>8,25,NA())) ->  | T22: =IF(Table6[[#This Row],[Class]]=9,Table6[[#This Row],[Remaining]],IF(Table6[[#This Row],[Class]]>9,25,NA())) ->  | U22: =Table6[[#This Row],[Difference]]-100 -> 5.882352941 | V22: =IF(Table6[[#This Row],[Diff1]]>=0,E22,NA()) -> 1 | W22: =IF(Table6[[#This Row],[Diff1]]<0,Table6[[#This Row],[Diff1]],NA()) -> 
A23: LASST220000000000003-LA-Louisiana | B23: 1977-10-15 | C23: 7.4 | D23: 108.8235294 | E23: =QUOTIENT(Table6[[#This Row],[Difference]],25)+IF(Table6[[#This Row],[Difference]]<100,-4,-3) -> 1 | F23: =IF(Table6[[#This Row],[Class]]<0, 25-MOD(Table6[[#This Row],[Difference]],25),MOD(Table6[[#This Row],[Difference]],25)) -> 8.823529412 | G23: =IF(Table6[[#This Row],[Class]]=-1,Table6[[#This Row],[Remaining]],IF(Table6[[#This Row],[Class]]<-1,25,NA())) ->  | H23: =IF(Table6[[#This Row],[Class]]=-2,Table6[[#This Row],[Remaining]],IF(Table6[[#This Row],[Class]]<-2,25,NA())) ->  | I23: =IF(Table6[[#This Row],[Class]]=-3,Table6[[#This Row],[Remaining]],IF(Table6[[#This Row],[Class]]<-3,25,NA())) ->  | J23: =IF(Table6[[#This Row],[Class]]=-4,Table6[[#This Row],[Remaining]],IF(Table6[[#This Row],[Class]]<-4,25,NA())) ->  | K23: =IF(Table6[[#This Row],[Difference]]=100,0,NA()) ->  | L23: =IF(Table6[[#This Row],[Class]]=1,Table6[[#This Row],[Remaining]],IF(Table6[[#This Row],[Class]]>1,25,NA())) -> 8.823529412 | M23: =IF(Table6[[#This Row],[Class]]=2,Table6[[#This Row],[Remaining]],IF(Table6[[#This Row],[Class]]>2,25,NA())) ->  | N23: =IF(Table6[[#This Row],[Class]]=3,Table6[[#This Row],[Remaining]],IF(Table6[[#This Row],[Class]]>3,25,NA())) ->  | O23: =IF(Table6[[#This Row],[Class]]=4,Table6[[#This Row],[Remaining]],IF(Table6[[#This Row],[Class]]>4,25,NA())) ->  | P23: =IF(Table6[[#This Row],[Class]]=5,Table6[[#This Row],[Remaining]],IF(Table6[[#This Row],[Class]]>5,25,NA())) ->  | Q23: =IF(Table6[[#This Row],[Class]]=6,Table6[[#This Row],[Remaining]],IF(Table6[[#This Row],[Class]]>6,25,NA())) ->  | R23: =IF(Table6[[#This Row],[Class]]=7,Table6[[#This Row],[Remaining]],IF(Table6[[#This Row],[Class]]>7,25,NA())) ->  | S23: =IF(Table6[[#This Row],[Class]]=8,Table6[[#This Row],[Remaining]],IF(Table6[[#This Row],[Class]]>8,25,NA())) ->  | T23: =IF(Table6[[#This Row],[Class]]=9,Table6[[#This Row],[Remaining]],IF(Table6[[#This Row],[Class]]>9,25,NA())) ->  | U23: =Table6[[#This Row],[Difference]]-100 -> 8.823529412 | V23: =IF(Table6[[#This Row],[Diff1]]>=0,E23,NA()) -> 1 | W23: =IF(Table6[[#This Row],[Diff1]]<0,Table6[[#This Row],[Diff1]],NA()) ->  | AB23: FOLDING VERTICAL AXIS FOR THE SECOND TIME
A24: LASST220000000000003-LA-Louisiana | B24: 1977-11-15 | C24: 7.5 | D24: 110.2941176 | E24: =QUOTIENT(Table6[[#This Row],[Difference]],25)+IF(Table6[[#This Row],[Difference]]<100,-4,-3) -> 1 | F24: =IF(Table6[[#This Row],[Class]]<0, 25-MOD(Table6[[#This Row],[Difference]],25),MOD(Table6[[#This Row],[Difference]],25)) -> 10.29411765 | G24: =IF(Table6[[#This Row],[Class]]=-1,Table6[[#This Row],[Remaining]],IF(Table6[[#This Row],[Class]]<-1,25,NA())) ->  | H24: =IF(Table6[[#This Row],[Class]]=-2,Table6[[#This Row],[Remaining]],IF(Table6[[#This Row],[Class]]<-2,25,NA())) ->  | I24: =IF(Table6[[#This Row],[Class]]=-3,Table6[[#This Row],[Remaining]],IF(Table6[[#This Row],[Class]]<-3,25,NA())) ->  | J24: =IF(Table6[[#This Row],[Class]]=-4,Table6[[#This Row],[Remaining]],IF(Table6[[#This Row],[Class]]<-4,25,NA())) ->  | K24: =IF(Table6[[#This Row],[Difference]]=100,0,NA()) ->  | L24: =IF(Table6[[#This Row],[Class]]=1,Table6[[#This Row],[Remaining]],IF(Table6[[#This Row],[Class]]>1,25,NA())) -> 10.29411765 | M24: =IF(Table6[[#This Row],[Class]]=2,Table6[[#This Row],[Remaining]],IF(Table6[[#This Row],[Class]]>2,25,NA())) ->  | N24: =IF(Table6[[#This Row],[Class]]=3,Table6[[#This Row],[Remaining]],IF(Table6[[#This Row],[Class]]>3,25,NA())) ->  | O24: =IF(Table6[[#This Row],[Class]]=4,Table6[[#This Row],[Remaining]],IF(Table6[[#This Row],[Class]]>4,25,NA())) ->  | P24: =IF(Table6[[#This Row],[Class]]=5,Table6[[#This Row],[Remaining]],IF(Table6[[#This Row],[Class]]>5,25,NA())) ->  | Q24: =IF(Table6[[#This Row],[Class]]=6,Table6[[#This Row],[Remaining]],IF(Table6[[#This Row],[Class]]>6,25,NA())) ->  | R24: =IF(Table6[[#This Row],[Class]]=7,Table6[[#This Row],[Remaining]],IF(Table6[[#This Row],[Class]]>7,25,NA())) ->  | S24: =IF(Table6[[#This Row],[Class]]=8,Table6[[#This Row],[Remaining]],IF(Table6[[#This Row],[Class]]>8,25,NA())) ->  | T24: =IF(Table6[[#This Row],[Class]]=9,Table6[[#This Row],[Remaining]],IF(Table6[[#This Row],[Class]]>9,25,NA())) ->  | U24: =Table6[[#This Row],[Difference]]-100 -> 10.29411765 | V24: =IF(Table6[[#This Row],[Diff1]]>=0,E24,NA()) -> 1 | W24: =IF(Table6[[#This Row],[Diff1]]<0,Table6[[#This Row],[Diff1]],NA()) -> 
A25: LASST220000000000003-LA-Louisiana | B25: 1977-12-15 | C25: 7.6 | D25: 118.75 | E25: =QUOTIENT(Table6[[#This Row],[Difference]],25)+IF(Table6[[#This Row],[Difference]]<100,-4,-3) -> 1 | F25: =IF(Table6[[#This Row],[Class]]<0, 25-MOD(Table6[[#This Row],[Difference]],25),MOD(Table6[[#This Row],[Difference]],25)) -> 18.75 | G25: =IF(Table6[[#This Row],[Class]]=-1,Table6[[#This Row],[Remaining]],IF(Table6[[#This Row],[Class]]<-1,25,NA())) ->  | H25: =IF(Table6[[#This Row],[Class]]=-2,Table6[[#This Row],[Remaining]],IF(Table6[[#This Row],[Class]]<-2,25,NA())) ->  | I25: =IF(Table6[[#This Row],[Class]]=-3,Table6[[#This Row],[Remaining]],IF(Table6[[#This Row],[Class]]<-3,25,NA())) ->  | J25: =IF(Table6[[#This Row],[Class]]=-4,Table6[[#This Row],[Remaining]],IF(Table6[[#This Row],[Class]]<-4,25,NA())) ->  | K25: =IF(Table6[[#This Row],[Difference]]=100,0,NA()) ->  | L25: =IF(Table6[[#This Row],[Class]]=1,Table6[[#This Row],[Remaining]],IF(Table6[[#This Row],[Class]]>1,25,NA())) -> 18.75 | M25: =IF(Table6[[#This Row],[Class]]=2,Table6[[#This Row],[Remaining]],IF(Table6[[#This Row],[Class]]>2,25,NA())) ->  | N25: =IF(Table6[[#This Row],[Class]]=3,Table6[[#This Row],[Remaining]],IF(Table6[[#This Row],[Class]]>3,25,NA())) ->  | O25: =IF(Table6[[#This Row],[Class]]=4,Table6[[#This Row],[Remaining]],IF(Table6[[#This Row],[Class]]>4,25,NA())) ->  | P25: =IF(Table6[[#This Row],[Class]]=5,Table6[[#This Row],[Remaining]],IF(Table6[[#This Row],[Class]]>5,25,NA())) ->  | Q25: =IF(Table6[[#This Row],[Class]]=6,Table6[[#This Row],[Remaining]],IF(Table6[[#This Row],[Class]]>6,25,NA())) ->  | R25: =IF(Table6[[#This Row],[Class]]=7,Table6[[#This Row],[Remaining]],IF(Table6[[#This Row],[Class]]>7,25,NA())) ->  | S25: =IF(Table6[[#This Row],[Class]]=8,Table6[[#This Row],[Remaining]],IF(Table6[[#This Row],[Class]]>8,25,NA())) ->  | T25: =IF(Table6[[#This Row],[Class]]=9,Table6[[#This Row],[Remaining]],IF(Table6[[#This Row],[Class]]>9,25,NA())) ->  | U25: =Table6[[#This Row],[Difference]]-100 -> 18.75 | V25: =IF(Table6[[#This Row],[Diff1]]>=0,E25,NA()) -> 1 | W25: =IF(Table6[[#This Row],[Diff1]]<0,Table6[[#This Row],[Diff1]],NA()) -> 
A26: LASST220000000000003-LA-Louisiana | B26: 1978-01-15 | C26: 7.7 | D26: 120.3125 | E26: =QUOTIENT(Table6[[#This Row],[Difference]],25)+IF(Table6[[#This Row],[Difference]]<100,-4,-3) -> 1 | F26: =IF(Table6[[#This Row],[Class]]<0, 25-MOD(Table6[[#This Row],[Difference]],25),MOD(Table6[[#This Row],[Difference]],25)) -> 20.3125 | G26: =IF(Table6[[#This Row],[Class]]=-1,Table6[[#This Row],[Remaining]],IF(Table6[[#This Row],[Class]]<-1,25,NA())) ->  | H26: =IF(Table6[[#This Row],[Class]]=-2,Table6[[#This Row],[Remaining]],IF(Table6[[#This Row],[Class]]<-2,25,NA())) ->  | I26: =IF(Table6[[#This Row],[Class]]=-3,Table6[[#This Row],[Remaining]],IF(Table6[[#This Row],[Class]]<-3,25,NA())) ->  | J26: =IF(Table6[[#This Row],[Class]]=-4,Table6[[#This Row],[Remaining]],IF(Table6[[#This Row],[Class]]<-4,25,NA())) ->  | K26: =IF(Table6[[#This Row],[Difference]]=100,0,NA()) ->  | L26: =IF(Table6[[#This Row],[Class]]=1,Table6[[#This Row],[Remaining]],IF(Table6[[#This Row],[Class]]>1,25,NA())) -> 20.3125 | M26: =IF(Table6[[#This Row],[Class]]=2,Table6[[#This Row],[Remaining]],IF(Table6[[#This Row],[Class]]>2,25,NA())) ->  | N26: =IF(Table6[[#This Row],[Class]]=3,Table6[[#This Row],[Remaining]],IF(Table6[[#This Row],[Class]]>3,25,NA())) ->  | O26: =IF(Table6[[#This Row],[Class]]=4,Table6[[#This Row],[Remaining]],IF(Table6[[#This Row],[Class]]>4,25,NA())) ->  | P26: =IF(Table6[[#This Row],[Class]]=5,Table6[[#This Row],[Remaining]],IF(Table6[[#This Row],[Class]]>5,25,NA())) ->  | Q26: =IF(Table6[[#This Row],[Class]]=6,Table6[[#This Row],[Remaining]],IF(Table6[[#This Row],[Class]]>6,25,NA())) ->  | R26: =IF(Table6[[#This Row],[Class]]=7,Table6[[#This Row],[Remaining]],IF(Table6[[#This Row],[Class]]>7,25,NA())) ->  | S26: =IF(Table6[[#This Row],[Class]]=8,Table6[[#This Row],[Remaining]],IF(Table6[[#This Row],[Class]]>8,25,NA())) ->  | T26: =IF(Table6[[#This Row],[Class]]=9,Table6[[#This Row],[Remaining]],IF(Table6[[#This Row],[Class]]>9,25,NA())) ->  | U26: =Table6[[#This Row],[Difference]]-100 -> 20.3125 | V26: =IF(Table6[[#This Row],[Diff1]]>=0,E26,NA()) -> 1 | W26: =IF(Table6[[#This Row],[Diff1]]<0,Table6[[#This Row],[Diff1]],NA()) -> 
A27: LASST220000000000003-LA-Louisiana | B27: 1978-02-15 | C27: 7.6 | D27: 120.6349206 | E27: =QUOTIENT(Table6[[#This Row],[Difference]],25)+IF(Table6[[#This Row],[Difference]]<100,-4,-3) -> 1 | F27: =IF(Table6[[#This Row],[Class]]<0, 25-MOD(Table6[[#This Row],[Difference]],25),MOD(Table6[[#This Row],[Difference]],25)) -> 20.63492063 | G27: =IF(Table6[[#This Row],[Class]]=-1,Table6[[#This Row],[Remaining]],IF(Table6[[#This Row],[Class]]<-1,25,NA())) ->  | H27: =IF(Table6[[#This Row],[Class]]=-2,Table6[[#This Row],[Remaining]],IF(Table6[[#This Row],[Class]]<-2,25,NA())) ->  | I27: =IF(Table6[[#This Row],[Class]]=-3,Table6[[#This Row],[Remaining]],IF(Table6[[#This Row],[Class]]<-3,25,NA())) ->  | J27: =IF(Table6[[#This Row],[Class]]=-4,Table6[[#This Row],[Remaining]],IF(Table6[[#This Row],[Class]]<-4,25,NA())) ->  | K27: =IF(Table6[[#This Row],[Difference]]=100,0,NA()) ->  | L27: =IF(Table6[[#This Row],[Class]]=1,Table6[[#This Row],[Remaining]],IF(Table6[[#This Row],[Class]]>1,25,NA())) -> 20.63492063 | M27: =IF(Table6[[#This Row],[Class]]=2,Table6[[#This Row],[Remaining]],IF(Table6[[#This Row],[Class]]>2,25,NA())) ->  | N27: =IF(Table6[[#This Row],[Class]]=3,Table6[[#This Row],[Remaining]],IF(Table6[[#This Row],[Class]]>3,25,NA())) ->  | O27: =IF(Table6[[#This Row],[Class]]=4,Table6[[#This Row],[Remaining]],IF(Table6[[#This Row],[Class]]>4,25,NA())) ->  | P27: =IF(Table6[[#This Row],[Class]]=5,Table6[[#This Row],[Remaining]],IF(Table6[[#This Row],[Class]]>5,25,NA())) ->  | Q27: =IF(Table6[[#This Row],[Class]]=6,Table6[[#This Row],[Remaining]],IF(Table6[[#This Row],[Class]]>6,25,NA())) ->  | R27: =IF(Table6[[#This Row],[Class]]=7,Table6[[#This Row],[Remaining]],IF(Table6[[#This Row],[Class]]>7,25,NA())) ->  | S27: =IF(Table6[[#This Row],[Class]]=8,Table6[[#This Row],[Remaining]],IF(Table6[[#This Row],[Class]]>8,25,NA())) ->  | T27: =IF(Table6[[#This Row],[Class]]=9,Table6[[#This Row],[Remaining]],IF(Table6[[#This Row],[Class]]>9,25,NA())) ->  | U27: =Table6[[#This Row],[Difference]]-100 -> 20.63492063 | V27: =IF(Table6[[#This Row],[Diff1]]>=0,E27,NA()) -> 1 | W27: =IF(Table6[[#This Row],[Diff1]]<0,Table6[[#This Row],[Diff1]],NA()) -> 
A28: LASST220000000000003-LA-Louisiana | B28: 1978-03-15 | C28: 7.5 | D28: 119.047619 | E28: =QUOTIENT(Table6[[#This Row],[Difference]],25)+IF(Table6[[#This Row],[Difference]]<100,-4,-3) -> 1 | F28: =IF(Table6[[#This Row],[Class]]<0, 25-MOD(Table6[[#This Row],[Difference]],25),MOD(Table6[[#This Row],[Difference]],25)) -> 19.04761905 | G28: =IF(Table6[[#This Row],[Class]]=-1,Table6[[#This Row],[Remaining]],IF(Table6[[#This Row],[Class]]<-1,25,NA())) ->  | H28: =IF(Table6[[#This Row],[Class]]=-2,Table6[[#This Row],[Remaining]],IF(Table6[[#This Row],[Class]]<-2,25,NA())) ->  | I28: =IF(Table6[[#This Row],[Class]]=-3,Table6[[#This Row],[Remaining]],IF(Table6[[#This Row],[Class]]<-3,25,NA())) ->  | J28: =IF(Table6[[#This Row],[Class]]=-4,Table6[[#This Row],[Remaining]],IF(Table6[[#This Row],[Class]]<-4,25,NA())) ->  | K28: =IF(Table6[[#This Row],[Difference]]=100,0,NA()) ->  | L28: =IF(Table6[[#This Row],[Class]]=1,Table6[[#This Row],[Remaining]],IF(Table6[[#This Row],[Class]]>1,25,NA())) -> 19.04761905 | M28: =IF(Table6[[#This Row],[Class]]=2,Table6[[#This Row],[Remaining]],IF(Table6[[#This Row],[Class]]>2,25,NA())) ->  | N28: =IF(Table6[[#This Row],[Class]]=3,Table6[[#This Row],[Remaining]],IF(Table6[[#This Row],[Class]]>3,25,NA())) ->  | O28: =IF(Table6[[#This Row],[Class]]=4,Table6[[#This Row],[Remaining]],IF(Table6[[#This Row],[Class]]>4,25,NA())) ->  | P28: =IF(Table6[[#This Row],[Class]]=5,Table6[[#This Row],[Remaining]],IF(Table6[[#This Row],[Class]]>5,25,NA())) ->  | Q28: =IF(Table6[[#This Row],[Class]]=6,Table6[[#This Row],[Remaining]],IF(Table6[[#This Row],[Class]]>6,25,NA())) ->  | R28: =IF(Table6[[#This Row],[Class]]=7,Table6[[#This Row],[Remaining]],IF(Table6[[#This Row],[Class]]>7,25,NA())) ->  | S28: =IF(Table6[[#This Row],[Class]]=8,Table6[[#This Row],[Remaining]],IF(Table6[[#This Row],[Class]]>8,25,NA())) ->  | T28: =IF(Table6[[#This Row],[Class]]=9,Table6[[#This Row],[Remaining]],IF(Table6[[#This Row],[Class]]>9,25,NA())) ->  | U28: =Table6[[#This Row],[Difference]]-100 -> 19.04761905 | V28: =IF(Table6[[#This Row],[Diff1]]>=0,E28,NA()) -> 1 | W28: =IF(Table6[[#This Row],[Diff1]]<0,Table6[[#This Row],[Diff1]],NA()) -> 
A29: LASST220000000000003-LA-Louisiana | B29: 1978-04-15 | C29: 7.3 | D29: 119.6721311 | E29: =QUOTIENT(Table6[[#This Row],[Difference]],25)+IF(Table6[[#This Row],[Difference]]<100,-4,-3) -> 1 | F29: =IF(Table6[[#This Row],[Class]]<0, 25-MOD(Table6[[#This Row],[Difference]],25),MOD(Table6[[#This Row],[Difference]],25)) -> 19.67213115 | G29: =IF(Table6[[#This Row],[Class]]=-1,Table6[[#This Row],[Remaining]],IF(Table6[[#This Row],[Class]]<-1,25,NA())) ->  | H29: =IF(Table6[[#This Row],[Class]]=-2,Table6[[#This Row],[Remaining]],IF(Table6[[#This Row],[Class]]<-2,25,NA())) ->  | I29: =IF(Table6[[#This Row],[Class]]=-3,Table6[[#This Row],[Remaining]],IF(Table6[[#This Row],[Class]]<-3,25,NA())) ->  | J29: =IF(Table6[[#This Row],[Class]]=-4,Table6[[#This Row],[Remaining]],IF(Table6[[#This Row],[Class]]<-4,25,NA())) ->  | K29: =IF(Table6[[#This Row],[Difference]]=100,0,NA()) ->  | L29: =IF(Table6[[#This Row],[Class]]=1,Table6[[#This Row],[Remaining]],IF(Table6[[#This Row],[Class]]>1,25,NA())) -> 19.67213115 | M29: =IF(Table6[[#This Row],[Class]]=2,Table6[[#This Row],[Remaining]],IF(Table6[[#This Row],[Class]]>2,25,NA())) ->  | N29: =IF(Table6[[#This Row],[Class]]=3,Table6[[#This Row],[Remaining]],IF(Table6[[#This Row],[Class]]>3,25,NA())) ->  | O29: =IF(Table6[[#This Row],[Class]]=4,Table6[[#This Row],[Remaining]],IF(Table6[[#This Row],[Class]]>4,25,NA())) ->  | P29: =IF(Table6[[#This Row],[Class]]=5,Table6[[#This Row],[Remaining]],IF(Table6[[#This Row],[Class]]>5,25,NA())) ->  | Q29: =IF(Table6[[#This Row],[Class]]=6,Table6[[#This Row],[Remaining]],IF(Table6[[#This Row],[Class]]>6,25,NA())) ->  | R29: =IF(Table6[[#This Row],[Class]]=7,Table6[[#This Row],[Remaining]],IF(Table6[[#This Row],[Class]]>7,25,NA())) ->  | S29: =IF(Table6[[#This Row],[Class]]=8,Table6[[#This Row],[Remaining]],IF(Table6[[#This Row],[Class]]>8,25,NA())) ->  | T29: =IF(Table6[[#This Row],[Class]]=9,Table6[[#This Row],[Remaining]],IF(Table6[[#This Row],[Class]]>9,25,NA())) ->  | U29: =Table6[[#This Row],[Difference]]-100 -> 19.67213115 | V29: =IF(Table6[[#This Row],[Diff1]]>=0,E29,NA()) -> 1 | W29: =IF(Table6[[#This Row],[Diff1]]<0,Table6[[#This Row],[Diff1]],NA()) -> 
A30: LASST220000000000003-LA-Louisiana | B30: 1978-05-15 | C30: 7.1 | D30: 118.3333333 | E30: =QUOTIENT(Table6[[#This Row],[Difference]],25)+IF(Table6[[#This Row],[Difference]]<100,-4,-3) -> 1 | F30: =IF(Table6[[#This Row],[Class]]<0, 25-MOD(Table6[[#This Row],[Difference]],25),MOD(Table6[[#This Row],[Difference]],25)) -> 18.33333333 | G30: =IF(Table6[[#This Row],[Class]]=-1,Table6[[#This Row],[Remaining]],IF(Table6[[#This Row],[Class]]<-1,25,NA())) ->  | H30: =IF(Table6[[#This Row],[Class]]=-2,Table6[[#This Row],[Remaining]],IF(Table6[[#This Row],[Class]]<-2,25,NA())) ->  | I30: =IF(Table6[[#This Row],[Class]]=-3,Table6[[#This Row],[Remaining]],IF(Table6[[#This Row],[Class]]<-3,25,NA())) ->  | J30: =IF(Table6[[#This Row],[Class]]=-4,Table6[[#This Row],[Remaining]],IF(Table6[[#This Row],[Class]]<-4,25,NA())) ->  | K30: =IF(Table6[[#This Row],[Difference]]=100,0,NA()) ->  | L30: =IF(Table6[[#This Row],[Class]]=1,Table6[[#This Row],[Remaining]],IF(Table6[[#This Row],[Class]]>1,25,NA())) -> 18.33333333 | M30: =IF(Table6[[#This Row],[Class]]=2,Table6[[#This Row],[Remaining]],IF(Table6[[#This Row],[Class]]>2,25,NA())) ->  | N30: =IF(Table6[[#This Row],[Class]]=3,Table6[[#This Row],[Remaining]],IF(Table6[[#This Row],[Class]]>3,25,NA())) ->  | O30: =IF(Table6[[#This Row],[Class]]=4,Table6[[#This Row],[Remaining]],IF(Table6[[#This Row],[Class]]>4,25,NA())) ->  | P30: =IF(Table6[[#This Row],[Class]]=5,Table6[[#This Row],[Remaining]],IF(Table6[[#This Row],[Class]]>5,25,NA())) ->  | Q30: =IF(Table6[[#This Row],[Class]]=6,Table6[[#This Row],[Remaining]],IF(Table6[[#This Row],[Class]]>6,25,NA())) ->  | R30: =IF(Table6[[#This Row],[Class]]=7,Table6[[#This Row],[Remaining]],IF(Table6[[#This Row],[Class]]>7,25,NA())) ->  | S30: =IF(Table6[[#This Row],[Class]]=8,Table6[[#This Row],[Remaining]],IF(Table6[[#This Row],[Class]]>8,25,NA())) ->  | T30: =IF(Table6[[#This Row],[Class]]=9,Table6[[#This Row],[Remaining]],IF(Table6[[#This Row],[Class]]>9,25,NA())) ->  | U30: =Table6[[#This Row],[Difference]]-100 -> 18.33333333 | V30: =IF(Table6[[#This Row],[Diff1]]>=0,E30,NA()) -> 1 | W30: =IF(Table6[[#This Row],[Diff1]]<0,Table6[[#This Row],[Diff1]],NA()) -> 
A31: LASST220000000000003-LA-Louisiana | B31: 1978-06-15 | C31: 6.9 | D31: 116.9491525 | E31: =QUOTIENT(Table6[[#This Row],[Difference]],25)+IF(Table6[[#This Row],[Difference]]<100,-4,-3) -> 1 | F31: =IF(Table6[[#This Row],[Class]]<0, 25-MOD(Table6[[#This Row],[Difference]],25),MOD(Table6[[#This Row],[Difference]],25)) -> 16.94915254 | G31: =IF(Table6[[#This Row],[Class]]=-1,Table6[[#This Row],[Remaining]],IF(Table6[[#This Row],[Class]]<-1,25,NA())) ->  | H31: =IF(Table6[[#This Row],[Class]]=-2,Table6[[#This Row],[Remaining]],IF(Table6[[#This Row],[Class]]<-2,25,NA())) ->  | I31: =IF(Table6[[#This Row],[Class]]=-3,Table6[[#This Row],[Remaining]],IF(Table6[[#This Row],[Class]]<-3,25,NA())) ->  | J31: =IF(Table6[[#This Row],[Class]]=-4,Table6[[#This Row],[Remaining]],IF(Table6[[#This Row],[Class]]<-4,25,NA())) ->  | K31: =IF(Table6[[#This Row],[Difference]]=100,0,NA()) ->  | L31: =IF(Table6[[#This Row],[Class]]=1,Table6[[#This Row],[Remaining]],IF(Table6[[#This Row],[Class]]>1,25,NA())) -> 16.94915254 | M31: =IF(Table6[[#This Row],[Class]]=2,Table6[[#This Row],[Remaining]],IF(Table6[[#This Row],[Class]]>2,25,NA())) ->  | N31: =IF(Table6[[#This Row],[Class]]=3,Table6[[#This Row],[Remaining]],IF(Table6[[#This Row],[Class]]>3,25,NA())) ->  | O31: =IF(Table6[[#This Row],[Class]]=4,Table6[[#This Row],[Remaining]],IF(Table6[[#This Row],[Class]]>4,25,NA())) ->  | P31: =IF(Table6[[#This Row],[Class]]=5,Table6[[#This Row],[Remaining]],IF(Table6[[#This Row],[Class]]>5,25,NA())) ->  | Q31: =IF(Table6[[#This Row],[Class]]=6,Table6[[#This Row],[Remaining]],IF(Table6[[#This Row],[Class]]>6,25,NA())) ->  | R31: =IF(Table6[[#This Row],[Class]]=7,Table6[[#This Row],[Remaining]],IF(Table6[[#This Row],[Class]]>7,25,NA())) ->  | S31: =IF(Table6[[#This Row],[Class]]=8,Table6[[#This Row],[Remaining]],IF(Table6[[#This Row],[Class]]>8,25,NA())) ->  | T31: =IF(Table6[[#This Row],[Class]]=9,Table6[[#This Row],[Remaining]],IF(Table6[[#This Row],[Class]]>9,25,NA())) ->  | U31: =Table6[[#This Row],[Difference]]-100 -> 16.94915254 | V31: =IF(Table6[[#This Row],[Diff1]]>=0,E31,NA()) -> 1 | W31: =IF(Table6[[#This Row],[Diff1]]<0,Table6[[#This Row],[Diff1]],NA()) -> 
A32: LASST220000000000003-LA-Louisiana | B32: 1978-07-15 | C32: 6.7 | D32: 108.0645161 | E32: =QUOTIENT(Table6[[#This Row],[Difference]],25)+IF(Table6[[#This Row],[Difference]]<100,-4,-3) -> 1 | F32: =IF(Table6[[#This Row],[Class]]<0, 25-MOD(Table6[[#This Row],[Difference]],25),MOD(Table6[[#This Row],[Difference]],25)) -> 8.064516129 | G32: =IF(Table6[[#This Row],[Class]]=-1,Table6[[#This Row],[Remaining]],IF(Table6[[#This Row],[Class]]<-1,25,NA())) ->  | H32: =IF(Table6[[#This Row],[Class]]=-2,Table6[[#This Row],[Remaining]],IF(Table6[[#This Row],[Class]]<-2,25,NA())) ->  | I32: =IF(Table6[[#This Row],[Class]]=-3,Table6[[#This Row],[Remaining]],IF(Table6[[#This Row],[Class]]<-3,25,NA())) ->  | J32: =IF(Table6[[#This Row],[Class]]=-4,Table6[[#This Row],[Remaining]],IF(Table6[[#This Row],[Class]]<-4,25,NA())) ->  | K32: =IF(Table6[[#This Row],[Difference]]=100,0,NA()) ->  | L32: =IF(Table6[[#This Row],[Class]]=1,Table6[[#This Row],[Remaining]],IF(Table6[[#This Row],[Class]]>1,25,NA())) -> 8.064516129 | M32: =IF(Table6[[#This Row],[Class]]=2,Table6[[#This Row],[Remaining]],IF(Table6[[#This Row],[Class]]>2,25,NA())) ->  | N32: =IF(Table6[[#This Row],[Class]]=3,Table6[[#This Row],[Remaining]],IF(Table6[[#This Row],[Class]]>3,25,NA())) ->  | O32: =IF(Table6[[#This Row],[Class]]=4,Table6[[#This Row],[Remaining]],IF(Table6[[#This Row],[Class]]>4,25,NA())) ->  | P32: =IF(Table6[[#This Row],[Class]]=5,Table6[[#This Row],[Remaining]],IF(Table6[[#This Row],[Class]]>5,25,NA())) ->  | Q32: =IF(Table6[[#This Row],[Class]]=6,Table6[[#This Row],[Remaining]],IF(Table6[[#This Row],[Class]]>6,25,NA())) ->  | R32: =IF(Table6[[#This Row],[Class]]=7,Table6[[#This Row],[Remaining]],IF(Table6[[#This Row],[Class]]>7,25,NA())) ->  | S32: =IF(Table6[[#This Row],[Class]]=8,Table6[[#This Row],[Remaining]],IF(Table6[[#This Row],[Class]]>8,25,NA())) ->  | T32: =IF(Table6[[#This Row],[Class]]=9,Table6[[#This Row],[Remaining]],IF(Table6[[#This Row],[Class]]>9,25,NA())) ->  | U32: =Table6[[#This Row],[Difference]]-100 -> 8.064516129 | V32: =IF(Table6[[#This Row],[Diff1]]>=0,E32,NA()) -> 1 | W32: =IF(Table6[[#This Row],[Diff1]]<0,Table6[[#This Row],[Diff1]],NA()) -> 
A33: LASST220000000000003-LA-Louisiana | B33: 1978-08-15 | C33: 6.5 | D33: 110.1694915 | E33: =QUOTIENT(Table6[[#This Row],[Difference]],25)+IF(Table6[[#This Row],[Difference]]<100,-4,-3) -> 1 | F33: =IF(Table6[[#This Row],[Class]]<0, 25-MOD(Table6[[#This Row],[Difference]],25),MOD(Table6[[#This Row],[Difference]],25)) -> 10.16949153 | G33: =IF(Table6[[#This Row],[Class]]=-1,Table6[[#This Row],[Remaining]],IF(Table6[[#This Row],[Class]]<-1,25,NA())) ->  | H33: =IF(Table6[[#This Row],[Class]]=-2,Table6[[#This Row],[Remaining]],IF(Table6[[#This Row],[Class]]<-2,25,NA())) ->  | I33: =IF(Table6[[#This Row],[Class]]=-3,Table6[[#This Row],[Remaining]],IF(Table6[[#This Row],[Class]]<-3,25,NA())) ->  | J33: =IF(Table6[[#This Row],[Class]]=-4,Table6[[#This Row],[Remaining]],IF(Table6[[#This Row],[Class]]<-4,25,NA())) ->  | K33: =IF(Table6[[#This Row],[Difference]]=100,0,NA()) ->  | L33: =IF(Table6[[#This Row],[Class]]=1,Table6[[#This Row],[Remaining]],IF(Table6[[#This Row],[Class]]>1,25,NA())) -> 10.16949153 | M33: =IF(Table6[[#This Row],[Class]]=2,Table6[[#This Row],[Remaining]],IF(Table6[[#This Row],[Class]]>2,25,NA())) ->  | N33: =IF(Table6[[#This Row],[Class]]=3,Table6[[#This Row],[Remaining]],IF(Table6[[#This Row],[Class]]>3,25,NA())) ->  | O33: =IF(Table6[[#This Row],[Class]]=4,Table6[[#This Row],[Remaining]],IF(Table6[[#This Row],[Class]]>4,25,NA())) ->  | P33: =IF(Table6[[#This Row],[Class]]=5,Table6[[#This Row],[Remaining]],IF(Table6[[#This Row],[Class]]>5,25,NA())) ->  | Q33: =IF(Table6[[#This Row],[Class]]=6,Table6[[#This Row],[Remaining]],IF(Table6[[#This Row],[Class]]>6,25,NA())) ->  | R33: =IF(Table6[[#This Row],[Class]]=7,Table6[[#This Row],[Remaining]],IF(Table6[[#This Row],[Class]]>7,25,NA())) ->  | S33: =IF(Table6[[#This Row],[Class]]=8,Table6[[#This Row],[Remaining]],IF(Table6[[#This Row],[Class]]>8,25,NA())) ->  | T33: =IF(Table6[[#This Row],[Class]]=9,Table6[[#This Row],[Remaining]],IF(Table6[[#This Row],[Class]]>9,25,NA())) ->  | U33: =Table6[[#This Row],[Difference]]-100 -> 10.16949153 | V33: =IF(Table6[[#This Row],[Diff1]]>=0,E33,NA()) -> 1 | W33: =IF(Table6[[#This Row],[Diff1]]<0,Table6[[#This Row],[Diff1]],NA()) -> 
A34: LASST220000000000003-LA-Louisiana | B34: 1978-09-15 | C34: 6.3 | D34: 105 | E34: =QUOTIENT(Table6[[#This Row],[Difference]],25)+IF(Table6[[#This Row],[Difference]]<100,-4,-3) -> 1 | F34: =IF(Table6[[#This Row],[Class]]<0, 25-MOD(Table6[[#This Row],[Difference]],25),MOD(Table6[[#This Row],[Difference]],25)) -> 5 | G34: =IF(Table6[[#This Row],[Class]]=-1,Table6[[#This Row],[Remaining]],IF(Table6[[#This Row],[Class]]<-1,25,NA())) ->  | H34: =IF(Table6[[#This Row],[Class]]=-2,Table6[[#This Row],[Remaining]],IF(Table6[[#This Row],[Class]]<-2,25,NA())) ->  | I34: =IF(Table6[[#This Row],[Class]]=-3,Table6[[#This Row],[Remaining]],IF(Table6[[#This Row],[Class]]<-3,25,NA())) ->  | J34: =IF(Table6[[#This Row],[Class]]=-4,Table6[[#This Row],[Remaining]],IF(Table6[[#This Row],[Class]]<-4,25,NA())) ->  | K34: =IF(Table6[[#This Row],[Difference]]=100,0,NA()) ->  | L34: =IF(Table6[[#This Row],[Class]]=1,Table6[[#This Row],[Remaining]],IF(Table6[[#This Row],[Class]]>1,25,NA())) -> 5 | M34: =IF(Table6[[#This Row],[Class]]=2,Table6[[#This Row],[Remaining]],IF(Table6[[#This Row],[Class]]>2,25,NA())) ->  | N34: =IF(Table6[[#This Row],[Class]]=3,Table6[[#This Row],[Remaining]],IF(Table6[[#This Row],[Class]]>3,25,NA())) ->  | O34: =IF(Table6[[#This Row],[Class]]=4,Table6[[#This Row],[Remaining]],IF(Table6[[#This Row],[Class]]>4,25,NA())) ->  | P34: =IF(Table6[[#This Row],[Class]]=5,Table6[[#This Row],[Remaining]],IF(Table6[[#This Row],[Class]]>5,25,NA())) ->  | Q34: =IF(Table6[[#This Row],[Class]]=6,Table6[[#This Row],[Remaining]],IF(Table6[[#This Row],[Class]]>6,25,NA())) ->  | R34: =IF(Table6[[#This Row],[Class]]=7,Table6[[#This Row],[Remaining]],IF(Table6[[#This Row],[Class]]>7,25,NA())) ->  | S34: =IF(Table6[[#This Row],[Class]]=8,Table6[[#This Row],[Remaining]],IF(Table6[[#This Row],[Class]]>8,25,NA())) ->  | T34: =IF(Table6[[#This Row],[Class]]=9,Table6[[#This Row],[Remaining]],IF(Table6[[#This Row],[Class]]>9,25,NA())) ->  | U34: =Table6[[#This Row],[Difference]]-100 -> 5 | V34: =IF(Table6[[#This Row],[Diff1]]>=0,E34,NA()) -> 1 | W34: =IF(Table6[[#This Row],[Diff1]]<0,Table6[[#This Row],[Diff1]],NA()) -> 
A35: LASST220000000000003-LA-Louisiana | B35: 1978-10-15 | C35: 6.1 | D35: 105.1724138 | E35: =QUOTIENT(Table6[[#This Row],[Difference]],25)+IF(Table6[[#This Row],[Difference]]<100,-4,-3) -> 1 | F35: =IF(Table6[[#This Row],[Class]]<0, 25-MOD(Table6[[#This Row],[Difference]],25),MOD(Table6[[#This Row],[Difference]],25)) -> 5.172413793 | G35: =IF(Table6[[#This Row],[Class]]=-1,Table6[[#This Row],[Remaining]],IF(Table6[[#This Row],[Class]]<-1,25,NA())) ->  | H35: =IF(Table6[[#This Row],[Class]]=-2,Table6[[#This Row],[Remaining]],IF(Table6[[#This Row],[Class]]<-2,25,NA())) ->  | I35: =IF(Table6[[#This Row],[Class]]=-3,Table6[[#This Row],[Remaining]],IF(Table6[[#This Row],[Class]]<-3,25,NA())) ->  | J35: =IF(Table6[[#This Row],[Class]]=-4,Table6[[#This Row],[Remaining]],IF(Table6[[#This Row],[Class]]<-4,25,NA())) ->  | K35: =IF(Table6[[#This Row],[Difference]]=100,0,NA()) ->  | L35: =IF(Table6[[#This Row],[Class]]=1,Table6[[#This Row],[Remaining]],IF(Table6[[#This Row],[Class]]>1,25,NA())) -> 5.172413793 | M35: =IF(Table6[[#This Row],[Class]]=2,Table6[[#This Row],[Remaining]],IF(Table6[[#This Row],[Class]]>2,25,NA())) ->  | N35: =IF(Table6[[#This Row],[Class]]=3,Table6[[#This Row],[Remaining]],IF(Table6[[#This Row],[Class]]>3,25,NA())) ->  | O35: =IF(Table6[[#This Row],[Class]]=4,Table6[[#This Row],[Remaining]],IF(Table6[[#This Row],[Class]]>4,25,NA())) ->  | P35: =IF(Table6[[#This Row],[Class]]=5,Table6[[#This Row],[Remaining]],IF(Table6[[#This Row],[Class]]>5,25,NA())) ->  | Q35: =IF(Table6[[#This Row],[Class]]=6,Table6[[#This Row],[Remaining]],IF(Table6[[#This Row],[Class]]>6,25,NA())) ->  | R35: =IF(Table6[[#This Row],[Class]]=7,Table6[[#This Row],[Remaining]],IF(Table6[[#This Row],[Class]]>7,25,NA())) ->  | S35: =IF(Table6[[#This Row],[Class]]=8,Table6[[#This Row],[Remaining]],IF(Table6[[#This Row],[Class]]>8,25,NA())) ->  | T35: =IF(Table6[[#This Row],[Class]]=9,Table6[[#This Row],[Remaining]],IF(Table6[[#This Row],[Class]]>9,25,NA())) ->  | U35: =Table6[[#This Row],[Difference]]-100 -> 5.172413793 | V35: =IF(Table6[[#This Row],[Diff1]]>=0,E35,NA()) -> 1 | W35: =IF(Table6[[#This Row],[Diff1]]<0,Table6[[#This Row],[Diff1]],NA()) -> 
A36: LASST220000000000003-LA-Louisiana | B36: 1978-11-15 | C36: 5.9 | D36: 100 | E36: =QUOTIENT(Table6[[#This Row],[Difference]],25)+IF(Table6[[#This Row],[Difference]]<100,-4,-3) -> 1 | F36: =IF(Table6[[#This Row],[Class]]<0, 25-MOD(Table6[[#This Row],[Difference]],25),MOD(Table6[[#This Row],[Difference]],25)) -> 0 | G36: =IF(Table6[[#This Row],[Class]]=-1,Table6[[#This Row],[Remaining]],IF(Table6[[#This Row],[Class]]<-1,25,NA())) ->  | H36: =IF(Table6[[#This Row],[Class]]=-2,Table6[[#This Row],[Remaining]],IF(Table6[[#This Row],[Class]]<-2,25,NA())) ->  | I36: =IF(Table6[[#This Row],[Class]]=-3,Table6[[#This Row],[Remaining]],IF(Table6[[#This Row],[Class]]<-3,25,NA())) ->  | J36: =IF(Table6[[#This Row],[Class]]=-4,Table6[[#This Row],[Remaining]],IF(Table6[[#This Row],[Class]]<-4,25,NA())) ->  | K36: =IF(Table6[[#This Row],[Difference]]=100,0,NA()) -> 0 | L36: =IF(Table6[[#This Row],[Class]]=1,Table6[[#This Row],[Remaining]],IF(Table6[[#This Row],[Class]]>1,25,NA())) -> 0 | M36: =IF(Table6[[#This Row],[Class]]=2,Table6[[#This Row],[Remaining]],IF(Table6[[#This Row],[Class]]>2,25,NA())) ->  | N36: =IF(Table6[[#This Row],[Class]]=3,Table6[[#This Row],[Remaining]],IF(Table6[[#This Row],[Class]]>3,25,NA())) ->  | O36: =IF(Table6[[#This Row],[Class]]=4,Table6[[#This Row],[Remaining]],IF(Table6[[#This Row],[Class]]>4,25,NA())) ->  | P36: =IF(Table6[[#This Row],[Class]]=5,Table6[[#This Row],[Remaining]],IF(Table6[[#This Row],[Class]]>5,25,NA())) ->  | Q36: =IF(Table6[[#This Row],[Class]]=6,Table6[[#This Row],[Remaining]],IF(Table6[[#This Row],[Class]]>6,25,NA())) ->  | R36: =IF(Table6[[#This Row],[Class]]=7,Table6[[#This Row],[Remaining]],IF(Table6[[#This Row],[Class]]>7,25,NA())) ->  | S36: =IF(Table6[[#This Row],[Class]]=8,Table6[[#This Row],[Remaining]],IF(Table6[[#This Row],[Class]]>8,25,NA())) ->  | T36: =IF(Table6[[#This Row],[Class]]=9,Table6[[#This Row],[Remaining]],IF(Table6[[#This Row],[Class]]>9,25,NA())) ->  | U36: =Table6[[#This Row],[Difference]]-100 -> 0 | V36: =IF(Table6[[#This Row],[Diff1]]>=0,E36,NA()) -> 1 | W36: =IF(Table6[[#This Row],[Diff1]]<0,Table6[[#This Row],[Diff1]],NA()) -> 
A37: LASST220000000000003-LA-Louisiana | B37: 1978-12-15 | C37: 5.9 | D37: 98.33333333 | E37: =QUOTIENT(Table6[[#This Row],[Difference]],25)+IF(Table6[[#This Row],[Difference]]<100,-4,-3) -> -1 | F37: =IF(Table6[[#This Row],[Class]]<0, 25-MOD(Table6[[#This Row],[Difference]],25),MOD(Table6[[#This Row],[Difference]],25)) -> 1.666666667 | G37: =IF(Table6[[#This Row],[Class]]=-1,Table6[[#This Row],[Remaining]],IF(Table6[[#This Row],[Class]]<-1,25,NA())) -> 1.666666667 | H37: =IF(Table6[[#This Row],[Class]]=-2,Table6[[#This Row],[Remaining]],IF(Table6[[#This Row],[Class]]<-2,25,NA())) ->  | I37: =IF(Table6[[#This Row],[Class]]=-3,Table6[[#This Row],[Remaining]],IF(Table6[[#This Row],[Class]]<-3,25,NA())) ->  | J37: =IF(Table6[[#This Row],[Class]]=-4,Table6[[#This Row],[Remaining]],IF(Table6[[#This Row],[Class]]<-4,25,NA())) ->  | K37: =IF(Table6[[#This Row],[Difference]]=100,0,NA()) ->  | L37: =IF(Table6[[#This Row],[Class]]=1,Table6[[#This Row],[Remaining]],IF(Table6[[#This Row],[Class]]>1,25,NA())) ->  | M37: =IF(Table6[[#This Row],[Class]]=2,Table6[[#This Row],[Remaining]],IF(Table6[[#This Row],[Class]]>2,25,NA())) ->  | N37: =IF(Table6[[#This Row],[Class]]=3,Table6[[#This Row],[Remaining]],IF(Table6[[#This Row],[Class]]>3,25,NA())) ->  | O37: =IF(Table6[[#This Row],[Class]]=4,Table6[[#This Row],[Remaining]],IF(Table6[[#This Row],[Class]]>4,25,NA())) ->  | P37: =IF(Table6[[#This Row],[Class]]=5,Table6[[#This Row],[Remaining]],IF(Table6[[#This Row],[Class]]>5,25,NA())) ->  | Q37: =IF(Table6[[#This Row],[Class]]=6,Table6[[#This Row],[Remaining]],IF(Table6[[#This Row],[Class]]>6,25,NA())) ->  | R37: =IF(Table6[[#This Row],[Class]]=7,Table6[[#This Row],[Remaining]],IF(Table6[[#This Row],[Class]]>7,25,NA())) ->  | S37: =IF(Table6[[#This Row],[Class]]=8,Table6[[#This Row],[Remaining]],IF(Table6[[#This Row],[Class]]>8,25,NA())) ->  | T37: =IF(Table6[[#This Row],[Class]]=9,Table6[[#This Row],[Remaining]],IF(Table6[[#This Row],[Class]]>9,25,NA())) ->  | U37: =Table6[[#This Row],[Difference]]-100 -> -1.666666667 | V37: =IF(Table6[[#This Row],[Diff1]]>=0,E37,NA()) ->  | W37: =IF(Table6[[#This Row],[Diff1]]<0,Table6[[#This Row],[Diff1]],NA()) -> -1.666666667
A38: LASST220000000000003-LA-Louisiana | B38: 1979-01-15 | C38: 5.8 | D38: 98.30508475 | E38: =QUOTIENT(Table6[[#This Row],[Difference]],25)+IF(Table6[[#This Row],[Difference]]<100,-4,-3) -> -1 | F38: =IF(Table6[[#This Row],[Class]]<0, 25-MOD(Table6[[#This Row],[Difference]],25),MOD(Table6[[#This Row],[Difference]],25)) -> 1.694915254 | G38: =IF(Table6[[#This Row],[Class]]=-1,Table6[[#This Row],[Remaining]],IF(Table6[[#This Row],[Class]]<-1,25,NA())) -> 1.694915254 | H38: =IF(Table6[[#This Row],[Class]]=-2,Table6[[#This Row],[Remaining]],IF(Table6[[#This Row],[Class]]<-2,25,NA())) ->  | I38: =IF(Table6[[#This Row],[Class]]=-3,Table6[[#This Row],[Remaining]],IF(Table6[[#This Row],[Class]]<-3,25,NA())) ->  | J38: =IF(Table6[[#This Row],[Class]]=-4,Table6[[#This Row],[Remaining]],IF(Table6[[#This Row],[Class]]<-4,25,NA())) ->  | K38: =IF(Table6[[#This Row],[Difference]]=100,0,NA()) ->  | L38: =IF(Table6[[#This Row],[Class]]=1,Table6[[#This Row],[Remaining]],IF(Table6[[#This Row],[Class]]>1,25,NA())) ->  | M38: =IF(Table6[[#This Row],[Class]]=2,Table6[[#This Row],[Remaining]],IF(Table6[[#This Row],[Class]]>2,25,NA())) ->  | N38: =IF(Table6[[#This Row],[Class]]=3,Table6[[#This Row],[Remaining]],IF(Table6[[#This Row],[Class]]>3,25,NA())) ->  | O38: =IF(Table6[[#This Row],[Class]]=4,Table6[[#This Row],[Remaining]],IF(Table6[[#This Row],[Class]]>4,25,NA())) ->  | P38: =IF(Table6[[#This Row],[Class]]=5,Table6[[#This Row],[Remaining]],IF(Table6[[#This Row],[Class]]>5,25,NA())) ->  | Q38: =IF(Table6[[#This Row],[Class]]=6,Table6[[#This Row],[Remaining]],IF(Table6[[#This Row],[Class]]>6,25,NA())) ->  | R38: =IF(Table6[[#This Row],[Class]]=7,Table6[[#This Row],[Remaining]],IF(Table6[[#This Row],[Class]]>7,25,NA())) ->  | S38: =IF(Table6[[#This Row],[Class]]=8,Table6[[#This Row],[Remaining]],IF(Table6[[#This Row],[Class]]>8,25,NA())) ->  | T38: =IF(Table6[[#This Row],[Class]]=9,Table6[[#This Row],[Remaining]],IF(Table6[[#This Row],[Class]]>9,25,NA())) ->  | U38: =Table6[[#This Row],[Difference]]-100 -> -1.694915254 | V38: =IF(Table6[[#This Row],[Diff1]]>=0,E38,NA()) ->  | W38: =IF(Table6[[#This Row],[Diff1]]<0,Table6[[#This Row],[Diff1]],NA()) -> -1.694915254
A39: LASST220000000000003-LA-Louisiana | B39: 1979-02-15 | C39: 5.9 | D39: 100 | E39: =QUOTIENT(Table6[[#This Row],[Difference]],25)+IF(Table6[[#This Row],[Difference]]<100,-4,-3) -> 1 | F39: =IF(Table6[[#This Row],[Class]]<0, 25-MOD(Table6[[#This Row],[Difference]],25),MOD(Table6[[#This Row],[Difference]],25)) -> 0 | G39: =IF(Table6[[#This Row],[Class]]=-1,Table6[[#This Row],[Remaining]],IF(Table6[[#This Row],[Class]]<-1,25,NA())) ->  | H39: =IF(Table6[[#This Row],[Class]]=-2,Table6[[#This Row],[Remaining]],IF(Table6[[#This Row],[Class]]<-2,25,NA())) ->  | I39: =IF(Table6[[#This Row],[Class]]=-3,Table6[[#This Row],[Remaining]],IF(Table6[[#This Row],[Class]]<-3,25,NA())) ->  | J39: =IF(Table6[[#This Row],[Class]]=-4,Table6[[#This Row],[Remaining]],IF(Table6[[#This Row],[Class]]<-4,25,NA())) ->  | K39: =IF(Table6[[#This Row],[Difference]]=100,0,NA()) -> 0 | L39: =IF(Table6[[#This Row],[Class]]=1,Table6[[#This Row],[Remaining]],IF(Table6[[#This Row],[Class]]>1,25,NA())) -> 0 | M39: =IF(Table6[[#This Row],[Class]]=2,Table6[[#This Row],[Remaining]],IF(Table6[[#This Row],[Class]]>2,25,NA())) ->  | N39: =IF(Table6[[#This Row],[Class]]=3,Table6[[#This Row],[Remaining]],IF(Table6[[#This Row],[Class]]>3,25,NA())) ->  | O39: =IF(Table6[[#This Row],[Class]]=4,Table6[[#This Row],[Remaining]],IF(Table6[[#This Row],[Class]]>4,25,NA())) ->  | P39: =IF(Table6[[#This Row],[Class]]=5,Table6[[#This Row],[Remaining]],IF(Table6[[#This Row],[Class]]>5,25,NA())) ->  | Q39: =IF(Table6[[#This Row],[Class]]=6,Table6[[#This Row],[Remaining]],IF(Table6[[#This Row],[Class]]>6,25,NA())) ->  | R39: =IF(Table6[[#This Row],[Class]]=7,Table6[[#This Row],[Remaining]],IF(Table6[[#This Row],[Class]]>7,25,NA())) ->  | S39: =IF(Table6[[#This Row],[Class]]=8,Table6[[#This Row],[Remaining]],IF(Table6[[#This Row],[Class]]>8,25,NA())) ->  | T39: =IF(Table6[[#This Row],[Class]]=9,Table6[[#This Row],[Remaining]],IF(Table6[[#This Row],[Class]]>9,25,NA())) ->  | U39: =Table6[[#This Row],[Difference]]-100 -> 0 | V39: =IF(Table6[[#This Row],[Diff1]]>=0,E39,NA()) -> 1 | W39: =IF(Table6[[#This Row],[Diff1]]<0,Table6[[#This Row],[Diff1]],NA()) -> 
A40: LASST220000000000003-LA-Louisiana | B40: 1979-03-15 | C40: 6 | D40: 103.4482759 | E40: =QUOTIENT(Table6[[#This Row],[Difference]],25)+IF(Table6[[#This Row],[Difference]]<100,-4,-3) -> 1 | F40: =IF(Table6[[#This Row],[Class]]<0, 25-MOD(Table6[[#This Row],[Difference]],25),MOD(Table6[[#This Row],[Difference]],25)) -> 3.448275862 | G40: =IF(Table6[[#This Row],[Class]]=-1,Table6[[#This Row],[Remaining]],IF(Table6[[#This Row],[Class]]<-1,25,NA())) ->  | H40: =IF(Table6[[#This Row],[Class]]=-2,Table6[[#This Row],[Remaining]],IF(Table6[[#This Row],[Class]]<-2,25,NA())) ->  | I40: =IF(Table6[[#This Row],[Class]]=-3,Table6[[#This Row],[Remaining]],IF(Table6[[#This Row],[Class]]<-3,25,NA())) ->  | J40: =IF(Table6[[#This Row],[Class]]=-4,Table6[[#This Row],[Remaining]],IF(Table6[[#This Row],[Class]]<-4,25,NA())) ->  | K40: =IF(Table6[[#This Row],[Difference]]=100,0,NA()) ->  | L40: =IF(Table6[[#This Row],[Class]]=1,Table6[[#This Row],[Remaining]],IF(Table6[[#This Row],[Class]]>1,25,NA())) -> 3.448275862 | M40: =IF(Table6[[#This Row],[Class]]=2,Table6[[#This Row],[Remaining]],IF(Table6[[#This Row],[Class]]>2,25,NA())) ->  | N40: =IF(Table6[[#This Row],[Class]]=3,Table6[[#This Row],[Remaining]],IF(Table6[[#This Row],[Class]]>3,25,NA())) ->  | O40: =IF(Table6[[#This Row],[Class]]=4,Table6[[#This Row],[Remaining]],IF(Table6[[#This Row],[Class]]>4,25,NA())) ->  | P40: =IF(Table6[[#This Row],[Class]]=5,Table6[[#This Row],[Remaining]],IF(Table6[[#This Row],[Class]]>5,25,NA())) ->  | Q40: =IF(Table6[[#This Row],[Class]]=6,Table6[[#This Row],[Remaining]],IF(Table6[[#This Row],[Class]]>6,25,NA())) ->  | R40: =IF(Table6[[#This Row],[Class]]=7,Table6[[#This Row],[Remaining]],IF(Table6[[#This Row],[Class]]>7,25,NA())) ->  | S40: =IF(Table6[[#This Row],[Class]]=8,Table6[[#This Row],[Remaining]],IF(Table6[[#This Row],[Class]]>8,25,NA())) ->  | T40: =IF(Table6[[#This Row],[Class]]=9,Table6[[#This Row],[Remaining]],IF(Table6[[#This Row],[Class]]>9,25,NA())) ->  | U40: =Table6[[#This Row],[Difference]]-100 -> 3.448275862 | V40: =IF(Table6[[#This Row],[Diff1]]>=0,E40,NA()) -> 1 | W40: =IF(Table6[[#This Row],[Diff1]]<0,Table6[[#This Row],[Diff1]],NA()) -> 
A41: LASST220000000000003-LA-Louisiana | B41: 1979-04-15 | C41: 6.2 | D41: 106.8965517 | E41: =QUOTIENT(Table6[[#This Row],[Difference]],25)+IF(Table6[[#This Row],[Difference]]<100,-4,-3) -> 1 | F41: =IF(Table6[[#This Row],[Class]]<0, 25-MOD(Table6[[#This Row],[Difference]],25),MOD(Table6[[#This Row],[Difference]],25)) -> 6.896551724 | G41: =IF(Table6[[#This Row],[Class]]=-1,Table6[[#This Row],[Remaining]],IF(Table6[[#This Row],[Class]]<-1,25,NA())) ->  | H41: =IF(Table6[[#This Row],[Class]]=-2,Table6[[#This Row],[Remaining]],IF(Table6[[#This Row],[Class]]<-2,25,NA())) ->  | I41: =IF(Table6[[#This Row],[Class]]=-3,Table6[[#This Row],[Remaining]],IF(Table6[[#This Row],[Class]]<-3,25,NA())) ->  | J41: =IF(Table6[[#This Row],[Class]]=-4,Table6[[#This Row],[Remaining]],IF(Table6[[#This Row],[Class]]<-4,25,NA())) ->  | K41: =IF(Table6[[#This Row],[Difference]]=100,0,NA()) ->  | L41: =IF(Table6[[#This Row],[Class]]=1,Table6[[#This Row],[Remaining]],IF(Table6[[#This Row],[Class]]>1,25,NA())) -> 6.896551724 | M41: =IF(Table6[[#This Row],[Class]]=2,Table6[[#This Row],[Remaining]],IF(Table6[[#This Row],[Class]]>2,25,NA())) ->  | N41: =IF(Table6[[#This Row],[Class]]=3,Table6[[#This Row],[Remaining]],IF(Table6[[#This Row],[Class]]>3,25,NA())) ->  | O41: =IF(Table6[[#This Row],[Class]]=4,Table6[[#This Row],[Remaining]],IF(Table6[[#This Row],[Class]]>4,25,NA())) ->  | P41: =IF(Table6[[#This Row],[Class]]=5,Table6[[#This Row],[Remaining]],IF(Table6[[#This Row],[Class]]>5,25,NA())) ->  | Q41: =IF(Table6[[#This Row],[Class]]=6,Table6[[#This Row],[Remaining]],IF(Table6[[#This Row],[Class]]>6,25,NA())) ->  | R41: =IF(Table6[[#This Row],[Class]]=7,Table6[[#This Row],[Remaining]],IF(Table6[[#This Row],[Class]]>7,25,NA())) ->  | S41: =IF(Table6[[#This Row],[Class]]=8,Table6[[#This Row],[Remaining]],IF(Table6[[#This Row],[Class]]>8,25,NA())) ->  | T41: =IF(Table6[[#This Row],[Class]]=9,Table6[[#This Row],[Remaining]],IF(Table6[[#This Row],[Class]]>9,25,NA())) ->  | U41: =Table6[[#This Row],[Difference]]-100 -> 6.896551724 | V41: =IF(Table6[[#This Row],[Diff1]]>=0,E41,NA()) -> 1 | W41: =IF(Table6[[#This Row],[Diff1]]<0,Table6[[#This Row],[Diff1]],NA()) -> 
A42: LASST220000000000003-LA-Louisiana | B42: 1979-05-15 | C42: 6.5 | D42: 116.0714286 | E42: =QUOTIENT(Table6[[#This Row],[Difference]],25)+IF(Table6[[#This Row],[Difference]]<100,-4,-3) -> 1 | F42: =IF(Table6[[#This Row],[Class]]<0, 25-MOD(Table6[[#This Row],[Difference]],25),MOD(Table6[[#This Row],[Difference]],25)) -> 16.07142857 | G42: =IF(Table6[[#This Row],[Class]]=-1,Table6[[#This Row],[Remaining]],IF(Table6[[#This Row],[Class]]<-1,25,NA())) ->  | H42: =IF(Table6[[#This Row],[Class]]=-2,Table6[[#This Row],[Remaining]],IF(Table6[[#This Row],[Class]]<-2,25,NA())) ->  | I42: =IF(Table6[[#This Row],[Class]]=-3,Table6[[#This Row],[Remaining]],IF(Table6[[#This Row],[Class]]<-3,25,NA())) ->  | J42: =IF(Table6[[#This Row],[Class]]=-4,Table6[[#This Row],[Remaining]],IF(Table6[[#This Row],[Class]]<-4,25,NA())) ->  | K42: =IF(Table6[[#This Row],[Difference]]=100,0,NA()) ->  | L42: =IF(Table6[[#This Row],[Class]]=1,Table6[[#This Row],[Remaining]],IF(Table6[[#This Row],[Class]]>1,25,NA())) -> 16.07142857 | M42: =IF(Table6[[#This Row],[Class]]=2,Table6[[#This Row],[Remaining]],IF(Table6[[#This Row],[Class]]>2,25,NA())) ->  | N42: =IF(Table6[[#This Row],[Class]]=3,Table6[[#This Row],[Remaining]],IF(Table6[[#This Row],[Class]]>3,25,NA())) ->  | O42: =IF(Table6[[#This Row],[Class]]=4,Table6[[#This Row],[Remaining]],IF(Table6[[#This Row],[Class]]>4,25,NA())) ->  | P42: =IF(Table6[[#This Row],[Class]]=5,Table6[[#This Row],[Remaining]],IF(Table6[[#This Row],[Class]]>5,25,NA())) ->  | Q42: =IF(Table6[[#This Row],[Class]]=6,Table6[[#This Row],[Remaining]],IF(Table6[[#This Row],[Class]]>6,25,NA())) ->  | R42: =IF(Table6[[#This Row],[Class]]=7,Table6[[#This Row],[Remaining]],IF(Table6[[#This Row],[Class]]>7,25,NA())) ->  | S42: =IF(Table6[[#This Row],[Class]]=8,Table6[[#This Row],[Remaining]],IF(Table6[[#This Row],[Class]]>8,25,NA())) ->  | T42: =IF(Table6[[#This Row],[Class]]=9,Table6[[#This Row],[Remaining]],IF(Table6[[#This Row],[Class]]>9,25,NA())) ->  | U42: =Table6[[#This Row],[Difference]]-100 -> 16.07142857 | V42: =IF(Table6[[#This Row],[Diff1]]>=0,E42,NA()) -> 1 | W42: =IF(Table6[[#This Row],[Diff1]]<0,Table6[[#This Row],[Diff1]],NA()) -> 
A43: LASST220000000000003-LA-Louisiana | B43: 1979-06-15 | C43: 6.7 | D43: 117.5438596 | E43: =QUOTIENT(Table6[[#This Row],[Difference]],25)+IF(Table6[[#This Row],[Difference]]<100,-4,-3) -> 1 | F43: =IF(Table6[[#This Row],[Class]]<0, 25-MOD(Table6[[#This Row],[Difference]],25),MOD(Table6[[#This Row],[Difference]],25)) -> 17.54385965 | G43: =IF(Table6[[#This Row],[Class]]=-1,Table6[[#This Row],[Remaining]],IF(Table6[[#This Row],[Class]]<-1,25,NA())) ->  | H43: =IF(Table6[[#This Row],[Class]]=-2,Table6[[#This Row],[Remaining]],IF(Table6[[#This Row],[Class]]<-2,25,NA())) ->  | I43: =IF(Table6[[#This Row],[Class]]=-3,Table6[[#This Row],[Remaining]],IF(Table6[[#This Row],[Class]]<-3,25,NA())) ->  | J43: =IF(Table6[[#This Row],[Class]]=-4,Table6[[#This Row],[Remaining]],IF(Table6[[#This Row],[Class]]<-4,25,NA())) ->  | K43: =IF(Table6[[#This Row],[Difference]]=100,0,NA()) ->  | L43: =IF(Table6[[#This Row],[Class]]=1,Table6[[#This Row],[Remaining]],IF(Table6[[#This Row],[Class]]>1,25,NA())) -> 17.54385965 | M43: =IF(Table6[[#This Row],[Class]]=2,Table6[[#This Row],[Remaining]],IF(Table6[[#This Row],[Class]]>2,25,NA())) ->  | N43: =IF(Table6[[#This Row],[Class]]=3,Table6[[#This Row],[Remaining]],IF(Table6[[#This Row],[Class]]>3,25,NA())) ->  | O43: =IF(Table6[[#This Row],[Class]]=4,Table6[[#This Row],[Remaining]],IF(Table6[[#This Row],[Class]]>4,25,NA())) ->  | P43: =IF(Table6[[#This Row],[Class]]=5,Table6[[#This Row],[Remaining]],IF(Table6[[#This Row],[Class]]>5,25,NA())) ->  | Q43: =IF(Table6[[#This Row],[Class]]=6,Table6[[#This Row],[Remaining]],IF(Table6[[#This Row],[Class]]>6,25,NA())) ->  | R43: =IF(Table6[[#This Row],[Class]]=7,Table6[[#This Row],[Remaining]],IF(Table6[[#This Row],[Class]]>7,25,NA())) ->  | S43: =IF(Table6[[#This Row],[Class]]=8,Table6[[#This Row],[Remaining]],IF(Table6[[#This Row],[Class]]>8,25,NA())) ->  | T43: =IF(Table6[[#This Row],[Class]]=9,Table6[[#This Row],[Remaining]],IF(Table6[[#This Row],[Class]]>9,25,NA())) ->  | U43: =Table6[[#This Row],[Difference]]-100 -> 17.54385965 | V43: =IF(Table6[[#This Row],[Diff1]]>=0,E43,NA()) -> 1 | W43: =IF(Table6[[#This Row],[Diff1]]<0,Table6[[#This Row],[Diff1]],NA()) -> 
A44: LASST220000000000003-LA-Louisiana | B44: 1979-07-15 | C44: 6.9 | D44: 121.0526316 | E44: =QUOTIENT(Table6[[#This Row],[Difference]],25)+IF(Table6[[#This Row],[Difference]]<100,-4,-3) -> 1 | F44: =IF(Table6[[#This Row],[Class]]<0, 25-MOD(Table6[[#This Row],[Difference]],25),MOD(Table6[[#This Row],[Difference]],25)) -> 21.05263158 | G44: =IF(Table6[[#This Row],[Class]]=-1,Table6[[#This Row],[Remaining]],IF(Table6[[#This Row],[Class]]<-1,25,NA())) ->  | H44: =IF(Table6[[#This Row],[Class]]=-2,Table6[[#This Row],[Remaining]],IF(Table6[[#This Row],[Class]]<-2,25,NA())) ->  | I44: =IF(Table6[[#This Row],[Class]]=-3,Table6[[#This Row],[Remaining]],IF(Table6[[#This Row],[Class]]<-3,25,NA())) ->  | J44: =IF(Table6[[#This Row],[Class]]=-4,Table6[[#This Row],[Remaining]],IF(Table6[[#This Row],[Class]]<-4,25,NA())) ->  | K44: =IF(Table6[[#This Row],[Difference]]=100,0,NA()) ->  | L44: =IF(Table6[[#This Row],[Class]]=1,Table6[[#This Row],[Remaining]],IF(Table6[[#This Row],[Class]]>1,25,NA())) -> 21.05263158 | M44: =IF(Table6[[#This Row],[Class]]=2,Table6[[#This Row],[Remaining]],IF(Table6[[#This Row],[Class]]>2,25,NA())) ->  | N44: =IF(Table6[[#This Row],[Class]]=3,Table6[[#This Row],[Remaining]],IF(Table6[[#This Row],[Class]]>3,25,NA())) ->  | O44: =IF(Table6[[#This Row],[Class]]=4,Table6[[#This Row],[Remaining]],IF(Table6[[#This Row],[Class]]>4,25,NA())) ->  | P44: =IF(Table6[[#This Row],[Class]]=5,Table6[[#This Row],[Remaining]],IF(Table6[[#This Row],[Class]]>5,25,NA())) ->  | Q44: =IF(Table6[[#This Row],[Class]]=6,Table6[[#This Row],[Remaining]],IF(Table6[[#This Row],[Class]]>6,25,NA())) ->  | R44: =IF(Table6[[#This Row],[Class]]=7,Table6[[#This Row],[Remaining]],IF(Table6[[#This Row],[Class]]>7,25,NA())) ->  | S44: =IF(Table6[[#This Row],[Class]]=8,Table6[[#This Row],[Remaining]],IF(Table6[[#This Row],[Class]]>8,25,NA())) ->  | T44: =IF(Table6[[#This Row],[Class]]=9,Table6[[#This Row],[Remaining]],IF(Table6[[#This Row],[Class]]>9,25,NA())) ->  | U44: =Table6[[#This Row],[Difference]]-100 -> 21.05263158 | V44: =IF(Table6[[#This Row],[Diff1]]>=0,E44,NA()) -> 1 | W44: =IF(Table6[[#This Row],[Diff1]]<0,Table6[[#This Row],[Diff1]],NA()) -> 
A45: LASST220000000000003-LA-Louisiana | B45: 1979-08-15 | C45: 7.1 | D45: 118.3333333 | E45: =QUOTIENT(Table6[[#This Row],[Difference]],25)+IF(Table6[[#This Row],[Difference]]<100,-4,-3) -> 1 | F45: =IF(Table6[[#This Row],[Class]]<0, 25-MOD(Table6[[#This Row],[Difference]],25),MOD(Table6[[#This Row],[Difference]],25)) -> 18.33333333 | G45: =IF(Table6[[#This Row],[Class]]=-1,Table6[[#This Row],[Remaining]],IF(Table6[[#This Row],[Class]]<-1,25,NA())) ->  | H45: =IF(Table6[[#This Row],[Class]]=-2,Table6[[#This Row],[Remaining]],IF(Table6[[#This Row],[Class]]<-2,25,NA())) ->  | I45: =IF(Table6[[#This Row],[Class]]=-3,Table6[[#This Row],[Remaining]],IF(Table6[[#This Row],[Class]]<-3,25,NA())) ->  | J45: =IF(Table6[[#This Row],[Class]]=-4,Table6[[#This Row],[Remaining]],IF(Table6[[#This Row],[Class]]<-4,25,NA())) ->  | K45: =IF(Table6[[#This Row],[Difference]]=100,0,NA()) ->  | L45: =IF(Table6[[#This Row],[Class]]=1,Table6[[#This Row],[Remaining]],IF(Table6[[#This Row],[Class]]>1,25,NA())) -> 18.33333333 | M45: =IF(Table6[[#This Row],[Class]]=2,Table6[[#This Row],[Remaining]],IF(Table6[[#This Row],[Class]]>2,25,NA())) ->  | N45: =IF(Table6[[#This Row],[Class]]=3,Table6[[#This Row],[Remaining]],IF(Table6[[#This Row],[Class]]>3,25,NA())) ->  | O45: =IF(Table6[[#This Row],[Class]]=4,Table6[[#This Row],[Remaining]],IF(Table6[[#This Row],[Class]]>4,25,NA())) ->  | P45: =IF(Table6[[#This Row],[Class]]=5,Table6[[#This Row],[Remaining]],IF(Table6[[#This Row],[Class]]>5,25,NA())) ->  | Q45: =IF(Table6[[#This Row],[Class]]=6,Table6[[#This Row],[Remaining]],IF(Table6[[#This Row],[Class]]>6,25,NA())) ->  | R45: =IF(Table6[[#This Row],[Class]]=7,Table6[[#This Row],[Remaining]],IF(Table6[[#This Row],[Class]]>7,25,NA())) ->  | S45: =IF(Table6[[#This Row],[Class]]=8,Table6[[#This Row],[Remaining]],IF(Table6[[#This Row],[Class]]>8,25,NA())) ->  | T45: =IF(Table6[[#This Row],[Class]]=9,Table6[[#This Row],[Remaining]],IF(Table6[[#This Row],[Class]]>9,25,NA())) ->  | U45: =Table6[[#This Row],[Difference]]-100 -> 18.33333333 | V45: =IF(Table6[[#This Row],[Diff1]]>=0,E45,NA()) -> 1 | W45: =IF(Table6[[#This Row],[Diff1]]<0,Table6[[#This Row],[Diff1]],NA()) -> 
A46: LASST220000000000003-LA-Louisiana | B46: 1979-09-15 | C46: 7.1 | D46: 120.3389831 | E46: =QUOTIENT(Table6[[#This Row],[Difference]],25)+IF(Table6[[#This Row],[Difference]]<100,-4,-3) -> 1 | F46: =IF(Table6[[#This Row],[Class]]<0, 25-MOD(Table6[[#This Row],[Difference]],25),MOD(Table6[[#This Row],[Difference]],25)) -> 20.33898305 | G46: =IF(Table6[[#This Row],[Class]]=-1,Table6[[#This Row],[Remaining]],IF(Table6[[#This Row],[Class]]<-1,25,NA())) ->  | H46: =IF(Table6[[#This Row],[Class]]=-2,Table6[[#This Row],[Remaining]],IF(Table6[[#This Row],[Class]]<-2,25,NA())) ->  | I46: =IF(Table6[[#This Row],[Class]]=-3,Table6[[#This Row],[Remaining]],IF(Table6[[#This Row],[Class]]<-3,25,NA())) ->  | J46: =IF(Table6[[#This Row],[Class]]=-4,Table6[[#This Row],[Remaining]],IF(Table6[[#This Row],[Class]]<-4,25,NA())) ->  | K46: =IF(Table6[[#This Row],[Difference]]=100,0,NA()) ->  | L46: =IF(Table6[[#This Row],[Class]]=1,Table6[[#This Row],[Remaining]],IF(Table6[[#This Row],[Class]]>1,25,NA())) -> 20.33898305 | M46: =IF(Table6[[#This Row],[Class]]=2,Table6[[#This Row],[Remaining]],IF(Table6[[#This Row],[Class]]>2,25,NA())) ->  | N46: =IF(Table6[[#This Row],[Class]]=3,Table6[[#This Row],[Remaining]],IF(Table6[[#This Row],[Class]]>3,25,NA())) ->  | O46: =IF(Table6[[#This Row],[Class]]=4,Table6[[#This Row],[Remaining]],IF(Table6[[#This Row],[Class]]>4,25,NA())) ->  | P46: =IF(Table6[[#This Row],[Class]]=5,Table6[[#This Row],[Remaining]],IF(Table6[[#This Row],[Class]]>5,25,NA())) ->  | Q46: =IF(Table6[[#This Row],[Class]]=6,Table6[[#This Row],[Remaining]],IF(Table6[[#This Row],[Class]]>6,25,NA())) ->  | R46: =IF(Table6[[#This Row],[Class]]=7,Table6[[#This Row],[Remaining]],IF(Table6[[#This Row],[Class]]>7,25,NA())) ->  | S46: =IF(Table6[[#This Row],[Class]]=8,Table6[[#This Row],[Remaining]],IF(Table6[[#This Row],[Class]]>8,25,NA())) ->  | T46: =IF(Table6[[#This Row],[Class]]=9,Table6[[#This Row],[Remaining]],IF(Table6[[#This Row],[Class]]>9,25,NA())) ->  | U46: =Table6[[#This Row],[Difference]]-100 -> 20.33898305 | V46: =IF(Table6[[#This Row],[Diff1]]>=0,E46,NA()) -> 1 | W46: =IF(Table6[[#This Row],[Diff1]]<0,Table6[[#This Row],[Diff1]],NA()) -> 
A47: LASST220000000000003-LA-Louisiana | B47: 1979-10-15 | C47: 7.1 | D47: 118.3333333 | E47: =QUOTIENT(Table6[[#This Row],[Difference]],25)+IF(Table6[[#This Row],[Difference]]<100,-4,-3) -> 1 | F47: =IF(Table6[[#This Row],[Class]]<0, 25-MOD(Table6[[#This Row],[Difference]],25),MOD(Table6[[#This Row],[Difference]],25)) -> 18.33333333 | G47: =IF(Table6[[#This Row],[Class]]=-1,Table6[[#This Row],[Remaining]],IF(Table6[[#This Row],[Class]]<-1,25,NA())) ->  | H47: =IF(Table6[[#This Row],[Class]]=-2,Table6[[#This Row],[Remaining]],IF(Table6[[#This Row],[Class]]<-2,25,NA())) ->  | I47: =IF(Table6[[#This Row],[Class]]=-3,Table6[[#This Row],[Remaining]],IF(Table6[[#This Row],[Class]]<-3,25,NA())) ->  | J47: =IF(Table6[[#This Row],[Class]]=-4,Table6[[#This Row],[Remaining]],IF(Table6[[#This Row],[Class]]<-4,25,NA())) ->  | K47: =IF(Table6[[#This Row],[Difference]]=100,0,NA()) ->  | L47: =IF(Table6[[#This Row],[Class]]=1,Table6[[#This Row],[Remaining]],IF(Table6[[#This Row],[Class]]>1,25,NA())) -> 18.33333333 | M47: =IF(Table6[[#This Row],[Class]]=2,Table6[[#This Row],[Remaining]],IF(Table6[[#This Row],[Class]]>2,25,NA())) ->  | N47: =IF(Table6[[#This Row],[Class]]=3,Table6[[#This Row],[Remaining]],IF(Table6[[#This Row],[Class]]>3,25,NA())) ->  | O47: =IF(Table6[[#This Row],[Class]]=4,Table6[[#This Row],[Remaining]],IF(Table6[[#This Row],[Class]]>4,25,NA())) ->  | P47: =IF(Table6[[#This Row],[Class]]=5,Table6[[#This Row],[Remaining]],IF(Table6[[#This Row],[Class]]>5,25,NA())) ->  | Q47: =IF(Table6[[#This Row],[Class]]=6,Table6[[#This Row],[Remaining]],IF(Table6[[#This Row],[Class]]>6,25,NA())) ->  | R47: =IF(Table6[[#This Row],[Class]]=7,Table6[[#This Row],[Remaining]],IF(Table6[[#This Row],[Class]]>7,25,NA())) ->  | S47: =IF(Table6[[#This Row],[Class]]=8,Table6[[#This Row],[Remaining]],IF(Table6[[#This Row],[Class]]>8,25,NA())) ->  | T47: =IF(Table6[[#This Row],[Class]]=9,Table6[[#This Row],[Remaining]],IF(Table6[[#This Row],[Class]]>9,25,NA())) ->  | U47: =Table6[[#This Row],[Difference]]-100 -> 18.33333333 | V47: =IF(Table6[[#This Row],[Diff1]]>=0,E47,NA()) -> 1 | W47: =IF(Table6[[#This Row],[Diff1]]<0,Table6[[#This Row],[Diff1]],NA()) -> 
A48: LASST220000000000003-LA-Louisiana | B48: 1979-11-15 | C48: 7 | D48: 118.6440678 | E48: =QUOTIENT(Table6[[#This Row],[Difference]],25)+IF(Table6[[#This Row],[Difference]]<100,-4,-3) -> 1 | F48: =IF(Table6[[#This Row],[Class]]<0, 25-MOD(Table6[[#This Row],[Difference]],25),MOD(Table6[[#This Row],[Difference]],25)) -> 18.6440678 | G48: =IF(Table6[[#This Row],[Class]]=-1,Table6[[#This Row],[Remaining]],IF(Table6[[#This Row],[Class]]<-1,25,NA())) ->  | H48: =IF(Table6[[#This Row],[Class]]=-2,Table6[[#This Row],[Remaining]],IF(Table6[[#This Row],[Class]]<-2,25,NA())) ->  | I48: =IF(Table6[[#This Row],[Class]]=-3,Table6[[#This Row],[Remaining]],IF(Table6[[#This Row],[Class]]<-3,25,NA())) ->  | J48: =IF(Table6[[#This Row],[Class]]=-4,Table6[[#This Row],[Remaining]],IF(Table6[[#This Row],[Class]]<-4,25,NA())) ->  | K48: =IF(Table6[[#This Row],[Difference]]=100,0,NA()) ->  | L48: =IF(Table6[[#This Row],[Class]]=1,Table6[[#This Row],[Remaining]],IF(Table6[[#This Row],[Class]]>1,25,NA())) -> 18.6440678 | M48: =IF(Table6[[#This Row],[Class]]=2,Table6[[#This Row],[Remaining]],IF(Table6[[#This Row],[Class]]>2,25,NA())) ->  | N48: =IF(Table6[[#This Row],[Class]]=3,Table6[[#This Row],[Remaining]],IF(Table6[[#This Row],[Class]]>3,25,NA())) ->  | O48: =IF(Table6[[#This Row],[Class]]=4,Table6[[#This Row],[Remaining]],IF(Table6[[#This Row],[Class]]>4,25,NA())) ->  | P48: =IF(Table6[[#This Row],[Class]]=5,Table6[[#This Row],[Remaining]],IF(Table6[[#This Row],[Class]]>5,25,NA())) ->  | Q48: =IF(Table6[[#This Row],[Class]]=6,Table6[[#This Row],[Remaining]],IF(Table6[[#This Row],[Class]]>6,25,NA())) ->  | R48: =IF(Table6[[#This Row],[Class]]=7,Table6[[#This Row],[Remaining]],IF(Table6[[#This Row],[Class]]>7,25,NA())) ->  | S48: =IF(Table6[[#This Row],[Class]]=8,Table6[[#This Row],[Remaining]],IF(Table6[[#This Row],[Class]]>8,25,NA())) ->  | T48: =IF(Table6[[#This Row],[Class]]=9,Table6[[#This Row],[Remaining]],IF(Table6[[#This Row],[Class]]>9,25,NA())) ->  | U48: =Table6[[#This Row],[Difference]]-100 -> 18.6440678 | V48: =IF(Table6[[#This Row],[Diff1]]>=0,E48,NA()) -> 1 | W48: =IF(Table6[[#This Row],[Diff1]]<0,Table6[[#This Row],[Diff1]],NA()) -> 
A49: LASST220000000000003-LA-Louisiana | B49: 1979-12-15 | C49: 6.9 | D49: 115 | E49: =QUOTIENT(Table6[[#This Row],[Difference]],25)+IF(Table6[[#This Row],[Difference]]<100,-4,-3) -> 1 | F49: =IF(Table6[[#This Row],[Class]]<0, 25-MOD(Table6[[#This Row],[Difference]],25),MOD(Table6[[#This Row],[Difference]],25)) -> 15 | G49: =IF(Table6[[#This Row],[Class]]=-1,Table6[[#This Row],[Remaining]],IF(Table6[[#This Row],[Class]]<-1,25,NA())) ->  | H49: =IF(Table6[[#This Row],[Class]]=-2,Table6[[#This Row],[Remaining]],IF(Table6[[#This Row],[Class]]<-2,25,NA())) ->  | I49: =IF(Table6[[#This Row],[Class]]=-3,Table6[[#This Row],[Remaining]],IF(Table6[[#This Row],[Class]]<-3,25,NA())) ->  | J49: =IF(Table6[[#This Row],[Class]]=-4,Table6[[#This Row],[Remaining]],IF(Table6[[#This Row],[Class]]<-4,25,NA())) ->  | K49: =IF(Table6[[#This Row],[Difference]]=100,0,NA()) ->  | L49: =IF(Table6[[#This Row],[Class]]=1,Table6[[#This Row],[Remaining]],IF(Table6[[#This Row],[Class]]>1,25,NA())) -> 15 | M49: =IF(Table6[[#This Row],[Class]]=2,Table6[[#This Row],[Remaining]],IF(Table6[[#This Row],[Class]]>2,25,NA())) ->  | N49: =IF(Table6[[#This Row],[Class]]=3,Table6[[#This Row],[Remaining]],IF(Table6[[#This Row],[Class]]>3,25,NA())) ->  | O49: =IF(Table6[[#This Row],[Class]]=4,Table6[[#This Row],[Remaining]],IF(Table6[[#This Row],[Class]]>4,25,NA())) ->  | P49: =IF(Table6[[#This Row],[Class]]=5,Table6[[#This Row],[Remaining]],IF(Table6[[#This Row],[Class]]>5,25,NA())) ->  | Q49: =IF(Table6[[#This Row],[Class]]=6,Table6[[#This Row],[Remaining]],IF(Table6[[#This Row],[Class]]>6,25,NA())) ->  | R49: =IF(Table6[[#This Row],[Class]]=7,Table6[[#This Row],[Remaining]],IF(Table6[[#This Row],[Class]]>7,25,NA())) ->  | S49: =IF(Table6[[#This Row],[Class]]=8,Table6[[#This Row],[Remaining]],IF(Table6[[#This Row],[Class]]>8,25,NA())) ->  | T49: =IF(Table6[[#This Row],[Class]]=9,Table6[[#This Row],[Remaining]],IF(Table6[[#This Row],[Class]]>9,25,NA())) ->  | U49: =Table6[[#This Row],[Difference]]-100 -> 15 | V49: =IF(Table6[[#This Row],[Diff1]]>=0,E49,NA()) -> 1 | W49: =IF(Table6[[#This Row],[Diff1]]<0,Table6[[#This Row],[Diff1]],NA()) -> 
A50: LASST220000000000003-LA-Louisiana | B50: 1980-01-15 | C50: 6.8 | D50: 107.9365079 | E50: =QUOTIENT(Table6[[#This Row],[Difference]],25)+IF(Table6[[#This Row],[Difference]]<100,-4,-3) -> 1 | F50: =IF(Table6[[#This Row],[Class]]<0, 25-MOD(Table6[[#This Row],[Difference]],25),MOD(Table6[[#This Row],[Difference]],25)) -> 7.936507937 | G50: =IF(Table6[[#This Row],[Class]]=-1,Table6[[#This Row],[Remaining]],IF(Table6[[#This Row],[Class]]<-1,25,NA())) ->  | H50: =IF(Table6[[#This Row],[Class]]=-2,Table6[[#This Row],[Remaining]],IF(Table6[[#This Row],[Class]]<-2,25,NA())) ->  | I50: =IF(Table6[[#This Row],[Class]]=-3,Table6[[#This Row],[Remaining]],IF(Table6[[#This Row],[Class]]<-3,25,NA())) ->  | J50: =IF(Table6[[#This Row],[Class]]=-4,Table6[[#This Row],[Remaining]],IF(Table6[[#This Row],[Class]]<-4,25,NA())) ->  | K50: =IF(Table6[[#This Row],[Difference]]=100,0,NA()) ->  | L50: =IF(Table6[[#This Row],[Class]]=1,Table6[[#This Row],[Remaining]],IF(Table6[[#This Row],[Class]]>1,25,NA())) -> 7.936507937 | M50: =IF(Table6[[#This Row],[Class]]=2,Table6[[#This Row],[Remaining]],IF(Table6[[#This Row],[Class]]>2,25,NA())) ->  | N50: =IF(Table6[[#This Row],[Class]]=3,Table6[[#This Row],[Remaining]],IF(Table6[[#This Row],[Class]]>3,25,NA())) ->  | O50: =IF(Table6[[#This Row],[Class]]=4,Table6[[#This Row],[Remaining]],IF(Table6[[#This Row],[Class]]>4,25,NA())) ->  | P50: =IF(Table6[[#This Row],[Class]]=5,Table6[[#This Row],[Remaining]],IF(Table6[[#This Row],[Class]]>5,25,NA())) ->  | Q50: =IF(Table6[[#This Row],[Class]]=6,Table6[[#This Row],[Remaining]],IF(Table6[[#This Row],[Class]]>6,25,NA())) ->  | R50: =IF(Table6[[#This Row],[Class]]=7,Table6[[#This Row],[Remaining]],IF(Table6[[#This Row],[Class]]>7,25,NA())) ->  | S50: =IF(Table6[[#This Row],[Class]]=8,Table6[[#This Row],[Remaining]],IF(Table6[[#This Row],[Class]]>8,25,NA())) ->  | T50: =IF(Table6[[#This Row],[Class]]=9,Table6[[#This Row],[Remaining]],IF(Table6[[#This Row],[Class]]>9,25,NA())) ->  | U50: =Table6[[#This Row],[Difference]]-100 -> 7.936507937 | V50: =IF(Table6[[#This Row],[Diff1]]>=0,E50,NA()) -> 1 | W50: =IF(Table6[[#This Row],[Diff1]]<0,Table6[[#This Row],[Diff1]],NA()) -> 
A51: LASST220000000000003-LA-Louisiana | B51: 1980-02-15 | C51: 6.7 | D51: 106.3492063 | E51: =QUOTIENT(Table6[[#This Row],[Difference]],25)+IF(Table6[[#This Row],[Difference]]<100,-4,-3) -> 1 | F51: =IF(Table6[[#This Row],[Class]]<0, 25-MOD(Table6[[#This Row],[Difference]],25),MOD(Table6[[#This Row],[Difference]],25)) -> 6.349206349 | G51: =IF(Table6[[#This Row],[Class]]=-1,Table6[[#This Row],[Remaining]],IF(Table6[[#This Row],[Class]]<-1,25,NA())) ->  | H51: =IF(Table6[[#This Row],[Class]]=-2,Table6[[#This Row],[Remaining]],IF(Table6[[#This Row],[Class]]<-2,25,NA())) ->  | I51: =IF(Table6[[#This Row],[Class]]=-3,Table6[[#This Row],[Remaining]],IF(Table6[[#This Row],[Class]]<-3,25,NA())) ->  | J51: =IF(Table6[[#This Row],[Class]]=-4,Table6[[#This Row],[Remaining]],IF(Table6[[#This Row],[Class]]<-4,25,NA())) ->  | K51: =IF(Table6[[#This Row],[Difference]]=100,0,NA()) ->  | L51: =IF(Table6[[#This Row],[Class]]=1,Table6[[#This Row],[Remaining]],IF(Table6[[#This Row],[Class]]>1,25,NA())) -> 6.349206349 | M51: =IF(Table6[[#This Row],[Class]]=2,Table6[[#This Row],[Remaining]],IF(Table6[[#This Row],[Class]]>2,25,NA())) ->  | N51: =IF(Table6[[#This Row],[Class]]=3,Table6[[#This Row],[Remaining]],IF(Table6[[#This Row],[Class]]>3,25,NA())) ->  | O51: =IF(Table6[[#This Row],[Class]]=4,Table6[[#This Row],[Remaining]],IF(Table6[[#This Row],[Class]]>4,25,NA())) ->  | P51: =IF(Table6[[#This Row],[Class]]=5,Table6[[#This Row],[Remaining]],IF(Table6[[#This Row],[Class]]>5,25,NA())) ->  | Q51: =IF(Table6[[#This Row],[Class]]=6,Table6[[#This Row],[Remaining]],IF(Table6[[#This Row],[Class]]>6,25,NA())) ->  | R51: =IF(Table6[[#This Row],[Class]]=7,Table6[[#This Row],[Remaining]],IF(Table6[[#This Row],[Class]]>7,25,NA())) ->  | S51: =IF(Table6[[#This Row],[Class]]=8,Table6[[#This Row],[Remaining]],IF(Table6[[#This Row],[Class]]>8,25,NA())) ->  | T51: =IF(Table6[[#This Row],[Class]]=9,Table6[[#This Row],[Remaining]],IF(Table6[[#This Row],[Class]]>9,25,NA())) ->  | U51: =Table6[[#This Row],[Difference]]-100 -> 6.349206349 | V51: =IF(Table6[[#This Row],[Diff1]]>=0,E51,NA()) -> 1 | W51: =IF(Table6[[#This Row],[Diff1]]<0,Table6[[#This Row],[Diff1]],NA()) -> 
A52: LASST220000000000003-LA-Louisiana | B52: 1980-03-15 | C52: 6.7 | D52: 106.3492063 | E52: =QUOTIENT(Table6[[#This Row],[Difference]],25)+IF(Table6[[#This Row],[Difference]]<100,-4,-3) -> 1 | F52: =IF(Table6[[#This Row],[Class]]<0, 25-MOD(Table6[[#This Row],[Difference]],25),MOD(Table6[[#This Row],[Difference]],25)) -> 6.349206349 | G52: =IF(Table6[[#This Row],[Class]]=-1,Table6[[#This Row],[Remaining]],IF(Table6[[#This Row],[Class]]<-1,25,NA())) ->  | H52: =IF(Table6[[#This Row],[Class]]=-2,Table6[[#This Row],[Remaining]],IF(Table6[[#This Row],[Class]]<-2,25,NA())) ->  | I52: =IF(Table6[[#This Row],[Class]]=-3,Table6[[#This Row],[Remaining]],IF(Table6[[#This Row],[Class]]<-3,25,NA())) ->  | J52: =IF(Table6[[#This Row],[Class]]=-4,Table6[[#This Row],[Remaining]],IF(Table6[[#This Row],[Class]]<-4,25,NA())) ->  | K52: =IF(Table6[[#This Row],[Difference]]=100,0,NA()) ->  | L52: =IF(Table6[[#This Row],[Class]]=1,Table6[[#This Row],[Remaining]],IF(Table6[[#This Row],[Class]]>1,25,NA())) -> 6.349206349 | M52: =IF(Table6[[#This Row],[Class]]=2,Table6[[#This Row],[Remaining]],IF(Table6[[#This Row],[Class]]>2,25,NA())) ->  | N52: =IF(Table6[[#This Row],[Class]]=3,Table6[[#This Row],[Remaining]],IF(Table6[[#This Row],[Class]]>3,25,NA())) ->  | O52: =IF(Table6[[#This Row],[Class]]=4,Table6[[#This Row],[Remaining]],IF(Table6[[#This Row],[Class]]>4,25,NA())) ->  | P52: =IF(Table6[[#This Row],[Class]]=5,Table6[[#This Row],[Remaining]],IF(Table6[[#This Row],[Class]]>5,25,NA())) ->  | Q52: =IF(Table6[[#This Row],[Class]]=6,Table6[[#This Row],[Remaining]],IF(Table6[[#This Row],[Class]]>6,25,NA())) ->  | R52: =IF(Table6[[#This Row],[Class]]=7,Table6[[#This Row],[Remaining]],IF(Table6[[#This Row],[Class]]>7,25,NA())) ->  | S52: =IF(Table6[[#This Row],[Class]]=8,Table6[[#This Row],[Remaining]],IF(Table6[[#This Row],[Class]]>8,25,NA())) ->  | T52: =IF(Table6[[#This Row],[Class]]=9,Table6[[#This Row],[Remaining]],IF(Table6[[#This Row],[Class]]>9,25,NA())) ->  | U52: =Table6[[#This Row],[Difference]]-100 -> 6.349206349 | V52: =IF(Table6[[#This Row],[Diff1]]>=0,E52,NA()) -> 1 | W52: =IF(Table6[[#This Row],[Diff1]]<0,Table6[[#This Row],[Diff1]],NA()) -> 
A53: LASST220000000000003-LA-Louisiana | B53: 1980-04-15 | C53: 6.7 | D53: 97.10144928 | E53: =QUOTIENT(Table6[[#This Row],[Difference]],25)+IF(Table6[[#This Row],[Difference]]<100,-4,-3) -> -1 | F53: =IF(Table6[[#This Row],[Class]]<0, 25-MOD(Table6[[#This Row],[Difference]],25),MOD(Table6[[#This Row],[Difference]],25)) -> 2.898550725 | G53: =IF(Table6[[#This Row],[Class]]=-1,Table6[[#This Row],[Remaining]],IF(Table6[[#This Row],[Class]]<-1,25,NA())) -> 2.898550725 | H53: =IF(Table6[[#This Row],[Class]]=-2,Table6[[#This Row],[Remaining]],IF(Table6[[#This Row],[Class]]<-2,25,NA())) ->  | I53: =IF(Table6[[#This Row],[Class]]=-3,Table6[[#This Row],[Remaining]],IF(Table6[[#This Row],[Class]]<-3,25,NA())) ->  | J53: =IF(Table6[[#This Row],[Class]]=-4,Table6[[#This Row],[Remaining]],IF(Table6[[#This Row],[Class]]<-4,25,NA())) ->  | K53: =IF(Table6[[#This Row],[Difference]]=100,0,NA()) ->  | L53: =IF(Table6[[#This Row],[Class]]=1,Table6[[#This Row],[Remaining]],IF(Table6[[#This Row],[Class]]>1,25,NA())) ->  | M53: =IF(Table6[[#This Row],[Class]]=2,Table6[[#This Row],[Remaining]],IF(Table6[[#This Row],[Class]]>2,25,NA())) ->  | N53: =IF(Table6[[#This Row],[Class]]=3,Table6[[#This Row],[Remaining]],IF(Table6[[#This Row],[Class]]>3,25,NA())) ->  | O53: =IF(Table6[[#This Row],[Class]]=4,Table6[[#This Row],[Remaining]],IF(Table6[[#This Row],[Class]]>4,25,NA())) ->  | P53: =IF(Table6[[#This Row],[Class]]=5,Table6[[#This Row],[Remaining]],IF(Table6[[#This Row],[Class]]>5,25,NA())) ->  | Q53: =IF(Table6[[#This Row],[Class]]=6,Table6[[#This Row],[Remaining]],IF(Table6[[#This Row],[Class]]>6,25,NA())) ->  | R53: =IF(Table6[[#This Row],[Class]]=7,Table6[[#This Row],[Remaining]],IF(Table6[[#This Row],[Class]]>7,25,NA())) ->  | S53: =IF(Table6[[#This Row],[Class]]=8,Table6[[#This Row],[Remaining]],IF(Table6[[#This Row],[Class]]>8,25,NA())) ->  | T53: =IF(Table6[[#This Row],[Class]]=9,Table6[[#This Row],[Remaining]],IF(Table6[[#This Row],[Class]]>9,25,NA())) ->  | U53: =Table6[[#This Row],[Difference]]-100 -> -2.898550725 | V53: =IF(Table6[[#This Row],[Diff1]]>=0,E53,NA()) ->  | W53: =IF(Table6[[#This Row],[Diff1]]<0,Table6[[#This Row],[Diff1]],NA()) -> -2.898550725
A54: LASST220000000000003-LA-Louisiana | B54: 1980-05-15 | C54: 6.6 | D54: 88 | E54: =QUOTIENT(Table6[[#This Row],[Difference]],25)+IF(Table6[[#This Row],[Difference]]<100,-4,-3) -> -1 | F54: =IF(Table6[[#This Row],[Class]]<0, 25-MOD(Table6[[#This Row],[Difference]],25),MOD(Table6[[#This Row],[Difference]],25)) -> 12 | G54: =IF(Table6[[#This Row],[Class]]=-1,Table6[[#This Row],[Remaining]],IF(Table6[[#This Row],[Class]]<-1,25,NA())) -> 12 | H54: =IF(Table6[[#This Row],[Class]]=-2,Table6[[#This Row],[Remaining]],IF(Table6[[#This Row],[Class]]<-2,25,NA())) ->  | I54: =IF(Table6[[#This Row],[Class]]=-3,Table6[[#This Row],[Remaining]],IF(Table6[[#This Row],[Class]]<-3,25,NA())) ->  | J54: =IF(Table6[[#This Row],[Class]]=-4,Table6[[#This Row],[Remaining]],IF(Table6[[#This Row],[Class]]<-4,25,NA())) ->  | K54: =IF(Table6[[#This Row],[Difference]]=100,0,NA()) ->  | L54: =IF(Table6[[#This Row],[Class]]=1,Table6[[#This Row],[Remaining]],IF(Table6[[#This Row],[Class]]>1,25,NA())) ->  | M54: =IF(Table6[[#This Row],[Class]]=2,Table6[[#This Row],[Remaining]],IF(Table6[[#This Row],[Class]]>2,25,NA())) ->  | N54: =IF(Table6[[#This Row],[Class]]=3,Table6[[#This Row],[Remaining]],IF(Table6[[#This Row],[Class]]>3,25,NA())) ->  | O54: =IF(Table6[[#This Row],[Class]]=4,Table6[[#This Row],[Remaining]],IF(Table6[[#This Row],[Class]]>4,25,NA())) ->  | P54: =IF(Table6[[#This Row],[Class]]=5,Table6[[#This Row],[Remaining]],IF(Table6[[#This Row],[Class]]>5,25,NA())) ->  | Q54: =IF(Table6[[#This Row],[Class]]=6,Table6[[#This Row],[Remaining]],IF(Table6[[#This Row],[Class]]>6,25,NA())) ->  | R54: =IF(Table6[[#This Row],[Class]]=7,Table6[[#This Row],[Remaining]],IF(Table6[[#This Row],[Class]]>7,25,NA())) ->  | S54: =IF(Table6[[#This Row],[Class]]=8,Table6[[#This Row],[Remaining]],IF(Table6[[#This Row],[Class]]>8,25,NA())) ->  | T54: =IF(Table6[[#This Row],[Class]]=9,Table6[[#This Row],[Remaining]],IF(Table6[[#This Row],[Class]]>9,25,NA())) ->  | U54: =Table6[[#This Row],[Difference]]-100 -> -12 | V54: =IF(Table6[[#This Row],[Diff1]]>=0,E54,NA()) ->  | W54: =IF(Table6[[#This Row],[Diff1]]<0,Table6[[#This Row],[Diff1]],NA()) -> -12
A55: LASST220000000000003-LA-Louisiana | B55: 1980-06-15 | C55: 6.6 | D55: 86.84210526 | E55: =QUOTIENT(Table6[[#This Row],[Difference]],25)+IF(Table6[[#This Row],[Difference]]<100,-4,-3) -> -1 | F55: =IF(Table6[[#This Row],[Class]]<0, 25-MOD(Table6[[#This Row],[Difference]],25),MOD(Table6[[#This Row],[Difference]],25)) -> 13.15789474 | G55: =IF(Table6[[#This Row],[Class]]=-1,Table6[[#This Row],[Remaining]],IF(Table6[[#This Row],[Class]]<-1,25,NA())) -> 13.15789474 | H55: =IF(Table6[[#This Row],[Class]]=-2,Table6[[#This Row],[Remaining]],IF(Table6[[#This Row],[Class]]<-2,25,NA())) ->  | I55: =IF(Table6[[#This Row],[Class]]=-3,Table6[[#This Row],[Remaining]],IF(Table6[[#This Row],[Class]]<-3,25,NA())) ->  | J55: =IF(Table6[[#This Row],[Class]]=-4,Table6[[#This Row],[Remaining]],IF(Table6[[#This Row],[Class]]<-4,25,NA())) ->  | K55: =IF(Table6[[#This Row],[Difference]]=100,0,NA()) ->  | L55: =IF(Table6[[#This Row],[Class]]=1,Table6[[#This Row],[Remaining]],IF(Table6[[#This Row],[Class]]>1,25,NA())) ->  | M55: =IF(Table6[[#This Row],[Class]]=2,Table6[[#This Row],[Remaining]],IF(Table6[[#This Row],[Class]]>2,25,NA())) ->  | N55: =IF(Table6[[#This Row],[Class]]=3,Table6[[#This Row],[Remaining]],IF(Table6[[#This Row],[Class]]>3,25,NA())) ->  | O55: =IF(Table6[[#This Row],[Class]]=4,Table6[[#This Row],[Remaining]],IF(Table6[[#This Row],[Class]]>4,25,NA())) ->  | P55: =IF(Table6[[#This Row],[Class]]=5,Table6[[#This Row],[Remaining]],IF(Table6[[#This Row],[Class]]>5,25,NA())) ->  | Q55: =IF(Table6[[#This Row],[Class]]=6,Table6[[#This Row],[Remaining]],IF(Table6[[#This Row],[Class]]>6,25,NA())) ->  | R55: =IF(Table6[[#This Row],[Class]]=7,Table6[[#This Row],[Remaining]],IF(Table6[[#This Row],[Class]]>7,25,NA())) ->  | S55: =IF(Table6[[#This Row],[Class]]=8,Table6[[#This Row],[Remaining]],IF(Table6[[#This Row],[Class]]>8,25,NA())) ->  | T55: =IF(Table6[[#This Row],[Class]]=9,Table6[[#This Row],[Remaining]],IF(Table6[[#This Row],[Class]]>9,25,NA())) ->  | U55: =Table6[[#This Row],[Difference]]-100 -> -13.15789474 | V55: =IF(Table6[[#This Row],[Diff1]]>=0,E55,NA()) ->  | W55: =IF(Table6[[#This Row],[Diff1]]<0,Table6[[#This Row],[Diff1]],NA()) -> -13.15789474
A56: LASST220000000000003-LA-Louisiana | B56: 1980-07-15 | C56: 6.6 | D56: 84.61538462 | E56: =QUOTIENT(Table6[[#This Row],[Difference]],25)+IF(Table6[[#This Row],[Difference]]<100,-4,-3) -> -1 | F56: =IF(Table6[[#This Row],[Class]]<0, 25-MOD(Table6[[#This Row],[Difference]],25),MOD(Table6[[#This Row],[Difference]],25)) -> 15.38461538 | G56: =IF(Table6[[#This Row],[Class]]=-1,Table6[[#This Row],[Remaining]],IF(Table6[[#This Row],[Class]]<-1,25,NA())) -> 15.38461538 | H56: =IF(Table6[[#This Row],[Class]]=-2,Table6[[#This Row],[Remaining]],IF(Table6[[#This Row],[Class]]<-2,25,NA())) ->  | I56: =IF(Table6[[#This Row],[Class]]=-3,Table6[[#This Row],[Remaining]],IF(Table6[[#This Row],[Class]]<-3,25,NA())) ->  | J56: =IF(Table6[[#This Row],[Class]]=-4,Table6[[#This Row],[Remaining]],IF(Table6[[#This Row],[Class]]<-4,25,NA())) ->  | K56: =IF(Table6[[#This Row],[Difference]]=100,0,NA()) ->  | L56: =IF(Table6[[#This Row],[Class]]=1,Table6[[#This Row],[Remaining]],IF(Table6[[#This Row],[Class]]>1,25,NA())) ->  | M56: =IF(Table6[[#This Row],[Class]]=2,Table6[[#This Row],[Remaining]],IF(Table6[[#This Row],[Class]]>2,25,NA())) ->  | N56: =IF(Table6[[#This Row],[Class]]=3,Table6[[#This Row],[Remaining]],IF(Table6[[#This Row],[Class]]>3,25,NA())) ->  | O56: =IF(Table6[[#This Row],[Class]]=4,Table6[[#This Row],[Remaining]],IF(Table6[[#This Row],[Class]]>4,25,NA())) ->  | P56: =IF(Table6[[#This Row],[Class]]=5,Table6[[#This Row],[Remaining]],IF(Table6[[#This Row],[Class]]>5,25,NA())) ->  | Q56: =IF(Table6[[#This Row],[Class]]=6,Table6[[#This Row],[Remaining]],IF(Table6[[#This Row],[Class]]>6,25,NA())) ->  | R56: =IF(Table6[[#This Row],[Class]]=7,Table6[[#This Row],[Remaining]],IF(Table6[[#This Row],[Class]]>7,25,NA())) ->  | S56: =IF(Table6[[#This Row],[Class]]=8,Table6[[#This Row],[Remaining]],IF(Table6[[#This Row],[Class]]>8,25,NA())) ->  | T56: =IF(Table6[[#This Row],[Class]]=9,Table6[[#This Row],[Remaining]],IF(Table6[[#This Row],[Class]]>9,25,NA())) ->  | U56: =Table6[[#This Row],[Difference]]-100 -> -15.38461538 | V56: =IF(Table6[[#This Row],[Diff1]]>=0,E56,NA()) ->  | W56: =IF(Table6[[#This Row],[Diff1]]<0,Table6[[#This Row],[Diff1]],NA()) -> -15.38461538
A57: LASST220000000000003-LA-Louisiana | B57: 1980-08-15 | C57: 6.7 | D57: 87.01298701 | E57: =QUOTIENT(Table6[[#This Row],[Difference]],25)+IF(Table6[[#This Row],[Difference]]<100,-4,-3) -> -1 | F57: =IF(Table6[[#This Row],[Class]]<0, 25-MOD(Table6[[#This Row],[Difference]],25),MOD(Table6[[#This Row],[Difference]],25)) -> 12.98701299 | G57: =IF(Table6[[#This Row],[Class]]=-1,Table6[[#This Row],[Remaining]],IF(Table6[[#This Row],[Class]]<-1,25,NA())) -> 12.98701299 | H57: =IF(Table6[[#This Row],[Class]]=-2,Table6[[#This Row],[Remaining]],IF(Table6[[#This Row],[Class]]<-2,25,NA())) ->  | I57: =IF(Table6[[#This Row],[Class]]=-3,Table6[[#This Row],[Remaining]],IF(Table6[[#This Row],[Class]]<-3,25,NA())) ->  | J57: =IF(Table6[[#This Row],[Class]]=-4,Table6[[#This Row],[Remaining]],IF(Table6[[#This Row],[Class]]<-4,25,NA())) ->  | K57: =IF(Table6[[#This Row],[Difference]]=100,0,NA()) ->  | L57: =IF(Table6[[#This Row],[Class]]=1,Table6[[#This Row],[Remaining]],IF(Table6[[#This Row],[Class]]>1,25,NA())) ->  | M57: =IF(Table6[[#This Row],[Class]]=2,Table6[[#This Row],[Remaining]],IF(Table6[[#This Row],[Class]]>2,25,NA())) ->  | N57: =IF(Table6[[#This Row],[Class]]=3,Table6[[#This Row],[Remaining]],IF(Table6[[#This Row],[Class]]>3,25,NA())) ->  | O57: =IF(Table6[[#This Row],[Class]]=4,Table6[[#This Row],[Remaining]],IF(Table6[[#This Row],[Class]]>4,25,NA())) ->  | P57: =IF(Table6[[#This Row],[Class]]=5,Table6[[#This Row],[Remaining]],IF(Table6[[#This Row],[Class]]>5,25,NA())) ->  | Q57: =IF(Table6[[#This Row],[Class]]=6,Table6[[#This Row],[Remaining]],IF(Table6[[#This Row],[Class]]>6,25,NA())) ->  | R57: =IF(Table6[[#This Row],[Class]]=7,Table6[[#This Row],[Remaining]],IF(Table6[[#This Row],[Class]]>7,25,NA())) ->  | S57: =IF(Table6[[#This Row],[Class]]=8,Table6[[#This Row],[Remaining]],IF(Table6[[#This Row],[Class]]>8,25,NA())) ->  | T57: =IF(Table6[[#This Row],[Class]]=9,Table6[[#This Row],[Remaining]],IF(Table6[[#This Row],[Class]]>9,25,NA())) ->  | U57: =Table6[[#This Row],[Difference]]-100 -> -12.98701299 | V57: =IF(Table6[[#This Row],[Diff1]]>=0,E57,NA()) ->  | W57: =IF(Table6[[#This Row],[Diff1]]<0,Table6[[#This Row],[Diff1]],NA()) -> -12.98701299
A58: LASST220000000000003-LA-Louisiana | B58: 1980-09-15 | C58: 6.9 | D58: 92 | E58: =QUOTIENT(Table6[[#This Row],[Difference]],25)+IF(Table6[[#This Row],[Difference]]<100,-4,-3) -> -1 | F58: =IF(Table6[[#This Row],[Class]]<0, 25-MOD(Table6[[#This Row],[Difference]],25),MOD(Table6[[#This Row],[Difference]],25)) -> 8 | G58: =IF(Table6[[#This Row],[Class]]=-1,Table6[[#This Row],[Remaining]],IF(Table6[[#This Row],[Class]]<-1,25,NA())) -> 8 | H58: =IF(Table6[[#This Row],[Class]]=-2,Table6[[#This Row],[Remaining]],IF(Table6[[#This Row],[Class]]<-2,25,NA())) ->  | I58: =IF(Table6[[#This Row],[Class]]=-3,Table6[[#This Row],[Remaining]],IF(Table6[[#This Row],[Class]]<-3,25,NA())) ->  | J58: =IF(Table6[[#This Row],[Class]]=-4,Table6[[#This Row],[Remaining]],IF(Table6[[#This Row],[Class]]<-4,25,NA())) ->  | K58: =IF(Table6[[#This Row],[Difference]]=100,0,NA()) ->  | L58: =IF(Table6[[#This Row],[Class]]=1,Table6[[#This Row],[Remaining]],IF(Table6[[#This Row],[Class]]>1,25,NA())) ->  | M58: =IF(Table6[[#This Row],[Class]]=2,Table6[[#This Row],[Remaining]],IF(Table6[[#This Row],[Class]]>2,25,NA())) ->  | N58: =IF(Table6[[#This Row],[Class]]=3,Table6[[#This Row],[Remaining]],IF(Table6[[#This Row],[Class]]>3,25,NA())) ->  | O58: =IF(Table6[[#This Row],[Class]]=4,Table6[[#This Row],[Remaining]],IF(Table6[[#This Row],[Class]]>4,25,NA())) ->  | P58: =IF(Table6[[#This Row],[Class]]=5,Table6[[#This Row],[Remaining]],IF(Table6[[#This Row],[Class]]>5,25,NA())) ->  | Q58: =IF(Table6[[#This Row],[Class]]=6,Table6[[#This Row],[Remaining]],IF(Table6[[#This Row],[Class]]>6,25,NA())) ->  | R58: =IF(Table6[[#This Row],[Class]]=7,Table6[[#This Row],[Remaining]],IF(Table6[[#This Row],[Class]]>7,25,NA())) ->  | S58: =IF(Table6[[#This Row],[Class]]=8,Table6[[#This Row],[Remaining]],IF(Table6[[#This Row],[Class]]>8,25,NA())) ->  | T58: =IF(Table6[[#This Row],[Class]]=9,Table6[[#This Row],[Remaining]],IF(Table6[[#This Row],[Class]]>9,25,NA())) ->  | U58: =Table6[[#This Row],[Difference]]-100 -> -8 | V58: =IF(Table6[[#This Row],[Diff1]]>=0,E58,NA()) ->  | W58: =IF(Table6[[#This Row],[Diff1]]<0,Table6[[#This Row],[Diff1]],NA()) -> -8
A59: LASST220000000000003-LA-Louisiana | B59: 1980-10-15 | C59: 7.1 | D59: 94.66666667 | E59: =QUOTIENT(Table6[[#This Row],[Difference]],25)+IF(Table6[[#This Row],[Difference]]<100,-4,-3) -> -1 | F59: =IF(Table6[[#This Row],[Class]]<0, 25-MOD(Table6[[#This Row],[Difference]],25),MOD(Table6[[#This Row],[Difference]],25)) -> 5.333333333 | G59: =IF(Table6[[#This Row],[Class]]=-1,Table6[[#This Row],[Remaining]],IF(Table6[[#This Row],[Class]]<-1,25,NA())) -> 5.333333333 | H59: =IF(Table6[[#This Row],[Class]]=-2,Table6[[#This Row],[Remaining]],IF(Table6[[#This Row],[Class]]<-2,25,NA())) ->  | I59: =IF(Table6[[#This Row],[Class]]=-3,Table6[[#This Row],[Remaining]],IF(Table6[[#This Row],[Class]]<-3,25,NA())) ->  | J59: =IF(Table6[[#This Row],[Class]]=-4,Table6[[#This Row],[Remaining]],IF(Table6[[#This Row],[Class]]<-4,25,NA())) ->  | K59: =IF(Table6[[#This Row],[Difference]]=100,0,NA()) ->  | L59: =IF(Table6[[#This Row],[Class]]=1,Table6[[#This Row],[Remaining]],IF(Table6[[#This Row],[Class]]>1,25,NA())) ->  | M59: =IF(Table6[[#This Row],[Class]]=2,Table6[[#This Row],[Remaining]],IF(Table6[[#This Row],[Class]]>2,25,NA())) ->  | N59: =IF(Table6[[#This Row],[Class]]=3,Table6[[#This Row],[Remaining]],IF(Table6[[#This Row],[Class]]>3,25,NA())) ->  | O59: =IF(Table6[[#This Row],[Class]]=4,Table6[[#This Row],[Remaining]],IF(Table6[[#This Row],[Class]]>4,25,NA())) ->  | P59: =IF(Table6[[#This Row],[Class]]=5,Table6[[#This Row],[Remaining]],IF(Table6[[#This Row],[Class]]>5,25,NA())) ->  | Q59: =IF(Table6[[#This Row],[Class]]=6,Table6[[#This Row],[Remaining]],IF(Table6[[#This Row],[Class]]>6,25,NA())) ->  | R59: =IF(Table6[[#This Row],[Class]]=7,Table6[[#This Row],[Remaining]],IF(Table6[[#This Row],[Class]]>7,25,NA())) ->  | S59: =IF(Table6[[#This Row],[Class]]=8,Table6[[#This Row],[Remaining]],IF(Table6[[#This Row],[Class]]>8,25,NA())) ->  | T59: =IF(Table6[[#This Row],[Class]]=9,Table6[[#This Row],[Remaining]],IF(Table6[[#This Row],[Class]]>9,25,NA())) ->  | U59: =Table6[[#This Row],[Difference]]-100 -> -5.333333333 | V59: =IF(Table6[[#This Row],[Diff1]]>=0,E59,NA()) ->  | W59: =IF(Table6[[#This Row],[Diff1]]<0,Table6[[#This Row],[Diff1]],NA()) -> -5.333333333
A60: LASST220000000000003-LA-Louisiana | B60: 1980-11-15 | C60: 7.3 | D60: 97.33333333 | E60: =QUOTIENT(Table6[[#This Row],[Difference]],25)+IF(Table6[[#This Row],[Difference]]<100,-4,-3) -> -1 | F60: =IF(Table6[[#This Row],[Class]]<0, 25-MOD(Table6[[#This Row],[Difference]],25),MOD(Table6[[#This Row],[Difference]],25)) -> 2.666666667 | G60: =IF(Table6[[#This Row],[Class]]=-1,Table6[[#This Row],[Remaining]],IF(Table6[[#This Row],[Class]]<-1,25,NA())) -> 2.666666667 | H60: =IF(Table6[[#This Row],[Class]]=-2,Table6[[#This Row],[Remaining]],IF(Table6[[#This Row],[Class]]<-2,25,NA())) ->  | I60: =IF(Table6[[#This Row],[Class]]=-3,Table6[[#This Row],[Remaining]],IF(Table6[[#This Row],[Class]]<-3,25,NA())) ->  | J60: =IF(Table6[[#This Row],[Class]]=-4,Table6[[#This Row],[Remaining]],IF(Table6[[#This Row],[Class]]<-4,25,NA())) ->  | K60: =IF(Table6[[#This Row],[Difference]]=100,0,NA()) ->  | L60: =IF(Table6[[#This Row],[Class]]=1,Table6[[#This Row],[Remaining]],IF(Table6[[#This Row],[Class]]>1,25,NA())) ->  | M60: =IF(Table6[[#This Row],[Class]]=2,Table6[[#This Row],[Remaining]],IF(Table6[[#This Row],[Class]]>2,25,NA())) ->  | N60: =IF(Table6[[#This Row],[Class]]=3,Table6[[#This Row],[Remaining]],IF(Table6[[#This Row],[Class]]>3,25,NA())) ->  | O60: =IF(Table6[[#This Row],[Class]]=4,Table6[[#This Row],[Remaining]],IF(Table6[[#This Row],[Class]]>4,25,NA())) ->  | P60: =IF(Table6[[#This Row],[Class]]=5,Table6[[#This Row],[Remaining]],IF(Table6[[#This Row],[Class]]>5,25,NA())) ->  | Q60: =IF(Table6[[#This Row],[Class]]=6,Table6[[#This Row],[Remaining]],IF(Table6[[#This Row],[Class]]>6,25,NA())) ->  | R60: =IF(Table6[[#This Row],[Class]]=7,Table6[[#This Row],[Remaining]],IF(Table6[[#This Row],[Class]]>7,25,NA())) ->  | S60: =IF(Table6[[#This Row],[Class]]=8,Table6[[#This Row],[Remaining]],IF(Table6[[#This Row],[Class]]>8,25,NA())) ->  | T60: =IF(Table6[[#This Row],[Class]]=9,Table6[[#This Row],[Remaining]],IF(Table6[[#This Row],[Class]]>9,25,NA())) ->  | U60: =Table6[[#This Row],[Difference]]-100 -> -2.666666667 | V60: =IF(Table6[[#This Row],[Diff1]]>=0,E60,NA()) ->  | W60: =IF(Table6[[#This Row],[Diff1]]<0,Table6[[#This Row],[Diff1]],NA()) -> -2.666666667
A61: LASST220000000000003-LA-Louisiana | B61: 1980-12-15 | C61: 7.5 | D61: 104.1666667 | E61: =QUOTIENT(Table6[[#This Row],[Difference]],25)+IF(Table6[[#This Row],[Difference]]<100,-4,-3) -> 1 | F61: =IF(Table6[[#This Row],[Class]]<0, 25-MOD(Table6[[#This Row],[Difference]],25),MOD(Table6[[#This Row],[Difference]],25)) -> 4.166666667 | G61: =IF(Table6[[#This Row],[Class]]=-1,Table6[[#This Row],[Remaining]],IF(Table6[[#This Row],[Class]]<-1,25,NA())) ->  | H61: =IF(Table6[[#This Row],[Class]]=-2,Table6[[#This Row],[Remaining]],IF(Table6[[#This Row],[Class]]<-2,25,NA())) ->  | I61: =IF(Table6[[#This Row],[Class]]=-3,Table6[[#This Row],[Remaining]],IF(Table6[[#This Row],[Class]]<-3,25,NA())) ->  | J61: =IF(Table6[[#This Row],[Class]]=-4,Table6[[#This Row],[Remaining]],IF(Table6[[#This Row],[Class]]<-4,25,NA())) ->  | K61: =IF(Table6[[#This Row],[Difference]]=100,0,NA()) ->  | L61: =IF(Table6[[#This Row],[Class]]=1,Table6[[#This Row],[Remaining]],IF(Table6[[#This Row],[Class]]>1,25,NA())) -> 4.166666667 | M61: =IF(Table6[[#This Row],[Class]]=2,Table6[[#This Row],[Remaining]],IF(Table6[[#This Row],[Class]]>2,25,NA())) ->  | N61: =IF(Table6[[#This Row],[Class]]=3,Table6[[#This Row],[Remaining]],IF(Table6[[#This Row],[Class]]>3,25,NA())) ->  | O61: =IF(Table6[[#This Row],[Class]]=4,Table6[[#This Row],[Remaining]],IF(Table6[[#This Row],[Class]]>4,25,NA())) ->  | P61: =IF(Table6[[#This Row],[Class]]=5,Table6[[#This Row],[Remaining]],IF(Table6[[#This Row],[Class]]>5,25,NA())) ->  | Q61: =IF(Table6[[#This Row],[Class]]=6,Table6[[#This Row],[Remaining]],IF(Table6[[#This Row],[Class]]>6,25,NA())) ->  | R61: =IF(Table6[[#This Row],[Class]]=7,Table6[[#This Row],[Remaining]],IF(Table6[[#This Row],[Class]]>7,25,NA())) ->  | S61: =IF(Table6[[#This Row],[Class]]=8,Table6[[#This Row],[Remaining]],IF(Table6[[#This Row],[Class]]>8,25,NA())) ->  | T61: =IF(Table6[[#This Row],[Class]]=9,Table6[[#This Row],[Remaining]],IF(Table6[[#This Row],[Class]]>9,25,NA())) ->  | U61: =Table6[[#This Row],[Difference]]-100 -> 4.166666667 | V61: =IF(Table6[[#This Row],[Diff1]]>=0,E61,NA()) -> 1 | W61: =IF(Table6[[#This Row],[Diff1]]<0,Table6[[#This Row],[Diff1]],NA()) -> 
A62: LASST220000000000003-LA-Louisiana | B62: 1981-01-15 | C62: 7.7 | D62: 102.6666667 | E62: =QUOTIENT(Table6[[#This Row],[Difference]],25)+IF(Table6[[#This Row],[Difference]]<100,-4,-3) -> 1 | F62: =IF(Table6[[#This Row],[Class]]<0, 25-MOD(Table6[[#This Row],[Difference]],25),MOD(Table6[[#This Row],[Difference]],25)) -> 2.666666667 | G62: =IF(Table6[[#This Row],[Class]]=-1,Table6[[#This Row],[Remaining]],IF(Table6[[#This Row],[Class]]<-1,25,NA())) ->  | H62: =IF(Table6[[#This Row],[Class]]=-2,Table6[[#This Row],[Remaining]],IF(Table6[[#This Row],[Class]]<-2,25,NA())) ->  | I62: =IF(Table6[[#This Row],[Class]]=-3,Table6[[#This Row],[Remaining]],IF(Table6[[#This Row],[Class]]<-3,25,NA())) ->  | J62: =IF(Table6[[#This Row],[Class]]=-4,Table6[[#This Row],[Remaining]],IF(Table6[[#This Row],[Class]]<-4,25,NA())) ->  | K62: =IF(Table6[[#This Row],[Difference]]=100,0,NA()) ->  | L62: =IF(Table6[[#This Row],[Class]]=1,Table6[[#This Row],[Remaining]],IF(Table6[[#This Row],[Class]]>1,25,NA())) -> 2.666666667 | M62: =IF(Table6[[#This Row],[Class]]=2,Table6[[#This Row],[Remaining]],IF(Table6[[#This Row],[Class]]>2,25,NA())) ->  | N62: =IF(Table6[[#This Row],[Class]]=3,Table6[[#This Row],[Remaining]],IF(Table6[[#This Row],[Class]]>3,25,NA())) ->  | O62: =IF(Table6[[#This Row],[Class]]=4,Table6[[#This Row],[Remaining]],IF(Table6[[#This Row],[Class]]>4,25,NA())) ->  | P62: =IF(Table6[[#This Row],[Class]]=5,Table6[[#This Row],[Remaining]],IF(Table6[[#This Row],[Class]]>5,25,NA())) ->  | Q62: =IF(Table6[[#This Row],[Class]]=6,Table6[[#This Row],[Remaining]],IF(Table6[[#This Row],[Class]]>6,25,NA())) ->  | R62: =IF(Table6[[#This Row],[Class]]=7,Table6[[#This Row],[Remaining]],IF(Table6[[#This Row],[Class]]>7,25,NA())) ->  | S62: =IF(Table6[[#This Row],[Class]]=8,Table6[[#This Row],[Remaining]],IF(Table6[[#This Row],[Class]]>8,25,NA())) ->  | T62: =IF(Table6[[#This Row],[Class]]=9,Table6[[#This Row],[Remaining]],IF(Table6[[#This Row],[Class]]>9,25,NA())) ->  | U62: =Table6[[#This Row],[Difference]]-100 -> 2.666666667 | V62: =IF(Table6[[#This Row],[Diff1]]>=0,E62,NA()) -> 1 | W62: =IF(Table6[[#This Row],[Diff1]]<0,Table6[[#This Row],[Diff1]],NA()) -> 
A63: LASST220000000000003-LA-Louisiana | B63: 1981-02-15 | C63: 7.8 | D63: 105.4054054 | E63: =QUOTIENT(Table6[[#This Row],[Difference]],25)+IF(Table6[[#This Row],[Difference]]<100,-4,-3) -> 1 | F63: =IF(Table6[[#This Row],[Class]]<0, 25-MOD(Table6[[#This Row],[Difference]],25),MOD(Table6[[#This Row],[Difference]],25)) -> 5.405405405 | G63: =IF(Table6[[#This Row],[Class]]=-1,Table6[[#This Row],[Remaining]],IF(Table6[[#This Row],[Class]]<-1,25,NA())) ->  | H63: =IF(Table6[[#This Row],[Class]]=-2,Table6[[#This Row],[Remaining]],IF(Table6[[#This Row],[Class]]<-2,25,NA())) ->  | I63: =IF(Table6[[#This Row],[Class]]=-3,Table6[[#This Row],[Remaining]],IF(Table6[[#This Row],[Class]]<-3,25,NA())) ->  | J63: =IF(Table6[[#This Row],[Class]]=-4,Table6[[#This Row],[Remaining]],IF(Table6[[#This Row],[Class]]<-4,25,NA())) ->  | K63: =IF(Table6[[#This Row],[Difference]]=100,0,NA()) ->  | L63: =IF(Table6[[#This Row],[Class]]=1,Table6[[#This Row],[Remaining]],IF(Table6[[#This Row],[Class]]>1,25,NA())) -> 5.405405405 | M63: =IF(Table6[[#This Row],[Class]]=2,Table6[[#This Row],[Remaining]],IF(Table6[[#This Row],[Class]]>2,25,NA())) ->  | N63: =IF(Table6[[#This Row],[Class]]=3,Table6[[#This Row],[Remaining]],IF(Table6[[#This Row],[Class]]>3,25,NA())) ->  | O63: =IF(Table6[[#This Row],[Class]]=4,Table6[[#This Row],[Remaining]],IF(Table6[[#This Row],[Class]]>4,25,NA())) ->  | P63: =IF(Table6[[#This Row],[Class]]=5,Table6[[#This Row],[Remaining]],IF(Table6[[#This Row],[Class]]>5,25,NA())) ->  | Q63: =IF(Table6[[#This Row],[Class]]=6,Table6[[#This Row],[Remaining]],IF(Table6[[#This Row],[Class]]>6,25,NA())) ->  | R63: =IF(Table6[[#This Row],[Class]]=7,Table6[[#This Row],[Remaining]],IF(Table6[[#This Row],[Class]]>7,25,NA())) ->  | S63: =IF(Table6[[#This Row],[Class]]=8,Table6[[#This Row],[Remaining]],IF(Table6[[#This Row],[Class]]>8,25,NA())) ->  | T63: =IF(Table6[[#This Row],[Class]]=9,Table6[[#This Row],[Remaining]],IF(Table6[[#This Row],[Class]]>9,25,NA())) ->  | U63: =Table6[[#This Row],[Difference]]-100 -> 5.405405405 | V63: =IF(Table6[[#This Row],[Diff1]]>=0,E63,NA()) -> 1 | W63: =IF(Table6[[#This Row],[Diff1]]<0,Table6[[#This Row],[Diff1]],NA()) -> 
A64: LASST220000000000003-LA-Louisiana | B64: 1981-03-15 | C64: 8 | D64: 108.1081081 | E64: =QUOTIENT(Table6[[#This Row],[Difference]],25)+IF(Table6[[#This Row],[Difference]]<100,-4,-3) -> 1 | F64: =IF(Table6[[#This Row],[Class]]<0, 25-MOD(Table6[[#This Row],[Difference]],25),MOD(Table6[[#This Row],[Difference]],25)) -> 8.108108108 | G64: =IF(Table6[[#This Row],[Class]]=-1,Table6[[#This Row],[Remaining]],IF(Table6[[#This Row],[Class]]<-1,25,NA())) ->  | H64: =IF(Table6[[#This Row],[Class]]=-2,Table6[[#This Row],[Remaining]],IF(Table6[[#This Row],[Class]]<-2,25,NA())) ->  | I64: =IF(Table6[[#This Row],[Class]]=-3,Table6[[#This Row],[Remaining]],IF(Table6[[#This Row],[Class]]<-3,25,NA())) ->  | J64: =IF(Table6[[#This Row],[Class]]=-4,Table6[[#This Row],[Remaining]],IF(Table6[[#This Row],[Class]]<-4,25,NA())) ->  | K64: =IF(Table6[[#This Row],[Difference]]=100,0,NA()) ->  | L64: =IF(Table6[[#This Row],[Class]]=1,Table6[[#This Row],[Remaining]],IF(Table6[[#This Row],[Class]]>1,25,NA())) -> 8.108108108 | M64: =IF(Table6[[#This Row],[Class]]=2,Table6[[#This Row],[Remaining]],IF(Table6[[#This Row],[Class]]>2,25,NA())) ->  | N64: =IF(Table6[[#This Row],[Class]]=3,Table6[[#This Row],[Remaining]],IF(Table6[[#This Row],[Class]]>3,25,NA())) ->  | O64: =IF(Table6[[#This Row],[Class]]=4,Table6[[#This Row],[Remaining]],IF(Table6[[#This Row],[Class]]>4,25,NA())) ->  | P64: =IF(Table6[[#This Row],[Class]]=5,Table6[[#This Row],[Remaining]],IF(Table6[[#This Row],[Class]]>5,25,NA())) ->  | Q64: =IF(Table6[[#This Row],[Class]]=6,Table6[[#This Row],[Remaining]],IF(Table6[[#This Row],[Class]]>6,25,NA())) ->  | R64: =IF(Table6[[#This Row],[Class]]=7,Table6[[#This Row],[Remaining]],IF(Table6[[#This Row],[Class]]>7,25,NA())) ->  | S64: =IF(Table6[[#This Row],[Class]]=8,Table6[[#This Row],[Remaining]],IF(Table6[[#This Row],[Class]]>8,25,NA())) ->  | T64: =IF(Table6[[#This Row],[Class]]=9,Table6[[#This Row],[Remaining]],IF(Table6[[#This Row],[Class]]>9,25,NA())) ->  | U64: =Table6[[#This Row],[Difference]]-100 -> 8.108108108 | V64: =IF(Table6[[#This Row],[Diff1]]>=0,E64,NA()) -> 1 | W64: =IF(Table6[[#This Row],[Diff1]]<0,Table6[[#This Row],[Diff1]],NA()) -> 
A65: LASST220000000000003-LA-Louisiana | B65: 1981-04-15 | C65: 8.1 | D65: 112.5 | E65: =QUOTIENT(Table6[[#This Row],[Difference]],25)+IF(Table6[[#This Row],[Difference]]<100,-4,-3) -> 1 | F65: =IF(Table6[[#This Row],[Class]]<0, 25-MOD(Table6[[#This Row],[Difference]],25),MOD(Table6[[#This Row],[Difference]],25)) -> 12.5 | G65: =IF(Table6[[#This Row],[Class]]=-1,Table6[[#This Row],[Remaining]],IF(Table6[[#This Row],[Class]]<-1,25,NA())) ->  | H65: =IF(Table6[[#This Row],[Class]]=-2,Table6[[#This Row],[Remaining]],IF(Table6[[#This Row],[Class]]<-2,25,NA())) ->  | I65: =IF(Table6[[#This Row],[Class]]=-3,Table6[[#This Row],[Remaining]],IF(Table6[[#This Row],[Class]]<-3,25,NA())) ->  | J65: =IF(Table6[[#This Row],[Class]]=-4,Table6[[#This Row],[Remaining]],IF(Table6[[#This Row],[Class]]<-4,25,NA())) ->  | K65: =IF(Table6[[#This Row],[Difference]]=100,0,NA()) ->  | L65: =IF(Table6[[#This Row],[Class]]=1,Table6[[#This Row],[Remaining]],IF(Table6[[#This Row],[Class]]>1,25,NA())) -> 12.5 | M65: =IF(Table6[[#This Row],[Class]]=2,Table6[[#This Row],[Remaining]],IF(Table6[[#This Row],[Class]]>2,25,NA())) ->  | N65: =IF(Table6[[#This Row],[Class]]=3,Table6[[#This Row],[Remaining]],IF(Table6[[#This Row],[Class]]>3,25,NA())) ->  | O65: =IF(Table6[[#This Row],[Class]]=4,Table6[[#This Row],[Remaining]],IF(Table6[[#This Row],[Class]]>4,25,NA())) ->  | P65: =IF(Table6[[#This Row],[Class]]=5,Table6[[#This Row],[Remaining]],IF(Table6[[#This Row],[Class]]>5,25,NA())) ->  | Q65: =IF(Table6[[#This Row],[Class]]=6,Table6[[#This Row],[Remaining]],IF(Table6[[#This Row],[Class]]>6,25,NA())) ->  | R65: =IF(Table6[[#This Row],[Class]]=7,Table6[[#This Row],[Remaining]],IF(Table6[[#This Row],[Class]]>7,25,NA())) ->  | S65: =IF(Table6[[#This Row],[Class]]=8,Table6[[#This Row],[Remaining]],IF(Table6[[#This Row],[Class]]>8,25,NA())) ->  | T65: =IF(Table6[[#This Row],[Class]]=9,Table6[[#This Row],[Remaining]],IF(Table6[[#This Row],[Class]]>9,25,NA())) ->  | U65: =Table6[[#This Row],[Difference]]-100 -> 12.5 | V65: =IF(Table6[[#This Row],[Diff1]]>=0,E65,NA()) -> 1 | W65: =IF(Table6[[#This Row],[Diff1]]<0,Table6[[#This Row],[Diff1]],NA()) -> 
A66: LASST220000000000003-LA-Louisiana | B66: 1981-05-15 | C66: 8.2 | D66: 109.3333333 | E66: =QUOTIENT(Table6[[#This Row],[Difference]],25)+IF(Table6[[#This Row],[Difference]]<100,-4,-3) -> 1 | F66: =IF(Table6[[#This Row],[Class]]<0, 25-MOD(Table6[[#This Row],[Difference]],25),MOD(Table6[[#This Row],[Difference]],25)) -> 9.333333333 | G66: =IF(Table6[[#This Row],[Class]]=-1,Table6[[#This Row],[Remaining]],IF(Table6[[#This Row],[Class]]<-1,25,NA())) ->  | H66: =IF(Table6[[#This Row],[Class]]=-2,Table6[[#This Row],[Remaining]],IF(Table6[[#This Row],[Class]]<-2,25,NA())) ->  | I66: =IF(Table6[[#This Row],[Class]]=-3,Table6[[#This Row],[Remaining]],IF(Table6[[#This Row],[Class]]<-3,25,NA())) ->  | J66: =IF(Table6[[#This Row],[Class]]=-4,Table6[[#This Row],[Remaining]],IF(Table6[[#This Row],[Class]]<-4,25,NA())) ->  | K66: =IF(Table6[[#This Row],[Difference]]=100,0,NA()) ->  | L66: =IF(Table6[[#This Row],[Class]]=1,Table6[[#This Row],[Remaining]],IF(Table6[[#This Row],[Class]]>1,25,NA())) -> 9.333333333 | M66: =IF(Table6[[#This Row],[Class]]=2,Table6[[#This Row],[Remaining]],IF(Table6[[#This Row],[Class]]>2,25,NA())) ->  | N66: =IF(Table6[[#This Row],[Class]]=3,Table6[[#This Row],[Remaining]],IF(Table6[[#This Row],[Class]]>3,25,NA())) ->  | O66: =IF(Table6[[#This Row],[Class]]=4,Table6[[#This Row],[Remaining]],IF(Table6[[#This Row],[Class]]>4,25,NA())) ->  | P66: =IF(Table6[[#This Row],[Class]]=5,Table6[[#This Row],[Remaining]],IF(Table6[[#This Row],[Class]]>5,25,NA())) ->  | Q66: =IF(Table6[[#This Row],[Class]]=6,Table6[[#This Row],[Remaining]],IF(Table6[[#This Row],[Class]]>6,25,NA())) ->  | R66: =IF(Table6[[#This Row],[Class]]=7,Table6[[#This Row],[Remaining]],IF(Table6[[#This Row],[Class]]>7,25,NA())) ->  | S66: =IF(Table6[[#This Row],[Class]]=8,Table6[[#This Row],[Remaining]],IF(Table6[[#This Row],[Class]]>8,25,NA())) ->  | T66: =IF(Table6[[#This Row],[Class]]=9,Table6[[#This Row],[Remaining]],IF(Table6[[#This Row],[Class]]>9,25,NA())) ->  | U66: =Table6[[#This Row],[Difference]]-100 -> 9.333333333 | V66: =IF(Table6[[#This Row],[Diff1]]>=0,E66,NA()) -> 1 | W66: =IF(Table6[[#This Row],[Diff1]]<0,Table6[[#This Row],[Diff1]],NA()) -> 
A67: LASST220000000000003-LA-Louisiana | B67: 1981-06-15 | C67: 8.3 | D67: 110.6666667 | E67: =QUOTIENT(Table6[[#This Row],[Difference]],25)+IF(Table6[[#This Row],[Difference]]<100,-4,-3) -> 1 | F67: =IF(Table6[[#This Row],[Class]]<0, 25-MOD(Table6[[#This Row],[Difference]],25),MOD(Table6[[#This Row],[Difference]],25)) -> 10.66666667 | G67: =IF(Table6[[#This Row],[Class]]=-1,Table6[[#This Row],[Remaining]],IF(Table6[[#This Row],[Class]]<-1,25,NA())) ->  | H67: =IF(Table6[[#This Row],[Class]]=-2,Table6[[#This Row],[Remaining]],IF(Table6[[#This Row],[Class]]<-2,25,NA())) ->  | I67: =IF(Table6[[#This Row],[Class]]=-3,Table6[[#This Row],[Remaining]],IF(Table6[[#This Row],[Class]]<-3,25,NA())) ->  | J67: =IF(Table6[[#This Row],[Class]]=-4,Table6[[#This Row],[Remaining]],IF(Table6[[#This Row],[Class]]<-4,25,NA())) ->  | K67: =IF(Table6[[#This Row],[Difference]]=100,0,NA()) ->  | L67: =IF(Table6[[#This Row],[Class]]=1,Table6[[#This Row],[Remaining]],IF(Table6[[#This Row],[Class]]>1,25,NA())) -> 10.66666667 | M67: =IF(Table6[[#This Row],[Class]]=2,Table6[[#This Row],[Remaining]],IF(Table6[[#This Row],[Class]]>2,25,NA())) ->  | N67: =IF(Table6[[#This Row],[Class]]=3,Table6[[#This Row],[Remaining]],IF(Table6[[#This Row],[Class]]>3,25,NA())) ->  | O67: =IF(Table6[[#This Row],[Class]]=4,Table6[[#This Row],[Remaining]],IF(Table6[[#This Row],[Class]]>4,25,NA())) ->  | P67: =IF(Table6[[#This Row],[Class]]=5,Table6[[#This Row],[Remaining]],IF(Table6[[#This Row],[Class]]>5,25,NA())) ->  | Q67: =IF(Table6[[#This Row],[Class]]=6,Table6[[#This Row],[Remaining]],IF(Table6[[#This Row],[Class]]>6,25,NA())) ->  | R67: =IF(Table6[[#This Row],[Class]]=7,Table6[[#This Row],[Remaining]],IF(Table6[[#This Row],[Class]]>7,25,NA())) ->  | S67: =IF(Table6[[#This Row],[Class]]=8,Table6[[#This Row],[Remaining]],IF(Table6[[#This Row],[Class]]>8,25,NA())) ->  | T67: =IF(Table6[[#This Row],[Class]]=9,Table6[[#This Row],[Remaining]],IF(Table6[[#This Row],[Class]]>9,25,NA())) ->  | U67: =Table6[[#This Row],[Difference]]-100 -> 10.66666667 | V67: =IF(Table6[[#This Row],[Diff1]]>=0,E67,NA()) -> 1 | W67: =IF(Table6[[#This Row],[Diff1]]<0,Table6[[#This Row],[Diff1]],NA()) -> 
A68: LASST220000000000003-LA-Louisiana | B68: 1981-07-15 | C68: 8.4 | D68: 116.6666667 | E68: =QUOTIENT(Table6[[#This Row],[Difference]],25)+IF(Table6[[#This Row],[Difference]]<100,-4,-3) -> 1 | F68: =IF(Table6[[#This Row],[Class]]<0, 25-MOD(Table6[[#This Row],[Difference]],25),MOD(Table6[[#This Row],[Difference]],25)) -> 16.66666667 | G68: =IF(Table6[[#This Row],[Class]]=-1,Table6[[#This Row],[Remaining]],IF(Table6[[#This Row],[Class]]<-1,25,NA())) ->  | H68: =IF(Table6[[#This Row],[Class]]=-2,Table6[[#This Row],[Remaining]],IF(Table6[[#This Row],[Class]]<-2,25,NA())) ->  | I68: =IF(Table6[[#This Row],[Class]]=-3,Table6[[#This Row],[Remaining]],IF(Table6[[#This Row],[Class]]<-3,25,NA())) ->  | J68: =IF(Table6[[#This Row],[Class]]=-4,Table6[[#This Row],[Remaining]],IF(Table6[[#This Row],[Class]]<-4,25,NA())) ->  | K68: =IF(Table6[[#This Row],[Difference]]=100,0,NA()) ->  | L68: =IF(Table6[[#This Row],[Class]]=1,Table6[[#This Row],[Remaining]],IF(Table6[[#This Row],[Class]]>1,25,NA())) -> 16.66666667 | M68: =IF(Table6[[#This Row],[Class]]=2,Table6[[#This Row],[Remaining]],IF(Table6[[#This Row],[Class]]>2,25,NA())) ->  | N68: =IF(Table6[[#This Row],[Class]]=3,Table6[[#This Row],[Remaining]],IF(Table6[[#This Row],[Class]]>3,25,NA())) ->  | O68: =IF(Table6[[#This Row],[Class]]=4,Table6[[#This Row],[Remaining]],IF(Table6[[#This Row],[Class]]>4,25,NA())) ->  | P68: =IF(Table6[[#This Row],[Class]]=5,Table6[[#This Row],[Remaining]],IF(Table6[[#This Row],[Class]]>5,25,NA())) ->  | Q68: =IF(Table6[[#This Row],[Class]]=6,Table6[[#This Row],[Remaining]],IF(Table6[[#This Row],[Class]]>6,25,NA())) ->  | R68: =IF(Table6[[#This Row],[Class]]=7,Table6[[#This Row],[Remaining]],IF(Table6[[#This Row],[Class]]>7,25,NA())) ->  | S68: =IF(Table6[[#This Row],[Class]]=8,Table6[[#This Row],[Remaining]],IF(Table6[[#This Row],[Class]]>8,25,NA())) ->  | T68: =IF(Table6[[#This Row],[Class]]=9,Table6[[#This Row],[Remaining]],IF(Table6[[#This Row],[Class]]>9,25,NA())) ->  | U68: =Table6[[#This Row],[Difference]]-100 -> 16.66666667 | V68: =IF(Table6[[#This Row],[Diff1]]>=0,E68,NA()) -> 1 | W68: =IF(Table6[[#This Row],[Diff1]]<0,Table6[[#This Row],[Diff1]],NA()) -> 
A69: LASST220000000000003-LA-Louisiana | B69: 1981-08-15 | C69: 8.5 | D69: 114.8648649 | E69: =QUOTIENT(Table6[[#This Row],[Difference]],25)+IF(Table6[[#This Row],[Difference]]<100,-4,-3) -> 1 | F69: =IF(Table6[[#This Row],[Class]]<0, 25-MOD(Table6[[#This Row],[Difference]],25),MOD(Table6[[#This Row],[Difference]],25)) -> 14.86486486 | G69: =IF(Table6[[#This Row],[Class]]=-1,Table6[[#This Row],[Remaining]],IF(Table6[[#This Row],[Class]]<-1,25,NA())) ->  | H69: =IF(Table6[[#This Row],[Class]]=-2,Table6[[#This Row],[Remaining]],IF(Table6[[#This Row],[Class]]<-2,25,NA())) ->  | I69: =IF(Table6[[#This Row],[Class]]=-3,Table6[[#This Row],[Remaining]],IF(Table6[[#This Row],[Class]]<-3,25,NA())) ->  | J69: =IF(Table6[[#This Row],[Class]]=-4,Table6[[#This Row],[Remaining]],IF(Table6[[#This Row],[Class]]<-4,25,NA())) ->  | K69: =IF(Table6[[#This Row],[Difference]]=100,0,NA()) ->  | L69: =IF(Table6[[#This Row],[Class]]=1,Table6[[#This Row],[Remaining]],IF(Table6[[#This Row],[Class]]>1,25,NA())) -> 14.86486486 | M69: =IF(Table6[[#This Row],[Class]]=2,Table6[[#This Row],[Remaining]],IF(Table6[[#This Row],[Class]]>2,25,NA())) ->  | N69: =IF(Table6[[#This Row],[Class]]=3,Table6[[#This Row],[Remaining]],IF(Table6[[#This Row],[Class]]>3,25,NA())) ->  | O69: =IF(Table6[[#This Row],[Class]]=4,Table6[[#This Row],[Remaining]],IF(Table6[[#This Row],[Class]]>4,25,NA())) ->  | P69: =IF(Table6[[#This Row],[Class]]=5,Table6[[#This Row],[Remaining]],IF(Table6[[#This Row],[Class]]>5,25,NA())) ->  | Q69: =IF(Table6[[#This Row],[Class]]=6,Table6[[#This Row],[Remaining]],IF(Table6[[#This Row],[Class]]>6,25,NA())) ->  | R69: =IF(Table6[[#This Row],[Class]]=7,Table6[[#This Row],[Remaining]],IF(Table6[[#This Row],[Class]]>7,25,NA())) ->  | S69: =IF(Table6[[#This Row],[Class]]=8,Table6[[#This Row],[Remaining]],IF(Table6[[#This Row],[Class]]>8,25,NA())) ->  | T69: =IF(Table6[[#This Row],[Class]]=9,Table6[[#This Row],[Remaining]],IF(Table6[[#This Row],[Class]]>9,25,NA())) ->  | U69: =Table6[[#This Row],[Difference]]-100 -> 14.86486486 | V69: =IF(Table6[[#This Row],[Diff1]]>=0,E69,NA()) -> 1 | W69: =IF(Table6[[#This Row],[Diff1]]<0,Table6[[#This Row],[Diff1]],NA()) -> 
A70: LASST220000000000003-LA-Louisiana | B70: 1981-09-15 | C70: 8.6 | D70: 113.1578947 | E70: =QUOTIENT(Table6[[#This Row],[Difference]],25)+IF(Table6[[#This Row],[Difference]]<100,-4,-3) -> 1 | F70: =IF(Table6[[#This Row],[Class]]<0, 25-MOD(Table6[[#This Row],[Difference]],25),MOD(Table6[[#This Row],[Difference]],25)) -> 13.15789474 | G70: =IF(Table6[[#This Row],[Class]]=-1,Table6[[#This Row],[Remaining]],IF(Table6[[#This Row],[Class]]<-1,25,NA())) ->  | H70: =IF(Table6[[#This Row],[Class]]=-2,Table6[[#This Row],[Remaining]],IF(Table6[[#This Row],[Class]]<-2,25,NA())) ->  | I70: =IF(Table6[[#This Row],[Class]]=-3,Table6[[#This Row],[Remaining]],IF(Table6[[#This Row],[Class]]<-3,25,NA())) ->  | J70: =IF(Table6[[#This Row],[Class]]=-4,Table6[[#This Row],[Remaining]],IF(Table6[[#This Row],[Class]]<-4,25,NA())) ->  | K70: =IF(Table6[[#This Row],[Difference]]=100,0,NA()) ->  | L70: =IF(Table6[[#This Row],[Class]]=1,Table6[[#This Row],[Remaining]],IF(Table6[[#This Row],[Class]]>1,25,NA())) -> 13.15789474 | M70: =IF(Table6[[#This Row],[Class]]=2,Table6[[#This Row],[Remaining]],IF(Table6[[#This Row],[Class]]>2,25,NA())) ->  | N70: =IF(Table6[[#This Row],[Class]]=3,Table6[[#This Row],[Remaining]],IF(Table6[[#This Row],[Class]]>3,25,NA())) ->  | O70: =IF(Table6[[#This Row],[Class]]=4,Table6[[#This Row],[Remaining]],IF(Table6[[#This Row],[Class]]>4,25,NA())) ->  | P70: =IF(Table6[[#This Row],[Class]]=5,Table6[[#This Row],[Remaining]],IF(Table6[[#This Row],[Class]]>5,25,NA())) ->  | Q70: =IF(Table6[[#This Row],[Class]]=6,Table6[[#This Row],[Remaining]],IF(Table6[[#This Row],[Class]]>6,25,NA())) ->  | R70: =IF(Table6[[#This Row],[Class]]=7,Table6[[#This Row],[Remaining]],IF(Table6[[#This Row],[Class]]>7,25,NA())) ->  | S70: =IF(Table6[[#This Row],[Class]]=8,Table6[[#This Row],[Remaining]],IF(Table6[[#This Row],[Class]]>8,25,NA())) ->  | T70: =IF(Table6[[#This Row],[Class]]=9,Table6[[#This Row],[Remaining]],IF(Table6[[#This Row],[Class]]>9,25,NA())) ->  | U70: =Table6[[#This Row],[Difference]]-100 -> 13.15789474 | V70: =IF(Table6[[#This Row],[Diff1]]>=0,E70,NA()) -> 1 | W70: =IF(Table6[[#This Row],[Diff1]]<0,Table6[[#This Row],[Diff1]],NA()) -> 
A71: LASST220000000000003-LA-Louisiana | B71: 1981-10-15 | C71: 8.8 | D71: 111.3924051 | E71: =QUOTIENT(Table6[[#This Row],[Difference]],25)+IF(Table6[[#This Row],[Difference]]<100,-4,-3) -> 1 | F71: =IF(Table6[[#This Row],[Class]]<0, 25-MOD(Table6[[#This Row],[Difference]],25),MOD(Table6[[#This Row],[Difference]],25)) -> 11.39240506 | G71: =IF(Table6[[#This Row],[Class]]=-1,Table6[[#This Row],[Remaining]],IF(Table6[[#This Row],[Class]]<-1,25,NA())) ->  | H71: =IF(Table6[[#This Row],[Class]]=-2,Table6[[#This Row],[Remaining]],IF(Table6[[#This Row],[Class]]<-2,25,NA())) ->  | I71: =IF(Table6[[#This Row],[Class]]=-3,Table6[[#This Row],[Remaining]],IF(Table6[[#This Row],[Class]]<-3,25,NA())) ->  | J71: =IF(Table6[[#This Row],[Class]]=-4,Table6[[#This Row],[Remaining]],IF(Table6[[#This Row],[Class]]<-4,25,NA())) ->  | K71: =IF(Table6[[#This Row],[Difference]]=100,0,NA()) ->  | L71: =IF(Table6[[#This Row],[Class]]=1,Table6[[#This Row],[Remaining]],IF(Table6[[#This Row],[Class]]>1,25,NA())) -> 11.39240506 | M71: =IF(Table6[[#This Row],[Class]]=2,Table6[[#This Row],[Remaining]],IF(Table6[[#This Row],[Class]]>2,25,NA())) ->  | N71: =IF(Table6[[#This Row],[Class]]=3,Table6[[#This Row],[Remaining]],IF(Table6[[#This Row],[Class]]>3,25,NA())) ->  | O71: =IF(Table6[[#This Row],[Class]]=4,Table6[[#This Row],[Remaining]],IF(Table6[[#This Row],[Class]]>4,25,NA())) ->  | P71: =IF(Table6[[#This Row],[Class]]=5,Table6[[#This Row],[Remaining]],IF(Table6[[#This Row],[Class]]>5,25,NA())) ->  | Q71: =IF(Table6[[#This Row],[Class]]=6,Table6[[#This Row],[Remaining]],IF(Table6[[#This Row],[Class]]>6,25,NA())) ->  | R71: =IF(Table6[[#This Row],[Class]]=7,Table6[[#This Row],[Remaining]],IF(Table6[[#This Row],[Class]]>7,25,NA())) ->  | S71: =IF(Table6[[#This Row],[Class]]=8,Table6[[#This Row],[Remaining]],IF(Table6[[#This Row],[Class]]>8,25,NA())) ->  | T71: =IF(Table6[[#This Row],[Class]]=9,Table6[[#This Row],[Remaining]],IF(Table6[[#This Row],[Class]]>9,25,NA())) ->  | U71: =Table6[[#This Row],[Difference]]-100 -> 11.39240506 | V71: =IF(Table6[[#This Row],[Diff1]]>=0,E71,NA()) -> 1 | W71: =IF(Table6[[#This Row],[Diff1]]<0,Table6[[#This Row],[Diff1]],NA()) -> 
A72: LASST220000000000003-LA-Louisiana | B72: 1981-11-15 | C72: 9 | D72: 108.4337349 | E72: =QUOTIENT(Table6[[#This Row],[Difference]],25)+IF(Table6[[#This Row],[Difference]]<100,-4,-3) -> 1 | F72: =IF(Table6[[#This Row],[Class]]<0, 25-MOD(Table6[[#This Row],[Difference]],25),MOD(Table6[[#This Row],[Difference]],25)) -> 8.43373494 | G72: =IF(Table6[[#This Row],[Class]]=-1,Table6[[#This Row],[Remaining]],IF(Table6[[#This Row],[Class]]<-1,25,NA())) ->  | H72: =IF(Table6[[#This Row],[Class]]=-2,Table6[[#This Row],[Remaining]],IF(Table6[[#This Row],[Class]]<-2,25,NA())) ->  | I72: =IF(Table6[[#This Row],[Class]]=-3,Table6[[#This Row],[Remaining]],IF(Table6[[#This Row],[Class]]<-3,25,NA())) ->  | J72: =IF(Table6[[#This Row],[Class]]=-4,Table6[[#This Row],[Remaining]],IF(Table6[[#This Row],[Class]]<-4,25,NA())) ->  | K72: =IF(Table6[[#This Row],[Difference]]=100,0,NA()) ->  | L72: =IF(Table6[[#This Row],[Class]]=1,Table6[[#This Row],[Remaining]],IF(Table6[[#This Row],[Class]]>1,25,NA())) -> 8.43373494 | M72: =IF(Table6[[#This Row],[Class]]=2,Table6[[#This Row],[Remaining]],IF(Table6[[#This Row],[Class]]>2,25,NA())) ->  | N72: =IF(Table6[[#This Row],[Class]]=3,Table6[[#This Row],[Remaining]],IF(Table6[[#This Row],[Class]]>3,25,NA())) ->  | O72: =IF(Table6[[#This Row],[Class]]=4,Table6[[#This Row],[Remaining]],IF(Table6[[#This Row],[Class]]>4,25,NA())) ->  | P72: =IF(Table6[[#This Row],[Class]]=5,Table6[[#This Row],[Remaining]],IF(Table6[[#This Row],[Class]]>5,25,NA())) ->  | Q72: =IF(Table6[[#This Row],[Class]]=6,Table6[[#This Row],[Remaining]],IF(Table6[[#This Row],[Class]]>6,25,NA())) ->  | R72: =IF(Table6[[#This Row],[Class]]=7,Table6[[#This Row],[Remaining]],IF(Table6[[#This Row],[Class]]>7,25,NA())) ->  | S72: =IF(Table6[[#This Row],[Class]]=8,Table6[[#This Row],[Remaining]],IF(Table6[[#This Row],[Class]]>8,25,NA())) ->  | T72: =IF(Table6[[#This Row],[Class]]=9,Table6[[#This Row],[Remaining]],IF(Table6[[#This Row],[Class]]>9,25,NA())) ->  | U72: =Table6[[#This Row],[Difference]]-100 -> 8.43373494 | V72: =IF(Table6[[#This Row],[Diff1]]>=0,E72,NA()) -> 1 | W72: =IF(Table6[[#This Row],[Diff1]]<0,Table6[[#This Row],[Diff1]],NA()) -> 
A73: LASST220000000000003-LA-Louisiana | B73: 1981-12-15 | C73: 9.2 | D73: 108.2352941 | E73: =QUOTIENT(Table6[[#This Row],[Difference]],25)+IF(Table6[[#This Row],[Difference]]<100,-4,-3) -> 1 | F73: =IF(Table6[[#This Row],[Class]]<0, 25-MOD(Table6[[#This Row],[Difference]],25),MOD(Table6[[#This Row],[Difference]],25)) -> 8.235294118 | G73: =IF(Table6[[#This Row],[Class]]=-1,Table6[[#This Row],[Remaining]],IF(Table6[[#This Row],[Class]]<-1,25,NA())) ->  | H73: =IF(Table6[[#This Row],[Class]]=-2,Table6[[#This Row],[Remaining]],IF(Table6[[#This Row],[Class]]<-2,25,NA())) ->  | I73: =IF(Table6[[#This Row],[Class]]=-3,Table6[[#This Row],[Remaining]],IF(Table6[[#This Row],[Class]]<-3,25,NA())) ->  | J73: =IF(Table6[[#This Row],[Class]]=-4,Table6[[#This Row],[Remaining]],IF(Table6[[#This Row],[Class]]<-4,25,NA())) ->  | K73: =IF(Table6[[#This Row],[Difference]]=100,0,NA()) ->  | L73: =IF(Table6[[#This Row],[Class]]=1,Table6[[#This Row],[Remaining]],IF(Table6[[#This Row],[Class]]>1,25,NA())) -> 8.235294118 | M73: =IF(Table6[[#This Row],[Class]]=2,Table6[[#This Row],[Remaining]],IF(Table6[[#This Row],[Class]]>2,25,NA())) ->  | N73: =IF(Table6[[#This Row],[Class]]=3,Table6[[#This Row],[Remaining]],IF(Table6[[#This Row],[Class]]>3,25,NA())) ->  | O73: =IF(Table6[[#This Row],[Class]]=4,Table6[[#This Row],[Remaining]],IF(Table6[[#This Row],[Class]]>4,25,NA())) ->  | P73: =IF(Table6[[#This Row],[Class]]=5,Table6[[#This Row],[Remaining]],IF(Table6[[#This Row],[Class]]>5,25,NA())) ->  | Q73: =IF(Table6[[#This Row],[Class]]=6,Table6[[#This Row],[Remaining]],IF(Table6[[#This Row],[Class]]>6,25,NA())) ->  | R73: =IF(Table6[[#This Row],[Class]]=7,Table6[[#This Row],[Remaining]],IF(Table6[[#This Row],[Class]]>7,25,NA())) ->  | S73: =IF(Table6[[#This Row],[Class]]=8,Table6[[#This Row],[Remaining]],IF(Table6[[#This Row],[Class]]>8,25,NA())) ->  | T73: =IF(Table6[[#This Row],[Class]]=9,Table6[[#This Row],[Remaining]],IF(Table6[[#This Row],[Class]]>9,25,NA())) ->  | U73: =Table6[[#This Row],[Difference]]-100 -> 8.235294118 | V73: =IF(Table6[[#This Row],[Diff1]]>=0,E73,NA()) -> 1 | W73: =IF(Table6[[#This Row],[Diff1]]<0,Table6[[#This Row],[Diff1]],NA()) -> 
A74: LASST220000000000003-LA-Louisiana | B74: 1982-01-15 | C74: 9.4 | D74: 109.3023256 | E74: =QUOTIENT(Table6[[#This Row],[Difference]],25)+IF(Table6[[#This Row],[Difference]]<100,-4,-3) -> 1 | F74: =IF(Table6[[#This Row],[Class]]<0, 25-MOD(Table6[[#This Row],[Difference]],25),MOD(Table6[[#This Row],[Difference]],25)) -> 9.302325581 | G74: =IF(Table6[[#This Row],[Class]]=-1,Table6[[#This Row],[Remaining]],IF(Table6[[#This Row],[Class]]<-1,25,NA())) ->  | H74: =IF(Table6[[#This Row],[Class]]=-2,Table6[[#This Row],[Remaining]],IF(Table6[[#This Row],[Class]]<-2,25,NA())) ->  | I74: =IF(Table6[[#This Row],[Class]]=-3,Table6[[#This Row],[Remaining]],IF(Table6[[#This Row],[Class]]<-3,25,NA())) ->  | J74: =IF(Table6[[#This Row],[Class]]=-4,Table6[[#This Row],[Remaining]],IF(Table6[[#This Row],[Class]]<-4,25,NA())) ->  | K74: =IF(Table6[[#This Row],[Difference]]=100,0,NA()) ->  | L74: =IF(Table6[[#This Row],[Class]]=1,Table6[[#This Row],[Remaining]],IF(Table6[[#This Row],[Class]]>1,25,NA())) -> 9.302325581 | M74: =IF(Table6[[#This Row],[Class]]=2,Table6[[#This Row],[Remaining]],IF(Table6[[#This Row],[Class]]>2,25,NA())) ->  | N74: =IF(Table6[[#This Row],[Class]]=3,Table6[[#This Row],[Remaining]],IF(Table6[[#This Row],[Class]]>3,25,NA())) ->  | O74: =IF(Table6[[#This Row],[Class]]=4,Table6[[#This Row],[Remaining]],IF(Table6[[#This Row],[Class]]>4,25,NA())) ->  | P74: =IF(Table6[[#This Row],[Class]]=5,Table6[[#This Row],[Remaining]],IF(Table6[[#This Row],[Class]]>5,25,NA())) ->  | Q74: =IF(Table6[[#This Row],[Class]]=6,Table6[[#This Row],[Remaining]],IF(Table6[[#This Row],[Class]]>6,25,NA())) ->  | R74: =IF(Table6[[#This Row],[Class]]=7,Table6[[#This Row],[Remaining]],IF(Table6[[#This Row],[Class]]>7,25,NA())) ->  | S74: =IF(Table6[[#This Row],[Class]]=8,Table6[[#This Row],[Remaining]],IF(Table6[[#This Row],[Class]]>8,25,NA())) ->  | T74: =IF(Table6[[#This Row],[Class]]=9,Table6[[#This Row],[Remaining]],IF(Table6[[#This Row],[Class]]>9,25,NA())) ->  | U74: =Table6[[#This Row],[Difference]]-100 -> 9.302325581 | V74: =IF(Table6[[#This Row],[Diff1]]>=0,E74,NA()) -> 1 | W74: =IF(Table6[[#This Row],[Diff1]]<0,Table6[[#This Row],[Diff1]],NA()) -> 
A75: LASST220000000000003-LA-Louisiana | B75: 1982-02-15 | C75: 9.6 | D75: 107.8651685 | E75: =QUOTIENT(Table6[[#This Row],[Difference]],25)+IF(Table6[[#This Row],[Difference]]<100,-4,-3) -> 1 | F75: =IF(Table6[[#This Row],[Class]]<0, 25-MOD(Table6[[#This Row],[Difference]],25),MOD(Table6[[#This Row],[Difference]],25)) -> 7.865168539 | G75: =IF(Table6[[#This Row],[Class]]=-1,Table6[[#This Row],[Remaining]],IF(Table6[[#This Row],[Class]]<-1,25,NA())) ->  | H75: =IF(Table6[[#This Row],[Class]]=-2,Table6[[#This Row],[Remaining]],IF(Table6[[#This Row],[Class]]<-2,25,NA())) ->  | I75: =IF(Table6[[#This Row],[Class]]=-3,Table6[[#This Row],[Remaining]],IF(Table6[[#This Row],[Class]]<-3,25,NA())) ->  | J75: =IF(Table6[[#This Row],[Class]]=-4,Table6[[#This Row],[Remaining]],IF(Table6[[#This Row],[Class]]<-4,25,NA())) ->  | K75: =IF(Table6[[#This Row],[Difference]]=100,0,NA()) ->  | L75: =IF(Table6[[#This Row],[Class]]=1,Table6[[#This Row],[Remaining]],IF(Table6[[#This Row],[Class]]>1,25,NA())) -> 7.865168539 | M75: =IF(Table6[[#This Row],[Class]]=2,Table6[[#This Row],[Remaining]],IF(Table6[[#This Row],[Class]]>2,25,NA())) ->  | N75: =IF(Table6[[#This Row],[Class]]=3,Table6[[#This Row],[Remaining]],IF(Table6[[#This Row],[Class]]>3,25,NA())) ->  | O75: =IF(Table6[[#This Row],[Class]]=4,Table6[[#This Row],[Remaining]],IF(Table6[[#This Row],[Class]]>4,25,NA())) ->  | P75: =IF(Table6[[#This Row],[Class]]=5,Table6[[#This Row],[Remaining]],IF(Table6[[#This Row],[Class]]>5,25,NA())) ->  | Q75: =IF(Table6[[#This Row],[Class]]=6,Table6[[#This Row],[Remaining]],IF(Table6[[#This Row],[Class]]>6,25,NA())) ->  | R75: =IF(Table6[[#This Row],[Class]]=7,Table6[[#This Row],[Remaining]],IF(Table6[[#This Row],[Class]]>7,25,NA())) ->  | S75: =IF(Table6[[#This Row],[Class]]=8,Table6[[#This Row],[Remaining]],IF(Table6[[#This Row],[Class]]>8,25,NA())) ->  | T75: =IF(Table6[[#This Row],[Class]]=9,Table6[[#This Row],[Remaining]],IF(Table6[[#This Row],[Class]]>9,25,NA())) ->  | U75: =Table6[[#This Row],[Difference]]-100 -> 7.865168539 | V75: =IF(Table6[[#This Row],[Diff1]]>=0,E75,NA()) -> 1 | W75: =IF(Table6[[#This Row],[Diff1]]<0,Table6[[#This Row],[Diff1]],NA()) -> 
A76: LASST220000000000003-LA-Louisiana | B76: 1982-03-15 | C76: 9.8 | D76: 108.8888889 | E76: =QUOTIENT(Table6[[#This Row],[Difference]],25)+IF(Table6[[#This Row],[Difference]]<100,-4,-3) -> 1 | F76: =IF(Table6[[#This Row],[Class]]<0, 25-MOD(Table6[[#This Row],[Difference]],25),MOD(Table6[[#This Row],[Difference]],25)) -> 8.888888889 | G76: =IF(Table6[[#This Row],[Class]]=-1,Table6[[#This Row],[Remaining]],IF(Table6[[#This Row],[Class]]<-1,25,NA())) ->  | H76: =IF(Table6[[#This Row],[Class]]=-2,Table6[[#This Row],[Remaining]],IF(Table6[[#This Row],[Class]]<-2,25,NA())) ->  | I76: =IF(Table6[[#This Row],[Class]]=-3,Table6[[#This Row],[Remaining]],IF(Table6[[#This Row],[Class]]<-3,25,NA())) ->  | J76: =IF(Table6[[#This Row],[Class]]=-4,Table6[[#This Row],[Remaining]],IF(Table6[[#This Row],[Class]]<-4,25,NA())) ->  | K76: =IF(Table6[[#This Row],[Difference]]=100,0,NA()) ->  | L76: =IF(Table6[[#This Row],[Class]]=1,Table6[[#This Row],[Remaining]],IF(Table6[[#This Row],[Class]]>1,25,NA())) -> 8.888888889 | M76: =IF(Table6[[#This Row],[Class]]=2,Table6[[#This Row],[Remaining]],IF(Table6[[#This Row],[Class]]>2,25,NA())) ->  | N76: =IF(Table6[[#This Row],[Class]]=3,Table6[[#This Row],[Remaining]],IF(Table6[[#This Row],[Class]]>3,25,NA())) ->  | O76: =IF(Table6[[#This Row],[Class]]=4,Table6[[#This Row],[Remaining]],IF(Table6[[#This Row],[Class]]>4,25,NA())) ->  | P76: =IF(Table6[[#This Row],[Class]]=5,Table6[[#This Row],[Remaining]],IF(Table6[[#This Row],[Class]]>5,25,NA())) ->  | Q76: =IF(Table6[[#This Row],[Class]]=6,Table6[[#This Row],[Remaining]],IF(Table6[[#This Row],[Class]]>6,25,NA())) ->  | R76: =IF(Table6[[#This Row],[Class]]=7,Table6[[#This Row],[Remaining]],IF(Table6[[#This Row],[Class]]>7,25,NA())) ->  | S76: =IF(Table6[[#This Row],[Class]]=8,Table6[[#This Row],[Remaining]],IF(Table6[[#This Row],[Class]]>8,25,NA())) ->  | T76: =IF(Table6[[#This Row],[Class]]=9,Table6[[#This Row],[Remaining]],IF(Table6[[#This Row],[Class]]>9,25,NA())) ->  | U76: =Table6[[#This Row],[Difference]]-100 -> 8.888888889 | V76: =IF(Table6[[#This Row],[Diff1]]>=0,E76,NA()) -> 1 | W76: =IF(Table6[[#This Row],[Diff1]]<0,Table6[[#This Row],[Diff1]],NA()) -> 
A77: LASST220000000000003-LA-Louisiana | B77: 1982-04-15 | C77: 9.9 | D77: 106.4516129 | E77: =QUOTIENT(Table6[[#This Row],[Difference]],25)+IF(Table6[[#This Row],[Difference]]<100,-4,-3) -> 1 | F77: =IF(Table6[[#This Row],[Class]]<0, 25-MOD(Table6[[#This Row],[Difference]],25),MOD(Table6[[#This Row],[Difference]],25)) -> 6.451612903 | G77: =IF(Table6[[#This Row],[Class]]=-1,Table6[[#This Row],[Remaining]],IF(Table6[[#This Row],[Class]]<-1,25,NA())) ->  | H77: =IF(Table6[[#This Row],[Class]]=-2,Table6[[#This Row],[Remaining]],IF(Table6[[#This Row],[Class]]<-2,25,NA())) ->  | I77: =IF(Table6[[#This Row],[Class]]=-3,Table6[[#This Row],[Remaining]],IF(Table6[[#This Row],[Class]]<-3,25,NA())) ->  | J77: =IF(Table6[[#This Row],[Class]]=-4,Table6[[#This Row],[Remaining]],IF(Table6[[#This Row],[Class]]<-4,25,NA())) ->  | K77: =IF(Table6[[#This Row],[Difference]]=100,0,NA()) ->  | L77: =IF(Table6[[#This Row],[Class]]=1,Table6[[#This Row],[Remaining]],IF(Table6[[#This Row],[Class]]>1,25,NA())) -> 6.451612903 | M77: =IF(Table6[[#This Row],[Class]]=2,Table6[[#This Row],[Remaining]],IF(Table6[[#This Row],[Class]]>2,25,NA())) ->  | N77: =IF(Table6[[#This Row],[Class]]=3,Table6[[#This Row],[Remaining]],IF(Table6[[#This Row],[Class]]>3,25,NA())) ->  | O77: =IF(Table6[[#This Row],[Class]]=4,Table6[[#This Row],[Remaining]],IF(Table6[[#This Row],[Class]]>4,25,NA())) ->  | P77: =IF(Table6[[#This Row],[Class]]=5,Table6[[#This Row],[Remaining]],IF(Table6[[#This Row],[Class]]>5,25,NA())) ->  | Q77: =IF(Table6[[#This Row],[Class]]=6,Table6[[#This Row],[Remaining]],IF(Table6[[#This Row],[Class]]>6,25,NA())) ->  | R77: =IF(Table6[[#This Row],[Class]]=7,Table6[[#This Row],[Remaining]],IF(Table6[[#This Row],[Class]]>7,25,NA())) ->  | S77: =IF(Table6[[#This Row],[Class]]=8,Table6[[#This Row],[Remaining]],IF(Table6[[#This Row],[Class]]>8,25,NA())) ->  | T77: =IF(Table6[[#This Row],[Class]]=9,Table6[[#This Row],[Remaining]],IF(Table6[[#This Row],[Class]]>9,25,NA())) ->  | U77: =Table6[[#This Row],[Difference]]-100 -> 6.451612903 | V77: =IF(Table6[[#This Row],[Diff1]]>=0,E77,NA()) -> 1 | W77: =IF(Table6[[#This Row],[Diff1]]<0,Table6[[#This Row],[Diff1]],NA()) -> 
A78: LASST220000000000003-LA-Louisiana | B78: 1982-05-15 | C78: 10 | D78: 106.3829787 | E78: =QUOTIENT(Table6[[#This Row],[Difference]],25)+IF(Table6[[#This Row],[Difference]]<100,-4,-3) -> 1 | F78: =IF(Table6[[#This Row],[Class]]<0, 25-MOD(Table6[[#This Row],[Difference]],25),MOD(Table6[[#This Row],[Difference]],25)) -> 6.382978723 | G78: =IF(Table6[[#This Row],[Class]]=-1,Table6[[#This Row],[Remaining]],IF(Table6[[#This Row],[Class]]<-1,25,NA())) ->  | H78: =IF(Table6[[#This Row],[Class]]=-2,Table6[[#This Row],[Remaining]],IF(Table6[[#This Row],[Class]]<-2,25,NA())) ->  | I78: =IF(Table6[[#This Row],[Class]]=-3,Table6[[#This Row],[Remaining]],IF(Table6[[#This Row],[Class]]<-3,25,NA())) ->  | J78: =IF(Table6[[#This Row],[Class]]=-4,Table6[[#This Row],[Remaining]],IF(Table6[[#This Row],[Class]]<-4,25,NA())) ->  | K78: =IF(Table6[[#This Row],[Difference]]=100,0,NA()) ->  | L78: =IF(Table6[[#This Row],[Class]]=1,Table6[[#This Row],[Remaining]],IF(Table6[[#This Row],[Class]]>1,25,NA())) -> 6.382978723 | M78: =IF(Table6[[#This Row],[Class]]=2,Table6[[#This Row],[Remaining]],IF(Table6[[#This Row],[Class]]>2,25,NA())) ->  | N78: =IF(Table6[[#This Row],[Class]]=3,Table6[[#This Row],[Remaining]],IF(Table6[[#This Row],[Class]]>3,25,NA())) ->  | O78: =IF(Table6[[#This Row],[Class]]=4,Table6[[#This Row],[Remaining]],IF(Table6[[#This Row],[Class]]>4,25,NA())) ->  | P78: =IF(Table6[[#This Row],[Class]]=5,Table6[[#This Row],[Remaining]],IF(Table6[[#This Row],[Class]]>5,25,NA())) ->  | Q78: =IF(Table6[[#This Row],[Class]]=6,Table6[[#This Row],[Remaining]],IF(Table6[[#This Row],[Class]]>6,25,NA())) ->  | R78: =IF(Table6[[#This Row],[Class]]=7,Table6[[#This Row],[Remaining]],IF(Table6[[#This Row],[Class]]>7,25,NA())) ->  | S78: =IF(Table6[[#This Row],[Class]]=8,Table6[[#This Row],[Remaining]],IF(Table6[[#This Row],[Class]]>8,25,NA())) ->  | T78: =IF(Table6[[#This Row],[Class]]=9,Table6[[#This Row],[Remaining]],IF(Table6[[#This Row],[Class]]>9,25,NA())) ->  | U78: =Table6[[#This Row],[Difference]]-100 -> 6.382978723 | V78: =IF(Table6[[#This Row],[Diff1]]>=0,E78,NA()) -> 1 | W78: =IF(Table6[[#This Row],[Diff1]]<0,Table6[[#This Row],[Diff1]],NA()) -> 
A79: LASST220000000000003-LA-Louisiana | B79: 1982-06-15 | C79: 10.1 | D79: 105.2083333 | E79: =QUOTIENT(Table6[[#This Row],[Difference]],25)+IF(Table6[[#This Row],[Difference]]<100,-4,-3) -> 1 | F79: =IF(Table6[[#This Row],[Class]]<0, 25-MOD(Table6[[#This Row],[Difference]],25),MOD(Table6[[#This Row],[Difference]],25)) -> 5.208333333 | G79: =IF(Table6[[#This Row],[Class]]=-1,Table6[[#This Row],[Remaining]],IF(Table6[[#This Row],[Class]]<-1,25,NA())) ->  | H79: =IF(Table6[[#This Row],[Class]]=-2,Table6[[#This Row],[Remaining]],IF(Table6[[#This Row],[Class]]<-2,25,NA())) ->  | I79: =IF(Table6[[#This Row],[Class]]=-3,Table6[[#This Row],[Remaining]],IF(Table6[[#This Row],[Class]]<-3,25,NA())) ->  | J79: =IF(Table6[[#This Row],[Class]]=-4,Table6[[#This Row],[Remaining]],IF(Table6[[#This Row],[Class]]<-4,25,NA())) ->  | K79: =IF(Table6[[#This Row],[Difference]]=100,0,NA()) ->  | L79: =IF(Table6[[#This Row],[Class]]=1,Table6[[#This Row],[Remaining]],IF(Table6[[#This Row],[Class]]>1,25,NA())) -> 5.208333333 | M79: =IF(Table6[[#This Row],[Class]]=2,Table6[[#This Row],[Remaining]],IF(Table6[[#This Row],[Class]]>2,25,NA())) ->  | N79: =IF(Table6[[#This Row],[Class]]=3,Table6[[#This Row],[Remaining]],IF(Table6[[#This Row],[Class]]>3,25,NA())) ->  | O79: =IF(Table6[[#This Row],[Class]]=4,Table6[[#This Row],[Remaining]],IF(Table6[[#This Row],[Class]]>4,25,NA())) ->  | P79: =IF(Table6[[#This Row],[Class]]=5,Table6[[#This Row],[Remaining]],IF(Table6[[#This Row],[Class]]>5,25,NA())) ->  | Q79: =IF(Table6[[#This Row],[Class]]=6,Table6[[#This Row],[Remaining]],IF(Table6[[#This Row],[Class]]>6,25,NA())) ->  | R79: =IF(Table6[[#This Row],[Class]]=7,Table6[[#This Row],[Remaining]],IF(Table6[[#This Row],[Class]]>7,25,NA())) ->  | S79: =IF(Table6[[#This Row],[Class]]=8,Table6[[#This Row],[Remaining]],IF(Table6[[#This Row],[Class]]>8,25,NA())) ->  | T79: =IF(Table6[[#This Row],[Class]]=9,Table6[[#This Row],[Remaining]],IF(Table6[[#This Row],[Class]]>9,25,NA())) ->  | U79: =Table6[[#This Row],[Difference]]-100 -> 5.208333333 | V79: =IF(Table6[[#This Row],[Diff1]]>=0,E79,NA()) -> 1 | W79: =IF(Table6[[#This Row],[Diff1]]<0,Table6[[#This Row],[Diff1]],NA()) -> 
A80: LASST220000000000003-LA-Louisiana | B80: 1982-07-15 | C80: 10.3 | D80: 105.1020408 | E80: =QUOTIENT(Table6[[#This Row],[Difference]],25)+IF(Table6[[#This Row],[Difference]]<100,-4,-3) -> 1 | F80: =IF(Table6[[#This Row],[Class]]<0, 25-MOD(Table6[[#This Row],[Difference]],25),MOD(Table6[[#This Row],[Difference]],25)) -> 5.102040816 | G80: =IF(Table6[[#This Row],[Class]]=-1,Table6[[#This Row],[Remaining]],IF(Table6[[#This Row],[Class]]<-1,25,NA())) ->  | H80: =IF(Table6[[#This Row],[Class]]=-2,Table6[[#This Row],[Remaining]],IF(Table6[[#This Row],[Class]]<-2,25,NA())) ->  | I80: =IF(Table6[[#This Row],[Class]]=-3,Table6[[#This Row],[Remaining]],IF(Table6[[#This Row],[Class]]<-3,25,NA())) ->  | J80: =IF(Table6[[#This Row],[Class]]=-4,Table6[[#This Row],[Remaining]],IF(Table6[[#This Row],[Class]]<-4,25,NA())) ->  | K80: =IF(Table6[[#This Row],[Difference]]=100,0,NA()) ->  | L80: =IF(Table6[[#This Row],[Class]]=1,Table6[[#This Row],[Remaining]],IF(Table6[[#This Row],[Class]]>1,25,NA())) -> 5.102040816 | M80: =IF(Table6[[#This Row],[Class]]=2,Table6[[#This Row],[Remaining]],IF(Table6[[#This Row],[Class]]>2,25,NA())) ->  | N80: =IF(Table6[[#This Row],[Class]]=3,Table6[[#This Row],[Remaining]],IF(Table6[[#This Row],[Class]]>3,25,NA())) ->  | O80: =IF(Table6[[#This Row],[Class]]=4,Table6[[#This Row],[Remaining]],IF(Table6[[#This Row],[Class]]>4,25,NA())) ->  | P80: =IF(Table6[[#This Row],[Class]]=5,Table6[[#This Row],[Remaining]],IF(Table6[[#This Row],[Class]]>5,25,NA())) ->  | Q80: =IF(Table6[[#This Row],[Class]]=6,Table6[[#This Row],[Remaining]],IF(Table6[[#This Row],[Class]]>6,25,NA())) ->  | R80: =IF(Table6[[#This Row],[Class]]=7,Table6[[#This Row],[Remaining]],IF(Table6[[#This Row],[Class]]>7,25,NA())) ->  | S80: =IF(Table6[[#This Row],[Class]]=8,Table6[[#This Row],[Remaining]],IF(Table6[[#This Row],[Class]]>8,25,NA())) ->  | T80: =IF(Table6[[#This Row],[Class]]=9,Table6[[#This Row],[Remaining]],IF(Table6[[#This Row],[Class]]>9,25,NA())) ->  | U80: =Table6[[#This Row],[Difference]]-100 -> 5.102040816 | V80: =IF(Table6[[#This Row],[Diff1]]>=0,E80,NA()) -> 1 | W80: =IF(Table6[[#This Row],[Diff1]]<0,Table6[[#This Row],[Diff1]],NA()) -> 
A81: LASST220000000000003-LA-Louisiana | B81: 1982-08-15 | C81: 10.4 | D81: 106.122449 | E81: =QUOTIENT(Table6[[#This Row],[Difference]],25)+IF(Table6[[#This Row],[Difference]]<100,-4,-3) -> 1 | F81: =IF(Table6[[#This Row],[Class]]<0, 25-MOD(Table6[[#This Row],[Difference]],25),MOD(Table6[[#This Row],[Difference]],25)) -> 6.12244898 | G81: =IF(Table6[[#This Row],[Class]]=-1,Table6[[#This Row],[Remaining]],IF(Table6[[#This Row],[Class]]<-1,25,NA())) ->  | H81: =IF(Table6[[#This Row],[Class]]=-2,Table6[[#This Row],[Remaining]],IF(Table6[[#This Row],[Class]]<-2,25,NA())) ->  | I81: =IF(Table6[[#This Row],[Class]]=-3,Table6[[#This Row],[Remaining]],IF(Table6[[#This Row],[Class]]<-3,25,NA())) ->  | J81: =IF(Table6[[#This Row],[Class]]=-4,Table6[[#This Row],[Remaining]],IF(Table6[[#This Row],[Class]]<-4,25,NA())) ->  | K81: =IF(Table6[[#This Row],[Difference]]=100,0,NA()) ->  | L81: =IF(Table6[[#This Row],[Class]]=1,Table6[[#This Row],[Remaining]],IF(Table6[[#This Row],[Class]]>1,25,NA())) -> 6.12244898 | M81: =IF(Table6[[#This Row],[Class]]=2,Table6[[#This Row],[Remaining]],IF(Table6[[#This Row],[Class]]>2,25,NA())) ->  | N81: =IF(Table6[[#This Row],[Class]]=3,Table6[[#This Row],[Remaining]],IF(Table6[[#This Row],[Class]]>3,25,NA())) ->  | O81: =IF(Table6[[#This Row],[Class]]=4,Table6[[#This Row],[Remaining]],IF(Table6[[#This Row],[Class]]>4,25,NA())) ->  | P81: =IF(Table6[[#This Row],[Class]]=5,Table6[[#This Row],[Remaining]],IF(Table6[[#This Row],[Class]]>5,25,NA())) ->  | Q81: =IF(Table6[[#This Row],[Class]]=6,Table6[[#This Row],[Remaining]],IF(Table6[[#This Row],[Class]]>6,25,NA())) ->  | R81: =IF(Table6[[#This Row],[Class]]=7,Table6[[#This Row],[Remaining]],IF(Table6[[#This Row],[Class]]>7,25,NA())) ->  | S81: =IF(Table6[[#This Row],[Class]]=8,Table6[[#This Row],[Remaining]],IF(Table6[[#This Row],[Class]]>8,25,NA())) ->  | T81: =IF(Table6[[#This Row],[Class]]=9,Table6[[#This Row],[Remaining]],IF(Table6[[#This Row],[Class]]>9,25,NA())) ->  | U81: =Table6[[#This Row],[Difference]]-100 -> 6.12244898 | V81: =IF(Table6[[#This Row],[Diff1]]>=0,E81,NA()) -> 1 | W81: =IF(Table6[[#This Row],[Diff1]]<0,Table6[[#This Row],[Diff1]],NA()) -> 
A82: LASST220000000000003-LA-Louisiana | B82: 1982-09-15 | C82: 10.6 | D82: 104.950495 | E82: =QUOTIENT(Table6[[#This Row],[Difference]],25)+IF(Table6[[#This Row],[Difference]]<100,-4,-3) -> 1 | F82: =IF(Table6[[#This Row],[Class]]<0, 25-MOD(Table6[[#This Row],[Difference]],25),MOD(Table6[[#This Row],[Difference]],25)) -> 4.95049505 | G82: =IF(Table6[[#This Row],[Class]]=-1,Table6[[#This Row],[Remaining]],IF(Table6[[#This Row],[Class]]<-1,25,NA())) ->  | H82: =IF(Table6[[#This Row],[Class]]=-2,Table6[[#This Row],[Remaining]],IF(Table6[[#This Row],[Class]]<-2,25,NA())) ->  | I82: =IF(Table6[[#This Row],[Class]]=-3,Table6[[#This Row],[Remaining]],IF(Table6[[#This Row],[Class]]<-3,25,NA())) ->  | J82: =IF(Table6[[#This Row],[Class]]=-4,Table6[[#This Row],[Remaining]],IF(Table6[[#This Row],[Class]]<-4,25,NA())) ->  | K82: =IF(Table6[[#This Row],[Difference]]=100,0,NA()) ->  | L82: =IF(Table6[[#This Row],[Class]]=1,Table6[[#This Row],[Remaining]],IF(Table6[[#This Row],[Class]]>1,25,NA())) -> 4.95049505 | M82: =IF(Table6[[#This Row],[Class]]=2,Table6[[#This Row],[Remaining]],IF(Table6[[#This Row],[Class]]>2,25,NA())) ->  | N82: =IF(Table6[[#This Row],[Class]]=3,Table6[[#This Row],[Remaining]],IF(Table6[[#This Row],[Class]]>3,25,NA())) ->  | O82: =IF(Table6[[#This Row],[Class]]=4,Table6[[#This Row],[Remaining]],IF(Table6[[#This Row],[Class]]>4,25,NA())) ->  | P82: =IF(Table6[[#This Row],[Class]]=5,Table6[[#This Row],[Remaining]],IF(Table6[[#This Row],[Class]]>5,25,NA())) ->  | Q82: =IF(Table6[[#This Row],[Class]]=6,Table6[[#This Row],[Remaining]],IF(Table6[[#This Row],[Class]]>6,25,NA())) ->  | R82: =IF(Table6[[#This Row],[Class]]=7,Table6[[#This Row],[Remaining]],IF(Table6[[#This Row],[Class]]>7,25,NA())) ->  | S82: =IF(Table6[[#This Row],[Class]]=8,Table6[[#This Row],[Remaining]],IF(Table6[[#This Row],[Class]]>8,25,NA())) ->  | T82: =IF(Table6[[#This Row],[Class]]=9,Table6[[#This Row],[Remaining]],IF(Table6[[#This Row],[Class]]>9,25,NA())) ->  | U82: =Table6[[#This Row],[Difference]]-100 -> 4.95049505 | V82: =IF(Table6[[#This Row],[Diff1]]>=0,E82,NA()) -> 1 | W82: =IF(Table6[[#This Row],[Diff1]]<0,Table6[[#This Row],[Diff1]],NA()) -> 
A83: LASST220000000000003-LA-Louisiana | B83: 1982-10-15 | C83: 10.8 | D83: 103.8461538 | E83: =QUOTIENT(Table6[[#This Row],[Difference]],25)+IF(Table6[[#This Row],[Difference]]<100,-4,-3) -> 1 | F83: =IF(Table6[[#This Row],[Class]]<0, 25-MOD(Table6[[#This Row],[Difference]],25),MOD(Table6[[#This Row],[Difference]],25)) -> 3.846153846 | G83: =IF(Table6[[#This Row],[Class]]=-1,Table6[[#This Row],[Remaining]],IF(Table6[[#This Row],[Class]]<-1,25,NA())) ->  | H83: =IF(Table6[[#This Row],[Class]]=-2,Table6[[#This Row],[Remaining]],IF(Table6[[#This Row],[Class]]<-2,25,NA())) ->  | I83: =IF(Table6[[#This Row],[Class]]=-3,Table6[[#This Row],[Remaining]],IF(Table6[[#This Row],[Class]]<-3,25,NA())) ->  | J83: =IF(Table6[[#This Row],[Class]]=-4,Table6[[#This Row],[Remaining]],IF(Table6[[#This Row],[Class]]<-4,25,NA())) ->  | K83: =IF(Table6[[#This Row],[Difference]]=100,0,NA()) ->  | L83: =IF(Table6[[#This Row],[Class]]=1,Table6[[#This Row],[Remaining]],IF(Table6[[#This Row],[Class]]>1,25,NA())) -> 3.846153846 | M83: =IF(Table6[[#This Row],[Class]]=2,Table6[[#This Row],[Remaining]],IF(Table6[[#This Row],[Class]]>2,25,NA())) ->  | N83: =IF(Table6[[#This Row],[Class]]=3,Table6[[#This Row],[Remaining]],IF(Table6[[#This Row],[Class]]>3,25,NA())) ->  | O83: =IF(Table6[[#This Row],[Class]]=4,Table6[[#This Row],[Remaining]],IF(Table6[[#This Row],[Class]]>4,25,NA())) ->  | P83: =IF(Table6[[#This Row],[Class]]=5,Table6[[#This Row],[Remaining]],IF(Table6[[#This Row],[Class]]>5,25,NA())) ->  | Q83: =IF(Table6[[#This Row],[Class]]=6,Table6[[#This Row],[Remaining]],IF(Table6[[#This Row],[Class]]>6,25,NA())) ->  | R83: =IF(Table6[[#This Row],[Class]]=7,Table6[[#This Row],[Remaining]],IF(Table6[[#This Row],[Class]]>7,25,NA())) ->  | S83: =IF(Table6[[#This Row],[Class]]=8,Table6[[#This Row],[Remaining]],IF(Table6[[#This Row],[Class]]>8,25,NA())) ->  | T83: =IF(Table6[[#This Row],[Class]]=9,Table6[[#This Row],[Remaining]],IF(Table6[[#This Row],[Class]]>9,25,NA())) ->  | U83: =Table6[[#This Row],[Difference]]-100 -> 3.846153846 | V83: =IF(Table6[[#This Row],[Diff1]]>=0,E83,NA()) -> 1 | W83: =IF(Table6[[#This Row],[Diff1]]<0,Table6[[#This Row],[Diff1]],NA()) -> 
A84: LASST220000000000003-LA-Louisiana | B84: 1982-11-15 | C84: 11.1 | D84: 102.7777778 | E84: =QUOTIENT(Table6[[#This Row],[Difference]],25)+IF(Table6[[#This Row],[Difference]]<100,-4,-3) -> 1 | F84: =IF(Table6[[#This Row],[Class]]<0, 25-MOD(Table6[[#This Row],[Difference]],25),MOD(Table6[[#This Row],[Difference]],25)) -> 2.777777778 | G84: =IF(Table6[[#This Row],[Class]]=-1,Table6[[#This Row],[Remaining]],IF(Table6[[#This Row],[Class]]<-1,25,NA())) ->  | H84: =IF(Table6[[#This Row],[Class]]=-2,Table6[[#This Row],[Remaining]],IF(Table6[[#This Row],[Class]]<-2,25,NA())) ->  | I84: =IF(Table6[[#This Row],[Class]]=-3,Table6[[#This Row],[Remaining]],IF(Table6[[#This Row],[Class]]<-3,25,NA())) ->  | J84: =IF(Table6[[#This Row],[Class]]=-4,Table6[[#This Row],[Remaining]],IF(Table6[[#This Row],[Class]]<-4,25,NA())) ->  | K84: =IF(Table6[[#This Row],[Difference]]=100,0,NA()) ->  | L84: =IF(Table6[[#This Row],[Class]]=1,Table6[[#This Row],[Remaining]],IF(Table6[[#This Row],[Class]]>1,25,NA())) -> 2.777777778 | M84: =IF(Table6[[#This Row],[Class]]=2,Table6[[#This Row],[Remaining]],IF(Table6[[#This Row],[Class]]>2,25,NA())) ->  | N84: =IF(Table6[[#This Row],[Class]]=3,Table6[[#This Row],[Remaining]],IF(Table6[[#This Row],[Class]]>3,25,NA())) ->  | O84: =IF(Table6[[#This Row],[Class]]=4,Table6[[#This Row],[Remaining]],IF(Table6[[#This Row],[Class]]>4,25,NA())) ->  | P84: =IF(Table6[[#This Row],[Class]]=5,Table6[[#This Row],[Remaining]],IF(Table6[[#This Row],[Class]]>5,25,NA())) ->  | Q84: =IF(Table6[[#This Row],[Class]]=6,Table6[[#This Row],[Remaining]],IF(Table6[[#This Row],[Class]]>6,25,NA())) ->  | R84: =IF(Table6[[#This Row],[Class]]=7,Table6[[#This Row],[Remaining]],IF(Table6[[#This Row],[Class]]>7,25,NA())) ->  | S84: =IF(Table6[[#This Row],[Class]]=8,Table6[[#This Row],[Remaining]],IF(Table6[[#This Row],[Class]]>8,25,NA())) ->  | T84: =IF(Table6[[#This Row],[Class]]=9,Table6[[#This Row],[Remaining]],IF(Table6[[#This Row],[Class]]>9,25,NA())) ->  | U84: =Table6[[#This Row],[Difference]]-100 -> 2.777777778 | V84: =IF(Table6[[#This Row],[Diff1]]>=0,E84,NA()) -> 1 | W84: =IF(Table6[[#This Row],[Diff1]]<0,Table6[[#This Row],[Diff1]],NA()) -> 
A85: LASST220000000000003-LA-Louisiana | B85: 1982-12-15 | C85: 11.3 | D85: 104.6296296 | E85: =QUOTIENT(Table6[[#This Row],[Difference]],25)+IF(Table6[[#This Row],[Difference]]<100,-4,-3) -> 1 | F85: =IF(Table6[[#This Row],[Class]]<0, 25-MOD(Table6[[#This Row],[Difference]],25),MOD(Table6[[#This Row],[Difference]],25)) -> 4.62962963 | G85: =IF(Table6[[#This Row],[Class]]=-1,Table6[[#This Row],[Remaining]],IF(Table6[[#This Row],[Class]]<-1,25,NA())) ->  | H85: =IF(Table6[[#This Row],[Class]]=-2,Table6[[#This Row],[Remaining]],IF(Table6[[#This Row],[Class]]<-2,25,NA())) ->  | I85: =IF(Table6[[#This Row],[Class]]=-3,Table6[[#This Row],[Remaining]],IF(Table6[[#This Row],[Class]]<-3,25,NA())) ->  | J85: =IF(Table6[[#This Row],[Class]]=-4,Table6[[#This Row],[Remaining]],IF(Table6[[#This Row],[Class]]<-4,25,NA())) ->  | K85: =IF(Table6[[#This Row],[Difference]]=100,0,NA()) ->  | L85: =IF(Table6[[#This Row],[Class]]=1,Table6[[#This Row],[Remaining]],IF(Table6[[#This Row],[Class]]>1,25,NA())) -> 4.62962963 | M85: =IF(Table6[[#This Row],[Class]]=2,Table6[[#This Row],[Remaining]],IF(Table6[[#This Row],[Class]]>2,25,NA())) ->  | N85: =IF(Table6[[#This Row],[Class]]=3,Table6[[#This Row],[Remaining]],IF(Table6[[#This Row],[Class]]>3,25,NA())) ->  | O85: =IF(Table6[[#This Row],[Class]]=4,Table6[[#This Row],[Remaining]],IF(Table6[[#This Row],[Class]]>4,25,NA())) ->  | P85: =IF(Table6[[#This Row],[Class]]=5,Table6[[#This Row],[Remaining]],IF(Table6[[#This Row],[Class]]>5,25,NA())) ->  | Q85: =IF(Table6[[#This Row],[Class]]=6,Table6[[#This Row],[Remaining]],IF(Table6[[#This Row],[Class]]>6,25,NA())) ->  | R85: =IF(Table6[[#This Row],[Class]]=7,Table6[[#This Row],[Remaining]],IF(Table6[[#This Row],[Class]]>7,25,NA())) ->  | S85: =IF(Table6[[#This Row],[Class]]=8,Table6[[#This Row],[Remaining]],IF(Table6[[#This Row],[Class]]>8,25,NA())) ->  | T85: =IF(Table6[[#This Row],[Class]]=9,Table6[[#This Row],[Remaining]],IF(Table6[[#This Row],[Class]]>9,25,NA())) ->  | U85: =Table6[[#This Row],[Difference]]-100 -> 4.62962963 | V85: =IF(Table6[[#This Row],[Diff1]]>=0,E85,NA()) -> 1 | W85: =IF(Table6[[#This Row],[Diff1]]<0,Table6[[#This Row],[Diff1]],NA()) -> 
A86: LASST220000000000003-LA-Louisiana | B86: 1983-01-15 | C86: 11.6 | D86: 111.5384615 | E86: =QUOTIENT(Table6[[#This Row],[Difference]],25)+IF(Table6[[#This Row],[Difference]]<100,-4,-3) -> 1 | F86: =IF(Table6[[#This Row],[Class]]<0, 25-MOD(Table6[[#This Row],[Difference]],25),MOD(Table6[[#This Row],[Difference]],25)) -> 11.53846154 | G86: =IF(Table6[[#This Row],[Class]]=-1,Table6[[#This Row],[Remaining]],IF(Table6[[#This Row],[Class]]<-1,25,NA())) ->  | H86: =IF(Table6[[#This Row],[Class]]=-2,Table6[[#This Row],[Remaining]],IF(Table6[[#This Row],[Class]]<-2,25,NA())) ->  | I86: =IF(Table6[[#This Row],[Class]]=-3,Table6[[#This Row],[Remaining]],IF(Table6[[#This Row],[Class]]<-3,25,NA())) ->  | J86: =IF(Table6[[#This Row],[Class]]=-4,Table6[[#This Row],[Remaining]],IF(Table6[[#This Row],[Class]]<-4,25,NA())) ->  | K86: =IF(Table6[[#This Row],[Difference]]=100,0,NA()) ->  | L86: =IF(Table6[[#This Row],[Class]]=1,Table6[[#This Row],[Remaining]],IF(Table6[[#This Row],[Class]]>1,25,NA())) -> 11.53846154 | M86: =IF(Table6[[#This Row],[Class]]=2,Table6[[#This Row],[Remaining]],IF(Table6[[#This Row],[Class]]>2,25,NA())) ->  | N86: =IF(Table6[[#This Row],[Class]]=3,Table6[[#This Row],[Remaining]],IF(Table6[[#This Row],[Class]]>3,25,NA())) ->  | O86: =IF(Table6[[#This Row],[Class]]=4,Table6[[#This Row],[Remaining]],IF(Table6[[#This Row],[Class]]>4,25,NA())) ->  | P86: =IF(Table6[[#This Row],[Class]]=5,Table6[[#This Row],[Remaining]],IF(Table6[[#This Row],[Class]]>5,25,NA())) ->  | Q86: =IF(Table6[[#This Row],[Class]]=6,Table6[[#This Row],[Remaining]],IF(Table6[[#This Row],[Class]]>6,25,NA())) ->  | R86: =IF(Table6[[#This Row],[Class]]=7,Table6[[#This Row],[Remaining]],IF(Table6[[#This Row],[Class]]>7,25,NA())) ->  | S86: =IF(Table6[[#This Row],[Class]]=8,Table6[[#This Row],[Remaining]],IF(Table6[[#This Row],[Class]]>8,25,NA())) ->  | T86: =IF(Table6[[#This Row],[Class]]=9,Table6[[#This Row],[Remaining]],IF(Table6[[#This Row],[Class]]>9,25,NA())) ->  | U86: =Table6[[#This Row],[Difference]]-100 -> 11.53846154 | V86: =IF(Table6[[#This Row],[Diff1]]>=0,E86,NA()) -> 1 | W86: =IF(Table6[[#This Row],[Diff1]]<0,Table6[[#This Row],[Diff1]],NA()) -> 
A87: LASST220000000000003-LA-Louisiana | B87: 1983-02-15 | C87: 11.9 | D87: 114.4230769 | E87: =QUOTIENT(Table6[[#This Row],[Difference]],25)+IF(Table6[[#This Row],[Difference]]<100,-4,-3) -> 1 | F87: =IF(Table6[[#This Row],[Class]]<0, 25-MOD(Table6[[#This Row],[Difference]],25),MOD(Table6[[#This Row],[Difference]],25)) -> 14.42307692 | G87: =IF(Table6[[#This Row],[Class]]=-1,Table6[[#This Row],[Remaining]],IF(Table6[[#This Row],[Class]]<-1,25,NA())) ->  | H87: =IF(Table6[[#This Row],[Class]]=-2,Table6[[#This Row],[Remaining]],IF(Table6[[#This Row],[Class]]<-2,25,NA())) ->  | I87: =IF(Table6[[#This Row],[Class]]=-3,Table6[[#This Row],[Remaining]],IF(Table6[[#This Row],[Class]]<-3,25,NA())) ->  | J87: =IF(Table6[[#This Row],[Class]]=-4,Table6[[#This Row],[Remaining]],IF(Table6[[#This Row],[Class]]<-4,25,NA())) ->  | K87: =IF(Table6[[#This Row],[Difference]]=100,0,NA()) ->  | L87: =IF(Table6[[#This Row],[Class]]=1,Table6[[#This Row],[Remaining]],IF(Table6[[#This Row],[Class]]>1,25,NA())) -> 14.42307692 | M87: =IF(Table6[[#This Row],[Class]]=2,Table6[[#This Row],[Remaining]],IF(Table6[[#This Row],[Class]]>2,25,NA())) ->  | N87: =IF(Table6[[#This Row],[Class]]=3,Table6[[#This Row],[Remaining]],IF(Table6[[#This Row],[Class]]>3,25,NA())) ->  | O87: =IF(Table6[[#This Row],[Class]]=4,Table6[[#This Row],[Remaining]],IF(Table6[[#This Row],[Class]]>4,25,NA())) ->  | P87: =IF(Table6[[#This Row],[Class]]=5,Table6[[#This Row],[Remaining]],IF(Table6[[#This Row],[Class]]>5,25,NA())) ->  | Q87: =IF(Table6[[#This Row],[Class]]=6,Table6[[#This Row],[Remaining]],IF(Table6[[#This Row],[Class]]>6,25,NA())) ->  | R87: =IF(Table6[[#This Row],[Class]]=7,Table6[[#This Row],[Remaining]],IF(Table6[[#This Row],[Class]]>7,25,NA())) ->  | S87: =IF(Table6[[#This Row],[Class]]=8,Table6[[#This Row],[Remaining]],IF(Table6[[#This Row],[Class]]>8,25,NA())) ->  | T87: =IF(Table6[[#This Row],[Class]]=9,Table6[[#This Row],[Remaining]],IF(Table6[[#This Row],[Class]]>9,25,NA())) ->  | U87: =Table6[[#This Row],[Difference]]-100 -> 14.42307692 | V87: =IF(Table6[[#This Row],[Diff1]]>=0,E87,NA()) -> 1 | W87: =IF(Table6[[#This Row],[Diff1]]<0,Table6[[#This Row],[Diff1]],NA()) -> 
A88: LASST220000000000003-LA-Louisiana | B88: 1983-03-15 | C88: 12 | D88: 116.5048544 | E88: =QUOTIENT(Table6[[#This Row],[Difference]],25)+IF(Table6[[#This Row],[Difference]]<100,-4,-3) -> 1 | F88: =IF(Table6[[#This Row],[Class]]<0, 25-MOD(Table6[[#This Row],[Difference]],25),MOD(Table6[[#This Row],[Difference]],25)) -> 16.50485437 | G88: =IF(Table6[[#This Row],[Class]]=-1,Table6[[#This Row],[Remaining]],IF(Table6[[#This Row],[Class]]<-1,25,NA())) ->  | H88: =IF(Table6[[#This Row],[Class]]=-2,Table6[[#This Row],[Remaining]],IF(Table6[[#This Row],[Class]]<-2,25,NA())) ->  | I88: =IF(Table6[[#This Row],[Class]]=-3,Table6[[#This Row],[Remaining]],IF(Table6[[#This Row],[Class]]<-3,25,NA())) ->  | J88: =IF(Table6[[#This Row],[Class]]=-4,Table6[[#This Row],[Remaining]],IF(Table6[[#This Row],[Class]]<-4,25,NA())) ->  | K88: =IF(Table6[[#This Row],[Difference]]=100,0,NA()) ->  | L88: =IF(Table6[[#This Row],[Class]]=1,Table6[[#This Row],[Remaining]],IF(Table6[[#This Row],[Class]]>1,25,NA())) -> 16.50485437 | M88: =IF(Table6[[#This Row],[Class]]=2,Table6[[#This Row],[Remaining]],IF(Table6[[#This Row],[Class]]>2,25,NA())) ->  | N88: =IF(Table6[[#This Row],[Class]]=3,Table6[[#This Row],[Remaining]],IF(Table6[[#This Row],[Class]]>3,25,NA())) ->  | O88: =IF(Table6[[#This Row],[Class]]=4,Table6[[#This Row],[Remaining]],IF(Table6[[#This Row],[Class]]>4,25,NA())) ->  | P88: =IF(Table6[[#This Row],[Class]]=5,Table6[[#This Row],[Remaining]],IF(Table6[[#This Row],[Class]]>5,25,NA())) ->  | Q88: =IF(Table6[[#This Row],[Class]]=6,Table6[[#This Row],[Remaining]],IF(Table6[[#This Row],[Class]]>6,25,NA())) ->  | R88: =IF(Table6[[#This Row],[Class]]=7,Table6[[#This Row],[Remaining]],IF(Table6[[#This Row],[Class]]>7,25,NA())) ->  | S88: =IF(Table6[[#This Row],[Class]]=8,Table6[[#This Row],[Remaining]],IF(Table6[[#This Row],[Class]]>8,25,NA())) ->  | T88: =IF(Table6[[#This Row],[Class]]=9,Table6[[#This Row],[Remaining]],IF(Table6[[#This Row],[Class]]>9,25,NA())) ->  | U88: =Table6[[#This Row],[Difference]]-100 -> 16.50485437 | V88: =IF(Table6[[#This Row],[Diff1]]>=0,E88,NA()) -> 1 | W88: =IF(Table6[[#This Row],[Diff1]]<0,Table6[[#This Row],[Diff1]],NA()) -> 
A89: LASST220000000000003-LA-Louisiana | B89: 1983-04-15 | C89: 12.2 | D89: 119.6078431 | E89: =QUOTIENT(Table6[[#This Row],[Difference]],25)+IF(Table6[[#This Row],[Difference]]<100,-4,-3) -> 1 | F89: =IF(Table6[[#This Row],[Class]]<0, 25-MOD(Table6[[#This Row],[Difference]],25),MOD(Table6[[#This Row],[Difference]],25)) -> 19.60784314 | G89: =IF(Table6[[#This Row],[Class]]=-1,Table6[[#This Row],[Remaining]],IF(Table6[[#This Row],[Class]]<-1,25,NA())) ->  | H89: =IF(Table6[[#This Row],[Class]]=-2,Table6[[#This Row],[Remaining]],IF(Table6[[#This Row],[Class]]<-2,25,NA())) ->  | I89: =IF(Table6[[#This Row],[Class]]=-3,Table6[[#This Row],[Remaining]],IF(Table6[[#This Row],[Class]]<-3,25,NA())) ->  | J89: =IF(Table6[[#This Row],[Class]]=-4,Table6[[#This Row],[Remaining]],IF(Table6[[#This Row],[Class]]<-4,25,NA())) ->  | K89: =IF(Table6[[#This Row],[Difference]]=100,0,NA()) ->  | L89: =IF(Table6[[#This Row],[Class]]=1,Table6[[#This Row],[Remaining]],IF(Table6[[#This Row],[Class]]>1,25,NA())) -> 19.60784314 | M89: =IF(Table6[[#This Row],[Class]]=2,Table6[[#This Row],[Remaining]],IF(Table6[[#This Row],[Class]]>2,25,NA())) ->  | N89: =IF(Table6[[#This Row],[Class]]=3,Table6[[#This Row],[Remaining]],IF(Table6[[#This Row],[Class]]>3,25,NA())) ->  | O89: =IF(Table6[[#This Row],[Class]]=4,Table6[[#This Row],[Remaining]],IF(Table6[[#This Row],[Class]]>4,25,NA())) ->  | P89: =IF(Table6[[#This Row],[Class]]=5,Table6[[#This Row],[Remaining]],IF(Table6[[#This Row],[Class]]>5,25,NA())) ->  | Q89: =IF(Table6[[#This Row],[Class]]=6,Table6[[#This Row],[Remaining]],IF(Table6[[#This Row],[Class]]>6,25,NA())) ->  | R89: =IF(Table6[[#This Row],[Class]]=7,Table6[[#This Row],[Remaining]],IF(Table6[[#This Row],[Class]]>7,25,NA())) ->  | S89: =IF(Table6[[#This Row],[Class]]=8,Table6[[#This Row],[Remaining]],IF(Table6[[#This Row],[Class]]>8,25,NA())) ->  | T89: =IF(Table6[[#This Row],[Class]]=9,Table6[[#This Row],[Remaining]],IF(Table6[[#This Row],[Class]]>9,25,NA())) ->  | U89: =Table6[[#This Row],[Difference]]-100 -> 19.60784314 | V89: =IF(Table6[[#This Row],[Diff1]]>=0,E89,NA()) -> 1 | W89: =IF(Table6[[#This Row],[Diff1]]<0,Table6[[#This Row],[Diff1]],NA()) -> 
A90: LASST220000000000003-LA-Louisiana | B90: 1983-05-15 | C90: 12.2 | D90: 120.7920792 | E90: =QUOTIENT(Table6[[#This Row],[Difference]],25)+IF(Table6[[#This Row],[Difference]]<100,-4,-3) -> 1 | F90: =IF(Table6[[#This Row],[Class]]<0, 25-MOD(Table6[[#This Row],[Difference]],25),MOD(Table6[[#This Row],[Difference]],25)) -> 20.79207921 | G90: =IF(Table6[[#This Row],[Class]]=-1,Table6[[#This Row],[Remaining]],IF(Table6[[#This Row],[Class]]<-1,25,NA())) ->  | H90: =IF(Table6[[#This Row],[Class]]=-2,Table6[[#This Row],[Remaining]],IF(Table6[[#This Row],[Class]]<-2,25,NA())) ->  | I90: =IF(Table6[[#This Row],[Class]]=-3,Table6[[#This Row],[Remaining]],IF(Table6[[#This Row],[Class]]<-3,25,NA())) ->  | J90: =IF(Table6[[#This Row],[Class]]=-4,Table6[[#This Row],[Remaining]],IF(Table6[[#This Row],[Class]]<-4,25,NA())) ->  | K90: =IF(Table6[[#This Row],[Difference]]=100,0,NA()) ->  | L90: =IF(Table6[[#This Row],[Class]]=1,Table6[[#This Row],[Remaining]],IF(Table6[[#This Row],[Class]]>1,25,NA())) -> 20.79207921 | M90: =IF(Table6[[#This Row],[Class]]=2,Table6[[#This Row],[Remaining]],IF(Table6[[#This Row],[Class]]>2,25,NA())) ->  | N90: =IF(Table6[[#This Row],[Class]]=3,Table6[[#This Row],[Remaining]],IF(Table6[[#This Row],[Class]]>3,25,NA())) ->  | O90: =IF(Table6[[#This Row],[Class]]=4,Table6[[#This Row],[Remaining]],IF(Table6[[#This Row],[Class]]>4,25,NA())) ->  | P90: =IF(Table6[[#This Row],[Class]]=5,Table6[[#This Row],[Remaining]],IF(Table6[[#This Row],[Class]]>5,25,NA())) ->  | Q90: =IF(Table6[[#This Row],[Class]]=6,Table6[[#This Row],[Remaining]],IF(Table6[[#This Row],[Class]]>6,25,NA())) ->  | R90: =IF(Table6[[#This Row],[Class]]=7,Table6[[#This Row],[Remaining]],IF(Table6[[#This Row],[Class]]>7,25,NA())) ->  | S90: =IF(Table6[[#This Row],[Class]]=8,Table6[[#This Row],[Remaining]],IF(Table6[[#This Row],[Class]]>8,25,NA())) ->  | T90: =IF(Table6[[#This Row],[Class]]=9,Table6[[#This Row],[Remaining]],IF(Table6[[#This Row],[Class]]>9,25,NA())) ->  | U90: =Table6[[#This Row],[Difference]]-100 -> 20.79207921 | V90: =IF(Table6[[#This Row],[Diff1]]>=0,E90,NA()) -> 1 | W90: =IF(Table6[[#This Row],[Diff1]]<0,Table6[[#This Row],[Diff1]],NA()) -> 
A91: LASST220000000000003-LA-Louisiana | B91: 1983-06-15 | C91: 12.1 | D91: 119.8019802 | E91: =QUOTIENT(Table6[[#This Row],[Difference]],25)+IF(Table6[[#This Row],[Difference]]<100,-4,-3) -> 1 | F91: =IF(Table6[[#This Row],[Class]]<0, 25-MOD(Table6[[#This Row],[Difference]],25),MOD(Table6[[#This Row],[Difference]],25)) -> 19.8019802 | G91: =IF(Table6[[#This Row],[Class]]=-1,Table6[[#This Row],[Remaining]],IF(Table6[[#This Row],[Class]]<-1,25,NA())) ->  | H91: =IF(Table6[[#This Row],[Class]]=-2,Table6[[#This Row],[Remaining]],IF(Table6[[#This Row],[Class]]<-2,25,NA())) ->  | I91: =IF(Table6[[#This Row],[Class]]=-3,Table6[[#This Row],[Remaining]],IF(Table6[[#This Row],[Class]]<-3,25,NA())) ->  | J91: =IF(Table6[[#This Row],[Class]]=-4,Table6[[#This Row],[Remaining]],IF(Table6[[#This Row],[Class]]<-4,25,NA())) ->  | K91: =IF(Table6[[#This Row],[Difference]]=100,0,NA()) ->  | L91: =IF(Table6[[#This Row],[Class]]=1,Table6[[#This Row],[Remaining]],IF(Table6[[#This Row],[Class]]>1,25,NA())) -> 19.8019802 | M91: =IF(Table6[[#This Row],[Class]]=2,Table6[[#This Row],[Remaining]],IF(Table6[[#This Row],[Class]]>2,25,NA())) ->  | N91: =IF(Table6[[#This Row],[Class]]=3,Table6[[#This Row],[Remaining]],IF(Table6[[#This Row],[Class]]>3,25,NA())) ->  | O91: =IF(Table6[[#This Row],[Class]]=4,Table6[[#This Row],[Remaining]],IF(Table6[[#This Row],[Class]]>4,25,NA())) ->  | P91: =IF(Table6[[#This Row],[Class]]=5,Table6[[#This Row],[Remaining]],IF(Table6[[#This Row],[Class]]>5,25,NA())) ->  | Q91: =IF(Table6[[#This Row],[Class]]=6,Table6[[#This Row],[Remaining]],IF(Table6[[#This Row],[Class]]>6,25,NA())) ->  | R91: =IF(Table6[[#This Row],[Class]]=7,Table6[[#This Row],[Remaining]],IF(Table6[[#This Row],[Class]]>7,25,NA())) ->  | S91: =IF(Table6[[#This Row],[Class]]=8,Table6[[#This Row],[Remaining]],IF(Table6[[#This Row],[Class]]>8,25,NA())) ->  | T91: =IF(Table6[[#This Row],[Class]]=9,Table6[[#This Row],[Remaining]],IF(Table6[[#This Row],[Class]]>9,25,NA())) ->  | U91: =Table6[[#This Row],[Difference]]-100 -> 19.8019802 | V91: =IF(Table6[[#This Row],[Diff1]]>=0,E91,NA()) -> 1 | W91: =IF(Table6[[#This Row],[Diff1]]<0,Table6[[#This Row],[Diff1]],NA()) -> 
A92: LASST220000000000003-LA-Louisiana | B92: 1983-07-15 | C92: 11.9 | D92: 126.5957447 | E92: =QUOTIENT(Table6[[#This Row],[Difference]],25)+IF(Table6[[#This Row],[Difference]]<100,-4,-3) -> 2 | F92: =IF(Table6[[#This Row],[Class]]<0, 25-MOD(Table6[[#This Row],[Difference]],25),MOD(Table6[[#This Row],[Difference]],25)) -> 1.595744681 | G92: =IF(Table6[[#This Row],[Class]]=-1,Table6[[#This Row],[Remaining]],IF(Table6[[#This Row],[Class]]<-1,25,NA())) ->  | H92: =IF(Table6[[#This Row],[Class]]=-2,Table6[[#This Row],[Remaining]],IF(Table6[[#This Row],[Class]]<-2,25,NA())) ->  | I92: =IF(Table6[[#This Row],[Class]]=-3,Table6[[#This Row],[Remaining]],IF(Table6[[#This Row],[Class]]<-3,25,NA())) ->  | J92: =IF(Table6[[#This Row],[Class]]=-4,Table6[[#This Row],[Remaining]],IF(Table6[[#This Row],[Class]]<-4,25,NA())) ->  | K92: =IF(Table6[[#This Row],[Difference]]=100,0,NA()) ->  | L92: =IF(Table6[[#This Row],[Class]]=1,Table6[[#This Row],[Remaining]],IF(Table6[[#This Row],[Class]]>1,25,NA())) -> 25 | M92: =IF(Table6[[#This Row],[Class]]=2,Table6[[#This Row],[Remaining]],IF(Table6[[#This Row],[Class]]>2,25,NA())) -> 1.595744681 | N92: =IF(Table6[[#This Row],[Class]]=3,Table6[[#This Row],[Remaining]],IF(Table6[[#This Row],[Class]]>3,25,NA())) ->  | O92: =IF(Table6[[#This Row],[Class]]=4,Table6[[#This Row],[Remaining]],IF(Table6[[#This Row],[Class]]>4,25,NA())) ->  | P92: =IF(Table6[[#This Row],[Class]]=5,Table6[[#This Row],[Remaining]],IF(Table6[[#This Row],[Class]]>5,25,NA())) ->  | Q92: =IF(Table6[[#This Row],[Class]]=6,Table6[[#This Row],[Remaining]],IF(Table6[[#This Row],[Class]]>6,25,NA())) ->  | R92: =IF(Table6[[#This Row],[Class]]=7,Table6[[#This Row],[Remaining]],IF(Table6[[#This Row],[Class]]>7,25,NA())) ->  | S92: =IF(Table6[[#This Row],[Class]]=8,Table6[[#This Row],[Remaining]],IF(Table6[[#This Row],[Class]]>8,25,NA())) ->  | T92: =IF(Table6[[#This Row],[Class]]=9,Table6[[#This Row],[Remaining]],IF(Table6[[#This Row],[Class]]>9,25,NA())) ->  | U92: =Table6[[#This Row],[Difference]]-100 -> 26.59574468 | V92: =IF(Table6[[#This Row],[Diff1]]>=0,E92,NA()) -> 2 | W92: =IF(Table6[[#This Row],[Diff1]]<0,Table6[[#This Row],[Diff1]],NA()) -> 
A93: LASST220000000000003-LA-Louisiana | B93: 1983-08-15 | C93: 11.6 | D93: 122.1052632 | E93: =QUOTIENT(Table6[[#This Row],[Difference]],25)+IF(Table6[[#This Row],[Difference]]<100,-4,-3) -> 1 | F93: =IF(Table6[[#This Row],[Class]]<0, 25-MOD(Table6[[#This Row],[Difference]],25),MOD(Table6[[#This Row],[Difference]],25)) -> 22.10526316 | G93: =IF(Table6[[#This Row],[Class]]=-1,Table6[[#This Row],[Remaining]],IF(Table6[[#This Row],[Class]]<-1,25,NA())) ->  | H93: =IF(Table6[[#This Row],[Class]]=-2,Table6[[#This Row],[Remaining]],IF(Table6[[#This Row],[Class]]<-2,25,NA())) ->  | I93: =IF(Table6[[#This Row],[Class]]=-3,Table6[[#This Row],[Remaining]],IF(Table6[[#This Row],[Class]]<-3,25,NA())) ->  | J93: =IF(Table6[[#This Row],[Class]]=-4,Table6[[#This Row],[Remaining]],IF(Table6[[#This Row],[Class]]<-4,25,NA())) ->  | K93: =IF(Table6[[#This Row],[Difference]]=100,0,NA()) ->  | L93: =IF(Table6[[#This Row],[Class]]=1,Table6[[#This Row],[Remaining]],IF(Table6[[#This Row],[Class]]>1,25,NA())) -> 22.10526316 | M93: =IF(Table6[[#This Row],[Class]]=2,Table6[[#This Row],[Remaining]],IF(Table6[[#This Row],[Class]]>2,25,NA())) ->  | N93: =IF(Table6[[#This Row],[Class]]=3,Table6[[#This Row],[Remaining]],IF(Table6[[#This Row],[Class]]>3,25,NA())) ->  | O93: =IF(Table6[[#This Row],[Class]]=4,Table6[[#This Row],[Remaining]],IF(Table6[[#This Row],[Class]]>4,25,NA())) ->  | P93: =IF(Table6[[#This Row],[Class]]=5,Table6[[#This Row],[Remaining]],IF(Table6[[#This Row],[Class]]>5,25,NA())) ->  | Q93: =IF(Table6[[#This Row],[Class]]=6,Table6[[#This Row],[Remaining]],IF(Table6[[#This Row],[Class]]>6,25,NA())) ->  | R93: =IF(Table6[[#This Row],[Class]]=7,Table6[[#This Row],[Remaining]],IF(Table6[[#This Row],[Class]]>7,25,NA())) ->  | S93: =IF(Table6[[#This Row],[Class]]=8,Table6[[#This Row],[Remaining]],IF(Table6[[#This Row],[Class]]>8,25,NA())) ->  | T93: =IF(Table6[[#This Row],[Class]]=9,Table6[[#This Row],[Remaining]],IF(Table6[[#This Row],[Class]]>9,25,NA())) ->  | U93: =Table6[[#This Row],[Difference]]-100 -> 22.10526316 | V93: =IF(Table6[[#This Row],[Diff1]]>=0,E93,NA()) -> 1 | W93: =IF(Table6[[#This Row],[Diff1]]<0,Table6[[#This Row],[Diff1]],NA()) -> 
A94: LASST220000000000003-LA-Louisiana | B94: 1983-09-15 | C94: 11.3 | D94: 122.826087 | E94: =QUOTIENT(Table6[[#This Row],[Difference]],25)+IF(Table6[[#This Row],[Difference]]<100,-4,-3) -> 1 | F94: =IF(Table6[[#This Row],[Class]]<0, 25-MOD(Table6[[#This Row],[Difference]],25),MOD(Table6[[#This Row],[Difference]],25)) -> 22.82608696 | G94: =IF(Table6[[#This Row],[Class]]=-1,Table6[[#This Row],[Remaining]],IF(Table6[[#This Row],[Class]]<-1,25,NA())) ->  | H94: =IF(Table6[[#This Row],[Class]]=-2,Table6[[#This Row],[Remaining]],IF(Table6[[#This Row],[Class]]<-2,25,NA())) ->  | I94: =IF(Table6[[#This Row],[Class]]=-3,Table6[[#This Row],[Remaining]],IF(Table6[[#This Row],[Class]]<-3,25,NA())) ->  | J94: =IF(Table6[[#This Row],[Class]]=-4,Table6[[#This Row],[Remaining]],IF(Table6[[#This Row],[Class]]<-4,25,NA())) ->  | K94: =IF(Table6[[#This Row],[Difference]]=100,0,NA()) ->  | L94: =IF(Table6[[#This Row],[Class]]=1,Table6[[#This Row],[Remaining]],IF(Table6[[#This Row],[Class]]>1,25,NA())) -> 22.82608696 | M94: =IF(Table6[[#This Row],[Class]]=2,Table6[[#This Row],[Remaining]],IF(Table6[[#This Row],[Class]]>2,25,NA())) ->  | N94: =IF(Table6[[#This Row],[Class]]=3,Table6[[#This Row],[Remaining]],IF(Table6[[#This Row],[Class]]>3,25,NA())) ->  | O94: =IF(Table6[[#This Row],[Class]]=4,Table6[[#This Row],[Remaining]],IF(Table6[[#This Row],[Class]]>4,25,NA())) ->  | P94: =IF(Table6[[#This Row],[Class]]=5,Table6[[#This Row],[Remaining]],IF(Table6[[#This Row],[Class]]>5,25,NA())) ->  | Q94: =IF(Table6[[#This Row],[Class]]=6,Table6[[#This Row],[Remaining]],IF(Table6[[#This Row],[Class]]>6,25,NA())) ->  | R94: =IF(Table6[[#This Row],[Class]]=7,Table6[[#This Row],[Remaining]],IF(Table6[[#This Row],[Class]]>7,25,NA())) ->  | S94: =IF(Table6[[#This Row],[Class]]=8,Table6[[#This Row],[Remaining]],IF(Table6[[#This Row],[Class]]>8,25,NA())) ->  | T94: =IF(Table6[[#This Row],[Class]]=9,Table6[[#This Row],[Remaining]],IF(Table6[[#This Row],[Class]]>9,25,NA())) ->  | U94: =Table6[[#This Row],[Difference]]-100 -> 22.82608696 | V94: =IF(Table6[[#This Row],[Diff1]]>=0,E94,NA()) -> 1 | W94: =IF(Table6[[#This Row],[Diff1]]<0,Table6[[#This Row],[Diff1]],NA()) -> 
A95: LASST220000000000003-LA-Louisiana | B95: 1983-10-15 | C95: 10.9 | D95: 123.8636364 | E95: =QUOTIENT(Table6[[#This Row],[Difference]],25)+IF(Table6[[#This Row],[Difference]]<100,-4,-3) -> 1 | F95: =IF(Table6[[#This Row],[Class]]<0, 25-MOD(Table6[[#This Row],[Difference]],25),MOD(Table6[[#This Row],[Difference]],25)) -> 23.86363636 | G95: =IF(Table6[[#This Row],[Class]]=-1,Table6[[#This Row],[Remaining]],IF(Table6[[#This Row],[Class]]<-1,25,NA())) ->  | H95: =IF(Table6[[#This Row],[Class]]=-2,Table6[[#This Row],[Remaining]],IF(Table6[[#This Row],[Class]]<-2,25,NA())) ->  | I95: =IF(Table6[[#This Row],[Class]]=-3,Table6[[#This Row],[Remaining]],IF(Table6[[#This Row],[Class]]<-3,25,NA())) ->  | J95: =IF(Table6[[#This Row],[Class]]=-4,Table6[[#This Row],[Remaining]],IF(Table6[[#This Row],[Class]]<-4,25,NA())) ->  | K95: =IF(Table6[[#This Row],[Difference]]=100,0,NA()) ->  | L95: =IF(Table6[[#This Row],[Class]]=1,Table6[[#This Row],[Remaining]],IF(Table6[[#This Row],[Class]]>1,25,NA())) -> 23.86363636 | M95: =IF(Table6[[#This Row],[Class]]=2,Table6[[#This Row],[Remaining]],IF(Table6[[#This Row],[Class]]>2,25,NA())) ->  | N95: =IF(Table6[[#This Row],[Class]]=3,Table6[[#This Row],[Remaining]],IF(Table6[[#This Row],[Class]]>3,25,NA())) ->  | O95: =IF(Table6[[#This Row],[Class]]=4,Table6[[#This Row],[Remaining]],IF(Table6[[#This Row],[Class]]>4,25,NA())) ->  | P95: =IF(Table6[[#This Row],[Class]]=5,Table6[[#This Row],[Remaining]],IF(Table6[[#This Row],[Class]]>5,25,NA())) ->  | Q95: =IF(Table6[[#This Row],[Class]]=6,Table6[[#This Row],[Remaining]],IF(Table6[[#This Row],[Class]]>6,25,NA())) ->  | R95: =IF(Table6[[#This Row],[Class]]=7,Table6[[#This Row],[Remaining]],IF(Table6[[#This Row],[Class]]>7,25,NA())) ->  | S95: =IF(Table6[[#This Row],[Class]]=8,Table6[[#This Row],[Remaining]],IF(Table6[[#This Row],[Class]]>8,25,NA())) ->  | T95: =IF(Table6[[#This Row],[Class]]=9,Table6[[#This Row],[Remaining]],IF(Table6[[#This Row],[Class]]>9,25,NA())) ->  | U95: =Table6[[#This Row],[Difference]]-100 -> 23.86363636 | V95: =IF(Table6[[#This Row],[Diff1]]>=0,E95,NA()) -> 1 | W95: =IF(Table6[[#This Row],[Diff1]]<0,Table6[[#This Row],[Diff1]],NA()) -> 
A96: LASST220000000000003-LA-Louisiana | B96: 1983-11-15 | C96: 10.4 | D96: 122.3529412 | E96: =QUOTIENT(Table6[[#This Row],[Difference]],25)+IF(Table6[[#This Row],[Difference]]<100,-4,-3) -> 1 | F96: =IF(Table6[[#This Row],[Class]]<0, 25-MOD(Table6[[#This Row],[Difference]],25),MOD(Table6[[#This Row],[Difference]],25)) -> 22.35294118 | G96: =IF(Table6[[#This Row],[Class]]=-1,Table6[[#This Row],[Remaining]],IF(Table6[[#This Row],[Class]]<-1,25,NA())) ->  | H96: =IF(Table6[[#This Row],[Class]]=-2,Table6[[#This Row],[Remaining]],IF(Table6[[#This Row],[Class]]<-2,25,NA())) ->  | I96: =IF(Table6[[#This Row],[Class]]=-3,Table6[[#This Row],[Remaining]],IF(Table6[[#This Row],[Class]]<-3,25,NA())) ->  | J96: =IF(Table6[[#This Row],[Class]]=-4,Table6[[#This Row],[Remaining]],IF(Table6[[#This Row],[Class]]<-4,25,NA())) ->  | K96: =IF(Table6[[#This Row],[Difference]]=100,0,NA()) ->  | L96: =IF(Table6[[#This Row],[Class]]=1,Table6[[#This Row],[Remaining]],IF(Table6[[#This Row],[Class]]>1,25,NA())) -> 22.35294118 | M96: =IF(Table6[[#This Row],[Class]]=2,Table6[[#This Row],[Remaining]],IF(Table6[[#This Row],[Class]]>2,25,NA())) ->  | N96: =IF(Table6[[#This Row],[Class]]=3,Table6[[#This Row],[Remaining]],IF(Table6[[#This Row],[Class]]>3,25,NA())) ->  | O96: =IF(Table6[[#This Row],[Class]]=4,Table6[[#This Row],[Remaining]],IF(Table6[[#This Row],[Class]]>4,25,NA())) ->  | P96: =IF(Table6[[#This Row],[Class]]=5,Table6[[#This Row],[Remaining]],IF(Table6[[#This Row],[Class]]>5,25,NA())) ->  | Q96: =IF(Table6[[#This Row],[Class]]=6,Table6[[#This Row],[Remaining]],IF(Table6[[#This Row],[Class]]>6,25,NA())) ->  | R96: =IF(Table6[[#This Row],[Class]]=7,Table6[[#This Row],[Remaining]],IF(Table6[[#This Row],[Class]]>7,25,NA())) ->  | S96: =IF(Table6[[#This Row],[Class]]=8,Table6[[#This Row],[Remaining]],IF(Table6[[#This Row],[Class]]>8,25,NA())) ->  | T96: =IF(Table6[[#This Row],[Class]]=9,Table6[[#This Row],[Remaining]],IF(Table6[[#This Row],[Class]]>9,25,NA())) ->  | U96: =Table6[[#This Row],[Difference]]-100 -> 22.35294118 | V96: =IF(Table6[[#This Row],[Diff1]]>=0,E96,NA()) -> 1 | W96: =IF(Table6[[#This Row],[Diff1]]<0,Table6[[#This Row],[Diff1]],NA()) -> 
A97: LASST220000000000003-LA-Louisiana | B97: 1983-12-15 | C97: 10.1 | D97: 121.686747 | E97: =QUOTIENT(Table6[[#This Row],[Difference]],25)+IF(Table6[[#This Row],[Difference]]<100,-4,-3) -> 1 | F97: =IF(Table6[[#This Row],[Class]]<0, 25-MOD(Table6[[#This Row],[Difference]],25),MOD(Table6[[#This Row],[Difference]],25)) -> 21.68674699 | G97: =IF(Table6[[#This Row],[Class]]=-1,Table6[[#This Row],[Remaining]],IF(Table6[[#This Row],[Class]]<-1,25,NA())) ->  | H97: =IF(Table6[[#This Row],[Class]]=-2,Table6[[#This Row],[Remaining]],IF(Table6[[#This Row],[Class]]<-2,25,NA())) ->  | I97: =IF(Table6[[#This Row],[Class]]=-3,Table6[[#This Row],[Remaining]],IF(Table6[[#This Row],[Class]]<-3,25,NA())) ->  | J97: =IF(Table6[[#This Row],[Class]]=-4,Table6[[#This Row],[Remaining]],IF(Table6[[#This Row],[Class]]<-4,25,NA())) ->  | K97: =IF(Table6[[#This Row],[Difference]]=100,0,NA()) ->  | L97: =IF(Table6[[#This Row],[Class]]=1,Table6[[#This Row],[Remaining]],IF(Table6[[#This Row],[Class]]>1,25,NA())) -> 21.68674699 | M97: =IF(Table6[[#This Row],[Class]]=2,Table6[[#This Row],[Remaining]],IF(Table6[[#This Row],[Class]]>2,25,NA())) ->  | N97: =IF(Table6[[#This Row],[Class]]=3,Table6[[#This Row],[Remaining]],IF(Table6[[#This Row],[Class]]>3,25,NA())) ->  | O97: =IF(Table6[[#This Row],[Class]]=4,Table6[[#This Row],[Remaining]],IF(Table6[[#This Row],[Class]]>4,25,NA())) ->  | P97: =IF(Table6[[#This Row],[Class]]=5,Table6[[#This Row],[Remaining]],IF(Table6[[#This Row],[Class]]>5,25,NA())) ->  | Q97: =IF(Table6[[#This Row],[Class]]=6,Table6[[#This Row],[Remaining]],IF(Table6[[#This Row],[Class]]>6,25,NA())) ->  | R97: =IF(Table6[[#This Row],[Class]]=7,Table6[[#This Row],[Remaining]],IF(Table6[[#This Row],[Class]]>7,25,NA())) ->  | S97: =IF(Table6[[#This Row],[Class]]=8,Table6[[#This Row],[Remaining]],IF(Table6[[#This Row],[Class]]>8,25,NA())) ->  | T97: =IF(Table6[[#This Row],[Class]]=9,Table6[[#This Row],[Remaining]],IF(Table6[[#This Row],[Class]]>9,25,NA())) ->  | U97: =Table6[[#This Row],[Difference]]-100 -> 21.68674699 | V97: =IF(Table6[[#This Row],[Diff1]]>=0,E97,NA()) -> 1 | W97: =IF(Table6[[#This Row],[Diff1]]<0,Table6[[#This Row],[Diff1]],NA()) -> 
A98: LASST220000000000003-LA-Louisiana | B98: 1984-01-15 | C98: 9.9 | D98: 123.75 | E98: =QUOTIENT(Table6[[#This Row],[Difference]],25)+IF(Table6[[#This Row],[Difference]]<100,-4,-3) -> 1 | F98: =IF(Table6[[#This Row],[Class]]<0, 25-MOD(Table6[[#This Row],[Difference]],25),MOD(Table6[[#This Row],[Difference]],25)) -> 23.75 | G98: =IF(Table6[[#This Row],[Class]]=-1,Table6[[#This Row],[Remaining]],IF(Table6[[#This Row],[Class]]<-1,25,NA())) ->  | H98: =IF(Table6[[#This Row],[Class]]=-2,Table6[[#This Row],[Remaining]],IF(Table6[[#This Row],[Class]]<-2,25,NA())) ->  | I98: =IF(Table6[[#This Row],[Class]]=-3,Table6[[#This Row],[Remaining]],IF(Table6[[#This Row],[Class]]<-3,25,NA())) ->  | J98: =IF(Table6[[#This Row],[Class]]=-4,Table6[[#This Row],[Remaining]],IF(Table6[[#This Row],[Class]]<-4,25,NA())) ->  | K98: =IF(Table6[[#This Row],[Difference]]=100,0,NA()) ->  | L98: =IF(Table6[[#This Row],[Class]]=1,Table6[[#This Row],[Remaining]],IF(Table6[[#This Row],[Class]]>1,25,NA())) -> 23.75 | M98: =IF(Table6[[#This Row],[Class]]=2,Table6[[#This Row],[Remaining]],IF(Table6[[#This Row],[Class]]>2,25,NA())) ->  | N98: =IF(Table6[[#This Row],[Class]]=3,Table6[[#This Row],[Remaining]],IF(Table6[[#This Row],[Class]]>3,25,NA())) ->  | O98: =IF(Table6[[#This Row],[Class]]=4,Table6[[#This Row],[Remaining]],IF(Table6[[#This Row],[Class]]>4,25,NA())) ->  | P98: =IF(Table6[[#This Row],[Class]]=5,Table6[[#This Row],[Remaining]],IF(Table6[[#This Row],[Class]]>5,25,NA())) ->  | Q98: =IF(Table6[[#This Row],[Class]]=6,Table6[[#This Row],[Remaining]],IF(Table6[[#This Row],[Class]]>6,25,NA())) ->  | R98: =IF(Table6[[#This Row],[Class]]=7,Table6[[#This Row],[Remaining]],IF(Table6[[#This Row],[Class]]>7,25,NA())) ->  | S98: =IF(Table6[[#This Row],[Class]]=8,Table6[[#This Row],[Remaining]],IF(Table6[[#This Row],[Class]]>8,25,NA())) ->  | T98: =IF(Table6[[#This Row],[Class]]=9,Table6[[#This Row],[Remaining]],IF(Table6[[#This Row],[Class]]>9,25,NA())) ->  | U98: =Table6[[#This Row],[Difference]]-100 -> 23.75 | V98: =IF(Table6[[#This Row],[Diff1]]>=0,E98,NA()) -> 1 | W98: =IF(Table6[[#This Row],[Diff1]]<0,Table6[[#This Row],[Diff1]],NA()) -> 
A99: LASST220000000000003-LA-Louisiana | B99: 1984-02-15 | C99: 9.7 | D99: 124.3589744 | E99: =QUOTIENT(Table6[[#This Row],[Difference]],25)+IF(Table6[[#This Row],[Difference]]<100,-4,-3) -> 1 | F99: =IF(Table6[[#This Row],[Class]]<0, 25-MOD(Table6[[#This Row],[Difference]],25),MOD(Table6[[#This Row],[Difference]],25)) -> 24.35897436 | G99: =IF(Table6[[#This Row],[Class]]=-1,Table6[[#This Row],[Remaining]],IF(Table6[[#This Row],[Class]]<-1,25,NA())) ->  | H99: =IF(Table6[[#This Row],[Class]]=-2,Table6[[#This Row],[Remaining]],IF(Table6[[#This Row],[Class]]<-2,25,NA())) ->  | I99: =IF(Table6[[#This Row],[Class]]=-3,Table6[[#This Row],[Remaining]],IF(Table6[[#This Row],[Class]]<-3,25,NA())) ->  | J99: =IF(Table6[[#This Row],[Class]]=-4,Table6[[#This Row],[Remaining]],IF(Table6[[#This Row],[Class]]<-4,25,NA())) ->  | K99: =IF(Table6[[#This Row],[Difference]]=100,0,NA()) ->  | L99: =IF(Table6[[#This Row],[Class]]=1,Table6[[#This Row],[Remaining]],IF(Table6[[#This Row],[Class]]>1,25,NA())) -> 24.35897436 | M99: =IF(Table6[[#This Row],[Class]]=2,Table6[[#This Row],[Remaining]],IF(Table6[[#This Row],[Class]]>2,25,NA())) ->  | N99: =IF(Table6[[#This Row],[Class]]=3,Table6[[#This Row],[Remaining]],IF(Table6[[#This Row],[Class]]>3,25,NA())) ->  | O99: =IF(Table6[[#This Row],[Class]]=4,Table6[[#This Row],[Remaining]],IF(Table6[[#This Row],[Class]]>4,25,NA())) ->  | P99: =IF(Table6[[#This Row],[Class]]=5,Table6[[#This Row],[Remaining]],IF(Table6[[#This Row],[Class]]>5,25,NA())) ->  | Q99: =IF(Table6[[#This Row],[Class]]=6,Table6[[#This Row],[Remaining]],IF(Table6[[#This Row],[Class]]>6,25,NA())) ->  | R99: =IF(Table6[[#This Row],[Class]]=7,Table6[[#This Row],[Remaining]],IF(Table6[[#This Row],[Class]]>7,25,NA())) ->  | S99: =IF(Table6[[#This Row],[Class]]=8,Table6[[#This Row],[Remaining]],IF(Table6[[#This Row],[Class]]>8,25,NA())) ->  | T99: =IF(Table6[[#This Row],[Class]]=9,Table6[[#This Row],[Remaining]],IF(Table6[[#This Row],[Class]]>9,25,NA())) ->  | U99: =Table6[[#This Row],[Difference]]-100 -> 24.35897436 | V99: =IF(Table6[[#This Row],[Diff1]]>=0,E99,NA()) -> 1 | W99: =IF(Table6[[#This Row],[Diff1]]<0,Table6[[#This Row],[Diff1]],NA()) -> 
A100: LASST220000000000003-LA-Louisiana | B100: 1984-03-15 | C100: 9.6 | D100: 123.0769231 | E100: =QUOTIENT(Table6[[#This Row],[Difference]],25)+IF(Table6[[#This Row],[Difference]]<100,-4,-3) -> 1 | F100: =IF(Table6[[#This Row],[Class]]<0, 25-MOD(Table6[[#This Row],[Difference]],25),MOD(Table6[[#This Row],[Difference]],25)) -> 23.07692308 | G100: =IF(Table6[[#This Row],[Class]]=-1,Table6[[#This Row],[Remaining]],IF(Table6[[#This Row],[Class]]<-1,25,NA())) ->  | H100: =IF(Table6[[#This Row],[Class]]=-2,Table6[[#This Row],[Remaining]],IF(Table6[[#This Row],[Class]]<-2,25,NA())) ->  | I100: =IF(Table6[[#This Row],[Class]]=-3,Table6[[#This Row],[Remaining]],IF(Table6[[#This Row],[Class]]<-3,25,NA())) ->  | J100: =IF(Table6[[#This Row],[Class]]=-4,Table6[[#This Row],[Remaining]],IF(Table6[[#This Row],[Class]]<-4,25,NA())) ->  | K100: =IF(Table6[[#This Row],[Difference]]=100,0,NA()) ->  | L100: =IF(Table6[[#This Row],[Class]]=1,Table6[[#This Row],[Remaining]],IF(Table6[[#This Row],[Class]]>1,25,NA())) -> 23.07692308 | M100: =IF(Table6[[#This Row],[Class]]=2,Table6[[#This Row],[Remaining]],IF(Table6[[#This Row],[Class]]>2,25,NA())) ->  | N100: =IF(Table6[[#This Row],[Class]]=3,Table6[[#This Row],[Remaining]],IF(Table6[[#This Row],[Class]]>3,25,NA())) ->  | O100: =IF(Table6[[#This Row],[Class]]=4,Table6[[#This Row],[Remaining]],IF(Table6[[#This Row],[Class]]>4,25,NA())) ->  | P100: =IF(Table6[[#This Row],[Class]]=5,Table6[[#This Row],[Remaining]],IF(Table6[[#This Row],[Class]]>5,25,NA())) ->  | Q100: =IF(Table6[[#This Row],[Class]]=6,Table6[[#This Row],[Remaining]],IF(Table6[[#This Row],[Class]]>6,25,NA())) ->  | R100: =IF(Table6[[#This Row],[Class]]=7,Table6[[#This Row],[Remaining]],IF(Table6[[#This Row],[Class]]>7,25,NA())) ->  | S100: =IF(Table6[[#This Row],[Class]]=8,Table6[[#This Row],[Remaining]],IF(Table6[[#This Row],[Class]]>8,25,NA())) ->  | T100: =IF(Table6[[#This Row],[Class]]=9,Table6[[#This Row],[Remaining]],IF(Table6[[#This Row],[Class]]>9,25,NA())) ->  | U100: =Table6[[#This Row],[Difference]]-100 -> 23.07692308 | V100: =IF(Table6[[#This Row],[Diff1]]>=0,E100,NA()) -> 1 | W100: =IF(Table6[[#This Row],[Diff1]]<0,Table6[[#This Row],[Diff1]],NA()) -> 
A101: LASST220000000000003-LA-Louisiana | B101: 1984-04-15 | C101: 9.6 | D101: 124.6753247 | E101: =QUOTIENT(Table6[[#This Row],[Difference]],25)+IF(Table6[[#This Row],[Difference]]<100,-4,-3) -> 1 | F101: =IF(Table6[[#This Row],[Class]]<0, 25-MOD(Table6[[#This Row],[Difference]],25),MOD(Table6[[#This Row],[Difference]],25)) -> 24.67532468 | G101: =IF(Table6[[#This Row],[Class]]=-1,Table6[[#This Row],[Remaining]],IF(Table6[[#This Row],[Class]]<-1,25,NA())) ->  | H101: =IF(Table6[[#This Row],[Class]]=-2,Table6[[#This Row],[Remaining]],IF(Table6[[#This Row],[Class]]<-2,25,NA())) ->  | I101: =IF(Table6[[#This Row],[Class]]=-3,Table6[[#This Row],[Remaining]],IF(Table6[[#This Row],[Class]]<-3,25,NA())) ->  | J101: =IF(Table6[[#This Row],[Class]]=-4,Table6[[#This Row],[Remaining]],IF(Table6[[#This Row],[Class]]<-4,25,NA())) ->  | K101: =IF(Table6[[#This Row],[Difference]]=100,0,NA()) ->  | L101: =IF(Table6[[#This Row],[Class]]=1,Table6[[#This Row],[Remaining]],IF(Table6[[#This Row],[Class]]>1,25,NA())) -> 24.67532468 | M101: =IF(Table6[[#This Row],[Class]]=2,Table6[[#This Row],[Remaining]],IF(Table6[[#This Row],[Class]]>2,25,NA())) ->  | N101: =IF(Table6[[#This Row],[Class]]=3,Table6[[#This Row],[Remaining]],IF(Table6[[#This Row],[Class]]>3,25,NA())) ->  | O101: =IF(Table6[[#This Row],[Class]]=4,Table6[[#This Row],[Remaining]],IF(Table6[[#This Row],[Class]]>4,25,NA())) ->  | P101: =IF(Table6[[#This Row],[Class]]=5,Table6[[#This Row],[Remaining]],IF(Table6[[#This Row],[Class]]>5,25,NA())) ->  | Q101: =IF(Table6[[#This Row],[Class]]=6,Table6[[#This Row],[Remaining]],IF(Table6[[#This Row],[Class]]>6,25,NA())) ->  | R101: =IF(Table6[[#This Row],[Class]]=7,Table6[[#This Row],[Remaining]],IF(Table6[[#This Row],[Class]]>7,25,NA())) ->  | S101: =IF(Table6[[#This Row],[Class]]=8,Table6[[#This Row],[Remaining]],IF(Table6[[#This Row],[Class]]>8,25,NA())) ->  | T101: =IF(Table6[[#This Row],[Class]]=9,Table6[[#This Row],[Remaining]],IF(Table6[[#This Row],[Class]]>9,25,NA())) ->  | U101: =Table6[[#This Row],[Difference]]-100 -> 24.67532468 | V101: =IF(Table6[[#This Row],[Diff1]]>=0,E101,NA()) -> 1 | W101: =IF(Table6[[#This Row],[Diff1]]<0,Table6[[#This Row],[Diff1]],NA()) -> 
A102: LASST220000000000003-LA-Louisiana | B102: 1984-05-15 | C102: 9.7 | D102: 131.0810811 | E102: =QUOTIENT(Table6[[#This Row],[Difference]],25)+IF(Table6[[#This Row],[Difference]]<100,-4,-3) -> 2 | F102: =IF(Table6[[#This Row],[Class]]<0, 25-MOD(Table6[[#This Row],[Difference]],25),MOD(Table6[[#This Row],[Difference]],25)) -> 6.081081081 | G102: =IF(Table6[[#This Row],[Class]]=-1,Table6[[#This Row],[Remaining]],IF(Table6[[#This Row],[Class]]<-1,25,NA())) ->  | H102: =IF(Table6[[#This Row],[Class]]=-2,Table6[[#This Row],[Remaining]],IF(Table6[[#This Row],[Class]]<-2,25,NA())) ->  | I102: =IF(Table6[[#This Row],[Class]]=-3,Table6[[#This Row],[Remaining]],IF(Table6[[#This Row],[Class]]<-3,25,NA())) ->  | J102: =IF(Table6[[#This Row],[Class]]=-4,Table6[[#This Row],[Remaining]],IF(Table6[[#This Row],[Class]]<-4,25,NA())) ->  | K102: =IF(Table6[[#This Row],[Difference]]=100,0,NA()) ->  | L102: =IF(Table6[[#This Row],[Class]]=1,Table6[[#This Row],[Remaining]],IF(Table6[[#This Row],[Class]]>1,25,NA())) -> 25 | M102: =IF(Table6[[#This Row],[Class]]=2,Table6[[#This Row],[Remaining]],IF(Table6[[#This Row],[Class]]>2,25,NA())) -> 6.081081081 | N102: =IF(Table6[[#This Row],[Class]]=3,Table6[[#This Row],[Remaining]],IF(Table6[[#This Row],[Class]]>3,25,NA())) ->  | O102: =IF(Table6[[#This Row],[Class]]=4,Table6[[#This Row],[Remaining]],IF(Table6[[#This Row],[Class]]>4,25,NA())) ->  | P102: =IF(Table6[[#This Row],[Class]]=5,Table6[[#This Row],[Remaining]],IF(Table6[[#This Row],[Class]]>5,25,NA())) ->  | Q102: =IF(Table6[[#This Row],[Class]]=6,Table6[[#This Row],[Remaining]],IF(Table6[[#This Row],[Class]]>6,25,NA())) ->  | R102: =IF(Table6[[#This Row],[Class]]=7,Table6[[#This Row],[Remaining]],IF(Table6[[#This Row],[Class]]>7,25,NA())) ->  | S102: =IF(Table6[[#This Row],[Class]]=8,Table6[[#This Row],[Remaining]],IF(Table6[[#This Row],[Class]]>8,25,NA())) ->  | T102: =IF(Table6[[#This Row],[Class]]=9,Table6[[#This Row],[Remaining]],IF(Table6[[#This Row],[Class]]>9,25,NA())) ->  | U102: =Table6[[#This Row],[Difference]]-100 -> 31.08108108 | V102: =IF(Table6[[#This Row],[Diff1]]>=0,E102,NA()) -> 2 | W102: =IF(Table6[[#This Row],[Diff1]]<0,Table6[[#This Row],[Diff1]],NA()) -> 
A103: LASST220000000000003-LA-Louisiana | B103: 1984-06-15 | C103: 9.8 | D103: 136.1111111 | E103: =QUOTIENT(Table6[[#This Row],[Difference]],25)+IF(Table6[[#This Row],[Difference]]<100,-4,-3) -> 2 | F103: =IF(Table6[[#This Row],[Class]]<0, 25-MOD(Table6[[#This Row],[Difference]],25),MOD(Table6[[#This Row],[Difference]],25)) -> 11.11111111 | G103: =IF(Table6[[#This Row],[Class]]=-1,Table6[[#This Row],[Remaining]],IF(Table6[[#This Row],[Class]]<-1,25,NA())) ->  | H103: =IF(Table6[[#This Row],[Class]]=-2,Table6[[#This Row],[Remaining]],IF(Table6[[#This Row],[Class]]<-2,25,NA())) ->  | I103: =IF(Table6[[#This Row],[Class]]=-3,Table6[[#This Row],[Remaining]],IF(Table6[[#This Row],[Class]]<-3,25,NA())) ->  | J103: =IF(Table6[[#This Row],[Class]]=-4,Table6[[#This Row],[Remaining]],IF(Table6[[#This Row],[Class]]<-4,25,NA())) ->  | K103: =IF(Table6[[#This Row],[Difference]]=100,0,NA()) ->  | L103: =IF(Table6[[#This Row],[Class]]=1,Table6[[#This Row],[Remaining]],IF(Table6[[#This Row],[Class]]>1,25,NA())) -> 25 | M103: =IF(Table6[[#This Row],[Class]]=2,Table6[[#This Row],[Remaining]],IF(Table6[[#This Row],[Class]]>2,25,NA())) -> 11.11111111 | N103: =IF(Table6[[#This Row],[Class]]=3,Table6[[#This Row],[Remaining]],IF(Table6[[#This Row],[Class]]>3,25,NA())) ->  | O103: =IF(Table6[[#This Row],[Class]]=4,Table6[[#This Row],[Remaining]],IF(Table6[[#This Row],[Class]]>4,25,NA())) ->  | P103: =IF(Table6[[#This Row],[Class]]=5,Table6[[#This Row],[Remaining]],IF(Table6[[#This Row],[Class]]>5,25,NA())) ->  | Q103: =IF(Table6[[#This Row],[Class]]=6,Table6[[#This Row],[Remaining]],IF(Table6[[#This Row],[Class]]>6,25,NA())) ->  | R103: =IF(Table6[[#This Row],[Class]]=7,Table6[[#This Row],[Remaining]],IF(Table6[[#This Row],[Class]]>7,25,NA())) ->  | S103: =IF(Table6[[#This Row],[Class]]=8,Table6[[#This Row],[Remaining]],IF(Table6[[#This Row],[Class]]>8,25,NA())) ->  | T103: =IF(Table6[[#This Row],[Class]]=9,Table6[[#This Row],[Remaining]],IF(Table6[[#This Row],[Class]]>9,25,NA())) ->  | U103: =Table6[[#This Row],[Difference]]-100 -> 36.11111111 | V103: =IF(Table6[[#This Row],[Diff1]]>=0,E103,NA()) -> 2 | W103: =IF(Table6[[#This Row],[Diff1]]<0,Table6[[#This Row],[Diff1]],NA()) -> 
A104: LASST220000000000003-LA-Louisiana | B104: 1984-07-15 | C104: 10 | D104: 133.3333333 | E104: =QUOTIENT(Table6[[#This Row],[Difference]],25)+IF(Table6[[#This Row],[Difference]]<100,-4,-3) -> 2 | F104: =IF(Table6[[#This Row],[Class]]<0, 25-MOD(Table6[[#This Row],[Difference]],25),MOD(Table6[[#This Row],[Difference]],25)) -> 8.333333333 | G104: =IF(Table6[[#This Row],[Class]]=-1,Table6[[#This Row],[Remaining]],IF(Table6[[#This Row],[Class]]<-1,25,NA())) ->  | H104: =IF(Table6[[#This Row],[Class]]=-2,Table6[[#This Row],[Remaining]],IF(Table6[[#This Row],[Class]]<-2,25,NA())) ->  | I104: =IF(Table6[[#This Row],[Class]]=-3,Table6[[#This Row],[Remaining]],IF(Table6[[#This Row],[Class]]<-3,25,NA())) ->  | J104: =IF(Table6[[#This Row],[Class]]=-4,Table6[[#This Row],[Remaining]],IF(Table6[[#This Row],[Class]]<-4,25,NA())) ->  | K104: =IF(Table6[[#This Row],[Difference]]=100,0,NA()) ->  | L104: =IF(Table6[[#This Row],[Class]]=1,Table6[[#This Row],[Remaining]],IF(Table6[[#This Row],[Class]]>1,25,NA())) -> 25 | M104: =IF(Table6[[#This Row],[Class]]=2,Table6[[#This Row],[Remaining]],IF(Table6[[#This Row],[Class]]>2,25,NA())) -> 8.333333333 | N104: =IF(Table6[[#This Row],[Class]]=3,Table6[[#This Row],[Remaining]],IF(Table6[[#This Row],[Class]]>3,25,NA())) ->  | O104: =IF(Table6[[#This Row],[Class]]=4,Table6[[#This Row],[Remaining]],IF(Table6[[#This Row],[Class]]>4,25,NA())) ->  | P104: =IF(Table6[[#This Row],[Class]]=5,Table6[[#This Row],[Remaining]],IF(Table6[[#This Row],[Class]]>5,25,NA())) ->  | Q104: =IF(Table6[[#This Row],[Class]]=6,Table6[[#This Row],[Remaining]],IF(Table6[[#This Row],[Class]]>6,25,NA())) ->  | R104: =IF(Table6[[#This Row],[Class]]=7,Table6[[#This Row],[Remaining]],IF(Table6[[#This Row],[Class]]>7,25,NA())) ->  | S104: =IF(Table6[[#This Row],[Class]]=8,Table6[[#This Row],[Remaining]],IF(Table6[[#This Row],[Class]]>8,25,NA())) ->  | T104: =IF(Table6[[#This Row],[Class]]=9,Table6[[#This Row],[Remaining]],IF(Table6[[#This Row],[Class]]>9,25,NA())) ->  | U104: =Table6[[#This Row],[Difference]]-100 -> 33.33333333 | V104: =IF(Table6[[#This Row],[Diff1]]>=0,E104,NA()) -> 2 | W104: =IF(Table6[[#This Row],[Diff1]]<0,Table6[[#This Row],[Diff1]],NA()) -> 
A105: LASST220000000000003-LA-Louisiana | B105: 1984-08-15 | C105: 10.1 | D105: 134.6666667 | E105: =QUOTIENT(Table6[[#This Row],[Difference]],25)+IF(Table6[[#This Row],[Difference]]<100,-4,-3) -> 2 | F105: =IF(Table6[[#This Row],[Class]]<0, 25-MOD(Table6[[#This Row],[Difference]],25),MOD(Table6[[#This Row],[Difference]],25)) -> 9.666666667 | G105: =IF(Table6[[#This Row],[Class]]=-1,Table6[[#This Row],[Remaining]],IF(Table6[[#This Row],[Class]]<-1,25,NA())) ->  | H105: =IF(Table6[[#This Row],[Class]]=-2,Table6[[#This Row],[Remaining]],IF(Table6[[#This Row],[Class]]<-2,25,NA())) ->  | I105: =IF(Table6[[#This Row],[Class]]=-3,Table6[[#This Row],[Remaining]],IF(Table6[[#This Row],[Class]]<-3,25,NA())) ->  | J105: =IF(Table6[[#This Row],[Class]]=-4,Table6[[#This Row],[Remaining]],IF(Table6[[#This Row],[Class]]<-4,25,NA())) ->  | K105: =IF(Table6[[#This Row],[Difference]]=100,0,NA()) ->  | L105: =IF(Table6[[#This Row],[Class]]=1,Table6[[#This Row],[Remaining]],IF(Table6[[#This Row],[Class]]>1,25,NA())) -> 25 | M105: =IF(Table6[[#This Row],[Class]]=2,Table6[[#This Row],[Remaining]],IF(Table6[[#This Row],[Class]]>2,25,NA())) -> 9.666666667 | N105: =IF(Table6[[#This Row],[Class]]=3,Table6[[#This Row],[Remaining]],IF(Table6[[#This Row],[Class]]>3,25,NA())) ->  | O105: =IF(Table6[[#This Row],[Class]]=4,Table6[[#This Row],[Remaining]],IF(Table6[[#This Row],[Class]]>4,25,NA())) ->  | P105: =IF(Table6[[#This Row],[Class]]=5,Table6[[#This Row],[Remaining]],IF(Table6[[#This Row],[Class]]>5,25,NA())) ->  | Q105: =IF(Table6[[#This Row],[Class]]=6,Table6[[#This Row],[Remaining]],IF(Table6[[#This Row],[Class]]>6,25,NA())) ->  | R105: =IF(Table6[[#This Row],[Class]]=7,Table6[[#This Row],[Remaining]],IF(Table6[[#This Row],[Class]]>7,25,NA())) ->  | S105: =IF(Table6[[#This Row],[Class]]=8,Table6[[#This Row],[Remaining]],IF(Table6[[#This Row],[Class]]>8,25,NA())) ->  | T105: =IF(Table6[[#This Row],[Class]]=9,Table6[[#This Row],[Remaining]],IF(Table6[[#This Row],[Class]]>9,25,NA())) ->  | U105: =Table6[[#This Row],[Difference]]-100 -> 34.66666667 | V105: =IF(Table6[[#This Row],[Diff1]]>=0,E105,NA()) -> 2 | W105: =IF(Table6[[#This Row],[Diff1]]<0,Table6[[#This Row],[Diff1]],NA()) -> 
A106: LASST220000000000003-LA-Louisiana | B106: 1984-09-15 | C106: 10.3 | D106: 141.0958904 | E106: =QUOTIENT(Table6[[#This Row],[Difference]],25)+IF(Table6[[#This Row],[Difference]]<100,-4,-3) -> 2 | F106: =IF(Table6[[#This Row],[Class]]<0, 25-MOD(Table6[[#This Row],[Difference]],25),MOD(Table6[[#This Row],[Difference]],25)) -> 16.09589041 | G106: =IF(Table6[[#This Row],[Class]]=-1,Table6[[#This Row],[Remaining]],IF(Table6[[#This Row],[Class]]<-1,25,NA())) ->  | H106: =IF(Table6[[#This Row],[Class]]=-2,Table6[[#This Row],[Remaining]],IF(Table6[[#This Row],[Class]]<-2,25,NA())) ->  | I106: =IF(Table6[[#This Row],[Class]]=-3,Table6[[#This Row],[Remaining]],IF(Table6[[#This Row],[Class]]<-3,25,NA())) ->  | J106: =IF(Table6[[#This Row],[Class]]=-4,Table6[[#This Row],[Remaining]],IF(Table6[[#This Row],[Class]]<-4,25,NA())) ->  | K106: =IF(Table6[[#This Row],[Difference]]=100,0,NA()) ->  | L106: =IF(Table6[[#This Row],[Class]]=1,Table6[[#This Row],[Remaining]],IF(Table6[[#This Row],[Class]]>1,25,NA())) -> 25 | M106: =IF(Table6[[#This Row],[Class]]=2,Table6[[#This Row],[Remaining]],IF(Table6[[#This Row],[Class]]>2,25,NA())) -> 16.09589041 | N106: =IF(Table6[[#This Row],[Class]]=3,Table6[[#This Row],[Remaining]],IF(Table6[[#This Row],[Class]]>3,25,NA())) ->  | O106: =IF(Table6[[#This Row],[Class]]=4,Table6[[#This Row],[Remaining]],IF(Table6[[#This Row],[Class]]>4,25,NA())) ->  | P106: =IF(Table6[[#This Row],[Class]]=5,Table6[[#This Row],[Remaining]],IF(Table6[[#This Row],[Class]]>5,25,NA())) ->  | Q106: =IF(Table6[[#This Row],[Class]]=6,Table6[[#This Row],[Remaining]],IF(Table6[[#This Row],[Class]]>6,25,NA())) ->  | R106: =IF(Table6[[#This Row],[Class]]=7,Table6[[#This Row],[Remaining]],IF(Table6[[#This Row],[Class]]>7,25,NA())) ->  | S106: =IF(Table6[[#This Row],[Class]]=8,Table6[[#This Row],[Remaining]],IF(Table6[[#This Row],[Class]]>8,25,NA())) ->  | T106: =IF(Table6[[#This Row],[Class]]=9,Table6[[#This Row],[Remaining]],IF(Table6[[#This Row],[Class]]>9,25,NA())) ->  | U106: =Table6[[#This Row],[Difference]]-100 -> 41.09589041 | V106: =IF(Table6[[#This Row],[Diff1]]>=0,E106,NA()) -> 2 | W106: =IF(Table6[[#This Row],[Diff1]]<0,Table6[[#This Row],[Diff1]],NA()) -> 
A107: LASST220000000000003-LA-Louisiana | B107: 1984-10-15 | C107: 10.5 | D107: 141.8918919 | E107: =QUOTIENT(Table6[[#This Row],[Difference]],25)+IF(Table6[[#This Row],[Difference]]<100,-4,-3) -> 2 | F107: =IF(Table6[[#This Row],[Class]]<0, 25-MOD(Table6[[#This Row],[Difference]],25),MOD(Table6[[#This Row],[Difference]],25)) -> 16.89189189 | G107: =IF(Table6[[#This Row],[Class]]=-1,Table6[[#This Row],[Remaining]],IF(Table6[[#This Row],[Class]]<-1,25,NA())) ->  | H107: =IF(Table6[[#This Row],[Class]]=-2,Table6[[#This Row],[Remaining]],IF(Table6[[#This Row],[Class]]<-2,25,NA())) ->  | I107: =IF(Table6[[#This Row],[Class]]=-3,Table6[[#This Row],[Remaining]],IF(Table6[[#This Row],[Class]]<-3,25,NA())) ->  | J107: =IF(Table6[[#This Row],[Class]]=-4,Table6[[#This Row],[Remaining]],IF(Table6[[#This Row],[Class]]<-4,25,NA())) ->  | K107: =IF(Table6[[#This Row],[Difference]]=100,0,NA()) ->  | L107: =IF(Table6[[#This Row],[Class]]=1,Table6[[#This Row],[Remaining]],IF(Table6[[#This Row],[Class]]>1,25,NA())) -> 25 | M107: =IF(Table6[[#This Row],[Class]]=2,Table6[[#This Row],[Remaining]],IF(Table6[[#This Row],[Class]]>2,25,NA())) -> 16.89189189 | N107: =IF(Table6[[#This Row],[Class]]=3,Table6[[#This Row],[Remaining]],IF(Table6[[#This Row],[Class]]>3,25,NA())) ->  | O107: =IF(Table6[[#This Row],[Class]]=4,Table6[[#This Row],[Remaining]],IF(Table6[[#This Row],[Class]]>4,25,NA())) ->  | P107: =IF(Table6[[#This Row],[Class]]=5,Table6[[#This Row],[Remaining]],IF(Table6[[#This Row],[Class]]>5,25,NA())) ->  | Q107: =IF(Table6[[#This Row],[Class]]=6,Table6[[#This Row],[Remaining]],IF(Table6[[#This Row],[Class]]>6,25,NA())) ->  | R107: =IF(Table6[[#This Row],[Class]]=7,Table6[[#This Row],[Remaining]],IF(Table6[[#This Row],[Class]]>7,25,NA())) ->  | S107: =IF(Table6[[#This Row],[Class]]=8,Table6[[#This Row],[Remaining]],IF(Table6[[#This Row],[Class]]>8,25,NA())) ->  | T107: =IF(Table6[[#This Row],[Class]]=9,Table6[[#This Row],[Remaining]],IF(Table6[[#This Row],[Class]]>9,25,NA())) ->  | U107: =Table6[[#This Row],[Difference]]-100 -> 41.89189189 | V107: =IF(Table6[[#This Row],[Diff1]]>=0,E107,NA()) -> 2 | W107: =IF(Table6[[#This Row],[Diff1]]<0,Table6[[#This Row],[Diff1]],NA()) -> 
A108: LASST220000000000003-LA-Louisiana | B108: 1984-11-15 | C108: 10.7 | D108: 148.6111111 | E108: =QUOTIENT(Table6[[#This Row],[Difference]],25)+IF(Table6[[#This Row],[Difference]]<100,-4,-3) -> 2 | F108: =IF(Table6[[#This Row],[Class]]<0, 25-MOD(Table6[[#This Row],[Difference]],25),MOD(Table6[[#This Row],[Difference]],25)) -> 23.61111111 | G108: =IF(Table6[[#This Row],[Class]]=-1,Table6[[#This Row],[Remaining]],IF(Table6[[#This Row],[Class]]<-1,25,NA())) ->  | H108: =IF(Table6[[#This Row],[Class]]=-2,Table6[[#This Row],[Remaining]],IF(Table6[[#This Row],[Class]]<-2,25,NA())) ->  | I108: =IF(Table6[[#This Row],[Class]]=-3,Table6[[#This Row],[Remaining]],IF(Table6[[#This Row],[Class]]<-3,25,NA())) ->  | J108: =IF(Table6[[#This Row],[Class]]=-4,Table6[[#This Row],[Remaining]],IF(Table6[[#This Row],[Class]]<-4,25,NA())) ->  | K108: =IF(Table6[[#This Row],[Difference]]=100,0,NA()) ->  | L108: =IF(Table6[[#This Row],[Class]]=1,Table6[[#This Row],[Remaining]],IF(Table6[[#This Row],[Class]]>1,25,NA())) -> 25 | M108: =IF(Table6[[#This Row],[Class]]=2,Table6[[#This Row],[Remaining]],IF(Table6[[#This Row],[Class]]>2,25,NA())) -> 23.61111111 | N108: =IF(Table6[[#This Row],[Class]]=3,Table6[[#This Row],[Remaining]],IF(Table6[[#This Row],[Class]]>3,25,NA())) ->  | O108: =IF(Table6[[#This Row],[Class]]=4,Table6[[#This Row],[Remaining]],IF(Table6[[#This Row],[Class]]>4,25,NA())) ->  | P108: =IF(Table6[[#This Row],[Class]]=5,Table6[[#This Row],[Remaining]],IF(Table6[[#This Row],[Class]]>5,25,NA())) ->  | Q108: =IF(Table6[[#This Row],[Class]]=6,Table6[[#This Row],[Remaining]],IF(Table6[[#This Row],[Class]]>6,25,NA())) ->  | R108: =IF(Table6[[#This Row],[Class]]=7,Table6[[#This Row],[Remaining]],IF(Table6[[#This Row],[Class]]>7,25,NA())) ->  | S108: =IF(Table6[[#This Row],[Class]]=8,Table6[[#This Row],[Remaining]],IF(Table6[[#This Row],[Class]]>8,25,NA())) ->  | T108: =IF(Table6[[#This Row],[Class]]=9,Table6[[#This Row],[Remaining]],IF(Table6[[#This Row],[Class]]>9,25,NA())) ->  | U108: =Table6[[#This Row],[Difference]]-100 -> 48.61111111 | V108: =IF(Table6[[#This Row],[Diff1]]>=0,E108,NA()) -> 2 | W108: =IF(Table6[[#This Row],[Diff1]]<0,Table6[[#This Row],[Diff1]],NA()) -> 
A109: LASST220000000000003-LA-Louisiana | B109: 1984-12-15 | C109: 10.9 | D109: 149.3150685 | E109: =QUOTIENT(Table6[[#This Row],[Difference]],25)+IF(Table6[[#This Row],[Difference]]<100,-4,-3) -> 2 | F109: =IF(Table6[[#This Row],[Class]]<0, 25-MOD(Table6[[#This Row],[Difference]],25),MOD(Table6[[#This Row],[Difference]],25)) -> 24.31506849 | G109: =IF(Table6[[#This Row],[Class]]=-1,Table6[[#This Row],[Remaining]],IF(Table6[[#This Row],[Class]]<-1,25,NA())) ->  | H109: =IF(Table6[[#This Row],[Class]]=-2,Table6[[#This Row],[Remaining]],IF(Table6[[#This Row],[Class]]<-2,25,NA())) ->  | I109: =IF(Table6[[#This Row],[Class]]=-3,Table6[[#This Row],[Remaining]],IF(Table6[[#This Row],[Class]]<-3,25,NA())) ->  | J109: =IF(Table6[[#This Row],[Class]]=-4,Table6[[#This Row],[Remaining]],IF(Table6[[#This Row],[Class]]<-4,25,NA())) ->  | K109: =IF(Table6[[#This Row],[Difference]]=100,0,NA()) ->  | L109: =IF(Table6[[#This Row],[Class]]=1,Table6[[#This Row],[Remaining]],IF(Table6[[#This Row],[Class]]>1,25,NA())) -> 25 | M109: =IF(Table6[[#This Row],[Class]]=2,Table6[[#This Row],[Remaining]],IF(Table6[[#This Row],[Class]]>2,25,NA())) -> 24.31506849 | N109: =IF(Table6[[#This Row],[Class]]=3,Table6[[#This Row],[Remaining]],IF(Table6[[#This Row],[Class]]>3,25,NA())) ->  | O109: =IF(Table6[[#This Row],[Class]]=4,Table6[[#This Row],[Remaining]],IF(Table6[[#This Row],[Class]]>4,25,NA())) ->  | P109: =IF(Table6[[#This Row],[Class]]=5,Table6[[#This Row],[Remaining]],IF(Table6[[#This Row],[Class]]>5,25,NA())) ->  | Q109: =IF(Table6[[#This Row],[Class]]=6,Table6[[#This Row],[Remaining]],IF(Table6[[#This Row],[Class]]>6,25,NA())) ->  | R109: =IF(Table6[[#This Row],[Class]]=7,Table6[[#This Row],[Remaining]],IF(Table6[[#This Row],[Class]]>7,25,NA())) ->  | S109: =IF(Table6[[#This Row],[Class]]=8,Table6[[#This Row],[Remaining]],IF(Table6[[#This Row],[Class]]>8,25,NA())) ->  | T109: =IF(Table6[[#This Row],[Class]]=9,Table6[[#This Row],[Remaining]],IF(Table6[[#This Row],[Class]]>9,25,NA())) ->  | U109: =Table6[[#This Row],[Difference]]-100 -> 49.31506849 | V109: =IF(Table6[[#This Row],[Diff1]]>=0,E109,NA()) -> 2 | W109: =IF(Table6[[#This Row],[Diff1]]<0,Table6[[#This Row],[Diff1]],NA()) -> 
A110: LASST220000000000003-LA-Louisiana | B110: 1985-01-15 | C110: 11 | D110: 150.6849315 | E110: =QUOTIENT(Table6[[#This Row],[Difference]],25)+IF(Table6[[#This Row],[Difference]]<100,-4,-3) -> 3 | F110: =IF(Table6[[#This Row],[Class]]<0, 25-MOD(Table6[[#This Row],[Difference]],25),MOD(Table6[[#This Row],[Difference]],25)) -> 0.6849315068 | G110: =IF(Table6[[#This Row],[Class]]=-1,Table6[[#This Row],[Remaining]],IF(Table6[[#This Row],[Class]]<-1,25,NA())) ->  | H110: =IF(Table6[[#This Row],[Class]]=-2,Table6[[#This Row],[Remaining]],IF(Table6[[#This Row],[Class]]<-2,25,NA())) ->  | I110: =IF(Table6[[#This Row],[Class]]=-3,Table6[[#This Row],[Remaining]],IF(Table6[[#This Row],[Class]]<-3,25,NA())) ->  | J110: =IF(Table6[[#This Row],[Class]]=-4,Table6[[#This Row],[Remaining]],IF(Table6[[#This Row],[Class]]<-4,25,NA())) ->  | K110: =IF(Table6[[#This Row],[Difference]]=100,0,NA()) ->  | L110: =IF(Table6[[#This Row],[Class]]=1,Table6[[#This Row],[Remaining]],IF(Table6[[#This Row],[Class]]>1,25,NA())) -> 25 | M110: =IF(Table6[[#This Row],[Class]]=2,Table6[[#This Row],[Remaining]],IF(Table6[[#This Row],[Class]]>2,25,NA())) -> 25 | N110: =IF(Table6[[#This Row],[Class]]=3,Table6[[#This Row],[Remaining]],IF(Table6[[#This Row],[Class]]>3,25,NA())) -> 0.6849315068 | O110: =IF(Table6[[#This Row],[Class]]=4,Table6[[#This Row],[Remaining]],IF(Table6[[#This Row],[Class]]>4,25,NA())) ->  | P110: =IF(Table6[[#This Row],[Class]]=5,Table6[[#This Row],[Remaining]],IF(Table6[[#This Row],[Class]]>5,25,NA())) ->  | Q110: =IF(Table6[[#This Row],[Class]]=6,Table6[[#This Row],[Remaining]],IF(Table6[[#This Row],[Class]]>6,25,NA())) ->  | R110: =IF(Table6[[#This Row],[Class]]=7,Table6[[#This Row],[Remaining]],IF(Table6[[#This Row],[Class]]>7,25,NA())) ->  | S110: =IF(Table6[[#This Row],[Class]]=8,Table6[[#This Row],[Remaining]],IF(Table6[[#This Row],[Class]]>8,25,NA())) ->  | T110: =IF(Table6[[#This Row],[Class]]=9,Table6[[#This Row],[Remaining]],IF(Table6[[#This Row],[Class]]>9,25,NA())) ->  | U110: =Table6[[#This Row],[Difference]]-100 -> 50.68493151 | V110: =IF(Table6[[#This Row],[Diff1]]>=0,E110,NA()) -> 3 | W110: =IF(Table6[[#This Row],[Diff1]]<0,Table6[[#This Row],[Diff1]],NA()) -> 
A111: LASST220000000000003-LA-Louisiana | B111: 1985-02-15 | C111: 11.1 | D111: 154.1666667 | E111: =QUOTIENT(Table6[[#This Row],[Difference]],25)+IF(Table6[[#This Row],[Difference]]<100,-4,-3) -> 3 | F111: =IF(Table6[[#This Row],[Class]]<0, 25-MOD(Table6[[#This Row],[Difference]],25),MOD(Table6[[#This Row],[Difference]],25)) -> 4.166666667 | G111: =IF(Table6[[#This Row],[Class]]=-1,Table6[[#This Row],[Remaining]],IF(Table6[[#This Row],[Class]]<-1,25,NA())) ->  | H111: =IF(Table6[[#This Row],[Class]]=-2,Table6[[#This Row],[Remaining]],IF(Table6[[#This Row],[Class]]<-2,25,NA())) ->  | I111: =IF(Table6[[#This Row],[Class]]=-3,Table6[[#This Row],[Remaining]],IF(Table6[[#This Row],[Class]]<-3,25,NA())) ->  | J111: =IF(Table6[[#This Row],[Class]]=-4,Table6[[#This Row],[Remaining]],IF(Table6[[#This Row],[Class]]<-4,25,NA())) ->  | K111: =IF(Table6[[#This Row],[Difference]]=100,0,NA()) ->  | L111: =IF(Table6[[#This Row],[Class]]=1,Table6[[#This Row],[Remaining]],IF(Table6[[#This Row],[Class]]>1,25,NA())) -> 25 | M111: =IF(Table6[[#This Row],[Class]]=2,Table6[[#This Row],[Remaining]],IF(Table6[[#This Row],[Class]]>2,25,NA())) -> 25 | N111: =IF(Table6[[#This Row],[Class]]=3,Table6[[#This Row],[Remaining]],IF(Table6[[#This Row],[Class]]>3,25,NA())) -> 4.166666667 | O111: =IF(Table6[[#This Row],[Class]]=4,Table6[[#This Row],[Remaining]],IF(Table6[[#This Row],[Class]]>4,25,NA())) ->  | P111: =IF(Table6[[#This Row],[Class]]=5,Table6[[#This Row],[Remaining]],IF(Table6[[#This Row],[Class]]>5,25,NA())) ->  | Q111: =IF(Table6[[#This Row],[Class]]=6,Table6[[#This Row],[Remaining]],IF(Table6[[#This Row],[Class]]>6,25,NA())) ->  | R111: =IF(Table6[[#This Row],[Class]]=7,Table6[[#This Row],[Remaining]],IF(Table6[[#This Row],[Class]]>7,25,NA())) ->  | S111: =IF(Table6[[#This Row],[Class]]=8,Table6[[#This Row],[Remaining]],IF(Table6[[#This Row],[Class]]>8,25,NA())) ->  | T111: =IF(Table6[[#This Row],[Class]]=9,Table6[[#This Row],[Remaining]],IF(Table6[[#This Row],[Class]]>9,25,NA())) ->  | U111: =Table6[[#This Row],[Difference]]-100 -> 54.16666667 | V111: =IF(Table6[[#This Row],[Diff1]]>=0,E111,NA()) -> 3 | W111: =IF(Table6[[#This Row],[Diff1]]<0,Table6[[#This Row],[Diff1]],NA()) -> 
A112: LASST220000000000003-LA-Louisiana | B112: 1985-03-15 | C112: 11.2 | D112: 155.5555556 | E112: =QUOTIENT(Table6[[#This Row],[Difference]],25)+IF(Table6[[#This Row],[Difference]]<100,-4,-3) -> 3 | F112: =IF(Table6[[#This Row],[Class]]<0, 25-MOD(Table6[[#This Row],[Difference]],25),MOD(Table6[[#This Row],[Difference]],25)) -> 5.555555556 | G112: =IF(Table6[[#This Row],[Class]]=-1,Table6[[#This Row],[Remaining]],IF(Table6[[#This Row],[Class]]<-1,25,NA())) ->  | H112: =IF(Table6[[#This Row],[Class]]=-2,Table6[[#This Row],[Remaining]],IF(Table6[[#This Row],[Class]]<-2,25,NA())) ->  | I112: =IF(Table6[[#This Row],[Class]]=-3,Table6[[#This Row],[Remaining]],IF(Table6[[#This Row],[Class]]<-3,25,NA())) ->  | J112: =IF(Table6[[#This Row],[Class]]=-4,Table6[[#This Row],[Remaining]],IF(Table6[[#This Row],[Class]]<-4,25,NA())) ->  | K112: =IF(Table6[[#This Row],[Difference]]=100,0,NA()) ->  | L112: =IF(Table6[[#This Row],[Class]]=1,Table6[[#This Row],[Remaining]],IF(Table6[[#This Row],[Class]]>1,25,NA())) -> 25 | M112: =IF(Table6[[#This Row],[Class]]=2,Table6[[#This Row],[Remaining]],IF(Table6[[#This Row],[Class]]>2,25,NA())) -> 25 | N112: =IF(Table6[[#This Row],[Class]]=3,Table6[[#This Row],[Remaining]],IF(Table6[[#This Row],[Class]]>3,25,NA())) -> 5.555555556 | O112: =IF(Table6[[#This Row],[Class]]=4,Table6[[#This Row],[Remaining]],IF(Table6[[#This Row],[Class]]>4,25,NA())) ->  | P112: =IF(Table6[[#This Row],[Class]]=5,Table6[[#This Row],[Remaining]],IF(Table6[[#This Row],[Class]]>5,25,NA())) ->  | Q112: =IF(Table6[[#This Row],[Class]]=6,Table6[[#This Row],[Remaining]],IF(Table6[[#This Row],[Class]]>6,25,NA())) ->  | R112: =IF(Table6[[#This Row],[Class]]=7,Table6[[#This Row],[Remaining]],IF(Table6[[#This Row],[Class]]>7,25,NA())) ->  | S112: =IF(Table6[[#This Row],[Class]]=8,Table6[[#This Row],[Remaining]],IF(Table6[[#This Row],[Class]]>8,25,NA())) ->  | T112: =IF(Table6[[#This Row],[Class]]=9,Table6[[#This Row],[Remaining]],IF(Table6[[#This Row],[Class]]>9,25,NA())) ->  | U112: =Table6[[#This Row],[Difference]]-100 -> 55.55555556 | V112: =IF(Table6[[#This Row],[Diff1]]>=0,E112,NA()) -> 3 | W112: =IF(Table6[[#This Row],[Diff1]]<0,Table6[[#This Row],[Diff1]],NA()) -> 
A113: LASST220000000000003-LA-Louisiana | B113: 1985-04-15 | C113: 11.3 | D113: 154.7945205 | E113: =QUOTIENT(Table6[[#This Row],[Difference]],25)+IF(Table6[[#This Row],[Difference]]<100,-4,-3) -> 3 | F113: =IF(Table6[[#This Row],[Class]]<0, 25-MOD(Table6[[#This Row],[Difference]],25),MOD(Table6[[#This Row],[Difference]],25)) -> 4.794520548 | G113: =IF(Table6[[#This Row],[Class]]=-1,Table6[[#This Row],[Remaining]],IF(Table6[[#This Row],[Class]]<-1,25,NA())) ->  | H113: =IF(Table6[[#This Row],[Class]]=-2,Table6[[#This Row],[Remaining]],IF(Table6[[#This Row],[Class]]<-2,25,NA())) ->  | I113: =IF(Table6[[#This Row],[Class]]=-3,Table6[[#This Row],[Remaining]],IF(Table6[[#This Row],[Class]]<-3,25,NA())) ->  | J113: =IF(Table6[[#This Row],[Class]]=-4,Table6[[#This Row],[Remaining]],IF(Table6[[#This Row],[Class]]<-4,25,NA())) ->  | K113: =IF(Table6[[#This Row],[Difference]]=100,0,NA()) ->  | L113: =IF(Table6[[#This Row],[Class]]=1,Table6[[#This Row],[Remaining]],IF(Table6[[#This Row],[Class]]>1,25,NA())) -> 25 | M113: =IF(Table6[[#This Row],[Class]]=2,Table6[[#This Row],[Remaining]],IF(Table6[[#This Row],[Class]]>2,25,NA())) -> 25 | N113: =IF(Table6[[#This Row],[Class]]=3,Table6[[#This Row],[Remaining]],IF(Table6[[#This Row],[Class]]>3,25,NA())) -> 4.794520548 | O113: =IF(Table6[[#This Row],[Class]]=4,Table6[[#This Row],[Remaining]],IF(Table6[[#This Row],[Class]]>4,25,NA())) ->  | P113: =IF(Table6[[#This Row],[Class]]=5,Table6[[#This Row],[Remaining]],IF(Table6[[#This Row],[Class]]>5,25,NA())) ->  | Q113: =IF(Table6[[#This Row],[Class]]=6,Table6[[#This Row],[Remaining]],IF(Table6[[#This Row],[Class]]>6,25,NA())) ->  | R113: =IF(Table6[[#This Row],[Class]]=7,Table6[[#This Row],[Remaining]],IF(Table6[[#This Row],[Class]]>7,25,NA())) ->  | S113: =IF(Table6[[#This Row],[Class]]=8,Table6[[#This Row],[Remaining]],IF(Table6[[#This Row],[Class]]>8,25,NA())) ->  | T113: =IF(Table6[[#This Row],[Class]]=9,Table6[[#This Row],[Remaining]],IF(Table6[[#This Row],[Class]]>9,25,NA())) ->  | U113: =Table6[[#This Row],[Difference]]-100 -> 54.79452055 | V113: =IF(Table6[[#This Row],[Diff1]]>=0,E113,NA()) -> 3 | W113: =IF(Table6[[#This Row],[Diff1]]<0,Table6[[#This Row],[Diff1]],NA()) -> 
A114: LASST220000000000003-LA-Louisiana | B114: 1985-05-15 | C114: 11.4 | D114: 158.3333333 | E114: =QUOTIENT(Table6[[#This Row],[Difference]],25)+IF(Table6[[#This Row],[Difference]]<100,-4,-3) -> 3 | F114: =IF(Table6[[#This Row],[Class]]<0, 25-MOD(Table6[[#This Row],[Difference]],25),MOD(Table6[[#This Row],[Difference]],25)) -> 8.333333333 | G114: =IF(Table6[[#This Row],[Class]]=-1,Table6[[#This Row],[Remaining]],IF(Table6[[#This Row],[Class]]<-1,25,NA())) ->  | H114: =IF(Table6[[#This Row],[Class]]=-2,Table6[[#This Row],[Remaining]],IF(Table6[[#This Row],[Class]]<-2,25,NA())) ->  | I114: =IF(Table6[[#This Row],[Class]]=-3,Table6[[#This Row],[Remaining]],IF(Table6[[#This Row],[Class]]<-3,25,NA())) ->  | J114: =IF(Table6[[#This Row],[Class]]=-4,Table6[[#This Row],[Remaining]],IF(Table6[[#This Row],[Class]]<-4,25,NA())) ->  | K114: =IF(Table6[[#This Row],[Difference]]=100,0,NA()) ->  | L114: =IF(Table6[[#This Row],[Class]]=1,Table6[[#This Row],[Remaining]],IF(Table6[[#This Row],[Class]]>1,25,NA())) -> 25 | M114: =IF(Table6[[#This Row],[Class]]=2,Table6[[#This Row],[Remaining]],IF(Table6[[#This Row],[Class]]>2,25,NA())) -> 25 | N114: =IF(Table6[[#This Row],[Class]]=3,Table6[[#This Row],[Remaining]],IF(Table6[[#This Row],[Class]]>3,25,NA())) -> 8.333333333 | O114: =IF(Table6[[#This Row],[Class]]=4,Table6[[#This Row],[Remaining]],IF(Table6[[#This Row],[Class]]>4,25,NA())) ->  | P114: =IF(Table6[[#This Row],[Class]]=5,Table6[[#This Row],[Remaining]],IF(Table6[[#This Row],[Class]]>5,25,NA())) ->  | Q114: =IF(Table6[[#This Row],[Class]]=6,Table6[[#This Row],[Remaining]],IF(Table6[[#This Row],[Class]]>6,25,NA())) ->  | R114: =IF(Table6[[#This Row],[Class]]=7,Table6[[#This Row],[Remaining]],IF(Table6[[#This Row],[Class]]>7,25,NA())) ->  | S114: =IF(Table6[[#This Row],[Class]]=8,Table6[[#This Row],[Remaining]],IF(Table6[[#This Row],[Class]]>8,25,NA())) ->  | T114: =IF(Table6[[#This Row],[Class]]=9,Table6[[#This Row],[Remaining]],IF(Table6[[#This Row],[Class]]>9,25,NA())) ->  | U114: =Table6[[#This Row],[Difference]]-100 -> 58.33333333 | V114: =IF(Table6[[#This Row],[Diff1]]>=0,E114,NA()) -> 3 | W114: =IF(Table6[[#This Row],[Diff1]]<0,Table6[[#This Row],[Diff1]],NA()) -> 
A115: LASST220000000000003-LA-Louisiana | B115: 1985-06-15 | C115: 11.5 | D115: 155.4054054 | E115: =QUOTIENT(Table6[[#This Row],[Difference]],25)+IF(Table6[[#This Row],[Difference]]<100,-4,-3) -> 3 | F115: =IF(Table6[[#This Row],[Class]]<0, 25-MOD(Table6[[#This Row],[Difference]],25),MOD(Table6[[#This Row],[Difference]],25)) -> 5.405405405 | G115: =IF(Table6[[#This Row],[Class]]=-1,Table6[[#This Row],[Remaining]],IF(Table6[[#This Row],[Class]]<-1,25,NA())) ->  | H115: =IF(Table6[[#This Row],[Class]]=-2,Table6[[#This Row],[Remaining]],IF(Table6[[#This Row],[Class]]<-2,25,NA())) ->  | I115: =IF(Table6[[#This Row],[Class]]=-3,Table6[[#This Row],[Remaining]],IF(Table6[[#This Row],[Class]]<-3,25,NA())) ->  | J115: =IF(Table6[[#This Row],[Class]]=-4,Table6[[#This Row],[Remaining]],IF(Table6[[#This Row],[Class]]<-4,25,NA())) ->  | K115: =IF(Table6[[#This Row],[Difference]]=100,0,NA()) ->  | L115: =IF(Table6[[#This Row],[Class]]=1,Table6[[#This Row],[Remaining]],IF(Table6[[#This Row],[Class]]>1,25,NA())) -> 25 | M115: =IF(Table6[[#This Row],[Class]]=2,Table6[[#This Row],[Remaining]],IF(Table6[[#This Row],[Class]]>2,25,NA())) -> 25 | N115: =IF(Table6[[#This Row],[Class]]=3,Table6[[#This Row],[Remaining]],IF(Table6[[#This Row],[Class]]>3,25,NA())) -> 5.405405405 | O115: =IF(Table6[[#This Row],[Class]]=4,Table6[[#This Row],[Remaining]],IF(Table6[[#This Row],[Class]]>4,25,NA())) ->  | P115: =IF(Table6[[#This Row],[Class]]=5,Table6[[#This Row],[Remaining]],IF(Table6[[#This Row],[Class]]>5,25,NA())) ->  | Q115: =IF(Table6[[#This Row],[Class]]=6,Table6[[#This Row],[Remaining]],IF(Table6[[#This Row],[Class]]>6,25,NA())) ->  | R115: =IF(Table6[[#This Row],[Class]]=7,Table6[[#This Row],[Remaining]],IF(Table6[[#This Row],[Class]]>7,25,NA())) ->  | S115: =IF(Table6[[#This Row],[Class]]=8,Table6[[#This Row],[Remaining]],IF(Table6[[#This Row],[Class]]>8,25,NA())) ->  | T115: =IF(Table6[[#This Row],[Class]]=9,Table6[[#This Row],[Remaining]],IF(Table6[[#This Row],[Class]]>9,25,NA())) ->  | U115: =Table6[[#This Row],[Difference]]-100 -> 55.40540541 | V115: =IF(Table6[[#This Row],[Diff1]]>=0,E115,NA()) -> 3 | W115: =IF(Table6[[#This Row],[Diff1]]<0,Table6[[#This Row],[Diff1]],NA()) -> 
